Workbook

Sheet 1. Information Sheet
V1: Algoma Power Inc.
V2: Atikokan Hydro Inc.
V3: Attawapiskat Power Corporation
V4: Bluewater Power Distribution Corporation
V5: Brantford Power Inc.
V6: Burlington Hydro Inc.
V7: Canadian Niagara Power Inc.
V8: Centre Wellington Hydro Ltd.
V9: Chapleau Public Utilities Corporation
V10: COLLUS PowerStream Corp.
V11: Cooperative Hydro Embrun Inc.
M12: Version | N12: 2.8 | V12: E.L.K. Energy Inc.
V13: Energy + Inc.
E14: Utility Name | F14: Thunder Bay Hydro Electricity Distribution Inc. | V14: Enersource Hydro Mississauga Inc.
V15: Entegrus Powerlines Inc.
E16: Service Territory | F16: Thunder Bay & Fort William | V16: EnWin Utilities Ltd.
V17: Erie Thames Powerlines Corporation
E18: Assigned EB Number | F18: EB-2016-0105 | V18: Espanola Regional Hydro Distribution Corporation
V19: Essex Powerlines Corporation
E20: Name of Contact and Title | F20: Brittany Ashby, Business & Regulatory Analyst | V20: Festival Hydro Inc.
V21: Fort Albany Power Corporation
E22: Phone Number | F22: 807-343-1054 | V22: Fort Frances Power Corporation
V23: Greater Sudbury Hydro Inc.
E24: Email Address | F24: bashby@tbhydro.on.ca | V24: Grimsby Power Inc.
V25: Guelph Hydro Electric Systems Inc.
V26: Haldimand County Hydro Inc.
B27: General Notes 1. Please ensure that your macros have been enabled. (Tools -> Macro -> Security) 2. Due to the time lag of deferral/variance account dispositions, this model assumes that all opening balances include previously disposed of amounts. Accordingly, all "Board Approved Dispositions" are deducted from the opening balance. 3. Please provide information in this model since the last time your balances were disposed. 4. For all Board-Approved dispositions, please ensure that the disposition amount has the same sign (e.g: debit balances are to have a positive figure and credit balance are to have a negative figure) as per the related Board decision. | V27: Halton Hills Hydro Inc.
V28: Hearst Power Distribution Company Limited
B29: Notes | V29: Horizon Utilities Corporation
V30: Hydro 2000 Inc.
C31: Pale green cells represent input cells. | V31: Hydro Hawkesbury Inc.
V32: Hydro One Brampton Networks Inc.
C33: Pale blue cells represent drop-down lists. The applicant should select the appropriate item from the drop-down list. | V33: Hydro One Networks Inc.
V34: Hydro One Remote Communities Inc.
C35: White cells contain fixed values, automatically generated values or formulae. | V35: Hydro Ottawa Limited
V36: Innpower Corporation
V37: Kashechewan Power Corporation
V38: Kenora Hydro Electric Corporation Ltd.
V39: Kingston Hydro Corporation
V40: Kitchener-Wilmot Hydro Inc.
V41: Lakefront Utilities Inc.
V42: Lakeland Power Distribution Ltd.
V43: London Hydro Inc.
V44: Midland Power Utility Corporation
V45: Milton Hydro Distribution Inc.
V46: Newmarket-Tay Power Distribution Ltd.
V47: Niagara Peninsula Energy Inc.
V48: Niagara-on-the-Lake Hydro Inc.
V49: North Bay Hydro Distribution Limited
V50: Northern Ontario Wires Inc.
V51: Oakville Hydro Electricity Distribution Inc.
V52: Orangeville Hydro Limited
V53: Orillia Power Distribution Corporation
V54: Oshawa PUC Networks Inc.
V55: Ottawa River Power Corporation
V56: Peterborough Distribution Incorporated
V57: PowerStream Inc.
V58: PUC Distribution Inc.
V59: Renfrew Hydro Inc.
V60: Rideau St. Lawrence Distribution Inc.
V61: Sioux Lookout Hydro Inc.
V62: St. Thomas Energy Inc.
V63: Thunder Bay Hydro Electricity Distribution Inc.
V64: Tillsonburg Hydro Inc.
V65: Toronto Hydro-Electric System Limited
V66: Veridian Connections Inc.
V67: Wasaga Distribution Inc.
V68: Waterloo North Hydro Inc.
V69: Welland Hydro Electric System Corp.
V70: Wellington North Power Inc.
V71: West Coast Huron Energy Inc.
V72: Westario Power Inc.
V73: Whitby Hydro Electric Corporation
V74: Woodstock Hydro Services Inc.

Sheet 2. 2016 Continuity Schedule
CA11: TRUE
E19: 2010 | O19: 2011 | Y19: 2012 | AI19: 2013 | AS19: 2014 | BC19: 2015 | BM19: 2016 | BQ19: Projected Interest on Dec-31-15 Balances | BU19: 2.1.7 RRR
C20: Account Descriptions | D20: Account Number | E20: Opening Principal Amounts as of Jan-1-10 | F20: Transactions1 Debit / (Credit) during 2010 | G20: OEB-Approved Disposition during 2010 | H20: Principal Adjustments2 during 2010 | I20: Closing Principal Balance as of Dec-31-10 | J20: Opening Interest Amounts as of Jan-1-10 | K20: Interest Jan-1 to Dec-31-10 | L20: OEB-Approved Disposition during 2010 | M20: Interest Adjustments1 during 2010 | N20: Closing Interest Amounts as of Dec-31-10 | O20: Opening Principal Amounts as of Jan-1-11 | P20: Transactions1 Debit / (Credit) during 2011 | Q20: OEB-Approved Disposition during 2011 | R20: Principal Adjustments2 during 2011 | S20: Closing Principal Balance as of Dec-31-11 | T20: Opening Interest Amounts as of Jan-1-11 | U20: Interest Jan-1 to Dec-31-10 | V20: OEB-Approved Disposition during 2011 | W20: Interest Adjustments2 during 2011 | X20: Closing Interest Amounts as of Dec-31-11 | Y20: Opening Principal Amounts as of Jan-1-12 | Z20: Transactions1 Debit / (Credit) during 2012 | AA20: OEB-Approved Disposition during 2012 | AB20: Principal Adjustments2 during 2012 | AC20: Closing Principal Balance as of Dec-31-12 | AD20: Opening Interest Amounts as of Jan-1-12 | AE20: Interest Jan-1 to Dec-31-12 | AF20: OEB-Approved Disposition during 2012 | AG20: Interest Adjustments2 during 2012 | AH20: Closing Interest Amounts as of Dec-31-12 | AI20: Opening Principal Amounts as of Jan-1-13 | AJ20: Transactions1 Debit / (Credit) during 2013 | AK20: OEB-Approved Disposition during 2013 | AL20: Principal Adjustments2 during 2013 | AM20: Closing Principal Balance as of Dec-31-13 | AN20: Opening Interest Amounts as of Jan-1-13 | AO20: Interest Jan-1 to Dec-31-13 | AP20: OEB-Approved Disposition during 2013 | AQ20: Interest Adjustments2 during 2013 | AR20: Closing Interest Amounts as of Dec-31-13 | AS20: Opening Principal Amounts as of Jan-1-14 | AT20: Transactions1 Debit / (Credit) during 2014 | AU20: OEB-Approved Disposition during 2014 | AV20: Principal Adjustments2 during 2014 | AW20: Closing Principal Balance as of Dec-31-14 | AX20: Opening Interest Amounts as of Jan-1-14 | AY20: Interest Jan-1 to Dec-31-14 | AZ20: OEB-Approved Disposition during 2014 | BA20: Interest Adjustments2 during 2014 | BB20: Closing Interest Amounts as of Dec-31-14 | BC20: Opening Principal Amounts as of Jan-1-15 | BD20: Transactions1 Debit / (Credit) during 2015 | BE20: OEB-Approved Disposition during 2015 | BF20: Principal Adjustments2 during 2015 | BG20: Closing Principal Balance as of Dec-31-15 | BH20: Opening Interest Amounts as of Jan-1-15 | BI20: Interest Jan-1 to Dec-31-15 | BJ20: OEB-Approved Disposition during 2015 | BK20: Interest Adjustments2 during 2015 | BL20: Closing Interest Amounts as of Dec-31-15 | BM20: Principal Disposition during 2016 - instructed by OEB | BN20: Interest Disposition during 2016 - instructed by OEB | BO20: Closing Principal Balances as of Dec 31-15 Adjusted for Dispositions during 2016 | BP20: Closing Interest Balances as of Dec 31-15 Adjusted for Dispositions during 2016 | BQ20: Projected Interest from Jan 1, 2016 to December 31, 2016 on Dec 31 -15 balance adjusted for disposition during 2016 7 | BR20: Projected Interest from January 1, 2017 to April 30, 2017 on Dec 31 -15 balance adjusted for disposition during 2016 7 | BS20: Total Interest | BT20: Total Claim | BU20: As of Dec 31-15 | BV20: Variance RRR vs. 2015 Balance (Principal + Interest)
BS22: Claim before Forecasted Transactions | BT22: Claim before Forecasted Transactions
C23: Group 1 Accounts
A24: 1 | C24: LV Variance Account | D24: 1550 | I24: =E24+F24-G24+H24 -> 0 | J24: 0 | K24: 0 | L24: 0 | M24: 0 | N24: =J24+K24-L24+M24 -> 0 | O24: =I24 -> 0 | P24: 0 | Q24: 0 | R24: 0 | S24: =O24+P24-Q24+R24 -> 0 | T24: =N24 -> 0 | U24: 0 | V24: 0 | W24: 0 | X24: =T24+U24-V24+W24 -> 0 | Y24: =S24 -> 0 | Z24: 0 | AA24: 0 | AB24: 0 | AC24: =Y24+Z24-AA24+SUM(AB24:AB24) -> 0 | AD24: =X24 -> 0 | AE24: 0 | AF24: 0 | AG24: 0 | AH24: =AD24+AE24-AF24+AG24 -> 0 | AI24: =AC24 -> 0 | AJ24: 0 | AK24: 0 | AL24: 0 | AM24: =AI24+AJ24-AK24+SUM(AL24:AL24) -> 0 | AN24: =AH24 -> 0 | AO24: 0 | AP24: 0 | AQ24: 0 | AR24: =AN24+AO24-AP24+AQ24 -> 0 | AS24: =AM24 -> 0 | AT24: 0 | AU24: 0 | AV24: 0 | AW24: =AS24+AT24-AU24+SUM(AV24:AV24) -> 0 | AX24: =AR24 -> 0 | AY24: 0 | AZ24: 0 | BA24: 0 | BB24: =AX24+AY24-AZ24+BA24 -> 0 | BC24: =AW24 -> 0 | BD24: 0 | BE24: 0 | BF24: 0 | BG24: =BC24+BD24-BE24+SUM(BF24:BF24) -> 0 | BH24: =BB24 -> 0 | BI24: 0 | BJ24: 0 | BK24: 0 | BL24: =BH24+BI24-BJ24+BK24 -> 0 | BM24: 0 | BN24: 0 | BO24: =BG24-BM24 -> 0 | BP24: =BL24-BN24 -> 0 | BQ24: =(((0.011/12)*BO24)*12) -> 0 | BR24: =((0.011/12)*BO24)*4 -> 0 | BS24: =BP24+BQ24+BR24 -> 0 | BT24: =SUM(BO24:BR24) -> 0 | BU24: 0 | BV24: =BU24-SUM(BG24,BL24) -> 0
A25: 2 | C25: Smart Metering Entity Charge Variance Account | D25: 1551 | AI25: 0 | AJ25: -2727 | AK25: 0 | AL25: 0 | AM25: =AI25+AJ25-AK25+SUM(AL25:AL25) -> -2727 | AN25: 0 | AO25: 182 | AP25: 0 | AR25: =AN25+AO25-AP25+AQ25 -> 182 | AS25: -2727 | AT25: 749 | AW25: -1978 | AX25: 182 | AY25: -10 | BA25: 0 | BB25: =AX25+AY25-AZ25+BA25 -> 172 | BC25: -1978 | BD25: -5139.36 | BE25: -2727 | BF25: 0 | BG25: =BC25+BD25-BE25+SUM(BF25:BF25) -> -4390.36 | BH25: 172 | BI25: -29 | BJ25: 128 | BK25: 0 | BL25: =BH25+BI25-BJ25+BK25 -> 15 | BM25: 749 | BN25: 56 | BO25: =BG25-BM25 -> -5139.36 | BP25: =BL25-BN25 -> -41 | BQ25: =(((0.011/12)*BO25)*12) -> -56.53296 | BR25: =((0.011/12)*BO25)*4 -> -18.84432 | BS25: -116.37728 | BT25: =SUM(BO25:BR25) -> -5255.73728 | BU25: -4375.36 | BV25: =BU25-SUM(BG25,BL25) -> 0
A26: 3 | C26: RSVA - Wholesale Market Service Charge10 | D26: 1580 | E26: -987693 | F26: -1056767 | G26: -683131 | H26: 0 | I26: =E26+F26-G26+H26 -> -1361329 | J26: -24603 | K26: -8574 | L26: -6622 | M26: 0 | N26: =J26+K26-L26+M26 -> -26555 | O26: =I26 -> -1361329 | P26: -1433362 | Q26: -304562 | R26: 0 | S26: =O26+P26-Q26+SUM(R26:R26) -> -2490129 | T26: =N26 -> -26555 | U26: -26238 | V26: -21069 | W26: 0 | X26: =T26+U26-V26+W26 -> -31724 | Y26: -2490129 | Z26: -1482161 | AA26: -1056767 | AB26: 0 | AC26: -2915523 | AD26: -31724 | AE26: -37648 | AF26: -22513 | AG26: 0 | AH26: =AD26+AE26-AF26+AG26 -> -46859 | AI26: -2915523 | AJ26: -810505 | AK26: -1433362 | AL26: 0 | AM26: -2292666 | AN26: -46859 | AO26: -36433 | AP26: -37305 | AR26: =AN26+AO26-AP26+AQ26 -> -45987 | AS26: -2292666 | AT26: -187523 | AU26: -1482161 | AW26: -998028 | AX26: -45987 | AY26: -13776 | AZ26: -38604 | BA26: 0 | BB26: =AX26+AY26-AZ26+BA26 -> -21159 | BC26: -998028 | BD26: =-2074313.23 -> -2074313.23 | BE26: -810506 | BF26: 0 | BG26: -2261835.23 | BH26: -21159 | BI26: =-13886.66 -> -13886.66 | BJ26: -23269 | BK26: 0 | BL26: =BH26+BI26-BJ26+BK26 -> -11776.66 | BM26: -187524 | BN26: -814 | BO26: -2074311.23 | BP26: -10962.66 | BQ26: -22817.42353 | BR26: -7605.807843 | BS26: -41385.89137 | BT26: =SUM(BO26:BR26) -> -2115697.121 | BU26: -2029307.23 | BV26: 244304.66
A27: 3.1 | C27: Variance WMS – Sub-account CBR Class A10 | D27: 1580 | BC27: 0 | BD27: 6167.57 | BE27: 0 | BF27: 0 | BG27: 6167.57 | BH27: 0 | BI27: 18.89 | BL27: 18.89 | BO27: 6167.57 | BP27: 18.89 | BQ27: 67.84327 | BR27: 22.61442333 | BS27: 109.3476933 | BT27: =IF(CB27=TRUE, SUM(BO27:BR27), 0) -> 0 | BU27: 0 | BV27: =BU27-SUM(BG27,BL27) -> -6186.46 | CA27: 1580 CBDR A | CB27: FALSE
A28: 3.2 | C28: Variance WMS – Sub-account CBR Class B10 | D28: 1580 | BC28: 0 | BD28: 237369 | BE28: 0 | BF28: 0 | BG28: 237369 | BH28: 0 | BI28: 749 | BL28: 749 | BO28: 237369 | BP28: 749 | BQ28: 2611.059 | BR28: 870.353 | BS28: 4230.412 | BT28: =IF(CB28=TRUE, SUM(BO28:BR28), 0) -> 241599.412 | BU28: 0 | BV28: =BU28-SUM(BG28,BL28) -> -238118 | CA28: 1580 CBDR B | CB28: TRUE
A29: 4 | C29: RSVA - Retail Transmission Network Charge | D29: 1584 | E29: 298826 | F29: 121573 | G29: -295323 | H29: 0 | I29: =E29+F29-G29+H29 -> 715722 | J29: -11822 | K29: 5173 | L29: -10025 | M29: 0 | N29: =J29+K29-L29+M29 -> 3376 | O29: 715722 | P29: -240714 | Q29: 594149 | R29: 0 | S29: =O29+P29-Q29+SUM(R29:R29) -> -119141 | T29: 3376 | U29: 5429 | V29: 4228 | W29: 0 | X29: 4577 | Y29: -119141 | Z29: -237063 | AA29: 121573 | AB29: 0 | AC29: -477777 | AD29: 4577 | AE29: -5263 | AF29: 3846 | AH29: -4532 | AI29: -477777 | AJ29: -172371 | AK29: -240714 | AL29: 0 | AM29: -409434 | AN29: -4532 | AO29: -6265 | AP29: -3987 | AR29: -6810 | AS29: -409434 | AT29: -239970 | AU29: -237064 | AW29: -412340 | AX29: -6810 | AY29: -5143 | AZ29: -5191 | BA29: 0 | BB29: -6762 | BC29: -412340 | BD29: -212607.67 | BE29: -172371 | BF29: 0 | BG29: =BC29+BD29-BE29+SUM(BF29:BF29) -> -452576.67 | BH29: -6762 | BI29: -4832 | BJ29: -4998 | BL29: -6596 | BM29: -239969 | BN29: -5506 | BO29: -212607.67 | BP29: -1090 | BQ29: -2338.68437 | BR29: -779.5614567 | BS29: -4208.245827 | BT29: =SUM(BO29:BR29) -> -216815.9158 | BU29: -459172.67 | BV29: 0
A30: 5 | C30: RSVA - Retail Transmission Connection Charge | D30: 1586 | E30: 1952861 | F30: 10637 | G30: 1097480 | H30: 0 | I30: 866018 | J30: 33286 | K30: 9403 | L30: 34885 | M30: 0 | N30: 7804 | O30: 866018 | P30: -428515 | Q30: 855382 | R30: 0 | S30: -417879 | T30: 7804 | U30: 4669 | V30: 7075 | W30: 0 | X30: 5398 | Y30: -417879 | Z30: -633383 | AA30: 10636 | AB30: 0 | AC30: -1061898 | AD30: 5398 | AE30: -11233 | AF30: 5077 | AH30: -10912 | AI30: -1061898 | AJ30: -547630 | AK30: -428515 | AL30: 0 | AM30: -1181013 | AN30: -10912 | AO30: -15810 | AP30: -8078 | AR30: -18644 | AS30: -1181013 | AT30: -429963 | AU30: -633383 | AW30: -977593 | AX30: -18644 | AY30: -13987 | AZ30: -15248 | BA30: 0 | BB30: -17383 | BC30: -977593 | BD30: -221401.84 | BE30: -547630 | BF30: 0 | BG30: -651364.84 | BH30: -17383 | BI30: -9689 | BJ30: -14129 | BL30: -12943 | BM30: -429963 | BN30: -9957 | BO30: -221401.84 | BP30: -2986 | BQ30: -2435.42024 | BR30: -811.8067467 | BS30: -6233.226987 | BT30: =SUM(BO30:BR30) -> -227635.067 | BU30: -664307.84 | BV30: 0
A31: 6 | C31: RSVA - Power (excluding Global Adjustment) | D31: 1588 | E31: -1299112 | F31: -996739 | G31: -1162638 | H31: 0 | I31: -1133213 | J31: -73872 | K31: -10264 | L31: -66291 | M31: 0 | N31: -17845 | O31: -1133213 | P31: -1182402 | Q31: =-136474 -> -136474 | R31: 0 | S31: -2179141 | T31: -17845 | U31: -13203 | V31: -8965 | W31: 0 | X31: -22083 | Y31: -2179141 | Z31: -194328 | AA31: -996739 | AB31: 0 | AC31: -1376730 | AD31: -22083 | AE31: -52129 | AF31: -24201 | AH31: -50011 | AI31: -1376730 | AJ31: -410126 | AK31: -1182402 | AL31: 422420 | AM31: -182034 | AN31: -50011 | AO31: 21556 | AP31: -21057 | AQ31: -9213 | AR31: -16611 | AS31: -182034 | AT31: -418549 | AU31: -194328 | AV31: 230585 | AW31: -175670 | AX31: -16611 | AY31: -31012 | AZ31: -32763 | BA31: 4641 | BB31: -10219 | BC31: -175670 | BD31: 106684.25 | BE31: 12294 | BF31: 0 | BG31: -81279.75 | BH31: -10219 | BI31: -5202 | BJ31: 16393 | BL31: -31814 | BM31: -187964 | BN31: -29541 | BO31: 106684.25 | BP31: -2273 | BQ31: 1173.52675 | BR31: 391.1755833 | BS31: -708.2976667 | BT31: =SUM(BO31:BR31) -> 105975.9523 | BU31: -113093.75 | BV31: 0
A32: 7 | C32: RSVA - Global Adjustment | D32: 1589 | E32: 1644085 | F32: -137012 | G32: -58411 | H32: 0 | I32: 1565484 | J32: 26367 | K32: 9855 | L32: 10958 | M32: 0 | N32: 25264 | O32: 1565484 | P32: 996189 | Q32: 1702492 | R32: 0 | S32: 859181 | T32: 25264 | U32: 13036 | V32: 32672 | W32: 0 | X32: 5628 | Y32: 859181 | Z32: 990790 | AA32: -137011 | AB32: 0 | AC32: 1986982 | AD32: 5628 | AE32: 22350 | AF32: -1080 | AH32: 29058 | AI32: 1986982 | AJ32: 1904373 | AK32: 996189 | AL32: -3028156 | AM32: -132990 | AN32: 29058 | AO32: -2501 | AP32: 26233 | AQ32: -22782 | AR32: -22458 | AS32: -132990 | AT32: 1893561 | AU32: 990790 | AV32: -302205 | AW32: 467576 | AX32: -22458 | AY32: 41349 | AZ32: 22245 | BA32: -46768 | BB32: -50122 | BC32: 467576 | BD32: 925817.6 | BE32: -1123783 | BF32: 0 | BG32: 2517176.6 | BH32: -50122 | BI32: 18050 | BJ32: -66729 | BL32: 34657 | BM32: 1591357 | BN32: 41420 | BO32: 925819.6 | BP32: -6763 | BQ32: 10184.0156 | BR32: 3394.671867 | BS32: 6815.687467 | BT32: =SUM(BO32:BR32) -> 932635.2875 | BU32: 2551833.6 | BV32: 0
A33: 8 | C33: Disposition and Recovery/Refund of Regulatory Balances (2009)8 | D33: 1595 | E33: -1313843 | F33: 1138611 | G33: 0 | H33: 0 | I33: -175232 | J33: -385867 | K33: -5411 | L33: 0 | M33: 0 | N33: -391278 | O33: =I33 -> -175232 | P33: 518607 | Q33: 0 | R33: 0 | S33: 343375 | T33: =N33 -> -391278 | U33: 3087 | V33: 0 | W33: 0 | X33: -388191 | Y33: =S33 -> 343375 | Z33: -364 | AA33: 0 | AB33: 0 | AC33: 343011 | AD33: -388191 | AE33: 5048 | AH33: -383143 | AI33: 343011 | AJ33: 36 | AK33: 343058 | AL33: 0 | AM33: -11 | AN33: -383143 | AO33: 1261 | AP33: -381882 | AR33: 0 | AS33: =AM33 -> -11 | AT33: 5 | AU33: -364 | AW33: 358 | AX33: 0 | AY33: 3 | AZ33: -1689 | BA33: 0 | BB33: 1692 | BC33: =AW33 -> 358 | BD33: 0 | BE33: 353 | BF33: 0 | BG33: 5 | BH33: 1692 | BI33: =1-0.13 -> 0.87 | BJ33: 1696 | BL33: -3.13 | BM33: 5 | BN33: -4 | BO33: 0 | BP33: 0.87 | BQ33: 0 | BR33: 0 | BS33: 0.87 | BT33: =IF(CB33=TRUE, SUM(BO33:BR33), 0) -> 0.87 | BU33: 1.87 | BV33: 1.092459456e-13 | CA33: 1595 (2009) | CB33: TRUE
A34: 9 | C34: Disposition and Recovery/Refund of Regulatory Balances (2010)8 | D34: 1595 | E34: 0 | F34: 508454 | G34: 1231535 | H34: 0 | I34: -723081 | J34: 0 | K34: -5630 | L34: -205730 | M34: 0 | N34: 200100 | O34: -723081 | P34: 416124 | Q34: 0 | R34: 0 | S34: =O34+P34-Q34+SUM(R34:R34) -> -306957 | T34: 200100 | U34: -6083 | V34: 0 | W34: 0 | X34: 194017 | Y34: -306957 | Z34: -347 | AA34: 0 | AB34: 0 | AC34: -307304 | AD34: 194017 | AE34: -4512 | AH34: 189505 | AI34: -307304 | AJ34: 23 | AK34: -307273 | AL34: 0 | AM34: -8 | AN34: 189505 | AO34: -1129 | AP34: 188376 | AR34: 0 | AS34: -8 | AT34: 4 | AU34: -347 | AW34: 343 | AX34: 0 | AY34: 3 | AZ34: 1497 | BA34: 0 | BB34: -1494 | BC34: 343 | BD34: 0 | BE34: 339 | BF34: 0 | BG34: 4 | BH34: -1494 | BI34: 1 | BJ34: -1491 | BL34: -2 | BM34: 4 | BN34: -3 | BO34: 0 | BP34: 1 | BQ34: 0 | BR34: 0 | BS34: 1 | BT34: 1 | BU34: 2 | BV34: 0 | CA34: 1595 (2010) | CB34: TRUE
A35: 10 | C35: Disposition and Recovery/Refund of Regulatory Balances (2011)8 | D35: 1595 | E35: 0 | F35: 0 | G35: 0 | H35: 0 | I35: 0 | J35: 0 | K35: 0 | L35: 0 | M35: 0 | N35: 0 | O35: =I35 -> 0 | P35: 989948 | Q35: 0 | R35: 0 | S35: 989948 | T35: =N35 -> 0 | U35: 32144 | V35: 0 | W35: 0 | X35: =T35+U35-V35+W35 -> 32144 | Y35: 989948 | Z35: -856050 | AA35: 0 | AB35: 0 | AC35: 133898 | AD35: 32144 | AE35: 5498 | AH35: =AD35+AE35-AF35+AG35 -> 37642 | AI35: 133898 | AJ35: 2166 | AK35: 0 | AL35: 0 | AM35: 136064 | AN35: 37642 | AO35: -36640 | AP35: 0 | AR35: =AN35+AO35-AP35+AQ35 -> 1002 | AS35: 136064 | AT35: -34 | AU35: 133898 | AW35: 2132 | AX35: 1002 | AY35: 687 | AZ35: 40266 | BA35: 0 | BB35: =AX35+AY35-AZ35+BA35 -> -38577 | BC35: 2132 | BD35: 0 | BE35: 2166 | BF35: 0 | BG35: -34 | BH35: -38577 | BI35: 9 | BJ35: -39222 | BL35: =BH35+BI35-BJ35+BK35 -> 654 | BM35: -34 | BN35: 643 | BO35: 0 | BP35: 11 | BQ35: 0 | BR35: 0 | BS35: 11 | BT35: 11 | BU35: 620 | BV35: 0 | CA35: 1595 (2011) | CB35: TRUE
A36: 11 | C36: Disposition and Recovery/Refund of Regulatory Balances (2012)8 | D36: 1595 | E36: 0 | F36: 0 | G36: 0 | H36: 0 | I36: 0 | J36: 0 | K36: 0 | L36: 0 | M36: 0 | N36: 0 | O36: =I36 -> 0 | P36: 0 | Q36: 0 | R36: 0 | S36: =O36+P36-Q36+SUM(R36:R36) -> 0 | T36: =N36 -> 0 | U36: 0 | V36: 0 | W36: 0 | X36: =T36+U36-V36+W36 -> 0 | Y36: 0 | Z36: -818135 | AA36: 0 | AB36: 0 | AC36: =Y36+Z36-AA36+SUM(AB36:AB36) -> -818135 | AD36: =X36 -> 0 | AE36: -213315 | AH36: =AD36+AE36-AF36+AG36 -> -213315 | AI36: -818135 | AJ36: 1005278 | AK36: 0 | AL36: 0 | AM36: 187143 | AN36: -213315 | AO36: 39247 | AP36: 0 | AR36: =AN36+AO36-AP36+AQ36 -> -174068 | AS36: 187143 | AT36: 375 | AU36: 0 | AW36: 187518 | AX36: -174068 | AY36: 2756 | BA36: 0 | BB36: =AX36+AY36-AZ36+BA36 -> -171312 | BC36: 187518 | BD36: 0 | BE36: -5086 | BF36: 0 | BG36: 192604 | BH36: -171312 | BI36: =2274 -> 2274 | BJ36: 18060 | BL36: =BH36+BI36-BJ36+BK36 -> -187098 | BM36: 192604 | BN36: -186369 | BO36: 0 | BP36: -729 | BQ36: 0 | BR36: 0 | BS36: -729 | BT36: -729 | BU36: 5506 | BV36: 0 | CA36: 1595 (2012) | CB36: TRUE
A37: 12 | C37: Disposition and Recovery/Refund of Regulatory Balances (2013)8 | D37: 1595 | E37: 0 | F37: 0 | G37: 0 | H37: 0 | I37: 0 | J37: 0 | K37: 0 | L37: 0 | M37: 0 | N37: 0 | O37: =I37 -> 0 | P37: 0 | Q37: 0 | R37: 0 | S37: =O37+P37-Q37+SUM(R37:R37) -> 0 | T37: =N37 -> 0 | U37: 0 | V37: 0 | W37: 0 | X37: =T37+U37-V37+W37 -> 0 | Y37: 0 | Z37: 0 | AA37: 0 | AB37: 0 | AC37: =Y37+Z37-AA37+SUM(AB37:AB37) -> 0 | AD37: =X37 -> 0 | AH37: =AD37+AE37-AF37+AG37 -> 0 | AI37: 0 | AJ37: -542713 | AK37: 0 | AL37: 0 | AM37: -542713 | AN37: 0 | AO37: -239847 | AP37: 0 | AR37: =AN37+AO37-AP37+AQ37 -> -239847 | AS37: -542713 | AT37: 888414 | AU37: 0 | AW37: 345701 | AX37: -239847 | AY37: 2295 | BA37: 0 | BB37: =AX37+AY37-AZ37+BA37 -> -237552 | BC37: 345701 | BD37: -130 | BE37: 0 | BF37: 0 | BG37: 345571 | BH37: -237552 | BI37: =4121-3 -> 4118 | BJ37: 0 | BL37: =BH37+BI37-BJ37+BK37 -> -233434 | BM37: 345701 | BN37: -232162 | BO37: -130 | BP37: -1272 | BQ37: -1.43 | BR37: -0.4766666667 | BS37: -1273.906667 | BT37: -1403.906667 | BU37: 112137 | BV37: 0 | CA37: 1595 (2013) | CB37: TRUE
A38: 13 | C38: Disposition and Recovery/Refund of Regulatory Balances (2014)8 | D38: 1595 | E38: 0 | F38: 0 | G38: 0 | H38: 0 | I38: 0 | J38: 0 | K38: 0 | L38: 0 | M38: 0 | N38: 0 | O38: =I38 -> 0 | P38: 0 | Q38: 0 | R38: 0 | S38: =O38+P38-Q38+SUM(R38:R38) -> 0 | T38: =N38 -> 0 | U38: 0 | V38: 0 | W38: 0 | X38: =T38+U38-V38+W38 -> 0 | Y38: 0 | Z38: 0 | AA38: 0 | AB38: 0 | AC38: =Y38+Z38-AA38+SUM(AB38:AB38) -> 0 | AD38: =X38 -> 0 | AH38: =AD38+AE38-AF38+AG38 -> 0 | AI38: 0 | AK38: 0 | AL38: 0 | AM38: 0 | AN38: 0 | AP38: 0 | AR38: =AN38+AO38-AP38+AQ38 -> 0 | AS38: 0 | AT38: -486480 | AU38: 0 | AW38: -486480 | AX38: 0 | AY38: -79708 | BA38: 0 | BB38: =AX38+AY38-AZ38+BA38 -> -79708 | BC38: -486480 | BD38: 579056 | BE38: 0 | BF38: 0 | BG38: 92576 | BH38: -79708 | BI38: 39243 | BJ38: 0 | BL38: =BH38+BI38-BJ38+BK38 -> -40465 | BM38: 0 | BN38: 0 | BO38: 92576 | BP38: -40465 | BQ38: 1018.336 | BR38: 339.4453333 | BS38: -39107.21867 | BT38: 53468.78133 | BU38: 52111 | BV38: 0 | CA38: 1595 (2014) | CB38: TRUE
A39: 14 | C39: Disposition and Recovery/Refund of Regulatory Balances (2015)8 | D39: 1595 | E39: 0 | F39: 0 | G39: 0 | H39: 0 | I39: 0 | J39: 0 | K39: 0 | L39: 0 | M39: 0 | N39: 0 | O39: =I39 -> 0 | P39: 0 | Q39: 0 | R39: 0 | S39: =O39+P39-Q39+SUM(R39:R39) -> 0 | T39: =N39 -> 0 | U39: 0 | V39: 0 | W39: 0 | X39: =T39+U39-V39+W39 -> 0 | Y39: 0 | Z39: 0 | AA39: 0 | AB39: 0 | AC39: =Y39+Z39-AA39+SUM(AB39:AB39) -> 0 | AD39: =X39 -> 0 | AH39: =AD39+AE39-AF39+AG39 -> 0 | AI39: 0 | AJ39: 0 | AK39: 0 | AL39: 0 | AM39: 0 | AN39: 0 | AO39: 0 | AP39: 0 | AR39: =AN39+AO39-AP39+AQ39 -> 0 | AS39: 0 | AU39: 0 | AW39: 0 | AX39: 0 | BA39: 0 | BB39: =AX39+AY39-AZ39+BA39 -> 0 | BC39: 0 | BD39: -1023130 | BE39: 0 | BF39: 0 | BG39: -1023130 | BH39: 0 | BI39: -127971 | BJ39: 0 | BL39: =BH39+BI39-BJ39+BK39 -> -127971 | BM39: 0 | BN39: 0 | BO39: -1023130 | BP39: -127971 | BQ39: -11254.43 | BR39: -3751.476667 | BS39: =BP39+BQ39+BR39 -> -142976.9067 | BT39: 0 | BU39: -1151101 | BV39: 0 | CA39: 1595 (2015) | CB39: FALSE
C40: Not to be disposed of unless rate rider has expired and balance has been audited
C42: Group 1 Sub-Total (including Account 1589 - Global Adjustment) | E42: =SUM(E24:E39) -> 295124 | F42: =SUM(F24:F39) -> -411243 | G42: =SUM(G24:G39) -> 129512 | H42: 0 | I42: -245631 | J42: -436511 | K42: -5448 | L42: -242825 | M42: 0 | N42: -199134 | O42: -245631 | P42: -364125 | Q42: 2710987 | R42: 0 | S42: -3320743 | T42: -199134 | U42: 12841 | V42: 13941 | W42: 0 | X42: -200234 | Y42: -3320743 | Z42: -3231041 | AA42: -2058308 | AB42: 0 | AC42: -4493476 | AD42: -200234 | AE42: -291204 | AF42: -38871 | AG42: 0 | AH42: -452567 | AI42: -4493476 | AJ42: 425804 | AK42: =SUM(AK24:AK39) -> -2253019 | AL42: -2605736 | AM42: -4420389 | AN42: -452567 | AO42: -276379 | AP42: -237700 | AQ42: -31995 | AR42: -523241 | AS42: -4420389 | AT42: 1020589 | AU42: -1422959 | AV42: -71620 | AW42: -2048461 | AX42: -523241 | AY42: -96543 | AZ42: -29487 | BA42: -42127 | BB42: -632424 | BC42: -2048461 | BD42: -1681627.68 | BE42: -2646951 | BF42: 0 | BG42: -1083137.68 | BH42: -632424 | BI42: -97145.9 | BJ42: -113561 | BK42: 0 | BL42: -616008.9 | BM42: 1084966 | BN42: -422237 | BO42: -2168103.68 | BP42: -193771.9 | BQ42: -23849.14048 | BR42: =SUM(BR24:BR39) -> -7949.713493 | BS42: =SUM(BS24:BS39) -> -225570.754 | BT42: =SUM(BT24:BT39) -> -1233844.445 | BU42: -1699146.38 | BV42: 0.2000000002
C43: Group 1 Sub-Total (excluding Account 1589 - Global Adjustment) | E43: =E42-E44 -> -1348961 | F43: =F42-F44 -> -274231 | G43: 187923 | H43: 0 | I43: -1811115 | J43: -462878 | K43: -15303 | L43: -253783 | M43: 0 | N43: -224398 | O43: -1811115 | P43: -1360314 | Q43: 1008495 | R43: 0 | S43: -4179924 | T43: -224398 | U43: -195 | V43: -18731 | W43: 0 | X43: -205862 | Y43: -4179924 | Z43: -4221831 | AA43: -1921297 | AB43: 0 | AC43: -6480458 | AD43: -205862 | AE43: -313554 | AF43: -37791 | AG43: 0 | AH43: -481625 | AI43: =AI42-AI44 -> -6480458 | AJ43: -1478569 | AK43: -3249208 | AL43: 422420 | AM43: -4287399 | AN43: -481625 | AO43: -273878 | AP43: -263933 | AQ43: -9213 | AR43: -500783 | AS43: =AS42-AS44 -> -4287399 | AT43: -872972 | AU43: -2413749 | AV43: 230585 | AW43: -2516037 | AX43: -500783 | AY43: -137892 | AZ43: -51732 | BA43: 4641 | BB43: -582302 | BC43: =BC42-BC44 -> -2516037 | BD43: -2607445.28 | BE43: -1523168 | BF43: 0 | BG43: -3600314.28 | BH43: -582302 | BI43: -115195.9 | BJ43: -46832 | BK43: 0 | BL43: -650665.9 | BM43: =BM42-BM44 -> -506391 | BN43: -463657 | BO43: -3093923.28 | BP43: -187008.9 | BQ43: -34033.15608 | BR43: -11344.38536 | BS43: -232386.4414 | BT43: -2166479.732 | BU43: -4250979.98 | BV43: 0.2000000002
C44: =C32 -> RSVA - Global Adjustment | D44: 1589 | E44: =E32 -> 1644085 | F44: =F32 -> -137012 | G44: -58411 | H44: 0 | I44: 1565484 | J44: 26367 | K44: 9855 | L44: 10958 | M44: 0 | N44: 25264 | O44: 1565484 | P44: 996189 | Q44: 1702492 | R44: 0 | S44: 859181 | T44: 25264 | U44: 13036 | V44: 32672 | W44: 0 | X44: 5628 | Y44: 859181 | Z44: 990790 | AA44: -137011 | AB44: 0 | AC44: 1986982 | AD44: 5628 | AE44: 22350 | AF44: -1080 | AG44: 0 | AH44: 29058 | AI44: 1986982 | AJ44: 1904373 | AK44: =AK32 -> 996189 | AL44: -3028156 | AM44: -132990 | AN44: 29058 | AO44: -2501 | AP44: 26233 | AQ44: -22782 | AR44: -22458 | AS44: -132990 | AT44: 1893561 | AU44: 990790 | AV44: -302205 | AW44: 467576 | AX44: -22458 | AY44: 41349 | AZ44: 22245 | BA44: -46768 | BB44: -50122 | BC44: =BC32 -> 467576 | BD44: =BD32 -> 925817.6 | BE44: -1123783 | BF44: 0 | BG44: 2517176.6 | BH44: -50122 | BI44: 18050 | BJ44: -66729 | BK44: 0 | BL44: 34657 | BM44: 1591357 | BN44: 41420 | BO44: 925819.6 | BP44: -6763 | BQ44: 10184.0156 | BR44: =BR32 -> 3394.671867 | BS44: =BS32 -> 6815.687467 | BT44: =SUM(BO44:BR44) -> 932635.2875 | BU44: =BU32 -> 2551833.6 | BV44: 0
C46: Group 2 Accounts
A47: 15 | C47: Other Regulatory Assets - Sub-Account - Deferred IFRS Transition Costs | D47: 1508 | E47: 5640 | F47: 2598 | I47: =E47+F47-G47+H47 -> 8238 | J47: 63 | N47: =J47+K47-L47+M47 -> 63 | O47: =I47 -> 8238 | P47: 42626 | S47: =O47+P47-Q47+SUM(R47:R47) -> 50864 | T47: =N47 -> 63 | U47: 368 | X47: =T47+U47-V47+W47 -> 431 | Y47: =S47 -> 50864 | Z47: 42737 | AC47: =Y47+Z47-AA47+SUM(AB47:AB47) -> 93601 | AD47: =X47 -> 431 | AE47: 952 | AH47: =AD47+AE47-AF47+AG47 -> 1383 | AI47: =AC47 -> 93601 | AJ47: 18023 | AM47: =AI47+AJ47-AK47+SUM(AL47:AL47) -> 111624 | AN47: =AH47 -> 1383 | AO47: 1466 | AR47: =AN47+AO47-AP47+AQ47 -> 2849 | AS47: =AM47 -> 111624 | AW47: =AS47+AT47-AU47+SUM(AV47:AV47) -> 111624 | AX47: =AR47 -> 2849 | AY47: 1641 | BB47: =AX47+AY47-AZ47+BA47 -> 4490 | BC47: =AW47 -> 111624 | BD47: 9538 | BG47: =BC47+BD47-BE47+SUM(BF47:BF47) -> 121162 | BH47: =BB47 -> 4490 | BI47: =1414 -> 1414 | BL47: =BH47+BI47-BJ47+BK47 -> 5904 | BM47: 0 | BN47: 0 | BO47: =BG47-BM47 -> 121162 | BP47: =BL47-BN47 -> 5904 | BQ47: =(((0.011/12)*BO47)*12) -> 1332.782 | BR47: =((0.011/12)*BO47)*4 -> 444.2606667 | BS47: =BP47+BQ47+BR47 -> 7681.042667 | BT47: =SUM(BO47:BR47) -> 128843.0427 | BU47: 127066 | BV47: =BU47-SUM(BG47,BL47) -> 0
A48: 16 | C48: Other Regulatory Assets - Sub-Account - Incremental Capital Charges | D48: 1508 | E48: 0 | F48: 0 | I48: =E48+F48-G48+H48 -> 0 | N48: =J48+K48-L48+M48 -> 0 | O48: =I48 -> 0 | S48: 0 | T48: 0 | X48: =T48+U48-V48+W48 -> 0 | Y48: 0 | AC48: 0 | AD48: 0 | AH48: 0 | AI48: 0 | AM48: 0 | AN48: 0 | AR48: 0 | AS48: 0 | AW48: 0 | AX48: 0 | BB48: 0 | BC48: 0 | BG48: 0 | BH48: 0 | BL48: 0 | BO48: =BG48-BM48 -> 0 | BP48: =BL48-BN48 -> 0 | BS48: 0 | BT48: =SUM(BO48:BR48) -> 0 | BV48: 0
A49: 17 | C49: Other Regulatory Assets - Sub-Account - Financial Assistance Payment and Recovery Variance - Ontario Clean Energy Benefit Act3 | D49: 1508 | O49: =I49 -> 0 | S49: =O49+P49-Q49+SUM(R49:R49) -> 0 | T49: =N49 -> 0 | X49: =T49+U49-V49+W49 -> 0 | Y49: =S49 -> 0 | AC49: 0 | AD49: 0 | AH49: 0 | AI49: 0 | AM49: 0 | AN49: 0 | AR49: 0 | AS49: 0 | AW49: 0 | AX49: 0 | BB49: 0 | BC49: 0 | BG49: 0 | BH49: 0 | BL49: 0 | BO49: 0 | BP49: 0 | BS49: 0 | BT49: =SUM(BO49:BR49) -> 0 | BV49: 0
A50: 18 | C50: Other Regulatory Assets - Sub-Account - Other 4 | D50: 1508 | E50: 0 | F50: 0 | I50: 0 | N50: 0 | O50: 0 | S50: 0 | T50: 0 | X50: 0 | Y50: 0 | AC50: 0 | AD50: 0 | AH50: 0 | AI50: 0 | AM50: 0 | AN50: 0 | AR50: 0 | AS50: 0 | AW50: 0 | AX50: 0 | BB50: 0 | BC50: 0 | BG50: 0 | BH50: 0 | BL50: 0 | BO50: 0 | BP50: 0 | BS50: 0 | BT50: =IF(CB50=TRUE, SUM(BO50:BR50), 0) -> 0 | BV50: 0 | CA50: 1508 | CB50: TRUE
A51: 19 | C51: Retail Cost Variance Account - Retail | D51: 1518 | E51: 74226 | F51: 34634 | I51: 108860 | J51: 1627 | K51: 721 | N51: 2348 | O51: 108860 | P51: 32907 | S51: 141767 | T51: 2348 | U51: 1843 | X51: 4191 | Y51: 141767 | Z51: 59983 | AC51: 201750 | AD51: 4191 | AE51: 2516 | AH51: 6707 | AI51: 201750 | AJ51: 57645 | AK51: 141767 | AM51: 117628 | AN51: 6707 | AO51: 1862 | AP51: 6970 | AR51: 1599 | AS51: 117628 | AT51: 62361 | AW51: 179989 | AX51: 1599 | AY51: 2158 | BB51: 3757 | BC51: 179989 | BD51: 49319 | BG51: =BC51+BD51-BE51+SUM(BF51:BF51) -> 229308 | BH51: 3757 | BI51: =2393.24-1.24 -> 2392 | BL51: 6149 | BM51: 0 | BN51: 0 | BO51: 229308 | BP51: 6149 | BQ51: =(((0.011/12)*BO51)*12) -> 2522.388 | BR51: =((0.011/12)*BO51)*4 -> 840.796 | BS51: 9512.184 | BT51: =SUM(BO51:BR51) -> 238820.184 | BU51: 235457 | BV51: 0
A52: 20 | C52: Misc. Deferred Debits | D52: 1525 | E52: 0 | F52: 0 | I52: 0 | N52: 0 | O52: 0 | S52: 0 | T52: 0 | X52: 0 | Y52: 0 | AC52: 0 | AD52: 0 | AH52: 0 | AI52: 0 | AM52: 0 | AN52: 0 | AR52: 0 | AS52: 0 | AW52: 0 | AX52: 0 | BB52: 0 | BC52: 0 | BG52: =BC52+BD52-BE52+SUM(BF52:BF52) -> 0 | BH52: 0 | BL52: 0 | BO52: 0 | BP52: 0 | BS52: 0 | BT52: =IF(CB52=TRUE, SUM(BO52:BR52), 0) -> 0 | BV52: 0 | CA52: 1525 | CB52: TRUE
A53: 21 | C53: Retail Cost Variance Account - STR | D53: 1548 | E53: 83067 | F53: 14817 | I53: =E53+F53-G53+H53 -> 97884 | J53: 1798 | K53: 728 | N53: =J53+K53-L53+M53 -> 2526 | O53: =I53 -> 97884 | P53: 33257 | S53: =O53+P53-Q53+SUM(R53:R53) -> 131141 | T53: =N53 -> 2526 | U53: 1655 | X53: =T53+U53-V53+W53 -> 4181 | Y53: =S53 -> 131141 | Z53: 29654 | AC53: =Y53+Z53-AA53+SUM(AB53:AB53) -> 160795 | AD53: =X53 -> 4181 | AE53: 2072 | AH53: =AD53+AE53-AF53+AG53 -> 6253 | AI53: =AC53 -> 160795 | AJ53: 19391.5 | AK53: 131141 | AM53: =AI53+AJ53-AK53+SUM(AL53:AL53) -> 49045.5 | AN53: =AH53 -> 6253 | AO53: 1224 | AP53: 6751 | AR53: =AN53+AO53-AP53+AQ53 -> 726 | AS53: =AM53 -> 49045.5 | AT53: 21932 | AW53: =AS53+AT53-AU53+SUM(AV53:AV53) -> 70977.5 | AX53: =AR53 -> 726 | AY53: 872 | BB53: =AX53+AY53-AZ53+BA53 -> 1598 | BC53: =AW53 -> 70977.5 | BD53: 9218 | BG53: =BC53+BD53-BE53+SUM(BF53:BF53) -> 80195.5 | BH53: =BB53 -> 1598 | BI53: =895+1-0.5 -> 895.5 | BL53: =BH53+BI53-BJ53+BK53 -> 2493.5 | BM53: 0 | BN53: 0 | BO53: =BG53-BM53 -> 80195.5 | BP53: =BL53-BN53 -> 2493.5 | BQ53: =(((0.011/12)*BO53)*12) -> 882.1505 | BR53: =((0.011/12)*BO53)*4 -> 294.0501667 | BS53: 3669.700667 | BT53: =SUM(BO53:BR53) -> 83865.20067 | BU53: 82689 | BV53: =BU53-SUM(BG53,BL53) -> 0
A54: 22 | C54: Board-Approved CDM Variance Account | D54: 1567 | E54: 0 | F54: 0 | I54: =E54+F54-G54+H54 -> 0 | N54: =J54+K54-L54+M54 -> 0 | O54: 0 | S54: 0 | T54: 0 | X54: =T54+U54-V54+W54 -> 0 | Y54: 0 | AC54: 0 | AD54: 0 | AH54: 0 | AI54: 0 | AM54: 0 | AN54: 0 | AR54: 0 | AS54: 0 | AW54: 0 | AX54: 0 | BB54: 0 | BC54: 0 | BG54: 0 | BH54: 0 | BL54: 0 | BO54: 0 | BP54: 0 | BS54: 0 | BT54: =SUM(BO54:BR54) -> 0 | BV54: 0
A55: 23 | C55: Extra-Ordinary Event Costs | D55: 1572 | E55: 0 | F55: 0 | I55: 0 | N55: 0 | O55: =I55 -> 0 | S55: 0 | T55: 0 | X55: 0 | Y55: 0 | AC55: 0 | AD55: 0 | AH55: 0 | AI55: =AC55 -> 0 | AM55: 0 | AN55: 0 | AR55: 0 | AS55: =AM55 -> 0 | AW55: 0 | AX55: 0 | BB55: 0 | BC55: =AW55 -> 0 | BG55: 0 | BH55: 0 | BL55: 0 | BO55: 0 | BP55: 0 | BS55: 0 | BT55: =SUM(BO55:BR55) -> 0 | BV55: 0
A56: 24 | C56: Deferred Rate Impact Amounts | D56: 1574 | E56: 0 | F56: 0 | I56: 0 | N56: 0 | O56: =I56 -> 0 | S56: 0 | T56: 0 | X56: 0 | Y56: 0 | AC56: 0 | AD56: 0 | AH56: 0 | AI56: =AC56 -> 0 | AM56: 0 | AN56: 0 | AR56: 0 | AS56: =AM56 -> 0 | AW56: 0 | AX56: 0 | BB56: 0 | BC56: =AW56 -> 0 | BG56: 0 | BH56: 0 | BL56: 0 | BO56: 0 | BP56: 0 | BS56: 0 | BT56: =SUM(BO56:BR56) -> 0 | BV56: 0
A57: 25 | C57: RSVA - One-time | D57: 1582 | E57: 0 | F57: 0 | I57: 0 | N57: 0 | O57: =I57 -> 0 | S57: 0 | T57: 0 | X57: 0 | Y57: 0 | AC57: 0 | AD57: 0 | AH57: 0 | AI57: =AC57 -> 0 | AM57: 0 | AN57: 0 | AR57: 0 | AS57: =AM57 -> 0 | AW57: 0 | AX57: 0 | BB57: 0 | BC57: =AW57 -> 0 | BG57: 0 | BH57: 0 | BL57: 0 | BO57: 0 | BP57: 0 | BS57: 0 | BT57: =SUM(BO57:BR57) -> 0 | BV57: 0
A58: 26 | C58: Other Deferred Credits | D58: 2425 | E58: 0 | F58: 0 | I58: 0 | N58: 0 | O58: =I58 -> 0 | S58: 0 | T58: 0 | X58: 0 | Y58: 0 | AC58: 0 | AD58: 0 | AH58: 0 | AI58: =AC58 -> 0 | AM58: 0 | AN58: 0 | AR58: 0 | AS58: =AM58 -> 0 | AW58: 0 | AX58: 0 | BB58: 0 | BC58: =AW58 -> 0 | BG58: 0 | BH58: 0 | BL58: 0 | BO58: 0 | BP58: 0 | BS58: 0 | BT58: =IF(CB58=TRUE, SUM(BO58:BR58), 0) -> 0 | BV58: 0 | CA58: 2425 | CB58: TRUE
C60: Group 2 Sub-Total | F60: =SUM(F47:F58) -> 52049 | G60: 0 | H60: 0 | I60: 214982 | J60: 3488 | K60: 1449 | L60: 0 | M60: 0 | N60: 4937 | O60: 214982 | P60: 108790 | Q60: 0 | R60: 0 | S60: 323772 | T60: 4937 | U60: 3866 | V60: 0 | W60: 0 | X60: 8803 | Y60: 323772 | Z60: 132374 | AA60: 0 | AB60: 0 | AC60: 456146 | AD60: 8803 | AE60: 5540 | AF60: 0 | AG60: 0 | AH60: 14343 | AI60: 456146 | AJ60: 95059.5 | AK60: 272908 | AL60: =SUM(AL47:AL58) -> 0 | AM60: 278297.5 | AN60: 14343 | AO60: 4552 | AP60: 13721 | AQ60: 0 | AR60: 5174 | AS60: 278297.5 | AT60: 84293 | AU60: 0 | AV60: 0 | AW60: 362590.5 | AX60: 5174 | AY60: 4671 | AZ60: 0 | BA60: 0 | BB60: 9845 | BC60: 362590.5 | BD60: 68075 | BE60: 0 | BF60: 0 | BG60: 430665.5 | BH60: 9845 | BI60: 4701.5 | BJ60: 0 | BK60: 0 | BL60: 14546.5 | BM60: 0 | BN60: 0 | BO60: 430665.5 | BP60: 14546.5 | BQ60: 4737.3205 | BR60: 1579.106833 | BS60: 20862.92733 | BT60: 451528.4273 | BU60: 445212 | BV60: =BU60-SUM(BG60,BL60) -> 0
A62: 27 | C62: PILs and Tax Variance for 2006 and Subsequent Years (excludes sub-account and contra account below) | D62: 1592 | I62: =E62+F62-G62+H62 -> 0 | N62: =J62+K62-L62+M62 -> 0 | O62: =I62 -> 0 | S62: =O62+P62-Q62+SUM(R62:R62) -> 0 | T62: =N62 -> 0 | X62: =T62+U62-V62+W62 -> 0 | Y62: =S62 -> 0 | AC62: =Y62+Z62-AA62+SUM(AB62:AB62) -> 0 | AD62: =X62 -> 0 | AH62: =AD62+AE62-AF62+AG62 -> 0 | AI62: =AC62 -> 0 | AM62: =AI62+AJ62-AK62+SUM(AL62:AL62) -> 0 | AN62: =AH62 -> 0 | AR62: =AN62+AO62-AP62+AQ62 -> 0 | AS62: =AM62 -> 0 | AW62: =AS62+AT62-AU62+SUM(AV62:AV62) -> 0 | AX62: =AR62 -> 0 | BB62: =AX62+AY62-AZ62+BA62 -> 0 | BC62: =AW62 -> 0 | BG62: =BC62+BD62-BE62+SUM(BF62:BF62) -> 0 | BH62: =BB62 -> 0 | BL62: =BH62+BI62-BJ62+BK62 -> 0 | BO62: =BG62-BM62 -> 0 | BP62: =BL62-BN62 -> 0 | BS62: =BP62+BQ62+BR62 -> 0 | BT62: =SUM(BO62:BR62) -> 0 | BU62: 0 | BV62: =BU62-SUM(BG62,BL62) -> 0
A63: 28 | C63: PILs and Tax Variance for 2006 and Subsequent Years - Sub-Account HST/OVAT Input Tax Credits (ITCs) | D63: 1592 | E63: -17567 | I63: =E63+F63-G63+H63 -> -17567 | J63: -32 | N63: =J63+K63-L63+M63 -> -32 | O63: =I63 -> -17567 | P63: -72397 | S63: =O63+P63-Q63+SUM(R63:R63) -> -89964 | T63: =N63 -> -32 | U63: -72 | X63: =T63+U63-V63+W63 -> -104 | Y63: =S63 -> -89964 | Z63: -85795 | AC63: =Y63+Z63-AA63+SUM(AB63:AB63) -> -175759 | AD63: =X63 -> -104 | AE63: -105 | AH63: =AD63+AE63-AF63+AG63 -> -209 | AI63: =AC63 -> -175759 | AJ63: -21906 | AK63: -44982 | AM63: =AI63+AJ63-AK63+SUM(AL63:AL63) -> -152683 | AN63: =AH63 -> -209 | AO63: -27 | AP63: -1235 | AR63: =AN63+AO63-AP63+AQ63 -> 999 | AS63: =AM63 -> -152683 | AV63: 44982 | AW63: =AS63+AT63-AU63+SUM(AV63:AV63) -> -107701 | AX63: =AR63 -> 999 | AY63: -5867 | BA63: 1235 | BB63: =AX63+AY63-AZ63+BA63 -> -3633 | BC63: =AW63 -> -107701 | BG63: =BC63+BD63-BE63+SUM(BF63:BF63) -> -107701 | BH63: =BB63 -> -3633 | BI63: -1284 | BL63: =BH63+BI63-BJ63+BK63 -> -4917 | BO63: =BG63-BM63 -> -107701 | BP63: =BL63-BN63 -> -4917 | BQ63: =(((0.011/12)*BO63)*12) -> -1184.711 | BR63: =((0.011/12)*BO63)*4 -> -394.9036667 | BS63: =BP63+BQ63+BR63 -> -6496.614667 | BT63: =SUM(BO63:BR63) -> -114197.6147 | BU63: 0 | BV63: =BU63-SUM(BG63,BL63) -> 112618
C65: Total of Group 1 and Group 2 Accounts (including 1592) | E65: =SUM(E62:E63,E60, E42) -> 277557 | F65: -359194 | G65: 129512 | H65: 0 | I65: -48216 | J65: -433055 | K65: -3999 | L65: -242825 | M65: 0 | N65: -194229 | O65: -48216 | P65: -327732 | Q65: 2710987 | R65: 0 | S65: -3086935 | T65: -194229 | U65: 16635 | V65: 13941 | W65: 0 | X65: -191535 | Y65: -3086935 | Z65: -3184462 | AA65: -2058308 | AB65: 0 | AC65: -4213089 | AD65: -191535 | AE65: -285769 | AF65: -38871 | AG65: 0 | AH65: -438433 | AI65: -4213089 | AJ65: 498957.5 | AK65: =SUM(AK62:AK63,AK60, AK42) -> -2025093 | AL65: -2605736 | AM65: -4294774.5 | AN65: -438433 | AO65: -271854 | AP65: -225214 | AQ65: -31995 | AR65: -517068 | AS65: -4294774.5 | AT65: 1104882 | AU65: -1422959 | AV65: -26638 | AW65: -1793571.5 | AX65: -517068 | AY65: -97739 | AZ65: -29487 | BA65: -40892 | BB65: -626212 | BC65: -1793571.5 | BD65: -1613552.68 | BE65: -2646951 | BF65: 0 | BG65: -760173.18 | BH65: -626212 | BI65: -93728.4 | BJ65: -113561 | BK65: 0 | BL65: -606379.4 | BM65: 1084966 | BN65: -422237 | BO65: -1845139.18 | BP65: -184142.4 | BQ65: -20296.53098 | BR65: -6765.510327 | BS65: -211204.4413 | BT65: -896513.6323 | BU65: -1253934.38 | BV65: =BU65-SUM(BG65,BL65) -> 112618.2
A68: 29 | C68: LRAM Variance Account12 | D68: 1568 | I68: =E68+F68-G68+H68 -> 0 | N68: =J68+K68-L68+M68 -> 0 | O68: =I68 -> 0 | P68: 19741 | S68: =O68+P68-Q68+SUM(R68:R68) -> 19741 | T68: =N68 -> 0 | U68: 290 | X68: =T68+U68-V68+W68 -> 290 | Y68: =S68 -> 19741 | AC68: =Y68+Z68-AA68+SUM(AB68:AB68) -> 19741 | AD68: =X68 -> 290 | AH68: =AD68+AE68-AF68+AG68 -> 290 | AI68: =AC68 -> 19741 | AJ68: -65598 | AK68: 19741 | AM68: =AI68+AJ68-AK68+SUM(AL68:AL68) -> -65598 | AN68: =AH68 -> 290 | AO68: 387 | AP68: 677 | AR68: =AN68+AO68-AP68+AQ68 -> 0 | AS68: =AM68 -> -65598 | AW68: =AS68+AT68-AU68+SUM(AV68:AV68) -> -65598 | AX68: =AR68 -> 0 | BB68: =AX68+AY68-AZ68+BA68 -> 0 | BC68: =AW68 -> -65598 | BF68: =101877-26642 -> 75235 | BG68: =BC68+BD68-BE68+SUM(BF68:BF68) -> 9637 | BH68: =BB68 -> 0 | BK68: =+'[8]7. Carrying Charges'!$Q$88 -> 858.0064415 | BL68: =BH68+BI68-BJ68+BK68 -> 858.0064415 | BO68: =BG68-BM68 -> 9637 | BP68: =BL68-BN68 -> 858.0064415 | BQ68: =(((0.011/12)*BO68)*12) -> 106.007 | BR68: =((0.011/12)*BO68)*4 -> 35.33566667 | BS68: =BP68+BQ68+BR68 -> 999.3491082 | BT68: =SUM(BO68:BR68) -> 10636.34911 | BU68: -66379 | BV68: =BU68-SUM(BG68,BL68) -> -76874.00644
C71: Total including Account 1568 | F71: =F65+F68 -> -359194 | G71: 129512 | H71: 0 | I71: -48216 | J71: -433055 | K71: -3999 | L71: -242825 | M71: 0 | N71: -194229 | O71: -48216 | P71: -307991 | Q71: 2710987 | R71: 0 | S71: -3067194 | T71: -194229 | U71: 16925 | V71: 13941 | W71: 0 | X71: -191245 | Y71: -3067194 | Z71: -3184462 | AA71: -2058308 | AB71: 0 | AC71: =AC65+AC68 -> -4193348 | AD71: -191245 | AE71: -285769 | AF71: -38871 | AG71: 0 | AH71: -438143 | AI71: -4193348 | AJ71: 433359.5 | AK71: -2005352 | AL71: -2605736 | AM71: -4360372.5 | AN71: -438143 | AO71: -271467 | AP71: -224537 | AQ71: -31995 | AR71: -517068 | AS71: =AS65+AS68 -> -4360372.5 | AT71: 1104882 | AU71: -1422959 | AV71: -26638 | AW71: -1859169.5 | AX71: -517068 | AY71: -97739 | AZ71: -29487 | BA71: -40892 | BB71: -626212 | BC71: =BC65+BC68 -> -1859169.5 | BD71: -1613552.68 | BE71: -2646951 | BF71: 75235 | BG71: -750536.18 | BH71: -626212 | BI71: -93728.4 | BJ71: -113561 | BK71: 858.0064415 | BL71: -605521.3936 | BM71: 1084966 | BN71: -422237 | BO71: -1835502.18 | BP71: -183284.3936 | BQ71: -20190.52398 | BR71: -6730.17466 | BS71: -210205.0922 | BT71: =BT65+BT68 -> -885877.2832 | BU71: -1320313.38 | BV71: =BU71-SUM(BG71,BL71) -> 35744.19356
A73: 30 | C73: Renewable Generation Connection Capital Deferral Account9 | D73: 1531 | E73: 0 | I73: =E73+F73-G73+H73 -> 0 | N73: =J73+K73-L73+M73 -> 0 | O73: =I73 -> 0 | S73: =O73+P73-Q73+SUM(R73:R73) -> 0 | T73: =N73 -> 0 | X73: =T73+U73-V73+W73 -> 0 | Y73: =S73 -> 0 | AC73: =Y73+Z73-AA73+SUM(AB73:AB73) -> 0 | AD73: =X73 -> 0 | AH73: =AD73+AE73-AF73+AG73 -> 0 | AI73: =AC73 -> 0 | AM73: =AI73+AJ73-AK73+SUM(AL73:AL73) -> 0 | AN73: =AH73 -> 0 | AR73: =AN73+AO73-AP73+AQ73 -> 0 | AS73: =AM73 -> 0 | AW73: =AS73+AT73-AU73+SUM(AV73:AV73) -> 0 | AX73: =AR73 -> 0 | BB73: =AX73+AY73-AZ73+BA73 -> 0 | BC73: =AW73 -> 0 | BG73: =BC73+BD73-BE73+SUM(BF73:BF73) -> 0 | BH73: =BB73 -> 0 | BL73: =BH73+BI73-BJ73+BK73 -> 0 | BO73: =BG73-BM73 -> 0 | BP73: =BL73-BN73 -> 0 | BS73: =BP73+BQ73+BR73 -> 0 | BT73: =SUM(BO73:BR73) -> 0 | BV73: =BU73-SUM(BG73,BL73) -> 0
A74: 31 | C74: Renewable Generation Connection OM&A Deferral Account9 | D74: 1532 | E74: 0 | I74: 0 | N74: 0 | O74: 0 | S74: 0 | T74: 0 | X74: 0 | Y74: 0 | AC74: 0 | AD74: 0 | AH74: 0 | AI74: 0 | AM74: 0 | AN74: 0 | AR74: 0 | AS74: 0 | AW74: 0 | AX74: 0 | BB74: 0 | BC74: 0 | BF74: 12074 | BG74: 12074 | BH74: 0 | BI74: =144+0.35 -> 144.35 | BK74: 158 | BL74: 302.35 | BO74: 12074 | BP74: 302.35 | BQ74: =(((0.011/12)*BO74)*12) -> 132.814 | BR74: =((0.011/12)*BO74)*4 -> 44.27133333 | BS74: 479.4353333 | BT74: 12553.43533 | BU74: 12376.35 | BV74: =BU74-SUM(BG74,BL74) -> 0
A75: 32 | C75: Renewable Generation Connection Funding Adder Deferral Account | D75: 1533 | E75: 0 | I75: 0 | N75: 0 | O75: 0 | S75: 0 | T75: 0 | X75: 0 | Y75: 0 | AC75: 0 | AD75: 0 | AH75: 0 | AI75: 0 | AJ75: -7926 | AM75: -7926 | AN75: 0 | AR75: 0 | AS75: -7926 | AT75: -18438 | AW75: -26364 | AX75: 0 | BB75: 0 | BC75: -26364 | BD75: -21708 | BF75: 48072 | BG75: 0 | BH75: 0 | BI75: -263 | BK75: 263 | BL75: 0 | BO75: 0 | BP75: 0 | BS75: 0 | BT75: 0 | BU75: -48782.38 | BV75: -48782.38
A76: 33 | C76: Smart Grid Capital Deferral Account | D76: 1534 | E76: 0 | I76: 0 | N76: 0 | O76: 0 | S76: 0 | T76: 0 | X76: 0 | Y76: 0 | AC76: 0 | AD76: 0 | AH76: 0 | AI76: 0 | AM76: 0 | AN76: 0 | AR76: 0 | AS76: 0 | AW76: 0 | AX76: 0 | BB76: 0 | BC76: 0 | BG76: 0 | BH76: 0 | BL76: 0 | BO76: 0 | BP76: 0 | BS76: 0 | BT76: 0 | BV76: 0
A77: 34 | C77: Smart Grid OM&A Deferral Account | D77: 1535 | E77: 0 | I77: 0 | N77: 0 | O77: 0 | S77: 0 | T77: 0 | X77: 0 | Y77: 0 | AC77: 0 | AD77: 0 | AH77: 0 | AI77: 0 | AM77: 0 | AN77: 0 | AR77: 0 | AS77: 0 | AW77: 0 | AX77: 0 | BB77: 0 | BC77: 0 | BG77: 0 | BH77: 0 | BL77: 0 | BO77: 0 | BP77: 0 | BS77: 0 | BT77: 0 | BV77: 0
A78: 35 | C78: Smart Grid Funding Adder Deferral Account | D78: 1536 | E78: 0 | I78: 0 | N78: 0 | O78: 0 | S78: 0 | T78: 0 | X78: 0 | Y78: 0 | AC78: 0 | AD78: 0 | AH78: 0 | AI78: 0 | AM78: 0 | AN78: 0 | AR78: 0 | AS78: 0 | AW78: 0 | AX78: 0 | BB78: 0 | BC78: 0 | BG78: 0 | BH78: 0 | BL78: 0 | BO78: 0 | BP78: 0 | BS78: 0 | BT78: 0 | BV78: 0
A79: 36 | C79: Smart Meter Capital and Recovery Offset Variance - Sub-Account - Capital5 | D79: 1555 | E79: 0 | I79: 0 | N79: 0 | O79: 0 | S79: 0 | T79: 0 | X79: 0 | Y79: 0 | AC79: 0 | AD79: 0 | AH79: 0 | AI79: 0 | AM79: 0 | AN79: 0 | AR79: 0 | AS79: 0 | AW79: 0 | AX79: 0 | BB79: 0 | BC79: 0 | BG79: 0 | BH79: 0 | BL79: 0 | BO79: 0 | BP79: 0 | BS79: 0 | BT79: =SUM(BO79:BR79) -> 0 | BV79: 0
A80: 37 | C80: Smart Meter Capital and Recovery Offset Variance - Sub-Account - Recoveries5 | D80: 1555 | E80: 0 | I80: 0 | N80: 0 | O80: 0 | S80: 0 | T80: 0 | X80: 0 | Y80: 0 | AC80: 0 | AD80: 0 | AH80: 0 | AI80: 0 | AM80: 0 | AN80: 0 | AR80: 0 | AS80: 0 | AW80: 0 | AX80: 0 | BB80: 0 | BC80: 0 | BG80: 0 | BH80: 0 | BL80: 0 | BO80: 0 | BP80: 0 | BS80: 0 | BT80: =SUM(BO80:BR80) -> 0 | BV80: 0
A81: 38 | C81: Smart Meter Capital and Recovery Offset Variance - Sub-Account - Stranded Meter Costs5 | D81: 1555 | E81: 2022184 | F81: -17412 | I81: 2004772 | N81: 0 | O81: 2004772 | P81: -226017 | S81: 1778755 | T81: 0 | X81: 0 | Y81: 1778755 | Z81: -210663 | AC81: 1568092 | AD81: 0 | AH81: 0 | AI81: 1568092 | AJ81: -1119961 | AM81: 448131 | AN81: 0 | AR81: 0 | AS81: 448131 | AT81: -510391 | AW81: -62260 | AX81: 0 | AY81: 13305 | BB81: 13305 | BC81: -62260 | BG81: -62260 | BH81: 13305 | BI81: =-742-1 -> -743 | BL81: 12562 | BO81: -62260 | BP81: 12562 | BQ81: =(((0.011/12)*BO81)*12) -> -684.86 | BR81: =((0.011/12)*BO81)*4 -> -228.2866667 | BS81: 11648.85333 | BT81: =SUM(BO81:BR81) -> -50611.14667 | BU81: -49698.03 | BV81: -0.03
A82: 39 | C82: Smart Meter OM&A Variance5 | D82: 1556 | E82: 0 | I82: 0 | N82: 0 | O82: 0 | S82: 0 | T82: 0 | X82: 0 | Y82: 0 | AC82: 0 | AD82: 0 | AH82: 0 | AI82: 0 | AM82: 0 | AN82: 0 | AR82: 0 | AS82: 0 | AW82: 0 | AX82: 0 | BB82: 0 | BC82: 0 | BG82: 0 | BH82: 0 | BL82: 0 | BO82: 0 | BP82: 0 | BS82: 0 | BT82: =SUM(BO82:BR82) -> 0 | BV82: 0
A83: 40 | C83: Meter Cost Deferral Account (MIST Meters)11 | D83: 1557 | AS83: 0 | AW83: 0 | AX83: 0 | BB83: 0 | BC83: 0 | BG83: 0 | BH83: 0 | BL83: 0 | BO83: 0 | BP83: 0 | BS83: 0 | BT83: =SUM(BO83:BR83) -> 0 | BV83: 0
A85: 41 | C85: IFRS-CGAAP Transition PP&E Amounts Balance + Return Component6 | D85: 1575 | S85: =O85+P85-Q85+SUM(R85:R85) -> 0 | Y85: =S85 -> 0 | AC85: =Y85+Z85-AA85+SUM(AB85:AB85) -> 0 | AI85: 0 | AM85: =AI85+AJ85-AK85+SUM(AL85:AL85) -> 0 | AS85: =AM85 -> 0 | AT85: 228306 | AW85: =AS85+AT85-AU85+SUM(AV85:AV85) -> 228306 | BC85: =AW85 -> 228306 | BD85: =280387-228306 -> 52081 | BF85: =562690-280387 -> 282303 | BG85: =BC85+BD85-BE85+SUM(BF85:BF85) -> 562690 | BO85: =BG85-BM85 -> 562690 | BT85: =IF(CB85=TRUE, SUM(BO85:BR85), 0) -> 0 | BU85: 0 | BV85: =BU85-SUM(BG85,BL85) -> -562690 | CA85: 1575 | CB85: FALSE
A86: 42 | C86: Accounting Changes Under CGAAP Balance + Return Component6 | D86: 1576 | AC86: =Y86+Z86-AA86+SUM(AB86:AB86) -> 0 | AI86: 0 | AM86: =AI86+AJ86-AK86+SUM(AL86:AL86) -> 0 | AS86: =AM86 -> 0 | AW86: =AS86+AT86-AU86+SUM(AV86:AV86) -> 0 | BC86: =AW86 -> 0 | BG86: =BC86+BD86-BE86+SUM(BF86:BF86) -> 0 | BO86: =BG86-BM86 -> 0 | BT86: =IF(CB86=TRUE, SUM(BO86:BR86), 0) -> 0 | BU86: 0 | BV86: =BU86-SUM(BG86,BL86) -> 0 | CA86: 1576 | CB86: FALSE
C90: For all OEB-Approved dispositions, please ensure that the disposition amount has the same sign (e.g: debit balances are to have a positive figure and credit balance are to have a negative figure) as per the related OEB decision.
B91: 1 | C91: For RSVA accounts only, report the net variance to the account during the year. For all other accounts, record the transactions during the year. Do not include interest, adjustments, or OEB approved dispositions in this column.
B92: 2 | C92: Please provide explanations for the nature of the adjustments. If the adjustment relates to previously OEB Approved disposed balances, please provide amounts for adjustments and include supporting documentations.
B93: 3 | C93: As per the January 6, 2011 Letter from the OEB regarding the implementation of the Ontario Clean Energy Benefit:
C94: "By way of exception... The Board does anticipate that licensed distributors that cannot adapt their invoices as of January 1, 2011 will require a variance account for OCEB purposes... The Board expects that any principal balances in "Sub account Financial Assistance Payment and Recovery Variance - Ontario Clean Energy Benefit Act" will be addressed through the monthly settlement process with the IESO or the host distributor, as applicable."
B95: 4 | C95: Please describe "other" components of 1508 and add more component lines if necessary.
B96: 5 | C96: Deferral accounts related to Smart Meter deployment are not to be recovered/refunded through the Deferral and Variance Account rate rider. For details on how to dispose of balances in Smart Meter accounts see the OEB's Guideline: Smart Meter Disposition and Cost Recovery (G-2011-0001)
B97: 6 | C97: The OEB requires that disposition of Account 1575 and Account 1576 shall require the use of separate rate riders. In the "Adjustments during 2015" column of the continuity schedule, please enter the amounts to be included in the Account 1575 and 1576 rate rider calculation from the applicable Chapter 2 appendices. For Account 1575, please provide the value in cell F39 from Chapter 2 Appendix 2-EA. For Account 1576, please provide the value in cell H39 and G39 from the relevant Chapter 2 Appendix 2-EB or 2-EC, respectively.
C98: Depending on the disposition period, balances may exist in Account 1575 and Account 1576 even if the accounts have been approved for disposition in a previous decision. Report these account balances in the continuity schedule if this is the case and leave the checkbox "Check to Dispose of Account" in the Total Claim column unchecked.
B99: 7 | C99: If the LDC’s rate year begins on January 1, 2017, the projected interest is recorded from January 1, 2016 to December 31, 2016 on the December 31, 2015 balances adjusted for the disposed balances approved by the OEB in the 2016 rate decision. If the LDC’s rate year begins on May 1, 2017, the projected interest is recorded from January 1, 2016 to April 30, 2017 on the December 31, 2015 balances adjusted for the disposed interest balances approved by the OEB in the 2016 rate decision.
B100: 8 | C100: Include Account 1595 as part of Group 1 accounts for review and disposition if the recovery (or refund) period has been completed. Check the "Check to Dispose Account" checkbox if disposition is requested. If the recovery (or refund) period has not been completed, do not include the respective balance in Account 1595 for disposition at this time.
B101: 9 | C101: Per the APH March 2015 Guidance, the Direct Benefits portion of Account 1531 should be transferred to rate base. The Direct Benefits portion of Account 1532 should be included in the DVA continuity schedule to be requested for disposition. In this continuity schedule, Account 1531 is listed for reference only. Account 1532 is included in the Group 2 allocation of balances that are used to calculate the rate riders. Only input the Direct Benefits portion of the account balances in this continuity schedule.
B102: 10 | C102: When inputting balances in the continuity schedule, Account 1580 RSVA - Wholesale Market Service Charge is to exclude any amounts relating to CBR. The CBR amounts are to be entered separately in the Class A and Class B 1580 sub-accounts. Only Class B amounts are to be disposed. Class A amounts are not to be disposed.
B103: 11 | C103: Account 1557 is to be recovered in a manner similar to the Smart Meter accounts. Distributors should request for disposition upon completion of the MIST meter deployment. A prudence review and disposition should be done in the application, outside of this continuity schedule.
B104: 12 | C104: Input the LRAMVA balance in the continuity schedule as calculated from the LRAMVA model. The associated rate riders will be calculated in the DVA continuity schedule.

Sheet 3. Appendix A
B16: Accounts that produced a variance on the continuity schedule are listed below. Please provide a detailed explanation for each variance below.
C20: Account Descriptions | D20: Account Number | E20: Variance RRR vs. 2015 Balance (Principal + Interest) | F20: Explanation
A24: 1 | C24: =VLOOKUP(A24, '2. 2016 Continuity Schedule'!$A$24:$BV$87,3,FALSE) -> LV Variance Account | D24: =VLOOKUP(A24, '2. 2016 Continuity Schedule'!$A$24:$BV$87,4,FALSE) -> 1550 | E24: =IF(ISERROR(VLOOKUP($A24, '2. 2016 Continuity Schedule'!$A$20:$BV$89, MATCH('3. Appendix A'!$E$20, '2. 2016 Continuity Schedule'!$A$20:$BV$20,0),FALSE)), 0, VLOOKUP($A24, '2. 2016 Continuity Schedule'!$A$20:$BV$89, MATCH('3. Appendix A'!$E$20, '2. 2016 Continuity Schedule'!$A$20:$BV$20,0),FALSE)) -> 0
A25: 2 | C25: =VLOOKUP(A25, '2. 2016 Continuity Schedule'!$A$24:$BV$87,3,FALSE) -> Smart Metering Entity Charge Variance Account | D25: =VLOOKUP(A25, '2. 2016 Continuity Schedule'!$A$24:$BV$87,4,FALSE) -> 1551 | E25: =IF(ISERROR(VLOOKUP($A25, '2. 2016 Continuity Schedule'!$A$20:$BV$89, MATCH('3. Appendix A'!$E$20, '2. 2016 Continuity Schedule'!$A$20:$BV$20,0),FALSE)), 0, VLOOKUP($A25, '2. 2016 Continuity Schedule'!$A$20:$BV$89, MATCH('3. Appendix A'!$E$20, '2. 2016 Continuity Schedule'!$A$20:$BV$20,0),FALSE)) -> 0
A26: 3 | C26: =VLOOKUP(A26, '2. 2016 Continuity Schedule'!$A$24:$BV$87,3,FALSE) -> RSVA - Wholesale Market Service Charge10 | D26: =VLOOKUP(A26, '2. 2016 Continuity Schedule'!$A$24:$BV$87,4,FALSE) -> 1580 | E26: =IF(ISERROR(VLOOKUP($A26, '2. 2016 Continuity Schedule'!$A$20:$BV$89, MATCH('3. Appendix A'!$E$20, '2. 2016 Continuity Schedule'!$A$20:$BV$20,0),FALSE)), 0, VLOOKUP($A26, '2. 2016 Continuity Schedule'!$A$20:$BV$89, MATCH('3. Appendix A'!$E$20, '2. 2016 Continuity Schedule'!$A$20:$BV$20,0),FALSE)) -> 244304.66 | F26: Due to CBDR Class A and B, as shown below
A27: 3.1 | C27: =VLOOKUP(A27, '2. 2016 Continuity Schedule'!$A$24:$BV$87,3,FALSE) -> Variance WMS – Sub-account CBR Class A10 | D27: =VLOOKUP(A27, '2. 2016 Continuity Schedule'!$A$24:$BV$87,4,FALSE) -> 1580 | E27: =IF(ISERROR(VLOOKUP($A27, '2. 2016 Continuity Schedule'!$A$20:$BV$89, MATCH('3. Appendix A'!$E$20, '2. 2016 Continuity Schedule'!$A$20:$BV$20,0),FALSE)), 0, VLOOKUP($A27, '2. 2016 Continuity Schedule'!$A$20:$BV$89, MATCH('3. Appendix A'!$E$20, '2. 2016 Continuity Schedule'!$A$20:$BV$20,0),FALSE)) -> -6186.46 | F27: Due to separation of Class A from WMS total
A28: 3.2 | C28: =VLOOKUP(A28, '2. 2016 Continuity Schedule'!$A$24:$BV$87,3,FALSE) -> Variance WMS – Sub-account CBR Class B10 | D28: =VLOOKUP(A28, '2. 2016 Continuity Schedule'!$A$24:$BV$87,4,FALSE) -> 1580 | E28: =IF(ISERROR(VLOOKUP($A28, '2. 2016 Continuity Schedule'!$A$20:$BV$89, MATCH('3. Appendix A'!$E$20, '2. 2016 Continuity Schedule'!$A$20:$BV$20,0),FALSE)), 0, VLOOKUP($A28, '2. 2016 Continuity Schedule'!$A$20:$BV$89, MATCH('3. Appendix A'!$E$20, '2. 2016 Continuity Schedule'!$A$20:$BV$20,0),FALSE)) -> -238118 | F28: Due to separation of Class B from WMS total
A29: 4 | C29: =VLOOKUP(A29, '2. 2016 Continuity Schedule'!$A$24:$BV$87,3,FALSE) -> RSVA - Retail Transmission Network Charge | D29: =VLOOKUP(A29, '2. 2016 Continuity Schedule'!$A$24:$BV$87,4,FALSE) -> 1584 | E29: =IF(ISERROR(VLOOKUP($A29, '2. 2016 Continuity Schedule'!$A$20:$BV$89, MATCH('3. Appendix A'!$E$20, '2. 2016 Continuity Schedule'!$A$20:$BV$20,0),FALSE)), 0, VLOOKUP($A29, '2. 2016 Continuity Schedule'!$A$20:$BV$89, MATCH('3. Appendix A'!$E$20, '2. 2016 Continuity Schedule'!$A$20:$BV$20,0),FALSE)) -> 0
A30: 5 | C30: =VLOOKUP(A30, '2. 2016 Continuity Schedule'!$A$24:$BV$87,3,FALSE) -> RSVA - Retail Transmission Connection Charge | D30: =VLOOKUP(A30, '2. 2016 Continuity Schedule'!$A$24:$BV$87,4,FALSE) -> 1586 | E30: =IF(ISERROR(VLOOKUP($A30, '2. 2016 Continuity Schedule'!$A$20:$BV$89, MATCH('3. Appendix A'!$E$20, '2. 2016 Continuity Schedule'!$A$20:$BV$20,0),FALSE)), 0, VLOOKUP($A30, '2. 2016 Continuity Schedule'!$A$20:$BV$89, MATCH('3. Appendix A'!$E$20, '2. 2016 Continuity Schedule'!$A$20:$BV$20,0),FALSE)) -> 0
A31: 6 | C31: =VLOOKUP(A31, '2. 2016 Continuity Schedule'!$A$24:$BV$87,3,FALSE) -> RSVA - Power (excluding Global Adjustment) | D31: =VLOOKUP(A31, '2. 2016 Continuity Schedule'!$A$24:$BV$87,4,FALSE) -> 1588 | E31: =IF(ISERROR(VLOOKUP($A31, '2. 2016 Continuity Schedule'!$A$20:$BV$89, MATCH('3. Appendix A'!$E$20, '2. 2016 Continuity Schedule'!$A$20:$BV$20,0),FALSE)), 0, VLOOKUP($A31, '2. 2016 Continuity Schedule'!$A$20:$BV$89, MATCH('3. Appendix A'!$E$20, '2. 2016 Continuity Schedule'!$A$20:$BV$20,0),FALSE)) -> 0
A32: 7 | C32: =VLOOKUP(A32, '2. 2016 Continuity Schedule'!$A$24:$BV$87,3,FALSE) -> RSVA - Global Adjustment | D32: =VLOOKUP(A32, '2. 2016 Continuity Schedule'!$A$24:$BV$87,4,FALSE) -> 1589 | E32: =IF(ISERROR(VLOOKUP($A32, '2. 2016 Continuity Schedule'!$A$20:$BV$89, MATCH('3. Appendix A'!$E$20, '2. 2016 Continuity Schedule'!$A$20:$BV$20,0),FALSE)), 0, VLOOKUP($A32, '2. 2016 Continuity Schedule'!$A$20:$BV$89, MATCH('3. Appendix A'!$E$20, '2. 2016 Continuity Schedule'!$A$20:$BV$20,0),FALSE)) -> 0
A33: 8 | C33: =VLOOKUP(A33, '2. 2016 Continuity Schedule'!$A$24:$BV$87,3,FALSE) -> Disposition and Recovery/Refund of Regulatory Balances (2009)8 | D33: =VLOOKUP(A33, '2. 2016 Continuity Schedule'!$A$24:$BV$87,4,FALSE) -> 1595 | E33: =IF(ISERROR(VLOOKUP($A33, '2. 2016 Continuity Schedule'!$A$20:$BV$89, MATCH('3. Appendix A'!$E$20, '2. 2016 Continuity Schedule'!$A$20:$BV$20,0),FALSE)), 0, VLOOKUP($A33, '2. 2016 Continuity Schedule'!$A$20:$BV$89, MATCH('3. Appendix A'!$E$20, '2. 2016 Continuity Schedule'!$A$20:$BV$20,0),FALSE)) -> 1.092459456e-13
A34: 9 | C34: =VLOOKUP(A34, '2. 2016 Continuity Schedule'!$A$24:$BV$87,3,FALSE) -> Disposition and Recovery/Refund of Regulatory Balances (2010)8 | D34: =VLOOKUP(A34, '2. 2016 Continuity Schedule'!$A$24:$BV$87,4,FALSE) -> 1595 | E34: =IF(ISERROR(VLOOKUP($A34, '2. 2016 Continuity Schedule'!$A$20:$BV$89, MATCH('3. Appendix A'!$E$20, '2. 2016 Continuity Schedule'!$A$20:$BV$20,0),FALSE)), 0, VLOOKUP($A34, '2. 2016 Continuity Schedule'!$A$20:$BV$89, MATCH('3. Appendix A'!$E$20, '2. 2016 Continuity Schedule'!$A$20:$BV$20,0),FALSE)) -> 0
A35: 10 | C35: =VLOOKUP(A35, '2. 2016 Continuity Schedule'!$A$24:$BV$87,3,FALSE) -> Disposition and Recovery/Refund of Regulatory Balances (2011)8 | D35: =VLOOKUP(A35, '2. 2016 Continuity Schedule'!$A$24:$BV$87,4,FALSE) -> 1595 | E35: =IF(ISERROR(VLOOKUP($A35, '2. 2016 Continuity Schedule'!$A$20:$BV$89, MATCH('3. Appendix A'!$E$20, '2. 2016 Continuity Schedule'!$A$20:$BV$20,0),FALSE)), 0, VLOOKUP($A35, '2. 2016 Continuity Schedule'!$A$20:$BV$89, MATCH('3. Appendix A'!$E$20, '2. 2016 Continuity Schedule'!$A$20:$BV$20,0),FALSE)) -> 0
A36: 11 | C36: =VLOOKUP(A36, '2. 2016 Continuity Schedule'!$A$24:$BV$87,3,FALSE) -> Disposition and Recovery/Refund of Regulatory Balances (2012)8 | D36: =VLOOKUP(A36, '2. 2016 Continuity Schedule'!$A$24:$BV$87,4,FALSE) -> 1595 | E36: =IF(ISERROR(VLOOKUP($A36, '2. 2016 Continuity Schedule'!$A$20:$BV$89, MATCH('3. Appendix A'!$E$20, '2. 2016 Continuity Schedule'!$A$20:$BV$20,0),FALSE)), 0, VLOOKUP($A36, '2. 2016 Continuity Schedule'!$A$20:$BV$89, MATCH('3. Appendix A'!$E$20, '2. 2016 Continuity Schedule'!$A$20:$BV$20,0),FALSE)) -> 0
A37: 12 | C37: =VLOOKUP(A37, '2. 2016 Continuity Schedule'!$A$24:$BV$87,3,FALSE) -> Disposition and Recovery/Refund of Regulatory Balances (2013)8 | D37: =VLOOKUP(A37, '2. 2016 Continuity Schedule'!$A$24:$BV$87,4,FALSE) -> 1595 | E37: =IF(ISERROR(VLOOKUP($A37, '2. 2016 Continuity Schedule'!$A$20:$BV$89, MATCH('3. Appendix A'!$E$20, '2. 2016 Continuity Schedule'!$A$20:$BV$20,0),FALSE)), 0, VLOOKUP($A37, '2. 2016 Continuity Schedule'!$A$20:$BV$89, MATCH('3. Appendix A'!$E$20, '2. 2016 Continuity Schedule'!$A$20:$BV$20,0),FALSE)) -> 0
A38: 13 | C38: =VLOOKUP(A38, '2. 2016 Continuity Schedule'!$A$24:$BV$87,3,FALSE) -> Disposition and Recovery/Refund of Regulatory Balances (2014)8 | D38: =VLOOKUP(A38, '2. 2016 Continuity Schedule'!$A$24:$BV$87,4,FALSE) -> 1595 | E38: =IF(ISERROR(VLOOKUP($A38, '2. 2016 Continuity Schedule'!$A$20:$BV$89, MATCH('3. Appendix A'!$E$20, '2. 2016 Continuity Schedule'!$A$20:$BV$20,0),FALSE)), 0, VLOOKUP($A38, '2. 2016 Continuity Schedule'!$A$20:$BV$89, MATCH('3. Appendix A'!$E$20, '2. 2016 Continuity Schedule'!$A$20:$BV$20,0),FALSE)) -> 0
A39: 14 | C39: =VLOOKUP(A39, '2. 2016 Continuity Schedule'!$A$24:$BV$87,3,FALSE) -> Disposition and Recovery/Refund of Regulatory Balances (2015)8 | D39: =VLOOKUP(A39, '2. 2016 Continuity Schedule'!$A$24:$BV$87,4,FALSE) -> 1595 | E39: =IF(ISERROR(VLOOKUP($A39, '2. 2016 Continuity Schedule'!$A$20:$BV$89, MATCH('3. Appendix A'!$E$20, '2. 2016 Continuity Schedule'!$A$20:$BV$20,0),FALSE)), 0, VLOOKUP($A39, '2. 2016 Continuity Schedule'!$A$20:$BV$89, MATCH('3. Appendix A'!$E$20, '2. 2016 Continuity Schedule'!$A$20:$BV$20,0),FALSE)) -> 0
C41: Group 2 Accounts
A42: 15 | C42: =VLOOKUP(A42, '2. 2016 Continuity Schedule'!$A$24:$BV$87,3,FALSE) -> Other Regulatory Assets - Sub-Account - Deferred IFRS Transition Costs | D42: =VLOOKUP(A42, '2. 2016 Continuity Schedule'!$A$24:$BV$87,4,FALSE) -> 1508 | E42: =IF(ISERROR(VLOOKUP($A42, '2. 2016 Continuity Schedule'!$A$20:$BV$89, MATCH('3. Appendix A'!$E$20, '2. 2016 Continuity Schedule'!$A$20:$BV$20,0),FALSE)), 0, VLOOKUP($A42, '2. 2016 Continuity Schedule'!$A$20:$BV$89, MATCH('3. Appendix A'!$E$20, '2. 2016 Continuity Schedule'!$A$20:$BV$20,0),FALSE)) -> 0
A43: 16 | C43: =VLOOKUP(A43, '2. 2016 Continuity Schedule'!$A$24:$BV$87,3,FALSE) -> Other Regulatory Assets - Sub-Account - Incremental Capital Charges | D43: =VLOOKUP(A43, '2. 2016 Continuity Schedule'!$A$24:$BV$87,4,FALSE) -> 1508 | E43: =IF(ISERROR(VLOOKUP($A43, '2. 2016 Continuity Schedule'!$A$20:$BV$89, MATCH('3. Appendix A'!$E$20, '2. 2016 Continuity Schedule'!$A$20:$BV$20,0),FALSE)), 0, VLOOKUP($A43, '2. 2016 Continuity Schedule'!$A$20:$BV$89, MATCH('3. Appendix A'!$E$20, '2. 2016 Continuity Schedule'!$A$20:$BV$20,0),FALSE)) -> 0
A44: 17 | C44: =VLOOKUP(A44, '2. 2016 Continuity Schedule'!$A$24:$BV$87,3,FALSE) -> Other Regulatory Assets - Sub-Account - Financial Assistance Payment and Recovery Variance - Ontario Clean Energy Benefit Act3 | D44: =VLOOKUP(A44, '2. 2016 Continuity Schedule'!$A$24:$BV$87,4,FALSE) -> 1508 | E44: =IF(ISERROR(VLOOKUP($A44, '2. 2016 Continuity Schedule'!$A$20:$BV$89, MATCH('3. Appendix A'!$E$20, '2. 2016 Continuity Schedule'!$A$20:$BV$20,0),FALSE)), 0, VLOOKUP($A44, '2. 2016 Continuity Schedule'!$A$20:$BV$89, MATCH('3. Appendix A'!$E$20, '2. 2016 Continuity Schedule'!$A$20:$BV$20,0),FALSE)) -> 0
A45: 18 | C45: =VLOOKUP(A45, '2. 2016 Continuity Schedule'!$A$24:$BV$87,3,FALSE) -> Other Regulatory Assets - Sub-Account - Other 4 | D45: =VLOOKUP(A45, '2. 2016 Continuity Schedule'!$A$24:$BV$87,4,FALSE) -> 1508 | E45: =IF(ISERROR(VLOOKUP($A45, '2. 2016 Continuity Schedule'!$A$20:$BV$89, MATCH('3. Appendix A'!$E$20, '2. 2016 Continuity Schedule'!$A$20:$BV$20,0),FALSE)), 0, VLOOKUP($A45, '2. 2016 Continuity Schedule'!$A$20:$BV$89, MATCH('3. Appendix A'!$E$20, '2. 2016 Continuity Schedule'!$A$20:$BV$20,0),FALSE)) -> 0
A46: 19 | C46: =VLOOKUP(A46, '2. 2016 Continuity Schedule'!$A$24:$BV$87,3,FALSE) -> Retail Cost Variance Account - Retail | D46: =VLOOKUP(A46, '2. 2016 Continuity Schedule'!$A$24:$BV$87,4,FALSE) -> 1518 | E46: =IF(ISERROR(VLOOKUP($A46, '2. 2016 Continuity Schedule'!$A$20:$BV$89, MATCH('3. Appendix A'!$E$20, '2. 2016 Continuity Schedule'!$A$20:$BV$20,0),FALSE)), 0, VLOOKUP($A46, '2. 2016 Continuity Schedule'!$A$20:$BV$89, MATCH('3. Appendix A'!$E$20, '2. 2016 Continuity Schedule'!$A$20:$BV$20,0),FALSE)) -> 0
A47: 20 | C47: =VLOOKUP(A47, '2. 2016 Continuity Schedule'!$A$24:$BV$87,3,FALSE) -> Misc. Deferred Debits | D47: =VLOOKUP(A47, '2. 2016 Continuity Schedule'!$A$24:$BV$87,4,FALSE) -> 1525 | E47: =IF(ISERROR(VLOOKUP($A47, '2. 2016 Continuity Schedule'!$A$20:$BV$89, MATCH('3. Appendix A'!$E$20, '2. 2016 Continuity Schedule'!$A$20:$BV$20,0),FALSE)), 0, VLOOKUP($A47, '2. 2016 Continuity Schedule'!$A$20:$BV$89, MATCH('3. Appendix A'!$E$20, '2. 2016 Continuity Schedule'!$A$20:$BV$20,0),FALSE)) -> 0
A48: 21 | C48: =VLOOKUP(A48, '2. 2016 Continuity Schedule'!$A$24:$BV$87,3,FALSE) -> Retail Cost Variance Account - STR | D48: =VLOOKUP(A48, '2. 2016 Continuity Schedule'!$A$24:$BV$87,4,FALSE) -> 1548 | E48: =IF(ISERROR(VLOOKUP($A48, '2. 2016 Continuity Schedule'!$A$20:$BV$89, MATCH('3. Appendix A'!$E$20, '2. 2016 Continuity Schedule'!$A$20:$BV$20,0),FALSE)), 0, VLOOKUP($A48, '2. 2016 Continuity Schedule'!$A$20:$BV$89, MATCH('3. Appendix A'!$E$20, '2. 2016 Continuity Schedule'!$A$20:$BV$20,0),FALSE)) -> 0
A49: 22 | C49: =VLOOKUP(A49, '2. 2016 Continuity Schedule'!$A$24:$BV$87,3,FALSE) -> Board-Approved CDM Variance Account | D49: =VLOOKUP(A49, '2. 2016 Continuity Schedule'!$A$24:$BV$87,4,FALSE) -> 1567 | E49: =IF(ISERROR(VLOOKUP($A49, '2. 2016 Continuity Schedule'!$A$20:$BV$89, MATCH('3. Appendix A'!$E$20, '2. 2016 Continuity Schedule'!$A$20:$BV$20,0),FALSE)), 0, VLOOKUP($A49, '2. 2016 Continuity Schedule'!$A$20:$BV$89, MATCH('3. Appendix A'!$E$20, '2. 2016 Continuity Schedule'!$A$20:$BV$20,0),FALSE)) -> 0
A50: 23 | C50: =VLOOKUP(A50, '2. 2016 Continuity Schedule'!$A$24:$BV$87,3,FALSE) -> Extra-Ordinary Event Costs | D50: =VLOOKUP(A50, '2. 2016 Continuity Schedule'!$A$24:$BV$87,4,FALSE) -> 1572 | E50: =IF(ISERROR(VLOOKUP($A50, '2. 2016 Continuity Schedule'!$A$20:$BV$89, MATCH('3. Appendix A'!$E$20, '2. 2016 Continuity Schedule'!$A$20:$BV$20,0),FALSE)), 0, VLOOKUP($A50, '2. 2016 Continuity Schedule'!$A$20:$BV$89, MATCH('3. Appendix A'!$E$20, '2. 2016 Continuity Schedule'!$A$20:$BV$20,0),FALSE)) -> 0
A51: 24 | C51: =VLOOKUP(A51, '2. 2016 Continuity Schedule'!$A$24:$BV$87,3,FALSE) -> Deferred Rate Impact Amounts | D51: =VLOOKUP(A51, '2. 2016 Continuity Schedule'!$A$24:$BV$87,4,FALSE) -> 1574 | E51: =IF(ISERROR(VLOOKUP($A51, '2. 2016 Continuity Schedule'!$A$20:$BV$89, MATCH('3. Appendix A'!$E$20, '2. 2016 Continuity Schedule'!$A$20:$BV$20,0),FALSE)), 0, VLOOKUP($A51, '2. 2016 Continuity Schedule'!$A$20:$BV$89, MATCH('3. Appendix A'!$E$20, '2. 2016 Continuity Schedule'!$A$20:$BV$20,0),FALSE)) -> 0
A52: 25 | C52: =VLOOKUP(A52, '2. 2016 Continuity Schedule'!$A$24:$BV$87,3,FALSE) -> RSVA - One-time | D52: =VLOOKUP(A52, '2. 2016 Continuity Schedule'!$A$24:$BV$87,4,FALSE) -> 1582 | E52: =IF(ISERROR(VLOOKUP($A52, '2. 2016 Continuity Schedule'!$A$20:$BV$89, MATCH('3. Appendix A'!$E$20, '2. 2016 Continuity Schedule'!$A$20:$BV$20,0),FALSE)), 0, VLOOKUP($A52, '2. 2016 Continuity Schedule'!$A$20:$BV$89, MATCH('3. Appendix A'!$E$20, '2. 2016 Continuity Schedule'!$A$20:$BV$20,0),FALSE)) -> 0
A53: 26 | C53: =VLOOKUP(A53, '2. 2016 Continuity Schedule'!$A$24:$BV$87,3,FALSE) -> Other Deferred Credits | D53: =VLOOKUP(A53, '2. 2016 Continuity Schedule'!$A$24:$BV$87,4,FALSE) -> 2425 | E53: =IF(ISERROR(VLOOKUP($A53, '2. 2016 Continuity Schedule'!$A$20:$BV$89, MATCH('3. Appendix A'!$E$20, '2. 2016 Continuity Schedule'!$A$20:$BV$20,0),FALSE)), 0, VLOOKUP($A53, '2. 2016 Continuity Schedule'!$A$20:$BV$89, MATCH('3. Appendix A'!$E$20, '2. 2016 Continuity Schedule'!$A$20:$BV$20,0),FALSE)) -> 0
A54: 27 | C54: =VLOOKUP(A54, '2. 2016 Continuity Schedule'!$A$24:$BV$87,3,FALSE) -> PILs and Tax Variance for 2006 and Subsequent Years (excludes sub-account and contra account below) | D54: =VLOOKUP(A54, '2. 2016 Continuity Schedule'!$A$24:$BV$87,4,FALSE) -> 1592 | E54: =IF(ISERROR(VLOOKUP($A54, '2. 2016 Continuity Schedule'!$A$20:$BV$89, MATCH('3. Appendix A'!$E$20, '2. 2016 Continuity Schedule'!$A$20:$BV$20,0),FALSE)), 0, VLOOKUP($A54, '2. 2016 Continuity Schedule'!$A$20:$BV$89, MATCH('3. Appendix A'!$E$20, '2. 2016 Continuity Schedule'!$A$20:$BV$20,0),FALSE)) -> 0
A55: 28 | C55: =VLOOKUP(A55, '2. 2016 Continuity Schedule'!$A$24:$BV$87,3,FALSE) -> PILs and Tax Variance for 2006 and Subsequent Years - Sub-Account HST/OVAT Input Tax Credits (ITCs) | D55: =VLOOKUP(A55, '2. 2016 Continuity Schedule'!$A$24:$BV$87,4,FALSE) -> 1592 | E55: =IF(ISERROR(VLOOKUP($A55, '2. 2016 Continuity Schedule'!$A$20:$BV$89, MATCH('3. Appendix A'!$E$20, '2. 2016 Continuity Schedule'!$A$20:$BV$20,0),FALSE)), 0, VLOOKUP($A55, '2. 2016 Continuity Schedule'!$A$20:$BV$89, MATCH('3. Appendix A'!$E$20, '2. 2016 Continuity Schedule'!$A$20:$BV$20,0),FALSE)) -> 112618 | F55: Represents the remaining HST savings principle balance to be refunded to customers
A56: 29 | C56: =VLOOKUP(A56, '2. 2016 Continuity Schedule'!$A$24:$BV$87,3,FALSE) -> LRAM Variance Account12 | D56: =VLOOKUP(A56, '2. 2016 Continuity Schedule'!$A$24:$BV$87,4,FALSE) -> 1568 | E56: =IF(ISERROR(VLOOKUP($A56, '2. 2016 Continuity Schedule'!$A$20:$BV$89, MATCH('3. Appendix A'!$E$20, '2. 2016 Continuity Schedule'!$A$20:$BV$20,0),FALSE)), 0, VLOOKUP($A56, '2. 2016 Continuity Schedule'!$A$20:$BV$89, MATCH('3. Appendix A'!$E$20, '2. 2016 Continuity Schedule'!$A$20:$BV$20,0),FALSE)) -> -76874.00644 | F56: Final GL adjustment to LRAMVA per Board direction issued May 19th 2016 regarding treatment of Demand Response Initiatives. This amount has been changed from original EB-2016-0105 to realize IESO Report 2011-2015 persistence.
A57: 30 | C57: =VLOOKUP(A57, '2. 2016 Continuity Schedule'!$A$24:$BV$87,3,FALSE) -> Renewable Generation Connection Capital Deferral Account9 | D57: =VLOOKUP(A57, '2. 2016 Continuity Schedule'!$A$24:$BV$87,4,FALSE) -> 1531 | E57: =IF(ISERROR(VLOOKUP($A57, '2. 2016 Continuity Schedule'!$A$20:$BV$89, MATCH('3. Appendix A'!$E$20, '2. 2016 Continuity Schedule'!$A$20:$BV$20,0),FALSE)), 0, VLOOKUP($A57, '2. 2016 Continuity Schedule'!$A$20:$BV$89, MATCH('3. Appendix A'!$E$20, '2. 2016 Continuity Schedule'!$A$20:$BV$20,0),FALSE)) -> 0
A58: 31 | C58: =VLOOKUP(A58, '2. 2016 Continuity Schedule'!$A$24:$BV$87,3,FALSE) -> Renewable Generation Connection OM&A Deferral Account9 | D58: =VLOOKUP(A58, '2. 2016 Continuity Schedule'!$A$24:$BV$87,4,FALSE) -> 1532 | E58: =IF(ISERROR(VLOOKUP($A58, '2. 2016 Continuity Schedule'!$A$20:$BV$89, MATCH('3. Appendix A'!$E$20, '2. 2016 Continuity Schedule'!$A$20:$BV$20,0),FALSE)), 0, VLOOKUP($A58, '2. 2016 Continuity Schedule'!$A$20:$BV$89, MATCH('3. Appendix A'!$E$20, '2. 2016 Continuity Schedule'!$A$20:$BV$20,0),FALSE)) -> 0
A59: 32 | C59: =VLOOKUP(A59, '2. 2016 Continuity Schedule'!$A$24:$BV$87,3,FALSE) -> Renewable Generation Connection Funding Adder Deferral Account | D59: =VLOOKUP(A59, '2. 2016 Continuity Schedule'!$A$24:$BV$87,4,FALSE) -> 1533 | E59: =IF(ISERROR(VLOOKUP($A59, '2. 2016 Continuity Schedule'!$A$20:$BV$89, MATCH('3. Appendix A'!$E$20, '2. 2016 Continuity Schedule'!$A$20:$BV$20,0),FALSE)), 0, VLOOKUP($A59, '2. 2016 Continuity Schedule'!$A$20:$BV$89, MATCH('3. Appendix A'!$E$20, '2. 2016 Continuity Schedule'!$A$20:$BV$20,0),FALSE)) -> -48782.38 | F59: GL adjustment to reclassify amount out of the Variance account, into a recognized liability, as this balance is not to be returned to customer through rates
A60: 33 | C60: =VLOOKUP(A60, '2. 2016 Continuity Schedule'!$A$24:$BV$87,3,FALSE) -> Smart Grid Capital Deferral Account | D60: =VLOOKUP(A60, '2. 2016 Continuity Schedule'!$A$24:$BV$87,4,FALSE) -> 1534 | E60: =IF(ISERROR(VLOOKUP($A60, '2. 2016 Continuity Schedule'!$A$20:$BV$89, MATCH('3. Appendix A'!$E$20, '2. 2016 Continuity Schedule'!$A$20:$BV$20,0),FALSE)), 0, VLOOKUP($A60, '2. 2016 Continuity Schedule'!$A$20:$BV$89, MATCH('3. Appendix A'!$E$20, '2. 2016 Continuity Schedule'!$A$20:$BV$20,0),FALSE)) -> 0
A61: 34 | C61: =VLOOKUP(A61, '2. 2016 Continuity Schedule'!$A$24:$BV$87,3,FALSE) -> Smart Grid OM&A Deferral Account | D61: =VLOOKUP(A61, '2. 2016 Continuity Schedule'!$A$24:$BV$87,4,FALSE) -> 1535 | E61: =IF(ISERROR(VLOOKUP($A61, '2. 2016 Continuity Schedule'!$A$20:$BV$89, MATCH('3. Appendix A'!$E$20, '2. 2016 Continuity Schedule'!$A$20:$BV$20,0),FALSE)), 0, VLOOKUP($A61, '2. 2016 Continuity Schedule'!$A$20:$BV$89, MATCH('3. Appendix A'!$E$20, '2. 2016 Continuity Schedule'!$A$20:$BV$20,0),FALSE)) -> 0
A62: 35 | C62: =VLOOKUP(A62, '2. 2016 Continuity Schedule'!$A$24:$BV$87,3,FALSE) -> Smart Grid Funding Adder Deferral Account | D62: =VLOOKUP(A62, '2. 2016 Continuity Schedule'!$A$24:$BV$87,4,FALSE) -> 1536 | E62: =IF(ISERROR(VLOOKUP($A62, '2. 2016 Continuity Schedule'!$A$20:$BV$89, MATCH('3. Appendix A'!$E$20, '2. 2016 Continuity Schedule'!$A$20:$BV$20,0),FALSE)), 0, VLOOKUP($A62, '2. 2016 Continuity Schedule'!$A$20:$BV$89, MATCH('3. Appendix A'!$E$20, '2. 2016 Continuity Schedule'!$A$20:$BV$20,0),FALSE)) -> 0
A63: 36 | C63: =VLOOKUP(A63, '2. 2016 Continuity Schedule'!$A$24:$BV$87,3,FALSE) -> Smart Meter Capital and Recovery Offset Variance - Sub-Account - Capital5 | D63: =VLOOKUP(A63, '2. 2016 Continuity Schedule'!$A$24:$BV$87,4,FALSE) -> 1555 | E63: =IF(ISERROR(VLOOKUP($A63, '2. 2016 Continuity Schedule'!$A$20:$BV$89, MATCH('3. Appendix A'!$E$20, '2. 2016 Continuity Schedule'!$A$20:$BV$20,0),FALSE)), 0, VLOOKUP($A63, '2. 2016 Continuity Schedule'!$A$20:$BV$89, MATCH('3. Appendix A'!$E$20, '2. 2016 Continuity Schedule'!$A$20:$BV$20,0),FALSE)) -> 0
A64: 37 | C64: =VLOOKUP(A64, '2. 2016 Continuity Schedule'!$A$24:$BV$87,3,FALSE) -> Smart Meter Capital and Recovery Offset Variance - Sub-Account - Recoveries5 | D64: =VLOOKUP(A64, '2. 2016 Continuity Schedule'!$A$24:$BV$87,4,FALSE) -> 1555 | E64: =IF(ISERROR(VLOOKUP($A64, '2. 2016 Continuity Schedule'!$A$20:$BV$89, MATCH('3. Appendix A'!$E$20, '2. 2016 Continuity Schedule'!$A$20:$BV$20,0),FALSE)), 0, VLOOKUP($A64, '2. 2016 Continuity Schedule'!$A$20:$BV$89, MATCH('3. Appendix A'!$E$20, '2. 2016 Continuity Schedule'!$A$20:$BV$20,0),FALSE)) -> 0
A65: 38 | C65: =VLOOKUP(A65, '2. 2016 Continuity Schedule'!$A$24:$BV$87,3,FALSE) -> Smart Meter Capital and Recovery Offset Variance - Sub-Account - Stranded Meter Costs5 | D65: =VLOOKUP(A65, '2. 2016 Continuity Schedule'!$A$24:$BV$87,4,FALSE) -> 1555 | E65: =IF(ISERROR(VLOOKUP($A65, '2. 2016 Continuity Schedule'!$A$20:$BV$89, MATCH('3. Appendix A'!$E$20, '2. 2016 Continuity Schedule'!$A$20:$BV$20,0),FALSE)), 0, VLOOKUP($A65, '2. 2016 Continuity Schedule'!$A$20:$BV$89, MATCH('3. Appendix A'!$E$20, '2. 2016 Continuity Schedule'!$A$20:$BV$20,0),FALSE)) -> -0.03 | F65: Correction of asset recognition
A66: 39 | C66: =VLOOKUP(A66, '2. 2016 Continuity Schedule'!$A$24:$BV$87,3,FALSE) -> Smart Meter OM&A Variance5 | D66: =VLOOKUP(A66, '2. 2016 Continuity Schedule'!$A$24:$BV$87,4,FALSE) -> 1556 | E66: =IF(ISERROR(VLOOKUP($A66, '2. 2016 Continuity Schedule'!$A$20:$BV$89, MATCH('3. Appendix A'!$E$20, '2. 2016 Continuity Schedule'!$A$20:$BV$20,0),FALSE)), 0, VLOOKUP($A66, '2. 2016 Continuity Schedule'!$A$20:$BV$89, MATCH('3. Appendix A'!$E$20, '2. 2016 Continuity Schedule'!$A$20:$BV$20,0),FALSE)) -> 0
A67: 40 | C67: =VLOOKUP(A67, '2. 2016 Continuity Schedule'!$A$24:$BV$87,3,FALSE) -> Meter Cost Deferral Account (MIST Meters)11 | D67: =VLOOKUP(A67, '2. 2016 Continuity Schedule'!$A$24:$BV$87,4,FALSE) -> 1557 | E67: =IF(ISERROR(VLOOKUP($A67, '2. 2016 Continuity Schedule'!$A$20:$BV$89, MATCH('3. Appendix A'!$E$20, '2. 2016 Continuity Schedule'!$A$20:$BV$20,0),FALSE)), 0, VLOOKUP($A67, '2. 2016 Continuity Schedule'!$A$20:$BV$89, MATCH('3. Appendix A'!$E$20, '2. 2016 Continuity Schedule'!$A$20:$BV$20,0),FALSE)) -> 0
A68: 41 | C68: =VLOOKUP(A68, '2. 2016 Continuity Schedule'!$A$24:$BV$87,3,FALSE) -> IFRS-CGAAP Transition PP&E Amounts Balance + Return Component6 | D68: =VLOOKUP(A68, '2. 2016 Continuity Schedule'!$A$24:$BV$87,4,FALSE) -> 1575 | E68: =IF(ISERROR(VLOOKUP($A68, '2. 2016 Continuity Schedule'!$A$20:$BV$89, MATCH('3. Appendix A'!$E$20, '2. 2016 Continuity Schedule'!$A$20:$BV$20,0),FALSE)), 0, VLOOKUP($A68, '2. 2016 Continuity Schedule'!$A$20:$BV$89, MATCH('3. Appendix A'!$E$20, '2. 2016 Continuity Schedule'!$A$20:$BV$20,0),FALSE)) -> -562690 | F68: Recognition of constructive obligation on station asset, capital portion of future employee benefits and sick leave. This includes the forecasted 2016 amount including the return portion from cell F39 in Chapter 2 Appendix 2-EA.
A69: 42 | C69: =VLOOKUP(A69, '2. 2016 Continuity Schedule'!$A$24:$BV$87,3,FALSE) -> Accounting Changes Under CGAAP Balance + Return Component6 | D69: =VLOOKUP(A69, '2. 2016 Continuity Schedule'!$A$24:$BV$87,4,FALSE) -> 1576 | E69: =IF(ISERROR(VLOOKUP($A69, '2. 2016 Continuity Schedule'!$A$20:$BV$89, MATCH('3. Appendix A'!$E$20, '2. 2016 Continuity Schedule'!$A$20:$BV$20,0),FALSE)), 0, VLOOKUP($A69, '2. 2016 Continuity Schedule'!$A$20:$BV$89, MATCH('3. Appendix A'!$E$20, '2. 2016 Continuity Schedule'!$A$20:$BV$20,0),FALSE)) -> 0

Sheet 4. Billing Determinants
B2: FALSE
B16: In the green shaded cells, enter the data related to the proposed load forecast. Do not enter data for the MicroFit class.
E18: A | G18: B | J18: C | L18: D=A-C | O18: E | S18: F =B-C-E
B19: Rate Class (Enter Rate Classes in cells below as they appear on your current tariff of rates and charges) | C19: Units | D19: # of Customers | E19: Total Metered kWh | F19: Total Metered kW | G19: Metered kWh for Non-RPP Customers | H19: Estimated Metered kW for Non-RPP Customers | I19: Distribution Revenue | J19: Metered kWh for Wholesale Market Participants (WMP) | K19: Metered kW for Wholesale Market Participants (WMP) | L19: Total Metered kWh less WMP consumption (if applicable) | M19: Total Metered kW less WMP consumption (if applicable) | N19: GA Allocator for Class A, Non-WMP Customers (if applicable)2 | O19: Metered kWh for any Class A Customers in 2015 (partial or full year) (if applicable)* | P19: Metered kW for any Class A Customers in 2015 (partial or full year) (if applicable) | Q19: Metered kWh Consumption for New Class A customer(s) in the period prior to becoming Class A (i.e. Jan. 1 - June 30, 2015) | R19: Metered kW Consumption for New Class A customer(s) in the period prior to becoming Class A (i.e. Jan. 1 - June 30, 2015) | S19: Metered Consumption kWh for Current Class B Customers (Non-RPP consumption LESS WMP, Class A and new Class A's former Class B consumption, if applicable) | T19: Total Metered kW for Non-RPP Customers less WMP and Class A Consumption | U19: 1595 Recovery Share Proportion (2009) 1 | V19: 1595 Recovery Share Proportion (2010) 1 | W19: 1595 Recovery Share Proportion (2011) 1 | X19: 1595 Recovery Share Proportion (2012) 1 | Y19: 1595 Recovery Share Proportion (2013) 1 | Z19: 1595 Recovery Share Proportion (2014) 1 | AA19: 1595 Recovery Share Proportion (2015) 1 | AB19: 1568 LRAM Variance Account Class Allocation3 ($ amounts) | AC19: Number of Customers for Residential and GS<50 classes2
B21: RESIDENTIAL | C21: kWh | D21: =+[9]Summary!$M$10 -> 45527.00709 | E21: =+[9]Summary!$M$11 -> 336114686.5 | F21: 0 | G21: =+'[10]2017 Load Forecast'!$E$26 -> 11679411.17 | H21: =IF(ISERROR(F21/E21*G21), 0, F21/E21*G21) -> 0 | L21: =E21-J21 -> 336114686.5 | M21: =F21-K21 -> 0 | S21: =IF(OR(G21=0, ISBLANK(G21)), 0, G21-J21-O21-Q21) -> 11679411.17 | T21: =IF(OR(H21=0, ISBLANK(H21)), 0, H21-K21-P21-R21) -> 0 | U21: =+[10]Allocations!$D$129 -> 0.2504251347 | V21: =+[10]Allocations!$H$118 -> 0.2604225369 | W21: =+[10]Allocations!$H$106 -> 0.1875792348 | X21: =+[10]Allocations!H94 -> 0.3366388939 | Y21: =+[10]Allocations!H80 -> 0.4043168251 | Z21: =+[10]Allocations!H64 -> 0.3984915784 | AA21: =+[10]Allocations!$H$47 -> 0.2311039514 | AB21: =+'[11]August 26 16 Exhibit 4 Tables2'!$G$4 -> -35098.2284 | AC21: =+[9]Summary!$M$10 -> 45527.00709
B22: GS < 50KW | C22: kWh | D22: =+[9]Summary!$M$14 -> 4655.259585 | E22: =+[9]Summary!$M$15 -> 142697207.4 | F22: 0 | G22: =+'[10]2017 Load Forecast'!$E$27 -> 23023713.37 | H22: =IF(ISERROR(F22/E22*G22), 0, F22/E22*G22) -> 0 | L22: =E22-J22 -> 142697207.4 | M22: =F22-K22 -> 0 | S22: =IF(OR(G22=0, ISBLANK(G22)), 0, G22-J22-O22-Q22) -> 23023713.37 | T22: =IF(OR(H22=0, ISBLANK(H22)), 0, H22-K22-P22-R22) -> 0 | U22: =+[10]Allocations!$D$130 -> 0.1436146592 | V22: =+[10]Allocations!$H$119 -> 0.1230511482 | W22: =+[10]Allocations!$H$107 -> 0.07956698306 | X22: =+[10]Allocations!H95 -> 0.133937733 | Y22: =+[10]Allocations!H81 -> 0.1914010779 | Z22: =+[10]Allocations!H65 -> 0.1541309352 | AA22: =+[10]Allocations!$H$48 -> 0.09515122381 | AB22: =+'[11]August 26 16 Exhibit 4 Tables2'!$G$5 -> 72297.67167 | AC22: =+[9]Summary!$M$14 -> 4655.259585
B23: GS > 50- 999 KW | C23: kW | D23: =+[9]Summary!$M$18 -> 459.9677721 | E23: =+[9]Summary!$M$19 -> 262887880.8 | F23: =+[9]Summary!$M$20 -> 656994.7771 | G23: =+'[10]2017 Load Forecast'!$E$28 -> 221273288 | H23: 552993.9002 | L23: 262887880.8 | M23: 656994.7771 | S23: 221273288 | T23: 552993.9002 | U23: =+[10]Allocations!$D$131 -> 0.331882718 | V23: =+[10]Allocations!$H$120 -> 0.2983501722 | W23: =+[10]Allocations!$H$108 -> 0.4020280652 | X23: =+[10]Allocations!H96 -> 0.3153168288 | Y23: =+[10]Allocations!H82 -> 0.2522173183 | Z23: =+[10]Allocations!H66 -> 0.2730911441 | AA23: =+[10]Allocations!$H$49 -> 0.4008699839 | AB23: =+'[11]August 26 16 Exhibit 4 Tables2'!$G$6 -> -9758.366275
B24: GS >1000 KW | C24: kW | D24: =+[9]Summary!$M$23 -> 21.6406015 | E24: =+[9]Summary!$M$24 -> 169332351.8 | F24: =+[9]Summary!$M$25 -> 466924.2403 | G24: =+'[10]2017 Load Forecast'!$E$29+36734784 -> 170105981.9 | H24: 469057.481 | L24: 169332351.8 | M24: 466924.2403 | O24: 36734784 | S24: 133371197.9 | T24: 469057.481 | U24: =+[10]Allocations!$D$132 -> 0.2597294844 | V24: =+[10]Allocations!$H$121 -> 0.3010877029 | W24: =+[10]Allocations!$H$109 -> 0.3108378667 | X24: =0.2 -> 0.2 | Y24: =0.14 -> 0.14 | Z24: =0.16 -> 0.16 | AA24: 0.25 | AB24: =+'[11]August 26 16 Exhibit 4 Tables2'!$G$7 -> -11927.59787
B25: LARGE USER | C25: kW | D25: =+[9]Summary!$M$28 -> 0 | E25: =+[9]Summary!$M$29 -> 0 | F25: =+[9]Summary!$M$30 -> 0 | H25: 0 | L25: 0 | M25: 0 | N25: 0 | S25: 0 | T25: 0 | AB25: =+'[11]August 26 16 Exhibit 4 Tables2'!$G$8 -> 0
B26: STREET LIGHTS | C26: kW | D26: =+[9]Summary!$M$33 -> 13274.4519 | E26: =+[9]Summary!$M$34 -> 8290565.371 | F26: =+[9]Summary!$M$35 -> 23590.12948 | G26: =+'[10]2017 Load Forecast'!$E$33 -> 8114545.33 | H26: 23089.27877 | L26: 8290565.371 | M26: 23590.12948 | N26: 0 | S26: 8114545.33 | T26: 23089.27877 | U26: =+[10]Allocations!$D$135 -> 0.01186170198 | V26: =+[10]Allocations!$H$124 -> 0.01499447263 | W26: =+[10]Allocations!$H$113 -> 0.01898570689 | X26: =+[10]Allocations!H101 -> 0.01377050566 | Y26: =+[10]Allocations!H87 -> 0.008446822166 | Z26: =+[10]Allocations!$H$71 -> 0.009612297592 | AA26: =+[10]Allocations!$H$54 -> 0.0172794095 | AB26: =+'[11]August 26 16 Exhibit 4 Tables2'!$G$11 -> -4131.278376
B27: SENTINEL LIGHTS | C27: kW | D27: =+[9]Summary!$M$38 -> 163.7634108 | E27: =+[9]Summary!$M$39 -> 108037.1001 | F27: =+[9]Summary!$M$40 -> 294.7741395 | G27: =+'[10]2017 Load Forecast'!$E$32 -> 0 | H27: 0 | L27: 108037.1001 | M27: 294.7741395 | S27: 0 | T27: 0 | U27: 0 | V27: =+[10]Allocations!$H$123 -> 0.0001550003704 | W27: =+[10]Allocations!$H$112 -> 2.385181929e-05 | X27: =+[10]Allocations!H100 -> 6.327817687e-05 | Y27: =+[10]Allocations!H86 -> -0.0001670461839 | Z27: =+[10]Allocations!H70 -> 0.000164509067 | AA27: =+[10]Allocations!$H$52 -> 0.001550799834 | AB27: =+'[11]August 26 16 Exhibit 4 Tables2'!$G$10 -> -54.64941707
B28: UNMETERED SCATTERED LOAD | C28: kWh | D28: =+[9]Summary!$M$43 -> 439.6615808 | E28: =+[9]Summary!$M$44 -> 2148121.575 | F28: 0 | G28: =+'[10]2017 Load Forecast'!$E$31 -> 383684.5894 | H28: 0 | L28: 2148121.575 | M28: 0 | S28: 383684.5894 | T28: 0 | U28: 0 | V28: =+[10]Allocations!$H$123 -> 0.0001550003704 | W28: =+[10]Allocations!$H$111 -> 0.0009782915419 | X28: =+[10]Allocations!H99 -> 0.001977723783 | Y28: =+[10]Allocations!H85 -> 0.00276769151 | Z28: =+[10]Allocations!H69 -> 0.002492476405 | AA28: =+[10]Allocations!$H$53 -> 7.172585076e-05 | AB28: =+'[11]August 26 16 Exhibit 4 Tables2'!$G$9 -> -690.7520109
H29: 0 | L29: 0 | M29: 0 | S29: 0 | T29: 0
H30: 0 | L30: 0 | M30: 0 | S30: 0 | T30: 0
H31: 0 | L31: 0 | M31: 0 | S31: 0 | T31: 0
H32: 0 | L32: 0 | M32: 0 | S32: 0 | T32: 0
H33: 0 | L33: 0 | M33: 0 | S33: 0 | T33: 0
H34: 0 | L34: 0 | M34: 0 | S34: 0 | T34: 0
H35: 0 | L35: 0 | M35: 0 | S35: 0 | T35: 0
H36: 0 | L36: 0 | M36: 0 | S36: 0 | T36: 0
H37: 0 | L37: 0 | M37: 0 | S37: 0 | T37: 0
H38: 0 | L38: 0 | M38: 0 | S38: 0 | T38: 0
H39: 0 | L39: 0 | M39: 0 | S39: 0 | T39: 0
H40: 0 | L40: 0 | M40: 0 | S40: 0 | T40: 0
B41: Total | D41: =SUM(D21:D40) -> 64541.75194 | E41: 921578850.5 | F41: 1147803.921 | G41: 434580624.3 | H41: 1045140.66 | I41: 0 | J41: 0 | K41: =SUM(K21:K40) -> 0 | L41: 921578850.5 | M41: 1147803.921 | N41: 0 | O41: 36734784 | P41: 0 | S41: =SUM(S21:S40) -> 397845840.3 | T41: 1045140.66 | U41: 0.9975136983 | V41: 0.9982160335 | W41: 1 | X41: 1.001704963 | Y41: 0.9989826887 | AA41: =SUM(AA21:AA40) -> 0.9960270943 | AB41: =SUM(AB21:AB40) -> 10636.79933
AA42: Balance as per Sheet 2 | AB42: ='2. 2016 Continuity Schedule'!CE68 -> 0
AA43: Variance | AB43: =AB41-AB42 -> 10636.79933
B44: *For new Class A customers (who became Class A in 2015), add their consumption only related to July to December period.
A47: 1 Residual Account balance to be allocated to rate classes in proportion to the recovery share as established when rate riders were implemented.
A49: 2 The proportion of customers for the Residential and GS<50 Classes will be used to allocate Account 1551.
A51: 3 Input the allocation as determined in the LRAMVA model. The associated rate riders will be calculated in the EDDVAR model.

Sheet 5. Allocation of Balances
AA1: 21
AA2: 22
E3: 1551 SME | F3: =+'[12]2. Default Allocations IRMModel'!$I$9 -> -4766.007408 | G3: =+'[12]2. Default Allocations IRMModel'!$I$10 -> -489.7298717 | H3: Please note that these two amounts for the SME charge will not be retained in cell F6 and G6 upon reopening the file and reviewing from worksheet 1. They must be entered manually every time the file is opened.
A4: 1 | D4: Amounts from Sheet 2 | E4: Allocator | F4: =IF(LEN(TRIM('4. Billing Determinants'!$B21))=0, "", UPPER('4. Billing Determinants'!$B21)) -> RESIDENTIAL | G4: =IF(LEN(TRIM('4. Billing Determinants'!$B22))=0, "", '4. Billing Determinants'!$B22) -> GS < 50KW | H4: =IF(LEN(TRIM('4. Billing Determinants'!$B23))=0, "", '4. Billing Determinants'!$B23) -> GS > 50- 999 KW | I4: =IF(LEN(TRIM('4. Billing Determinants'!$B24))=0, "", '4. Billing Determinants'!$B24) -> GS >1000 KW | J4: =IF(LEN(TRIM('4. Billing Determinants'!$B25))=0, "", '4. Billing Determinants'!$B25) -> LARGE USER | K4: =IF(LEN(TRIM('4. Billing Determinants'!$B26))=0, "", '4. Billing Determinants'!$B26) -> STREET LIGHTS | L4: =IF(LEN(TRIM('4. Billing Determinants'!$B27))=0, "", '4. Billing Determinants'!$B27) -> SENTINEL LIGHTS | M4: =IF(LEN(TRIM('4. Billing Determinants'!$B28))=0, "", '4. Billing Determinants'!$B28) -> UNMETERED SCATTERED LOAD | N4: =IF(LEN(TRIM('4. Billing Determinants'!$B29))=0, "", '4. Billing Determinants'!$B29) ->  | O4: =IF(LEN(TRIM('4. Billing Determinants'!$B30))=0, "", '4. Billing Determinants'!$B30) ->  | P4: =IF(LEN(TRIM('4. Billing Determinants'!$B31))=0, "", '4. Billing Determinants'!$B31) ->  | Q4: =IF(LEN(TRIM('4. Billing Determinants'!$B32))=0, "", '4. Billing Determinants'!$B32) ->  | R4: =IF(LEN(TRIM('4. Billing Determinants'!$B33))=0, "", '4. Billing Determinants'!$B33) ->  | S4: =IF(LEN(TRIM('4. Billing Determinants'!$B34))=0, "", '4. Billing Determinants'!$B34) ->  | T4: =IF(LEN(TRIM('4. Billing Determinants'!$B35))=0, "", '4. Billing Determinants'!$B35) ->  | U4: =IF(LEN(TRIM('4. Billing Determinants'!$B36))=0, "", '4. Billing Determinants'!$B36) ->  | V4: =IF(LEN(TRIM('4. Billing Determinants'!$B37))=0, "", '4. Billing Determinants'!$B37) ->  | W4: =IF(LEN(TRIM('4. Billing Determinants'!$B38))=0, "", '4. Billing Determinants'!$B38) ->  | X4: =IF(LEN(TRIM('4. Billing Determinants'!$B39))=0, "", '4. Billing Determinants'!$B39) ->  | Y4: =IF(LEN(TRIM('4. Billing Determinants'!$B40))=0, "", '4. Billing Determinants'!$B40) -> 
A5: 2 | B5: LV Variance Account | C5: 1550 | D5: ='2. 2016 Continuity Schedule'!BT24 -> 0 | E5: kWh | F5: =IFERROR(IF(F$4="",0,IF($E5="kWh",VLOOKUP(F$4,'4. Billing Determinants'!$B$19:$R$41,4,0)/'4. Billing Determinants'!$E$41*$D5,IF($E5="kW",VLOOKUP(F$4,'4. Billing Determinants'!$B$19:$R$41,5,0)/'4. Billing Determinants'!$F$41*$D5,IF($E5="Non-RPP kWh",VLOOKUP(F$4,'4. Billing Determinants'!$B$19:$R$41,6,0)/'4. Billing Determinants'!$G$41*$D5,IF($E5="Distribution Rev.",VLOOKUP(F$4,'4. Billing Determinants'!$B$19:$R$41,8,0)/'4. Billing Determinants'!$I$41*$D5, VLOOKUP(F$4,'4. Billing Determinants'!$B$19:$R$41,3,0)/'4. Billing Determinants'!$D$41*$D5))))),0) -> 0 | G5: =IFERROR(IF(G$4="",0,IF($E5="kWh",VLOOKUP(G$4,'4. Billing Determinants'!$B$19:$R$41,4,0)/'4. Billing Determinants'!$E$41*$D5,IF($E5="kW",VLOOKUP(G$4,'4. Billing Determinants'!$B$19:$R$41,5,0)/'4. Billing Determinants'!$F$41*$D5,IF($E5="Non-RPP kWh",VLOOKUP(G$4,'4. Billing Determinants'!$B$19:$R$41,6,0)/'4. Billing Determinants'!$G$41*$D5,IF($E5="Distribution Rev.",VLOOKUP(G$4,'4. Billing Determinants'!$B$19:$R$41,8,0)/'4. Billing Determinants'!$I$41*$D5, VLOOKUP(G$4,'4. Billing Determinants'!$B$19:$R$41,3,0)/'4. Billing Determinants'!$D$41*$D5))))),0) -> 0 | H5: =IFERROR(IF(H$4="",0,IF($E5="kWh",VLOOKUP(H$4,'4. Billing Determinants'!$B$19:$R$41,4,0)/'4. Billing Determinants'!$E$41*$D5,IF($E5="kW",VLOOKUP(H$4,'4. Billing Determinants'!$B$19:$R$41,5,0)/'4. Billing Determinants'!$F$41*$D5,IF($E5="Non-RPP kWh",VLOOKUP(H$4,'4. Billing Determinants'!$B$19:$R$41,6,0)/'4. Billing Determinants'!$G$41*$D5,IF($E5="Distribution Rev.",VLOOKUP(H$4,'4. Billing Determinants'!$B$19:$R$41,8,0)/'4. Billing Determinants'!$I$41*$D5, VLOOKUP(H$4,'4. Billing Determinants'!$B$19:$R$41,3,0)/'4. Billing Determinants'!$D$41*$D5))))),0) -> 0 | I5: =IFERROR(IF(I$4="",0,IF($E5="kWh",VLOOKUP(I$4,'4. Billing Determinants'!$B$19:$R$41,4,0)/'4. Billing Determinants'!$E$41*$D5,IF($E5="kW",VLOOKUP(I$4,'4. Billing Determinants'!$B$19:$R$41,5,0)/'4. Billing Determinants'!$F$41*$D5,IF($E5="Non-RPP kWh",VLOOKUP(I$4,'4. Billing Determinants'!$B$19:$R$41,6,0)/'4. Billing Determinants'!$G$41*$D5,IF($E5="Distribution Rev.",VLOOKUP(I$4,'4. Billing Determinants'!$B$19:$R$41,8,0)/'4. Billing Determinants'!$I$41*$D5, VLOOKUP(I$4,'4. Billing Determinants'!$B$19:$R$41,3,0)/'4. Billing Determinants'!$D$41*$D5))))),0) -> 0 | J5: =IFERROR(IF(J$4="",0,IF($E5="kWh",VLOOKUP(J$4,'4. Billing Determinants'!$B$19:$R$41,4,0)/'4. Billing Determinants'!$E$41*$D5,IF($E5="kW",VLOOKUP(J$4,'4. Billing Determinants'!$B$19:$R$41,5,0)/'4. Billing Determinants'!$F$41*$D5,IF($E5="Non-RPP kWh",VLOOKUP(J$4,'4. Billing Determinants'!$B$19:$R$41,6,0)/'4. Billing Determinants'!$G$41*$D5,IF($E5="Distribution Rev.",VLOOKUP(J$4,'4. Billing Determinants'!$B$19:$R$41,8,0)/'4. Billing Determinants'!$I$41*$D5, VLOOKUP(J$4,'4. Billing Determinants'!$B$19:$R$41,3,0)/'4. Billing Determinants'!$D$41*$D5))))),0) -> 0 | K5: =IFERROR(IF(K$4="",0,IF($E5="kWh",VLOOKUP(K$4,'4. Billing Determinants'!$B$19:$R$41,4,0)/'4. Billing Determinants'!$E$41*$D5,IF($E5="kW",VLOOKUP(K$4,'4. Billing Determinants'!$B$19:$R$41,5,0)/'4. Billing Determinants'!$F$41*$D5,IF($E5="Non-RPP kWh",VLOOKUP(K$4,'4. Billing Determinants'!$B$19:$R$41,6,0)/'4. Billing Determinants'!$G$41*$D5,IF($E5="Distribution Rev.",VLOOKUP(K$4,'4. Billing Determinants'!$B$19:$R$41,8,0)/'4. Billing Determinants'!$I$41*$D5, VLOOKUP(K$4,'4. Billing Determinants'!$B$19:$R$41,3,0)/'4. Billing Determinants'!$D$41*$D5))))),0) -> 0 | L5: =IFERROR(IF(L$4="",0,IF($E5="kWh",VLOOKUP(L$4,'4. Billing Determinants'!$B$19:$R$41,4,0)/'4. Billing Determinants'!$E$41*$D5,IF($E5="kW",VLOOKUP(L$4,'4. Billing Determinants'!$B$19:$R$41,5,0)/'4. Billing Determinants'!$F$41*$D5,IF($E5="Non-RPP kWh",VLOOKUP(L$4,'4. Billing Determinants'!$B$19:$R$41,6,0)/'4. Billing Determinants'!$G$41*$D5,IF($E5="Distribution Rev.",VLOOKUP(L$4,'4. Billing Determinants'!$B$19:$R$41,8,0)/'4. Billing Determinants'!$I$41*$D5, VLOOKUP(L$4,'4. Billing Determinants'!$B$19:$R$41,3,0)/'4. Billing Determinants'!$D$41*$D5))))),0) -> 0 | M5: =IFERROR(IF(M$4="",0,IF($E5="kWh",VLOOKUP(M$4,'4. Billing Determinants'!$B$19:$R$41,4,0)/'4. Billing Determinants'!$E$41*$D5,IF($E5="kW",VLOOKUP(M$4,'4. Billing Determinants'!$B$19:$R$41,5,0)/'4. Billing Determinants'!$F$41*$D5,IF($E5="Non-RPP kWh",VLOOKUP(M$4,'4. Billing Determinants'!$B$19:$R$41,6,0)/'4. Billing Determinants'!$G$41*$D5,IF($E5="Distribution Rev.",VLOOKUP(M$4,'4. Billing Determinants'!$B$19:$R$41,8,0)/'4. Billing Determinants'!$I$41*$D5, VLOOKUP(M$4,'4. Billing Determinants'!$B$19:$R$41,3,0)/'4. Billing Determinants'!$D$41*$D5))))),0) -> 0 | N5: =IFERROR(IF(N$4="",0,IF($E5="kWh",VLOOKUP(N$4,'4. Billing Determinants'!$B$19:$R$41,4,0)/'4. Billing Determinants'!$E$41*$D5,IF($E5="kW",VLOOKUP(N$4,'4. Billing Determinants'!$B$19:$R$41,5,0)/'4. Billing Determinants'!$F$41*$D5,IF($E5="Non-RPP kWh",VLOOKUP(N$4,'4. Billing Determinants'!$B$19:$R$41,6,0)/'4. Billing Determinants'!$G$41*$D5,IF($E5="Distribution Rev.",VLOOKUP(N$4,'4. Billing Determinants'!$B$19:$R$41,8,0)/'4. Billing Determinants'!$I$41*$D5, VLOOKUP(N$4,'4. Billing Determinants'!$B$19:$R$41,3,0)/'4. Billing Determinants'!$D$41*$D5))))),0) -> 0 | O5: =IFERROR(IF(O$4="",0,IF($E5="kWh",VLOOKUP(O$4,'4. Billing Determinants'!$B$19:$R$41,4,0)/'4. Billing Determinants'!$E$41*$D5,IF($E5="kW",VLOOKUP(O$4,'4. Billing Determinants'!$B$19:$R$41,5,0)/'4. Billing Determinants'!$F$41*$D5,IF($E5="Non-RPP kWh",VLOOKUP(O$4,'4. Billing Determinants'!$B$19:$R$41,6,0)/'4. Billing Determinants'!$G$41*$D5,IF($E5="Distribution Rev.",VLOOKUP(O$4,'4. Billing Determinants'!$B$19:$R$41,8,0)/'4. Billing Determinants'!$I$41*$D5, VLOOKUP(O$4,'4. Billing Determinants'!$B$19:$R$41,3,0)/'4. Billing Determinants'!$D$41*$D5))))),0) -> 0 | P5: =IFERROR(IF(P$4="",0,IF($E5="kWh",VLOOKUP(P$4,'4. Billing Determinants'!$B$19:$R$41,4,0)/'4. Billing Determinants'!$E$41*$D5,IF($E5="kW",VLOOKUP(P$4,'4. Billing Determinants'!$B$19:$R$41,5,0)/'4. Billing Determinants'!$F$41*$D5,IF($E5="Non-RPP kWh",VLOOKUP(P$4,'4. Billing Determinants'!$B$19:$R$41,6,0)/'4. Billing Determinants'!$G$41*$D5,IF($E5="Distribution Rev.",VLOOKUP(P$4,'4. Billing Determinants'!$B$19:$R$41,8,0)/'4. Billing Determinants'!$I$41*$D5, VLOOKUP(P$4,'4. Billing Determinants'!$B$19:$R$41,3,0)/'4. Billing Determinants'!$D$41*$D5))))),0) -> 0 | Q5: =IFERROR(IF(Q$4="",0,IF($E5="kWh",VLOOKUP(Q$4,'4. Billing Determinants'!$B$19:$R$41,4,0)/'4. Billing Determinants'!$E$41*$D5,IF($E5="kW",VLOOKUP(Q$4,'4. Billing Determinants'!$B$19:$R$41,5,0)/'4. Billing Determinants'!$F$41*$D5,IF($E5="Non-RPP kWh",VLOOKUP(Q$4,'4. Billing Determinants'!$B$19:$R$41,6,0)/'4. Billing Determinants'!$G$41*$D5,IF($E5="Distribution Rev.",VLOOKUP(Q$4,'4. Billing Determinants'!$B$19:$R$41,8,0)/'4. Billing Determinants'!$I$41*$D5, VLOOKUP(Q$4,'4. Billing Determinants'!$B$19:$R$41,3,0)/'4. Billing Determinants'!$D$41*$D5))))),0) -> 0 | R5: =IFERROR(IF(R$4="",0,IF($E5="kWh",VLOOKUP(R$4,'4. Billing Determinants'!$B$19:$R$41,4,0)/'4. Billing Determinants'!$E$41*$D5,IF($E5="kW",VLOOKUP(R$4,'4. Billing Determinants'!$B$19:$R$41,5,0)/'4. Billing Determinants'!$F$41*$D5,IF($E5="Non-RPP kWh",VLOOKUP(R$4,'4. Billing Determinants'!$B$19:$R$41,6,0)/'4. Billing Determinants'!$G$41*$D5,IF($E5="Distribution Rev.",VLOOKUP(R$4,'4. Billing Determinants'!$B$19:$R$41,8,0)/'4. Billing Determinants'!$I$41*$D5, VLOOKUP(R$4,'4. Billing Determinants'!$B$19:$R$41,3,0)/'4. Billing Determinants'!$D$41*$D5))))),0) -> 0 | S5: =IFERROR(IF(S$4="",0,IF($E5="kWh",VLOOKUP(S$4,'4. Billing Determinants'!$B$19:$R$41,4,0)/'4. Billing Determinants'!$E$41*$D5,IF($E5="kW",VLOOKUP(S$4,'4. Billing Determinants'!$B$19:$R$41,5,0)/'4. Billing Determinants'!$F$41*$D5,IF($E5="Non-RPP kWh",VLOOKUP(S$4,'4. Billing Determinants'!$B$19:$R$41,6,0)/'4. Billing Determinants'!$G$41*$D5,IF($E5="Distribution Rev.",VLOOKUP(S$4,'4. Billing Determinants'!$B$19:$R$41,8,0)/'4. Billing Determinants'!$I$41*$D5, VLOOKUP(S$4,'4. Billing Determinants'!$B$19:$R$41,3,0)/'4. Billing Determinants'!$D$41*$D5))))),0) -> 0 | T5: =IFERROR(IF(T$4="",0,IF($E5="kWh",VLOOKUP(T$4,'4. Billing Determinants'!$B$19:$R$41,4,0)/'4. Billing Determinants'!$E$41*$D5,IF($E5="kW",VLOOKUP(T$4,'4. Billing Determinants'!$B$19:$R$41,5,0)/'4. Billing Determinants'!$F$41*$D5,IF($E5="Non-RPP kWh",VLOOKUP(T$4,'4. Billing Determinants'!$B$19:$R$41,6,0)/'4. Billing Determinants'!$G$41*$D5,IF($E5="Distribution Rev.",VLOOKUP(T$4,'4. Billing Determinants'!$B$19:$R$41,8,0)/'4. Billing Determinants'!$I$41*$D5, VLOOKUP(T$4,'4. Billing Determinants'!$B$19:$R$41,3,0)/'4. Billing Determinants'!$D$41*$D5))))),0) -> 0 | U5: =IFERROR(IF(U$4="",0,IF($E5="kWh",VLOOKUP(U$4,'4. Billing Determinants'!$B$19:$R$41,4,0)/'4. Billing Determinants'!$E$41*$D5,IF($E5="kW",VLOOKUP(U$4,'4. Billing Determinants'!$B$19:$R$41,5,0)/'4. Billing Determinants'!$F$41*$D5,IF($E5="Non-RPP kWh",VLOOKUP(U$4,'4. Billing Determinants'!$B$19:$R$41,6,0)/'4. Billing Determinants'!$G$41*$D5,IF($E5="Distribution Rev.",VLOOKUP(U$4,'4. Billing Determinants'!$B$19:$R$41,8,0)/'4. Billing Determinants'!$I$41*$D5, VLOOKUP(U$4,'4. Billing Determinants'!$B$19:$R$41,3,0)/'4. Billing Determinants'!$D$41*$D5))))),0) -> 0 | V5: =IFERROR(IF(V$4="",0,IF($E5="kWh",VLOOKUP(V$4,'4. Billing Determinants'!$B$19:$R$41,4,0)/'4. Billing Determinants'!$E$41*$D5,IF($E5="kW",VLOOKUP(V$4,'4. Billing Determinants'!$B$19:$R$41,5,0)/'4. Billing Determinants'!$F$41*$D5,IF($E5="Non-RPP kWh",VLOOKUP(V$4,'4. Billing Determinants'!$B$19:$R$41,6,0)/'4. Billing Determinants'!$G$41*$D5,IF($E5="Distribution Rev.",VLOOKUP(V$4,'4. Billing Determinants'!$B$19:$R$41,8,0)/'4. Billing Determinants'!$I$41*$D5, VLOOKUP(V$4,'4. Billing Determinants'!$B$19:$R$41,3,0)/'4. Billing Determinants'!$D$41*$D5))))),0) -> 0 | W5: =IFERROR(IF(W$4="",0,IF($E5="kWh",VLOOKUP(W$4,'4. Billing Determinants'!$B$19:$R$41,4,0)/'4. Billing Determinants'!$E$41*$D5,IF($E5="kW",VLOOKUP(W$4,'4. Billing Determinants'!$B$19:$R$41,5,0)/'4. Billing Determinants'!$F$41*$D5,IF($E5="Non-RPP kWh",VLOOKUP(W$4,'4. Billing Determinants'!$B$19:$R$41,6,0)/'4. Billing Determinants'!$G$41*$D5,IF($E5="Distribution Rev.",VLOOKUP(W$4,'4. Billing Determinants'!$B$19:$R$41,8,0)/'4. Billing Determinants'!$I$41*$D5, VLOOKUP(W$4,'4. Billing Determinants'!$B$19:$R$41,3,0)/'4. Billing Determinants'!$D$41*$D5))))),0) -> 0 | X5: =IFERROR(IF(X$4="",0,IF($E5="kWh",VLOOKUP(X$4,'4. Billing Determinants'!$B$19:$R$41,4,0)/'4. Billing Determinants'!$E$41*$D5,IF($E5="kW",VLOOKUP(X$4,'4. Billing Determinants'!$B$19:$R$41,5,0)/'4. Billing Determinants'!$F$41*$D5,IF($E5="Non-RPP kWh",VLOOKUP(X$4,'4. Billing Determinants'!$B$19:$R$41,6,0)/'4. Billing Determinants'!$G$41*$D5,IF($E5="Distribution Rev.",VLOOKUP(X$4,'4. Billing Determinants'!$B$19:$R$41,8,0)/'4. Billing Determinants'!$I$41*$D5, VLOOKUP(X$4,'4. Billing Determinants'!$B$19:$R$41,3,0)/'4. Billing Determinants'!$D$41*$D5))))),0) -> 0 | Y5: =IFERROR(IF(Y$4="",0,IF($E5="kWh",VLOOKUP(Y$4,'4. Billing Determinants'!$B$19:$R$41,4,0)/'4. Billing Determinants'!$E$41*$D5,IF($E5="kW",VLOOKUP(Y$4,'4. Billing Determinants'!$B$19:$R$41,5,0)/'4. Billing Determinants'!$F$41*$D5,IF($E5="Non-RPP kWh",VLOOKUP(Y$4,'4. Billing Determinants'!$B$19:$R$41,6,0)/'4. Billing Determinants'!$G$41*$D5,IF($E5="Distribution Rev.",VLOOKUP(Y$4,'4. Billing Determinants'!$B$19:$R$41,8,0)/'4. Billing Determinants'!$I$41*$D5, VLOOKUP(Y$4,'4. Billing Determinants'!$B$19:$R$41,3,0)/'4. Billing Determinants'!$D$41*$D5))))),0) -> 0
A6: 3 | B6: Smart Metering Entity Charge Variance Account | C6: 1551 | D6: =+'2. 2016 Continuity Schedule'!BT25 -> -5255.73728 | E6: # of Customers | F6: -4766 | G6: -490
A7: 4 | B7: RSVA - Wholesale Market Service Charge | C7: 1580 | D7: =+'2. 2016 Continuity Schedule'!BT26 -> -2115697.121 | E7: kWh | F7: =IFERROR(IF(F$4="",0,IF($E7="kWh",VLOOKUP(F$4,'4. Billing Determinants'!$B$19:$R$41,11,0)/'4. Billing Determinants'!$L$41*$D7,IF($E7="kW",VLOOKUP(F$4,'4. Billing Determinants'!$B$19:$R$41,12,0)/'4. Billing Determinants'!$M$41*$D7,))),0) -> -771628.9 | G7: =IFERROR(IF(G$4="",0,IF($E7="kWh",VLOOKUP(G$4,'4. Billing Determinants'!$B$19:$R$41,11,0)/'4. Billing Determinants'!$L$41*$D7,IF($E7="kW",VLOOKUP(G$4,'4. Billing Determinants'!$B$19:$R$41,12,0)/'4. Billing Determinants'!$M$41*$D7,))),0) -> -327594.4004 | H7: =IFERROR(IF(H$4="",0,IF($E7="kWh",VLOOKUP(H$4,'4. Billing Determinants'!$B$19:$R$41,11,0)/'4. Billing Determinants'!$L$41*$D7,IF($E7="kW",VLOOKUP(H$4,'4. Billing Determinants'!$B$19:$R$41,12,0)/'4. Billing Determinants'!$M$41*$D7,))),0) -> -603519.8532 | I7: =IFERROR(IF(I$4="",0,IF($E7="kWh",VLOOKUP(I$4,'4. Billing Determinants'!$B$19:$R$41,11,0)/'4. Billing Determinants'!$L$41*$D7,IF($E7="kW",VLOOKUP(I$4,'4. Billing Determinants'!$B$19:$R$41,12,0)/'4. Billing Determinants'!$M$41*$D7,))),0) -> -388741.5266 | J7: =IFERROR(IF(J$4="",0,IF($E7="kWh",VLOOKUP(J$4,'4. Billing Determinants'!$B$19:$R$41,11,0)/'4. Billing Determinants'!$L$41*$D7,IF($E7="kW",VLOOKUP(J$4,'4. Billing Determinants'!$B$19:$R$41,12,0)/'4. Billing Determinants'!$M$41*$D7,))),0) -> 0 | K7: =IFERROR(IF(K$4="",0,IF($E7="kWh",VLOOKUP(K$4,'4. Billing Determinants'!$B$19:$R$41,11,0)/'4. Billing Determinants'!$L$41*$D7,IF($E7="kW",VLOOKUP(K$4,'4. Billing Determinants'!$B$19:$R$41,12,0)/'4. Billing Determinants'!$M$41*$D7,))),0) -> -19032.9078 | L7: =IFERROR(IF(L$4="",0,IF($E7="kWh",VLOOKUP(L$4,'4. Billing Determinants'!$B$19:$R$41,11,0)/'4. Billing Determinants'!$L$41*$D7,IF($E7="kW",VLOOKUP(L$4,'4. Billing Determinants'!$B$19:$R$41,12,0)/'4. Billing Determinants'!$M$41*$D7,))),0) -> -248.0241182 | M7: =IFERROR(IF(M$4="",0,IF($E7="kWh",VLOOKUP(M$4,'4. Billing Determinants'!$B$19:$R$41,11,0)/'4. Billing Determinants'!$L$41*$D7,IF($E7="kW",VLOOKUP(M$4,'4. Billing Determinants'!$B$19:$R$41,12,0)/'4. Billing Determinants'!$M$41*$D7,))),0) -> -4931.509257 | N7: =IFERROR(IF(N$4="",0,IF($E7="kWh",VLOOKUP(N$4,'4. Billing Determinants'!$B$19:$R$41,11,0)/'4. Billing Determinants'!$L$41*$D7,IF($E7="kW",VLOOKUP(N$4,'4. Billing Determinants'!$B$19:$R$41,12,0)/'4. Billing Determinants'!$M$41*$D7,))),0) -> 0 | O7: =IFERROR(IF(O$4="",0,IF($E7="kWh",VLOOKUP(O$4,'4. Billing Determinants'!$B$19:$R$41,11,0)/'4. Billing Determinants'!$L$41*$D7,IF($E7="kW",VLOOKUP(O$4,'4. Billing Determinants'!$B$19:$R$41,12,0)/'4. Billing Determinants'!$M$41*$D7,))),0) -> 0 | P7: =IFERROR(IF(P$4="",0,IF($E7="kWh",VLOOKUP(P$4,'4. Billing Determinants'!$B$19:$R$41,11,0)/'4. Billing Determinants'!$L$41*$D7,IF($E7="kW",VLOOKUP(P$4,'4. Billing Determinants'!$B$19:$R$41,12,0)/'4. Billing Determinants'!$M$41*$D7,))),0) -> 0 | Q7: =IFERROR(IF(Q$4="",0,IF($E7="kWh",VLOOKUP(Q$4,'4. Billing Determinants'!$B$19:$R$41,11,0)/'4. Billing Determinants'!$L$41*$D7,IF($E7="kW",VLOOKUP(Q$4,'4. Billing Determinants'!$B$19:$R$41,12,0)/'4. Billing Determinants'!$M$41*$D7,))),0) -> 0 | R7: =IFERROR(IF(R$4="",0,IF($E7="kWh",VLOOKUP(R$4,'4. Billing Determinants'!$B$19:$R$41,11,0)/'4. Billing Determinants'!$L$41*$D7,IF($E7="kW",VLOOKUP(R$4,'4. Billing Determinants'!$B$19:$R$41,12,0)/'4. Billing Determinants'!$M$41*$D7,))),0) -> 0 | S7: =IFERROR(IF(S$4="",0,IF($E7="kWh",VLOOKUP(S$4,'4. Billing Determinants'!$B$19:$R$41,11,0)/'4. Billing Determinants'!$L$41*$D7,IF($E7="kW",VLOOKUP(S$4,'4. Billing Determinants'!$B$19:$R$41,12,0)/'4. Billing Determinants'!$M$41*$D7,))),0) -> 0 | T7: =IFERROR(IF(T$4="",0,IF($E7="kWh",VLOOKUP(T$4,'4. Billing Determinants'!$B$19:$R$41,11,0)/'4. Billing Determinants'!$L$41*$D7,IF($E7="kW",VLOOKUP(T$4,'4. Billing Determinants'!$B$19:$R$41,12,0)/'4. Billing Determinants'!$M$41*$D7,))),0) -> 0 | U7: =IFERROR(IF(U$4="",0,IF($E7="kWh",VLOOKUP(U$4,'4. Billing Determinants'!$B$19:$R$41,11,0)/'4. Billing Determinants'!$L$41*$D7,IF($E7="kW",VLOOKUP(U$4,'4. Billing Determinants'!$B$19:$R$41,12,0)/'4. Billing Determinants'!$M$41*$D7,))),0) -> 0 | V7: =IFERROR(IF(V$4="",0,IF($E7="kWh",VLOOKUP(V$4,'4. Billing Determinants'!$B$19:$R$41,11,0)/'4. Billing Determinants'!$L$41*$D7,IF($E7="kW",VLOOKUP(V$4,'4. Billing Determinants'!$B$19:$R$41,12,0)/'4. Billing Determinants'!$M$41*$D7,))),0) -> 0 | W7: =IFERROR(IF(W$4="",0,IF($E7="kWh",VLOOKUP(W$4,'4. Billing Determinants'!$B$19:$R$41,11,0)/'4. Billing Determinants'!$L$41*$D7,IF($E7="kW",VLOOKUP(W$4,'4. Billing Determinants'!$B$19:$R$41,12,0)/'4. Billing Determinants'!$M$41*$D7,))),0) -> 0 | X7: =IFERROR(IF(X$4="",0,IF($E7="kWh",VLOOKUP(X$4,'4. Billing Determinants'!$B$19:$R$41,11,0)/'4. Billing Determinants'!$L$41*$D7,IF($E7="kW",VLOOKUP(X$4,'4. Billing Determinants'!$B$19:$R$41,12,0)/'4. Billing Determinants'!$M$41*$D7,))),0) -> 0 | Y7: =IFERROR(IF(Y$4="",0,IF($E7="kWh",VLOOKUP(Y$4,'4. Billing Determinants'!$B$19:$R$41,11,0)/'4. Billing Determinants'!$L$41*$D7,IF($E7="kW",VLOOKUP(Y$4,'4. Billing Determinants'!$B$19:$R$41,12,0)/'4. Billing Determinants'!$M$41*$D7,))),0) -> 0
A8: 5 | B8: RSVA - Retail Transmission Network Charge | C8: 1584 | D8: =+'2. 2016 Continuity Schedule'!BT29 -> -216815.9158 | E8: kWh | F8: =IFERROR(IF(F$4="",0,IF($E8="kWh",VLOOKUP(F$4,'4. Billing Determinants'!$B$19:$R$41,4,0)/'4. Billing Determinants'!$E$41*$D8,IF($E8="kW",VLOOKUP(F$4,'4. Billing Determinants'!$B$19:$R$41,5,0)/'4. Billing Determinants'!$F$41*$D8,IF($E8="Non-RPP kWh",VLOOKUP(F$4,'4. Billing Determinants'!$B$19:$R$41,6,0)/'4. Billing Determinants'!$G$41*$D8,IF($E8="Distribution Rev.",VLOOKUP(F$4,'4. Billing Determinants'!$B$19:$R$41,8,0)/'4. Billing Determinants'!$I$41*$D8, VLOOKUP(F$4,'4. Billing Determinants'!$B$19:$R$41,3,0)/'4. Billing Determinants'!$D$41*$D8))))),0) -> -79076.26519 | G8: =IFERROR(IF(G$4="",0,IF($E8="kWh",VLOOKUP(G$4,'4. Billing Determinants'!$B$19:$R$41,4,0)/'4. Billing Determinants'!$E$41*$D8,IF($E8="kW",VLOOKUP(G$4,'4. Billing Determinants'!$B$19:$R$41,5,0)/'4. Billing Determinants'!$F$41*$D8,IF($E8="Non-RPP kWh",VLOOKUP(G$4,'4. Billing Determinants'!$B$19:$R$41,6,0)/'4. Billing Determinants'!$G$41*$D8,IF($E8="Distribution Rev.",VLOOKUP(G$4,'4. Billing Determinants'!$B$19:$R$41,8,0)/'4. Billing Determinants'!$I$41*$D8, VLOOKUP(G$4,'4. Billing Determinants'!$B$19:$R$41,3,0)/'4. Billing Determinants'!$D$41*$D8))))),0) -> -33571.76187 | H8: =IFERROR(IF(H$4="",0,IF($E8="kWh",VLOOKUP(H$4,'4. Billing Determinants'!$B$19:$R$41,4,0)/'4. Billing Determinants'!$E$41*$D8,IF($E8="kW",VLOOKUP(H$4,'4. Billing Determinants'!$B$19:$R$41,5,0)/'4. Billing Determinants'!$F$41*$D8,IF($E8="Non-RPP kWh",VLOOKUP(H$4,'4. Billing Determinants'!$B$19:$R$41,6,0)/'4. Billing Determinants'!$G$41*$D8,IF($E8="Distribution Rev.",VLOOKUP(H$4,'4. Billing Determinants'!$B$19:$R$41,8,0)/'4. Billing Determinants'!$I$41*$D8, VLOOKUP(H$4,'4. Billing Determinants'!$B$19:$R$41,3,0)/'4. Billing Determinants'!$D$41*$D8))))),0) -> -61848.5077 | I8: =IFERROR(IF(I$4="",0,IF($E8="kWh",VLOOKUP(I$4,'4. Billing Determinants'!$B$19:$R$41,4,0)/'4. Billing Determinants'!$E$41*$D8,IF($E8="kW",VLOOKUP(I$4,'4. Billing Determinants'!$B$19:$R$41,5,0)/'4. Billing Determinants'!$F$41*$D8,IF($E8="Non-RPP kWh",VLOOKUP(I$4,'4. Billing Determinants'!$B$19:$R$41,6,0)/'4. Billing Determinants'!$G$41*$D8,IF($E8="Distribution Rev.",VLOOKUP(I$4,'4. Billing Determinants'!$B$19:$R$41,8,0)/'4. Billing Determinants'!$I$41*$D8, VLOOKUP(I$4,'4. Billing Determinants'!$B$19:$R$41,3,0)/'4. Billing Determinants'!$D$41*$D8))))),0) -> -39838.0984 | J8: =IFERROR(IF(J$4="",0,IF($E8="kWh",VLOOKUP(J$4,'4. Billing Determinants'!$B$19:$R$41,4,0)/'4. Billing Determinants'!$E$41*$D8,IF($E8="kW",VLOOKUP(J$4,'4. Billing Determinants'!$B$19:$R$41,5,0)/'4. Billing Determinants'!$F$41*$D8,IF($E8="Non-RPP kWh",VLOOKUP(J$4,'4. Billing Determinants'!$B$19:$R$41,6,0)/'4. Billing Determinants'!$G$41*$D8,IF($E8="Distribution Rev.",VLOOKUP(J$4,'4. Billing Determinants'!$B$19:$R$41,8,0)/'4. Billing Determinants'!$I$41*$D8, VLOOKUP(J$4,'4. Billing Determinants'!$B$19:$R$41,3,0)/'4. Billing Determinants'!$D$41*$D8))))),0) -> 0 | K8: =IFERROR(IF(K$4="",0,IF($E8="kWh",VLOOKUP(K$4,'4. Billing Determinants'!$B$19:$R$41,4,0)/'4. Billing Determinants'!$E$41*$D8,IF($E8="kW",VLOOKUP(K$4,'4. Billing Determinants'!$B$19:$R$41,5,0)/'4. Billing Determinants'!$F$41*$D8,IF($E8="Non-RPP kWh",VLOOKUP(K$4,'4. Billing Determinants'!$B$19:$R$41,6,0)/'4. Billing Determinants'!$G$41*$D8,IF($E8="Distribution Rev.",VLOOKUP(K$4,'4. Billing Determinants'!$B$19:$R$41,8,0)/'4. Billing Determinants'!$I$41*$D8, VLOOKUP(K$4,'4. Billing Determinants'!$B$19:$R$41,3,0)/'4. Billing Determinants'!$D$41*$D8))))),0) -> -1950.485867 | L8: =IFERROR(IF(L$4="",0,IF($E8="kWh",VLOOKUP(L$4,'4. Billing Determinants'!$B$19:$R$41,4,0)/'4. Billing Determinants'!$E$41*$D8,IF($E8="kW",VLOOKUP(L$4,'4. Billing Determinants'!$B$19:$R$41,5,0)/'4. Billing Determinants'!$F$41*$D8,IF($E8="Non-RPP kWh",VLOOKUP(L$4,'4. Billing Determinants'!$B$19:$R$41,6,0)/'4. Billing Determinants'!$G$41*$D8,IF($E8="Distribution Rev.",VLOOKUP(L$4,'4. Billing Determinants'!$B$19:$R$41,8,0)/'4. Billing Determinants'!$I$41*$D8, VLOOKUP(L$4,'4. Billing Determinants'!$B$19:$R$41,3,0)/'4. Billing Determinants'!$D$41*$D8))))),0) -> -25.41742662 | M8: =IFERROR(IF(M$4="",0,IF($E8="kWh",VLOOKUP(M$4,'4. Billing Determinants'!$B$19:$R$41,4,0)/'4. Billing Determinants'!$E$41*$D8,IF($E8="kW",VLOOKUP(M$4,'4. Billing Determinants'!$B$19:$R$41,5,0)/'4. Billing Determinants'!$F$41*$D8,IF($E8="Non-RPP kWh",VLOOKUP(M$4,'4. Billing Determinants'!$B$19:$R$41,6,0)/'4. Billing Determinants'!$G$41*$D8,IF($E8="Distribution Rev.",VLOOKUP(M$4,'4. Billing Determinants'!$B$19:$R$41,8,0)/'4. Billing Determinants'!$I$41*$D8, VLOOKUP(M$4,'4. Billing Determinants'!$B$19:$R$41,3,0)/'4. Billing Determinants'!$D$41*$D8))))),0) -> -505.3793783 | N8: =IFERROR(IF(N$4="",0,IF($E8="kWh",VLOOKUP(N$4,'4. Billing Determinants'!$B$19:$R$41,4,0)/'4. Billing Determinants'!$E$41*$D8,IF($E8="kW",VLOOKUP(N$4,'4. Billing Determinants'!$B$19:$R$41,5,0)/'4. Billing Determinants'!$F$41*$D8,IF($E8="Non-RPP kWh",VLOOKUP(N$4,'4. Billing Determinants'!$B$19:$R$41,6,0)/'4. Billing Determinants'!$G$41*$D8,IF($E8="Distribution Rev.",VLOOKUP(N$4,'4. Billing Determinants'!$B$19:$R$41,8,0)/'4. Billing Determinants'!$I$41*$D8, VLOOKUP(N$4,'4. Billing Determinants'!$B$19:$R$41,3,0)/'4. Billing Determinants'!$D$41*$D8))))),0) -> 0 | O8: =IFERROR(IF(O$4="",0,IF($E8="kWh",VLOOKUP(O$4,'4. Billing Determinants'!$B$19:$R$41,4,0)/'4. Billing Determinants'!$E$41*$D8,IF($E8="kW",VLOOKUP(O$4,'4. Billing Determinants'!$B$19:$R$41,5,0)/'4. Billing Determinants'!$F$41*$D8,IF($E8="Non-RPP kWh",VLOOKUP(O$4,'4. Billing Determinants'!$B$19:$R$41,6,0)/'4. Billing Determinants'!$G$41*$D8,IF($E8="Distribution Rev.",VLOOKUP(O$4,'4. Billing Determinants'!$B$19:$R$41,8,0)/'4. Billing Determinants'!$I$41*$D8, VLOOKUP(O$4,'4. Billing Determinants'!$B$19:$R$41,3,0)/'4. Billing Determinants'!$D$41*$D8))))),0) -> 0 | P8: =IFERROR(IF(P$4="",0,IF($E8="kWh",VLOOKUP(P$4,'4. Billing Determinants'!$B$19:$R$41,4,0)/'4. Billing Determinants'!$E$41*$D8,IF($E8="kW",VLOOKUP(P$4,'4. Billing Determinants'!$B$19:$R$41,5,0)/'4. Billing Determinants'!$F$41*$D8,IF($E8="Non-RPP kWh",VLOOKUP(P$4,'4. Billing Determinants'!$B$19:$R$41,6,0)/'4. Billing Determinants'!$G$41*$D8,IF($E8="Distribution Rev.",VLOOKUP(P$4,'4. Billing Determinants'!$B$19:$R$41,8,0)/'4. Billing Determinants'!$I$41*$D8, VLOOKUP(P$4,'4. Billing Determinants'!$B$19:$R$41,3,0)/'4. Billing Determinants'!$D$41*$D8))))),0) -> 0 | Q8: =IFERROR(IF(Q$4="",0,IF($E8="kWh",VLOOKUP(Q$4,'4. Billing Determinants'!$B$19:$R$41,4,0)/'4. Billing Determinants'!$E$41*$D8,IF($E8="kW",VLOOKUP(Q$4,'4. Billing Determinants'!$B$19:$R$41,5,0)/'4. Billing Determinants'!$F$41*$D8,IF($E8="Non-RPP kWh",VLOOKUP(Q$4,'4. Billing Determinants'!$B$19:$R$41,6,0)/'4. Billing Determinants'!$G$41*$D8,IF($E8="Distribution Rev.",VLOOKUP(Q$4,'4. Billing Determinants'!$B$19:$R$41,8,0)/'4. Billing Determinants'!$I$41*$D8, VLOOKUP(Q$4,'4. Billing Determinants'!$B$19:$R$41,3,0)/'4. Billing Determinants'!$D$41*$D8))))),0) -> 0 | R8: =IFERROR(IF(R$4="",0,IF($E8="kWh",VLOOKUP(R$4,'4. Billing Determinants'!$B$19:$R$41,4,0)/'4. Billing Determinants'!$E$41*$D8,IF($E8="kW",VLOOKUP(R$4,'4. Billing Determinants'!$B$19:$R$41,5,0)/'4. Billing Determinants'!$F$41*$D8,IF($E8="Non-RPP kWh",VLOOKUP(R$4,'4. Billing Determinants'!$B$19:$R$41,6,0)/'4. Billing Determinants'!$G$41*$D8,IF($E8="Distribution Rev.",VLOOKUP(R$4,'4. Billing Determinants'!$B$19:$R$41,8,0)/'4. Billing Determinants'!$I$41*$D8, VLOOKUP(R$4,'4. Billing Determinants'!$B$19:$R$41,3,0)/'4. Billing Determinants'!$D$41*$D8))))),0) -> 0 | S8: =IFERROR(IF(S$4="",0,IF($E8="kWh",VLOOKUP(S$4,'4. Billing Determinants'!$B$19:$R$41,4,0)/'4. Billing Determinants'!$E$41*$D8,IF($E8="kW",VLOOKUP(S$4,'4. Billing Determinants'!$B$19:$R$41,5,0)/'4. Billing Determinants'!$F$41*$D8,IF($E8="Non-RPP kWh",VLOOKUP(S$4,'4. Billing Determinants'!$B$19:$R$41,6,0)/'4. Billing Determinants'!$G$41*$D8,IF($E8="Distribution Rev.",VLOOKUP(S$4,'4. Billing Determinants'!$B$19:$R$41,8,0)/'4. Billing Determinants'!$I$41*$D8, VLOOKUP(S$4,'4. Billing Determinants'!$B$19:$R$41,3,0)/'4. Billing Determinants'!$D$41*$D8))))),0) -> 0 | T8: =IFERROR(IF(T$4="",0,IF($E8="kWh",VLOOKUP(T$4,'4. Billing Determinants'!$B$19:$R$41,4,0)/'4. Billing Determinants'!$E$41*$D8,IF($E8="kW",VLOOKUP(T$4,'4. Billing Determinants'!$B$19:$R$41,5,0)/'4. Billing Determinants'!$F$41*$D8,IF($E8="Non-RPP kWh",VLOOKUP(T$4,'4. Billing Determinants'!$B$19:$R$41,6,0)/'4. Billing Determinants'!$G$41*$D8,IF($E8="Distribution Rev.",VLOOKUP(T$4,'4. Billing Determinants'!$B$19:$R$41,8,0)/'4. Billing Determinants'!$I$41*$D8, VLOOKUP(T$4,'4. Billing Determinants'!$B$19:$R$41,3,0)/'4. Billing Determinants'!$D$41*$D8))))),0) -> 0 | U8: =IFERROR(IF(U$4="",0,IF($E8="kWh",VLOOKUP(U$4,'4. Billing Determinants'!$B$19:$R$41,4,0)/'4. Billing Determinants'!$E$41*$D8,IF($E8="kW",VLOOKUP(U$4,'4. Billing Determinants'!$B$19:$R$41,5,0)/'4. Billing Determinants'!$F$41*$D8,IF($E8="Non-RPP kWh",VLOOKUP(U$4,'4. Billing Determinants'!$B$19:$R$41,6,0)/'4. Billing Determinants'!$G$41*$D8,IF($E8="Distribution Rev.",VLOOKUP(U$4,'4. Billing Determinants'!$B$19:$R$41,8,0)/'4. Billing Determinants'!$I$41*$D8, VLOOKUP(U$4,'4. Billing Determinants'!$B$19:$R$41,3,0)/'4. Billing Determinants'!$D$41*$D8))))),0) -> 0 | V8: =IFERROR(IF(V$4="",0,IF($E8="kWh",VLOOKUP(V$4,'4. Billing Determinants'!$B$19:$R$41,4,0)/'4. Billing Determinants'!$E$41*$D8,IF($E8="kW",VLOOKUP(V$4,'4. Billing Determinants'!$B$19:$R$41,5,0)/'4. Billing Determinants'!$F$41*$D8,IF($E8="Non-RPP kWh",VLOOKUP(V$4,'4. Billing Determinants'!$B$19:$R$41,6,0)/'4. Billing Determinants'!$G$41*$D8,IF($E8="Distribution Rev.",VLOOKUP(V$4,'4. Billing Determinants'!$B$19:$R$41,8,0)/'4. Billing Determinants'!$I$41*$D8, VLOOKUP(V$4,'4. Billing Determinants'!$B$19:$R$41,3,0)/'4. Billing Determinants'!$D$41*$D8))))),0) -> 0 | W8: =IFERROR(IF(W$4="",0,IF($E8="kWh",VLOOKUP(W$4,'4. Billing Determinants'!$B$19:$R$41,4,0)/'4. Billing Determinants'!$E$41*$D8,IF($E8="kW",VLOOKUP(W$4,'4. Billing Determinants'!$B$19:$R$41,5,0)/'4. Billing Determinants'!$F$41*$D8,IF($E8="Non-RPP kWh",VLOOKUP(W$4,'4. Billing Determinants'!$B$19:$R$41,6,0)/'4. Billing Determinants'!$G$41*$D8,IF($E8="Distribution Rev.",VLOOKUP(W$4,'4. Billing Determinants'!$B$19:$R$41,8,0)/'4. Billing Determinants'!$I$41*$D8, VLOOKUP(W$4,'4. Billing Determinants'!$B$19:$R$41,3,0)/'4. Billing Determinants'!$D$41*$D8))))),0) -> 0 | X8: =IFERROR(IF(X$4="",0,IF($E8="kWh",VLOOKUP(X$4,'4. Billing Determinants'!$B$19:$R$41,4,0)/'4. Billing Determinants'!$E$41*$D8,IF($E8="kW",VLOOKUP(X$4,'4. Billing Determinants'!$B$19:$R$41,5,0)/'4. Billing Determinants'!$F$41*$D8,IF($E8="Non-RPP kWh",VLOOKUP(X$4,'4. Billing Determinants'!$B$19:$R$41,6,0)/'4. Billing Determinants'!$G$41*$D8,IF($E8="Distribution Rev.",VLOOKUP(X$4,'4. Billing Determinants'!$B$19:$R$41,8,0)/'4. Billing Determinants'!$I$41*$D8, VLOOKUP(X$4,'4. Billing Determinants'!$B$19:$R$41,3,0)/'4. Billing Determinants'!$D$41*$D8))))),0) -> 0 | Y8: =IFERROR(IF(Y$4="",0,IF($E8="kWh",VLOOKUP(Y$4,'4. Billing Determinants'!$B$19:$R$41,4,0)/'4. Billing Determinants'!$E$41*$D8,IF($E8="kW",VLOOKUP(Y$4,'4. Billing Determinants'!$B$19:$R$41,5,0)/'4. Billing Determinants'!$F$41*$D8,IF($E8="Non-RPP kWh",VLOOKUP(Y$4,'4. Billing Determinants'!$B$19:$R$41,6,0)/'4. Billing Determinants'!$G$41*$D8,IF($E8="Distribution Rev.",VLOOKUP(Y$4,'4. Billing Determinants'!$B$19:$R$41,8,0)/'4. Billing Determinants'!$I$41*$D8, VLOOKUP(Y$4,'4. Billing Determinants'!$B$19:$R$41,3,0)/'4. Billing Determinants'!$D$41*$D8))))),0) -> 0
A9: 6 | B9: RSVA - Retail Transmission Connection Charge | C9: 1586 | D9: =+'2. 2016 Continuity Schedule'!BT30 -> -227635.067 | E9: kWh | F9: =IFERROR(IF(F$4="",0,IF($E9="kWh",VLOOKUP(F$4,'4. Billing Determinants'!$B$19:$R$41,4,0)/'4. Billing Determinants'!$E$41*$D9,IF($E9="kW",VLOOKUP(F$4,'4. Billing Determinants'!$B$19:$R$41,5,0)/'4. Billing Determinants'!$F$41*$D9,IF($E9="Non-RPP kWh",VLOOKUP(F$4,'4. Billing Determinants'!$B$19:$R$41,6,0)/'4. Billing Determinants'!$G$41*$D9,IF($E9="Distribution Rev.",VLOOKUP(F$4,'4. Billing Determinants'!$B$19:$R$41,8,0)/'4. Billing Determinants'!$I$41*$D9, VLOOKUP(F$4,'4. Billing Determinants'!$B$19:$R$41,3,0)/'4. Billing Determinants'!$D$41*$D9))))),0) -> -83022.1843 | G9: =IFERROR(IF(G$4="",0,IF($E9="kWh",VLOOKUP(G$4,'4. Billing Determinants'!$B$19:$R$41,4,0)/'4. Billing Determinants'!$E$41*$D9,IF($E9="kW",VLOOKUP(G$4,'4. Billing Determinants'!$B$19:$R$41,5,0)/'4. Billing Determinants'!$F$41*$D9,IF($E9="Non-RPP kWh",VLOOKUP(G$4,'4. Billing Determinants'!$B$19:$R$41,6,0)/'4. Billing Determinants'!$G$41*$D9,IF($E9="Distribution Rev.",VLOOKUP(G$4,'4. Billing Determinants'!$B$19:$R$41,8,0)/'4. Billing Determinants'!$I$41*$D9, VLOOKUP(G$4,'4. Billing Determinants'!$B$19:$R$41,3,0)/'4. Billing Determinants'!$D$41*$D9))))),0) -> -35246.99851 | H9: =IFERROR(IF(H$4="",0,IF($E9="kWh",VLOOKUP(H$4,'4. Billing Determinants'!$B$19:$R$41,4,0)/'4. Billing Determinants'!$E$41*$D9,IF($E9="kW",VLOOKUP(H$4,'4. Billing Determinants'!$B$19:$R$41,5,0)/'4. Billing Determinants'!$F$41*$D9,IF($E9="Non-RPP kWh",VLOOKUP(H$4,'4. Billing Determinants'!$B$19:$R$41,6,0)/'4. Billing Determinants'!$G$41*$D9,IF($E9="Distribution Rev.",VLOOKUP(H$4,'4. Billing Determinants'!$B$19:$R$41,8,0)/'4. Billing Determinants'!$I$41*$D9, VLOOKUP(H$4,'4. Billing Determinants'!$B$19:$R$41,3,0)/'4. Billing Determinants'!$D$41*$D9))))),0) -> -64934.75878 | I9: =IFERROR(IF(I$4="",0,IF($E9="kWh",VLOOKUP(I$4,'4. Billing Determinants'!$B$19:$R$41,4,0)/'4. Billing Determinants'!$E$41*$D9,IF($E9="kW",VLOOKUP(I$4,'4. Billing Determinants'!$B$19:$R$41,5,0)/'4. Billing Determinants'!$F$41*$D9,IF($E9="Non-RPP kWh",VLOOKUP(I$4,'4. Billing Determinants'!$B$19:$R$41,6,0)/'4. Billing Determinants'!$G$41*$D9,IF($E9="Distribution Rev.",VLOOKUP(I$4,'4. Billing Determinants'!$B$19:$R$41,8,0)/'4. Billing Determinants'!$I$41*$D9, VLOOKUP(I$4,'4. Billing Determinants'!$B$19:$R$41,3,0)/'4. Billing Determinants'!$D$41*$D9))))),0) -> -41826.0263 | J9: =IFERROR(IF(J$4="",0,IF($E9="kWh",VLOOKUP(J$4,'4. Billing Determinants'!$B$19:$R$41,4,0)/'4. Billing Determinants'!$E$41*$D9,IF($E9="kW",VLOOKUP(J$4,'4. Billing Determinants'!$B$19:$R$41,5,0)/'4. Billing Determinants'!$F$41*$D9,IF($E9="Non-RPP kWh",VLOOKUP(J$4,'4. Billing Determinants'!$B$19:$R$41,6,0)/'4. Billing Determinants'!$G$41*$D9,IF($E9="Distribution Rev.",VLOOKUP(J$4,'4. Billing Determinants'!$B$19:$R$41,8,0)/'4. Billing Determinants'!$I$41*$D9, VLOOKUP(J$4,'4. Billing Determinants'!$B$19:$R$41,3,0)/'4. Billing Determinants'!$D$41*$D9))))),0) -> 0 | K9: =IFERROR(IF(K$4="",0,IF($E9="kWh",VLOOKUP(K$4,'4. Billing Determinants'!$B$19:$R$41,4,0)/'4. Billing Determinants'!$E$41*$D9,IF($E9="kW",VLOOKUP(K$4,'4. Billing Determinants'!$B$19:$R$41,5,0)/'4. Billing Determinants'!$F$41*$D9,IF($E9="Non-RPP kWh",VLOOKUP(K$4,'4. Billing Determinants'!$B$19:$R$41,6,0)/'4. Billing Determinants'!$G$41*$D9,IF($E9="Distribution Rev.",VLOOKUP(K$4,'4. Billing Determinants'!$B$19:$R$41,8,0)/'4. Billing Determinants'!$I$41*$D9, VLOOKUP(K$4,'4. Billing Determinants'!$B$19:$R$41,3,0)/'4. Billing Determinants'!$D$41*$D9))))),0) -> -2047.815445 | L9: =IFERROR(IF(L$4="",0,IF($E9="kWh",VLOOKUP(L$4,'4. Billing Determinants'!$B$19:$R$41,4,0)/'4. Billing Determinants'!$E$41*$D9,IF($E9="kW",VLOOKUP(L$4,'4. Billing Determinants'!$B$19:$R$41,5,0)/'4. Billing Determinants'!$F$41*$D9,IF($E9="Non-RPP kWh",VLOOKUP(L$4,'4. Billing Determinants'!$B$19:$R$41,6,0)/'4. Billing Determinants'!$G$41*$D9,IF($E9="Distribution Rev.",VLOOKUP(L$4,'4. Billing Determinants'!$B$19:$R$41,8,0)/'4. Billing Determinants'!$I$41*$D9, VLOOKUP(L$4,'4. Billing Determinants'!$B$19:$R$41,3,0)/'4. Billing Determinants'!$D$41*$D9))))),0) -> -26.68576054 | M9: =IFERROR(IF(M$4="",0,IF($E9="kWh",VLOOKUP(M$4,'4. Billing Determinants'!$B$19:$R$41,4,0)/'4. Billing Determinants'!$E$41*$D9,IF($E9="kW",VLOOKUP(M$4,'4. Billing Determinants'!$B$19:$R$41,5,0)/'4. Billing Determinants'!$F$41*$D9,IF($E9="Non-RPP kWh",VLOOKUP(M$4,'4. Billing Determinants'!$B$19:$R$41,6,0)/'4. Billing Determinants'!$G$41*$D9,IF($E9="Distribution Rev.",VLOOKUP(M$4,'4. Billing Determinants'!$B$19:$R$41,8,0)/'4. Billing Determinants'!$I$41*$D9, VLOOKUP(M$4,'4. Billing Determinants'!$B$19:$R$41,3,0)/'4. Billing Determinants'!$D$41*$D9))))),0) -> -530.5978955 | N9: =IFERROR(IF(N$4="",0,IF($E9="kWh",VLOOKUP(N$4,'4. Billing Determinants'!$B$19:$R$41,4,0)/'4. Billing Determinants'!$E$41*$D9,IF($E9="kW",VLOOKUP(N$4,'4. Billing Determinants'!$B$19:$R$41,5,0)/'4. Billing Determinants'!$F$41*$D9,IF($E9="Non-RPP kWh",VLOOKUP(N$4,'4. Billing Determinants'!$B$19:$R$41,6,0)/'4. Billing Determinants'!$G$41*$D9,IF($E9="Distribution Rev.",VLOOKUP(N$4,'4. Billing Determinants'!$B$19:$R$41,8,0)/'4. Billing Determinants'!$I$41*$D9, VLOOKUP(N$4,'4. Billing Determinants'!$B$19:$R$41,3,0)/'4. Billing Determinants'!$D$41*$D9))))),0) -> 0 | O9: =IFERROR(IF(O$4="",0,IF($E9="kWh",VLOOKUP(O$4,'4. Billing Determinants'!$B$19:$R$41,4,0)/'4. Billing Determinants'!$E$41*$D9,IF($E9="kW",VLOOKUP(O$4,'4. Billing Determinants'!$B$19:$R$41,5,0)/'4. Billing Determinants'!$F$41*$D9,IF($E9="Non-RPP kWh",VLOOKUP(O$4,'4. Billing Determinants'!$B$19:$R$41,6,0)/'4. Billing Determinants'!$G$41*$D9,IF($E9="Distribution Rev.",VLOOKUP(O$4,'4. Billing Determinants'!$B$19:$R$41,8,0)/'4. Billing Determinants'!$I$41*$D9, VLOOKUP(O$4,'4. Billing Determinants'!$B$19:$R$41,3,0)/'4. Billing Determinants'!$D$41*$D9))))),0) -> 0 | P9: =IFERROR(IF(P$4="",0,IF($E9="kWh",VLOOKUP(P$4,'4. Billing Determinants'!$B$19:$R$41,4,0)/'4. Billing Determinants'!$E$41*$D9,IF($E9="kW",VLOOKUP(P$4,'4. Billing Determinants'!$B$19:$R$41,5,0)/'4. Billing Determinants'!$F$41*$D9,IF($E9="Non-RPP kWh",VLOOKUP(P$4,'4. Billing Determinants'!$B$19:$R$41,6,0)/'4. Billing Determinants'!$G$41*$D9,IF($E9="Distribution Rev.",VLOOKUP(P$4,'4. Billing Determinants'!$B$19:$R$41,8,0)/'4. Billing Determinants'!$I$41*$D9, VLOOKUP(P$4,'4. Billing Determinants'!$B$19:$R$41,3,0)/'4. Billing Determinants'!$D$41*$D9))))),0) -> 0 | Q9: =IFERROR(IF(Q$4="",0,IF($E9="kWh",VLOOKUP(Q$4,'4. Billing Determinants'!$B$19:$R$41,4,0)/'4. Billing Determinants'!$E$41*$D9,IF($E9="kW",VLOOKUP(Q$4,'4. Billing Determinants'!$B$19:$R$41,5,0)/'4. Billing Determinants'!$F$41*$D9,IF($E9="Non-RPP kWh",VLOOKUP(Q$4,'4. Billing Determinants'!$B$19:$R$41,6,0)/'4. Billing Determinants'!$G$41*$D9,IF($E9="Distribution Rev.",VLOOKUP(Q$4,'4. Billing Determinants'!$B$19:$R$41,8,0)/'4. Billing Determinants'!$I$41*$D9, VLOOKUP(Q$4,'4. Billing Determinants'!$B$19:$R$41,3,0)/'4. Billing Determinants'!$D$41*$D9))))),0) -> 0 | R9: =IFERROR(IF(R$4="",0,IF($E9="kWh",VLOOKUP(R$4,'4. Billing Determinants'!$B$19:$R$41,4,0)/'4. Billing Determinants'!$E$41*$D9,IF($E9="kW",VLOOKUP(R$4,'4. Billing Determinants'!$B$19:$R$41,5,0)/'4. Billing Determinants'!$F$41*$D9,IF($E9="Non-RPP kWh",VLOOKUP(R$4,'4. Billing Determinants'!$B$19:$R$41,6,0)/'4. Billing Determinants'!$G$41*$D9,IF($E9="Distribution Rev.",VLOOKUP(R$4,'4. Billing Determinants'!$B$19:$R$41,8,0)/'4. Billing Determinants'!$I$41*$D9, VLOOKUP(R$4,'4. Billing Determinants'!$B$19:$R$41,3,0)/'4. Billing Determinants'!$D$41*$D9))))),0) -> 0 | S9: =IFERROR(IF(S$4="",0,IF($E9="kWh",VLOOKUP(S$4,'4. Billing Determinants'!$B$19:$R$41,4,0)/'4. Billing Determinants'!$E$41*$D9,IF($E9="kW",VLOOKUP(S$4,'4. Billing Determinants'!$B$19:$R$41,5,0)/'4. Billing Determinants'!$F$41*$D9,IF($E9="Non-RPP kWh",VLOOKUP(S$4,'4. Billing Determinants'!$B$19:$R$41,6,0)/'4. Billing Determinants'!$G$41*$D9,IF($E9="Distribution Rev.",VLOOKUP(S$4,'4. Billing Determinants'!$B$19:$R$41,8,0)/'4. Billing Determinants'!$I$41*$D9, VLOOKUP(S$4,'4. Billing Determinants'!$B$19:$R$41,3,0)/'4. Billing Determinants'!$D$41*$D9))))),0) -> 0 | T9: =IFERROR(IF(T$4="",0,IF($E9="kWh",VLOOKUP(T$4,'4. Billing Determinants'!$B$19:$R$41,4,0)/'4. Billing Determinants'!$E$41*$D9,IF($E9="kW",VLOOKUP(T$4,'4. Billing Determinants'!$B$19:$R$41,5,0)/'4. Billing Determinants'!$F$41*$D9,IF($E9="Non-RPP kWh",VLOOKUP(T$4,'4. Billing Determinants'!$B$19:$R$41,6,0)/'4. Billing Determinants'!$G$41*$D9,IF($E9="Distribution Rev.",VLOOKUP(T$4,'4. Billing Determinants'!$B$19:$R$41,8,0)/'4. Billing Determinants'!$I$41*$D9, VLOOKUP(T$4,'4. Billing Determinants'!$B$19:$R$41,3,0)/'4. Billing Determinants'!$D$41*$D9))))),0) -> 0 | U9: =IFERROR(IF(U$4="",0,IF($E9="kWh",VLOOKUP(U$4,'4. Billing Determinants'!$B$19:$R$41,4,0)/'4. Billing Determinants'!$E$41*$D9,IF($E9="kW",VLOOKUP(U$4,'4. Billing Determinants'!$B$19:$R$41,5,0)/'4. Billing Determinants'!$F$41*$D9,IF($E9="Non-RPP kWh",VLOOKUP(U$4,'4. Billing Determinants'!$B$19:$R$41,6,0)/'4. Billing Determinants'!$G$41*$D9,IF($E9="Distribution Rev.",VLOOKUP(U$4,'4. Billing Determinants'!$B$19:$R$41,8,0)/'4. Billing Determinants'!$I$41*$D9, VLOOKUP(U$4,'4. Billing Determinants'!$B$19:$R$41,3,0)/'4. Billing Determinants'!$D$41*$D9))))),0) -> 0 | V9: =IFERROR(IF(V$4="",0,IF($E9="kWh",VLOOKUP(V$4,'4. Billing Determinants'!$B$19:$R$41,4,0)/'4. Billing Determinants'!$E$41*$D9,IF($E9="kW",VLOOKUP(V$4,'4. Billing Determinants'!$B$19:$R$41,5,0)/'4. Billing Determinants'!$F$41*$D9,IF($E9="Non-RPP kWh",VLOOKUP(V$4,'4. Billing Determinants'!$B$19:$R$41,6,0)/'4. Billing Determinants'!$G$41*$D9,IF($E9="Distribution Rev.",VLOOKUP(V$4,'4. Billing Determinants'!$B$19:$R$41,8,0)/'4. Billing Determinants'!$I$41*$D9, VLOOKUP(V$4,'4. Billing Determinants'!$B$19:$R$41,3,0)/'4. Billing Determinants'!$D$41*$D9))))),0) -> 0 | W9: =IFERROR(IF(W$4="",0,IF($E9="kWh",VLOOKUP(W$4,'4. Billing Determinants'!$B$19:$R$41,4,0)/'4. Billing Determinants'!$E$41*$D9,IF($E9="kW",VLOOKUP(W$4,'4. Billing Determinants'!$B$19:$R$41,5,0)/'4. Billing Determinants'!$F$41*$D9,IF($E9="Non-RPP kWh",VLOOKUP(W$4,'4. Billing Determinants'!$B$19:$R$41,6,0)/'4. Billing Determinants'!$G$41*$D9,IF($E9="Distribution Rev.",VLOOKUP(W$4,'4. Billing Determinants'!$B$19:$R$41,8,0)/'4. Billing Determinants'!$I$41*$D9, VLOOKUP(W$4,'4. Billing Determinants'!$B$19:$R$41,3,0)/'4. Billing Determinants'!$D$41*$D9))))),0) -> 0 | X9: =IFERROR(IF(X$4="",0,IF($E9="kWh",VLOOKUP(X$4,'4. Billing Determinants'!$B$19:$R$41,4,0)/'4. Billing Determinants'!$E$41*$D9,IF($E9="kW",VLOOKUP(X$4,'4. Billing Determinants'!$B$19:$R$41,5,0)/'4. Billing Determinants'!$F$41*$D9,IF($E9="Non-RPP kWh",VLOOKUP(X$4,'4. Billing Determinants'!$B$19:$R$41,6,0)/'4. Billing Determinants'!$G$41*$D9,IF($E9="Distribution Rev.",VLOOKUP(X$4,'4. Billing Determinants'!$B$19:$R$41,8,0)/'4. Billing Determinants'!$I$41*$D9, VLOOKUP(X$4,'4. Billing Determinants'!$B$19:$R$41,3,0)/'4. Billing Determinants'!$D$41*$D9))))),0) -> 0 | Y9: =IFERROR(IF(Y$4="",0,IF($E9="kWh",VLOOKUP(Y$4,'4. Billing Determinants'!$B$19:$R$41,4,0)/'4. Billing Determinants'!$E$41*$D9,IF($E9="kW",VLOOKUP(Y$4,'4. Billing Determinants'!$B$19:$R$41,5,0)/'4. Billing Determinants'!$F$41*$D9,IF($E9="Non-RPP kWh",VLOOKUP(Y$4,'4. Billing Determinants'!$B$19:$R$41,6,0)/'4. Billing Determinants'!$G$41*$D9,IF($E9="Distribution Rev.",VLOOKUP(Y$4,'4. Billing Determinants'!$B$19:$R$41,8,0)/'4. Billing Determinants'!$I$41*$D9, VLOOKUP(Y$4,'4. Billing Determinants'!$B$19:$R$41,3,0)/'4. Billing Determinants'!$D$41*$D9))))),0) -> 0
A10: 7 | B10: RSVA - Power (excluding Global Adjustment) | C10: 1588 | D10: =+'2. 2016 Continuity Schedule'!BT31 -> 105975.9523 | E10: kWh | F10: =IFERROR(IF(F$4="",0,IF($E10="kWh",VLOOKUP(F$4,'4. Billing Determinants'!$B$19:$R$41,11,0)/'4. Billing Determinants'!$L$41*$D10,IF($E10="kW",VLOOKUP(F$4,'4. Billing Determinants'!$B$19:$R$41,12,0)/'4. Billing Determinants'!$M$41*$D10,))),0) -> 38651.14089 | G10: =IFERROR(IF(G$4="",0,IF($E10="kWh",VLOOKUP(G$4,'4. Billing Determinants'!$B$19:$R$41,11,0)/'4. Billing Determinants'!$L$41*$D10,IF($E10="kW",VLOOKUP(G$4,'4. Billing Determinants'!$B$19:$R$41,12,0)/'4. Billing Determinants'!$M$41*$D10,))),0) -> 16409.30935 | H10: =IFERROR(IF(H$4="",0,IF($E10="kWh",VLOOKUP(H$4,'4. Billing Determinants'!$B$19:$R$41,11,0)/'4. Billing Determinants'!$L$41*$D10,IF($E10="kW",VLOOKUP(H$4,'4. Billing Determinants'!$B$19:$R$41,12,0)/'4. Billing Determinants'!$M$41*$D10,))),0) -> 30230.50443 | I10: =IFERROR(IF(I$4="",0,IF($E10="kWh",VLOOKUP(I$4,'4. Billing Determinants'!$B$19:$R$41,11,0)/'4. Billing Determinants'!$L$41*$D10,IF($E10="kW",VLOOKUP(I$4,'4. Billing Determinants'!$B$19:$R$41,12,0)/'4. Billing Determinants'!$M$41*$D10,))),0) -> 19472.18866 | J10: =IFERROR(IF(J$4="",0,IF($E10="kWh",VLOOKUP(J$4,'4. Billing Determinants'!$B$19:$R$41,11,0)/'4. Billing Determinants'!$L$41*$D10,IF($E10="kW",VLOOKUP(J$4,'4. Billing Determinants'!$B$19:$R$41,12,0)/'4. Billing Determinants'!$M$41*$D10,))),0) -> 0 | K10: =IFERROR(IF(K$4="",0,IF($E10="kWh",VLOOKUP(K$4,'4. Billing Determinants'!$B$19:$R$41,11,0)/'4. Billing Determinants'!$L$41*$D10,IF($E10="kW",VLOOKUP(K$4,'4. Billing Determinants'!$B$19:$R$41,12,0)/'4. Billing Determinants'!$M$41*$D10,))),0) -> 953.3645006 | L10: =IFERROR(IF(L$4="",0,IF($E10="kWh",VLOOKUP(L$4,'4. Billing Determinants'!$B$19:$R$41,11,0)/'4. Billing Determinants'!$L$41*$D10,IF($E10="kW",VLOOKUP(L$4,'4. Billing Determinants'!$B$19:$R$41,12,0)/'4. Billing Determinants'!$M$41*$D10,))),0) -> 12.42360821 | M10: =IFERROR(IF(M$4="",0,IF($E10="kWh",VLOOKUP(M$4,'4. Billing Determinants'!$B$19:$R$41,11,0)/'4. Billing Determinants'!$L$41*$D10,IF($E10="kW",VLOOKUP(M$4,'4. Billing Determinants'!$B$19:$R$41,12,0)/'4. Billing Determinants'!$M$41*$D10,))),0) -> 247.0208919 | N10: =IFERROR(IF(N$4="",0,IF($E10="kWh",VLOOKUP(N$4,'4. Billing Determinants'!$B$19:$R$41,11,0)/'4. Billing Determinants'!$L$41*$D10,IF($E10="kW",VLOOKUP(N$4,'4. Billing Determinants'!$B$19:$R$41,12,0)/'4. Billing Determinants'!$M$41*$D10,))),0) -> 0 | O10: =IFERROR(IF(O$4="",0,IF($E10="kWh",VLOOKUP(O$4,'4. Billing Determinants'!$B$19:$R$41,11,0)/'4. Billing Determinants'!$L$41*$D10,IF($E10="kW",VLOOKUP(O$4,'4. Billing Determinants'!$B$19:$R$41,12,0)/'4. Billing Determinants'!$M$41*$D10,))),0) -> 0 | P10: =IFERROR(IF(P$4="",0,IF($E10="kWh",VLOOKUP(P$4,'4. Billing Determinants'!$B$19:$R$41,11,0)/'4. Billing Determinants'!$L$41*$D10,IF($E10="kW",VLOOKUP(P$4,'4. Billing Determinants'!$B$19:$R$41,12,0)/'4. Billing Determinants'!$M$41*$D10,))),0) -> 0 | Q10: =IFERROR(IF(Q$4="",0,IF($E10="kWh",VLOOKUP(Q$4,'4. Billing Determinants'!$B$19:$R$41,11,0)/'4. Billing Determinants'!$L$41*$D10,IF($E10="kW",VLOOKUP(Q$4,'4. Billing Determinants'!$B$19:$R$41,12,0)/'4. Billing Determinants'!$M$41*$D10,))),0) -> 0 | R10: =IFERROR(IF(R$4="",0,IF($E10="kWh",VLOOKUP(R$4,'4. Billing Determinants'!$B$19:$R$41,11,0)/'4. Billing Determinants'!$L$41*$D10,IF($E10="kW",VLOOKUP(R$4,'4. Billing Determinants'!$B$19:$R$41,12,0)/'4. Billing Determinants'!$M$41*$D10,))),0) -> 0 | S10: =IFERROR(IF(S$4="",0,IF($E10="kWh",VLOOKUP(S$4,'4. Billing Determinants'!$B$19:$R$41,11,0)/'4. Billing Determinants'!$L$41*$D10,IF($E10="kW",VLOOKUP(S$4,'4. Billing Determinants'!$B$19:$R$41,12,0)/'4. Billing Determinants'!$M$41*$D10,))),0) -> 0 | T10: =IFERROR(IF(T$4="",0,IF($E10="kWh",VLOOKUP(T$4,'4. Billing Determinants'!$B$19:$R$41,11,0)/'4. Billing Determinants'!$L$41*$D10,IF($E10="kW",VLOOKUP(T$4,'4. Billing Determinants'!$B$19:$R$41,12,0)/'4. Billing Determinants'!$M$41*$D10,))),0) -> 0 | U10: =IFERROR(IF(U$4="",0,IF($E10="kWh",VLOOKUP(U$4,'4. Billing Determinants'!$B$19:$R$41,11,0)/'4. Billing Determinants'!$L$41*$D10,IF($E10="kW",VLOOKUP(U$4,'4. Billing Determinants'!$B$19:$R$41,12,0)/'4. Billing Determinants'!$M$41*$D10,))),0) -> 0 | V10: =IFERROR(IF(V$4="",0,IF($E10="kWh",VLOOKUP(V$4,'4. Billing Determinants'!$B$19:$R$41,11,0)/'4. Billing Determinants'!$L$41*$D10,IF($E10="kW",VLOOKUP(V$4,'4. Billing Determinants'!$B$19:$R$41,12,0)/'4. Billing Determinants'!$M$41*$D10,))),0) -> 0 | W10: =IFERROR(IF(W$4="",0,IF($E10="kWh",VLOOKUP(W$4,'4. Billing Determinants'!$B$19:$R$41,11,0)/'4. Billing Determinants'!$L$41*$D10,IF($E10="kW",VLOOKUP(W$4,'4. Billing Determinants'!$B$19:$R$41,12,0)/'4. Billing Determinants'!$M$41*$D10,))),0) -> 0 | X10: =IFERROR(IF(X$4="",0,IF($E10="kWh",VLOOKUP(X$4,'4. Billing Determinants'!$B$19:$R$41,11,0)/'4. Billing Determinants'!$L$41*$D10,IF($E10="kW",VLOOKUP(X$4,'4. Billing Determinants'!$B$19:$R$41,12,0)/'4. Billing Determinants'!$M$41*$D10,))),0) -> 0 | Y10: =IFERROR(IF(Y$4="",0,IF($E10="kWh",VLOOKUP(Y$4,'4. Billing Determinants'!$B$19:$R$41,11,0)/'4. Billing Determinants'!$L$41*$D10,IF($E10="kW",VLOOKUP(Y$4,'4. Billing Determinants'!$B$19:$R$41,12,0)/'4. Billing Determinants'!$M$41*$D10,))),0) -> 0
A11: 8 | B11: RSVA - Global Adjustment | C11: 1589 | D11: =+'2. 2016 Continuity Schedule'!BT32 -> 932635.2875 | E11: Non-RPP kWh | F11: =IFERROR(IF(F$4="",0,IF($E11="kWh",VLOOKUP(F$4,'4. Billing Determinants'!$B$19:$R$41,4,0)/'4. Billing Determinants'!$E$41*$D11,IF($E11="kW",VLOOKUP(F$4,'4. Billing Determinants'!$B$19:$R$41,5,0)/'4. Billing Determinants'!$F$41*$D11,IF($E11="Non-RPP kWh",VLOOKUP(F$4,'4. Billing Determinants'!$B$19:$T$41,18,0)/'4. Billing Determinants'!$S$41*$D11,IF($E11="Distribution Rev.",VLOOKUP(F$4,'4. Billing Determinants'!$B$19:$R$41,8,0)/'4. Billing Determinants'!$I$41*$D11, VLOOKUP(F$4,'4. Billing Determinants'!$B$19:$R$41,3,0)/'4. Billing Determinants'!$D$41*$D11))))),0) -> 27379.02446 | G11: =IFERROR(IF(G$4="",0,IF($E11="kWh",VLOOKUP(G$4,'4. Billing Determinants'!$B$19:$R$41,4,0)/'4. Billing Determinants'!$E$41*$D11,IF($E11="kW",VLOOKUP(G$4,'4. Billing Determinants'!$B$19:$R$41,5,0)/'4. Billing Determinants'!$F$41*$D11,IF($E11="Non-RPP kWh",VLOOKUP(G$4,'4. Billing Determinants'!$B$19:$T$41,18,0)/'4. Billing Determinants'!$S$41*$D11,IF($E11="Distribution Rev.",VLOOKUP(G$4,'4. Billing Determinants'!$B$19:$R$41,8,0)/'4. Billing Determinants'!$I$41*$D11, VLOOKUP(G$4,'4. Billing Determinants'!$B$19:$R$41,3,0)/'4. Billing Determinants'!$D$41*$D11))))),0) -> 53972.48221 | H11: =IFERROR(IF(H$4="",0,IF($E11="kWh",VLOOKUP(H$4,'4. Billing Determinants'!$B$19:$R$41,4,0)/'4. Billing Determinants'!$E$41*$D11,IF($E11="kW",VLOOKUP(H$4,'4. Billing Determinants'!$B$19:$R$41,5,0)/'4. Billing Determinants'!$F$41*$D11,IF($E11="Non-RPP kWh",VLOOKUP(H$4,'4. Billing Determinants'!$B$19:$T$41,18,0)/'4. Billing Determinants'!$S$41*$D11,IF($E11="Distribution Rev.",VLOOKUP(H$4,'4. Billing Determinants'!$B$19:$R$41,8,0)/'4. Billing Determinants'!$I$41*$D11, VLOOKUP(H$4,'4. Billing Determinants'!$B$19:$R$41,3,0)/'4. Billing Determinants'!$D$41*$D11))))),0) -> 518711.6607 | I11: =IFERROR(IF(I$4="",0,IF($E11="kWh",VLOOKUP(I$4,'4. Billing Determinants'!$B$19:$R$41,4,0)/'4. Billing Determinants'!$E$41*$D11,IF($E11="kW",VLOOKUP(I$4,'4. Billing Determinants'!$B$19:$R$41,5,0)/'4. Billing Determinants'!$F$41*$D11,IF($E11="Non-RPP kWh",VLOOKUP(I$4,'4. Billing Determinants'!$B$19:$T$41,18,0)/'4. Billing Determinants'!$S$41*$D11,IF($E11="Distribution Rev.",VLOOKUP(I$4,'4. Billing Determinants'!$B$19:$R$41,8,0)/'4. Billing Determinants'!$I$41*$D11, VLOOKUP(I$4,'4. Billing Determinants'!$B$19:$R$41,3,0)/'4. Billing Determinants'!$D$41*$D11))))),0) -> 312650.4613 | J11: =IFERROR(IF(J$4="",0,IF($E11="kWh",VLOOKUP(J$4,'4. Billing Determinants'!$B$19:$R$41,4,0)/'4. Billing Determinants'!$E$41*$D11,IF($E11="kW",VLOOKUP(J$4,'4. Billing Determinants'!$B$19:$R$41,5,0)/'4. Billing Determinants'!$F$41*$D11,IF($E11="Non-RPP kWh",VLOOKUP(J$4,'4. Billing Determinants'!$B$19:$T$41,18,0)/'4. Billing Determinants'!$S$41*$D11,IF($E11="Distribution Rev.",VLOOKUP(J$4,'4. Billing Determinants'!$B$19:$R$41,8,0)/'4. Billing Determinants'!$I$41*$D11, VLOOKUP(J$4,'4. Billing Determinants'!$B$19:$R$41,3,0)/'4. Billing Determinants'!$D$41*$D11))))),0) -> 0 | K11: =IFERROR(IF(K$4="",0,IF($E11="kWh",VLOOKUP(K$4,'4. Billing Determinants'!$B$19:$R$41,4,0)/'4. Billing Determinants'!$E$41*$D11,IF($E11="kW",VLOOKUP(K$4,'4. Billing Determinants'!$B$19:$R$41,5,0)/'4. Billing Determinants'!$F$41*$D11,IF($E11="Non-RPP kWh",VLOOKUP(K$4,'4. Billing Determinants'!$B$19:$T$41,18,0)/'4. Billing Determinants'!$S$41*$D11,IF($E11="Distribution Rev.",VLOOKUP(K$4,'4. Billing Determinants'!$B$19:$R$41,8,0)/'4. Billing Determinants'!$I$41*$D11, VLOOKUP(K$4,'4. Billing Determinants'!$B$19:$R$41,3,0)/'4. Billing Determinants'!$D$41*$D11))))),0) -> 19022.22054 | L11: =IFERROR(IF(L$4="",0,IF($E11="kWh",VLOOKUP(L$4,'4. Billing Determinants'!$B$19:$R$41,4,0)/'4. Billing Determinants'!$E$41*$D11,IF($E11="kW",VLOOKUP(L$4,'4. Billing Determinants'!$B$19:$R$41,5,0)/'4. Billing Determinants'!$F$41*$D11,IF($E11="Non-RPP kWh",VLOOKUP(L$4,'4. Billing Determinants'!$B$19:$T$41,18,0)/'4. Billing Determinants'!$S$41*$D11,IF($E11="Distribution Rev.",VLOOKUP(L$4,'4. Billing Determinants'!$B$19:$R$41,8,0)/'4. Billing Determinants'!$I$41*$D11, VLOOKUP(L$4,'4. Billing Determinants'!$B$19:$R$41,3,0)/'4. Billing Determinants'!$D$41*$D11))))),0) -> 0 | M11: =IFERROR(IF(M$4="",0,IF($E11="kWh",VLOOKUP(M$4,'4. Billing Determinants'!$B$19:$R$41,4,0)/'4. Billing Determinants'!$E$41*$D11,IF($E11="kW",VLOOKUP(M$4,'4. Billing Determinants'!$B$19:$R$41,5,0)/'4. Billing Determinants'!$F$41*$D11,IF($E11="Non-RPP kWh",VLOOKUP(M$4,'4. Billing Determinants'!$B$19:$T$41,18,0)/'4. Billing Determinants'!$S$41*$D11,IF($E11="Distribution Rev.",VLOOKUP(M$4,'4. Billing Determinants'!$B$19:$R$41,8,0)/'4. Billing Determinants'!$I$41*$D11, VLOOKUP(M$4,'4. Billing Determinants'!$B$19:$R$41,3,0)/'4. Billing Determinants'!$D$41*$D11))))),0) -> 899.4383027 | N11: =IFERROR(IF(N$4="",0,IF($E11="kWh",VLOOKUP(N$4,'4. Billing Determinants'!$B$19:$R$41,4,0)/'4. Billing Determinants'!$E$41*$D11,IF($E11="kW",VLOOKUP(N$4,'4. Billing Determinants'!$B$19:$R$41,5,0)/'4. Billing Determinants'!$F$41*$D11,IF($E11="Non-RPP kWh",VLOOKUP(N$4,'4. Billing Determinants'!$B$19:$T$41,18,0)/'4. Billing Determinants'!$S$41*$D11,IF($E11="Distribution Rev.",VLOOKUP(N$4,'4. Billing Determinants'!$B$19:$R$41,8,0)/'4. Billing Determinants'!$I$41*$D11, VLOOKUP(N$4,'4. Billing Determinants'!$B$19:$R$41,3,0)/'4. Billing Determinants'!$D$41*$D11))))),0) -> 0 | O11: =IFERROR(IF(O$4="",0,IF($E11="kWh",VLOOKUP(O$4,'4. Billing Determinants'!$B$19:$R$41,4,0)/'4. Billing Determinants'!$E$41*$D11,IF($E11="kW",VLOOKUP(O$4,'4. Billing Determinants'!$B$19:$R$41,5,0)/'4. Billing Determinants'!$F$41*$D11,IF($E11="Non-RPP kWh",VLOOKUP(O$4,'4. Billing Determinants'!$B$19:$T$41,18,0)/'4. Billing Determinants'!$S$41*$D11,IF($E11="Distribution Rev.",VLOOKUP(O$4,'4. Billing Determinants'!$B$19:$R$41,8,0)/'4. Billing Determinants'!$I$41*$D11, VLOOKUP(O$4,'4. Billing Determinants'!$B$19:$R$41,3,0)/'4. Billing Determinants'!$D$41*$D11))))),0) -> 0 | P11: =IFERROR(IF(P$4="",0,IF($E11="kWh",VLOOKUP(P$4,'4. Billing Determinants'!$B$19:$R$41,4,0)/'4. Billing Determinants'!$E$41*$D11,IF($E11="kW",VLOOKUP(P$4,'4. Billing Determinants'!$B$19:$R$41,5,0)/'4. Billing Determinants'!$F$41*$D11,IF($E11="Non-RPP kWh",VLOOKUP(P$4,'4. Billing Determinants'!$B$19:$T$41,18,0)/'4. Billing Determinants'!$S$41*$D11,IF($E11="Distribution Rev.",VLOOKUP(P$4,'4. Billing Determinants'!$B$19:$R$41,8,0)/'4. Billing Determinants'!$I$41*$D11, VLOOKUP(P$4,'4. Billing Determinants'!$B$19:$R$41,3,0)/'4. Billing Determinants'!$D$41*$D11))))),0) -> 0 | Q11: =IFERROR(IF(Q$4="",0,IF($E11="kWh",VLOOKUP(Q$4,'4. Billing Determinants'!$B$19:$R$41,4,0)/'4. Billing Determinants'!$E$41*$D11,IF($E11="kW",VLOOKUP(Q$4,'4. Billing Determinants'!$B$19:$R$41,5,0)/'4. Billing Determinants'!$F$41*$D11,IF($E11="Non-RPP kWh",VLOOKUP(Q$4,'4. Billing Determinants'!$B$19:$T$41,18,0)/'4. Billing Determinants'!$S$41*$D11,IF($E11="Distribution Rev.",VLOOKUP(Q$4,'4. Billing Determinants'!$B$19:$R$41,8,0)/'4. Billing Determinants'!$I$41*$D11, VLOOKUP(Q$4,'4. Billing Determinants'!$B$19:$R$41,3,0)/'4. Billing Determinants'!$D$41*$D11))))),0) -> 0 | R11: =IFERROR(IF(R$4="",0,IF($E11="kWh",VLOOKUP(R$4,'4. Billing Determinants'!$B$19:$R$41,4,0)/'4. Billing Determinants'!$E$41*$D11,IF($E11="kW",VLOOKUP(R$4,'4. Billing Determinants'!$B$19:$R$41,5,0)/'4. Billing Determinants'!$F$41*$D11,IF($E11="Non-RPP kWh",VLOOKUP(R$4,'4. Billing Determinants'!$B$19:$T$41,18,0)/'4. Billing Determinants'!$S$41*$D11,IF($E11="Distribution Rev.",VLOOKUP(R$4,'4. Billing Determinants'!$B$19:$R$41,8,0)/'4. Billing Determinants'!$I$41*$D11, VLOOKUP(R$4,'4. Billing Determinants'!$B$19:$R$41,3,0)/'4. Billing Determinants'!$D$41*$D11))))),0) -> 0 | S11: =IFERROR(IF(S$4="",0,IF($E11="kWh",VLOOKUP(S$4,'4. Billing Determinants'!$B$19:$R$41,4,0)/'4. Billing Determinants'!$E$41*$D11,IF($E11="kW",VLOOKUP(S$4,'4. Billing Determinants'!$B$19:$R$41,5,0)/'4. Billing Determinants'!$F$41*$D11,IF($E11="Non-RPP kWh",VLOOKUP(S$4,'4. Billing Determinants'!$B$19:$T$41,18,0)/'4. Billing Determinants'!$S$41*$D11,IF($E11="Distribution Rev.",VLOOKUP(S$4,'4. Billing Determinants'!$B$19:$R$41,8,0)/'4. Billing Determinants'!$I$41*$D11, VLOOKUP(S$4,'4. Billing Determinants'!$B$19:$R$41,3,0)/'4. Billing Determinants'!$D$41*$D11))))),0) -> 0 | T11: =IFERROR(IF(T$4="",0,IF($E11="kWh",VLOOKUP(T$4,'4. Billing Determinants'!$B$19:$R$41,4,0)/'4. Billing Determinants'!$E$41*$D11,IF($E11="kW",VLOOKUP(T$4,'4. Billing Determinants'!$B$19:$R$41,5,0)/'4. Billing Determinants'!$F$41*$D11,IF($E11="Non-RPP kWh",VLOOKUP(T$4,'4. Billing Determinants'!$B$19:$T$41,18,0)/'4. Billing Determinants'!$S$41*$D11,IF($E11="Distribution Rev.",VLOOKUP(T$4,'4. Billing Determinants'!$B$19:$R$41,8,0)/'4. Billing Determinants'!$I$41*$D11, VLOOKUP(T$4,'4. Billing Determinants'!$B$19:$R$41,3,0)/'4. Billing Determinants'!$D$41*$D11))))),0) -> 0 | U11: =IFERROR(IF(U$4="",0,IF($E11="kWh",VLOOKUP(U$4,'4. Billing Determinants'!$B$19:$R$41,4,0)/'4. Billing Determinants'!$E$41*$D11,IF($E11="kW",VLOOKUP(U$4,'4. Billing Determinants'!$B$19:$R$41,5,0)/'4. Billing Determinants'!$F$41*$D11,IF($E11="Non-RPP kWh",VLOOKUP(U$4,'4. Billing Determinants'!$B$19:$T$41,18,0)/'4. Billing Determinants'!$S$41*$D11,IF($E11="Distribution Rev.",VLOOKUP(U$4,'4. Billing Determinants'!$B$19:$R$41,8,0)/'4. Billing Determinants'!$I$41*$D11, VLOOKUP(U$4,'4. Billing Determinants'!$B$19:$R$41,3,0)/'4. Billing Determinants'!$D$41*$D11))))),0) -> 0 | V11: =IFERROR(IF(V$4="",0,IF($E11="kWh",VLOOKUP(V$4,'4. Billing Determinants'!$B$19:$R$41,4,0)/'4. Billing Determinants'!$E$41*$D11,IF($E11="kW",VLOOKUP(V$4,'4. Billing Determinants'!$B$19:$R$41,5,0)/'4. Billing Determinants'!$F$41*$D11,IF($E11="Non-RPP kWh",VLOOKUP(V$4,'4. Billing Determinants'!$B$19:$T$41,18,0)/'4. Billing Determinants'!$S$41*$D11,IF($E11="Distribution Rev.",VLOOKUP(V$4,'4. Billing Determinants'!$B$19:$R$41,8,0)/'4. Billing Determinants'!$I$41*$D11, VLOOKUP(V$4,'4. Billing Determinants'!$B$19:$R$41,3,0)/'4. Billing Determinants'!$D$41*$D11))))),0) -> 0 | W11: =IFERROR(IF(W$4="",0,IF($E11="kWh",VLOOKUP(W$4,'4. Billing Determinants'!$B$19:$R$41,4,0)/'4. Billing Determinants'!$E$41*$D11,IF($E11="kW",VLOOKUP(W$4,'4. Billing Determinants'!$B$19:$R$41,5,0)/'4. Billing Determinants'!$F$41*$D11,IF($E11="Non-RPP kWh",VLOOKUP(W$4,'4. Billing Determinants'!$B$19:$T$41,18,0)/'4. Billing Determinants'!$S$41*$D11,IF($E11="Distribution Rev.",VLOOKUP(W$4,'4. Billing Determinants'!$B$19:$R$41,8,0)/'4. Billing Determinants'!$I$41*$D11, VLOOKUP(W$4,'4. Billing Determinants'!$B$19:$R$41,3,0)/'4. Billing Determinants'!$D$41*$D11))))),0) -> 0 | X11: =IFERROR(IF(X$4="",0,IF($E11="kWh",VLOOKUP(X$4,'4. Billing Determinants'!$B$19:$R$41,4,0)/'4. Billing Determinants'!$E$41*$D11,IF($E11="kW",VLOOKUP(X$4,'4. Billing Determinants'!$B$19:$R$41,5,0)/'4. Billing Determinants'!$F$41*$D11,IF($E11="Non-RPP kWh",VLOOKUP(X$4,'4. Billing Determinants'!$B$19:$T$41,18,0)/'4. Billing Determinants'!$S$41*$D11,IF($E11="Distribution Rev.",VLOOKUP(X$4,'4. Billing Determinants'!$B$19:$R$41,8,0)/'4. Billing Determinants'!$I$41*$D11, VLOOKUP(X$4,'4. Billing Determinants'!$B$19:$R$41,3,0)/'4. Billing Determinants'!$D$41*$D11))))),0) -> 0 | Y11: =IFERROR(IF(Y$4="",0,IF($E11="kWh",VLOOKUP(Y$4,'4. Billing Determinants'!$B$19:$R$41,4,0)/'4. Billing Determinants'!$E$41*$D11,IF($E11="kW",VLOOKUP(Y$4,'4. Billing Determinants'!$B$19:$R$41,5,0)/'4. Billing Determinants'!$F$41*$D11,IF($E11="Non-RPP kWh",VLOOKUP(Y$4,'4. Billing Determinants'!$B$19:$T$41,18,0)/'4. Billing Determinants'!$S$41*$D11,IF($E11="Distribution Rev.",VLOOKUP(Y$4,'4. Billing Determinants'!$B$19:$R$41,8,0)/'4. Billing Determinants'!$I$41*$D11, VLOOKUP(Y$4,'4. Billing Determinants'!$B$19:$R$41,3,0)/'4. Billing Determinants'!$D$41*$D11))))),0) -> 0
A12: 9 | B12: Disposition and Recovery/Refund of Regulatory Balances (2009) | C12: 1595 | D12: =+'2. 2016 Continuity Schedule'!BT33 -> 0.87 | E12: % | F12: =IFERROR(IF(F$4="",0,IF($E12="kWh",VLOOKUP(F$4,'4. Billing Determinants'!$B$19:$R$41,4,0)/'4. Billing Determinants'!$E$41*$D12,IF($E12="kW",VLOOKUP(F$4,'4. Billing Determinants'!$B$19:$R$41,5,0)/'4. Billing Determinants'!$F$41*$D12,IF($E12="Non-RPP kWh",VLOOKUP(F$4,'4. Billing Determinants'!$B$19:$R$41,6,0)/'4. Billing Determinants'!$G$41*$D12, VLOOKUP(F$4,'4. Billing Determinants'!$B$19:$AA$41,20,0)*$D12)))),0) -> 0.2178698672 | G12: =IFERROR(IF(G$4="",0,IF($E12="kWh",VLOOKUP(G$4,'4. Billing Determinants'!$B$19:$R$41,4,0)/'4. Billing Determinants'!$E$41*$D12,IF($E12="kW",VLOOKUP(G$4,'4. Billing Determinants'!$B$19:$R$41,5,0)/'4. Billing Determinants'!$F$41*$D12,IF($E12="Non-RPP kWh",VLOOKUP(G$4,'4. Billing Determinants'!$B$19:$R$41,6,0)/'4. Billing Determinants'!$G$41*$D12, VLOOKUP(G$4,'4. Billing Determinants'!$B$19:$AA$41,20,0)*$D12)))),0) -> 0.1249447535 | H12: =IFERROR(IF(H$4="",0,IF($E12="kWh",VLOOKUP(H$4,'4. Billing Determinants'!$B$19:$R$41,4,0)/'4. Billing Determinants'!$E$41*$D12,IF($E12="kW",VLOOKUP(H$4,'4. Billing Determinants'!$B$19:$R$41,5,0)/'4. Billing Determinants'!$F$41*$D12,IF($E12="Non-RPP kWh",VLOOKUP(H$4,'4. Billing Determinants'!$B$19:$R$41,6,0)/'4. Billing Determinants'!$G$41*$D12, VLOOKUP(H$4,'4. Billing Determinants'!$B$19:$AA$41,20,0)*$D12)))),0) -> 0.2887379646 | I12: =IFERROR(IF(I$4="",0,IF($E12="kWh",VLOOKUP(I$4,'4. Billing Determinants'!$B$19:$R$41,4,0)/'4. Billing Determinants'!$E$41*$D12,IF($E12="kW",VLOOKUP(I$4,'4. Billing Determinants'!$B$19:$R$41,5,0)/'4. Billing Determinants'!$F$41*$D12,IF($E12="Non-RPP kWh",VLOOKUP(I$4,'4. Billing Determinants'!$B$19:$R$41,6,0)/'4. Billing Determinants'!$G$41*$D12, VLOOKUP(I$4,'4. Billing Determinants'!$B$19:$AA$41,20,0)*$D12)))),0) -> 0.2259646514 | J12: =IFERROR(IF(J$4="",0,IF($E12="kWh",VLOOKUP(J$4,'4. Billing Determinants'!$B$19:$R$41,4,0)/'4. Billing Determinants'!$E$41*$D12,IF($E12="kW",VLOOKUP(J$4,'4. Billing Determinants'!$B$19:$R$41,5,0)/'4. Billing Determinants'!$F$41*$D12,IF($E12="Non-RPP kWh",VLOOKUP(J$4,'4. Billing Determinants'!$B$19:$R$41,6,0)/'4. Billing Determinants'!$G$41*$D12, VLOOKUP(J$4,'4. Billing Determinants'!$B$19:$AA$41,20,0)*$D12)))),0) -> 0 | K12: =IFERROR(IF(K$4="",0,IF($E12="kWh",VLOOKUP(K$4,'4. Billing Determinants'!$B$19:$R$41,4,0)/'4. Billing Determinants'!$E$41*$D12,IF($E12="kW",VLOOKUP(K$4,'4. Billing Determinants'!$B$19:$R$41,5,0)/'4. Billing Determinants'!$F$41*$D12,IF($E12="Non-RPP kWh",VLOOKUP(K$4,'4. Billing Determinants'!$B$19:$R$41,6,0)/'4. Billing Determinants'!$G$41*$D12, VLOOKUP(K$4,'4. Billing Determinants'!$B$19:$AA$41,20,0)*$D12)))),0) -> 0.01031968072 | L12: =IFERROR(IF(L$4="",0,IF($E12="kWh",VLOOKUP(L$4,'4. Billing Determinants'!$B$19:$R$41,4,0)/'4. Billing Determinants'!$E$41*$D12,IF($E12="kW",VLOOKUP(L$4,'4. Billing Determinants'!$B$19:$R$41,5,0)/'4. Billing Determinants'!$F$41*$D12,IF($E12="Non-RPP kWh",VLOOKUP(L$4,'4. Billing Determinants'!$B$19:$R$41,6,0)/'4. Billing Determinants'!$G$41*$D12, VLOOKUP(L$4,'4. Billing Determinants'!$B$19:$AA$41,20,0)*$D12)))),0) -> 0 | M12: =IFERROR(IF(M$4="",0,IF($E12="kWh",VLOOKUP(M$4,'4. Billing Determinants'!$B$19:$R$41,4,0)/'4. Billing Determinants'!$E$41*$D12,IF($E12="kW",VLOOKUP(M$4,'4. Billing Determinants'!$B$19:$R$41,5,0)/'4. Billing Determinants'!$F$41*$D12,IF($E12="Non-RPP kWh",VLOOKUP(M$4,'4. Billing Determinants'!$B$19:$R$41,6,0)/'4. Billing Determinants'!$G$41*$D12, VLOOKUP(M$4,'4. Billing Determinants'!$B$19:$AA$41,20,0)*$D12)))),0) -> 0 | N12: =IFERROR(IF(N$4="",0,IF($E12="kWh",VLOOKUP(N$4,'4. Billing Determinants'!$B$19:$R$41,4,0)/'4. Billing Determinants'!$E$41*$D12,IF($E12="kW",VLOOKUP(N$4,'4. Billing Determinants'!$B$19:$R$41,5,0)/'4. Billing Determinants'!$F$41*$D12,IF($E12="Non-RPP kWh",VLOOKUP(N$4,'4. Billing Determinants'!$B$19:$R$41,6,0)/'4. Billing Determinants'!$G$41*$D12, VLOOKUP(N$4,'4. Billing Determinants'!$B$19:$AA$41,20,0)*$D12)))),0) -> 0 | O12: =IFERROR(IF(O$4="",0,IF($E12="kWh",VLOOKUP(O$4,'4. Billing Determinants'!$B$19:$R$41,4,0)/'4. Billing Determinants'!$E$41*$D12,IF($E12="kW",VLOOKUP(O$4,'4. Billing Determinants'!$B$19:$R$41,5,0)/'4. Billing Determinants'!$F$41*$D12,IF($E12="Non-RPP kWh",VLOOKUP(O$4,'4. Billing Determinants'!$B$19:$R$41,6,0)/'4. Billing Determinants'!$G$41*$D12, VLOOKUP(O$4,'4. Billing Determinants'!$B$19:$AA$41,20,0)*$D12)))),0) -> 0 | P12: =IFERROR(IF(P$4="",0,IF($E12="kWh",VLOOKUP(P$4,'4. Billing Determinants'!$B$19:$R$41,4,0)/'4. Billing Determinants'!$E$41*$D12,IF($E12="kW",VLOOKUP(P$4,'4. Billing Determinants'!$B$19:$R$41,5,0)/'4. Billing Determinants'!$F$41*$D12,IF($E12="Non-RPP kWh",VLOOKUP(P$4,'4. Billing Determinants'!$B$19:$R$41,6,0)/'4. Billing Determinants'!$G$41*$D12, VLOOKUP(P$4,'4. Billing Determinants'!$B$19:$AA$41,20,0)*$D12)))),0) -> 0 | Q12: =IFERROR(IF(Q$4="",0,IF($E12="kWh",VLOOKUP(Q$4,'4. Billing Determinants'!$B$19:$R$41,4,0)/'4. Billing Determinants'!$E$41*$D12,IF($E12="kW",VLOOKUP(Q$4,'4. Billing Determinants'!$B$19:$R$41,5,0)/'4. Billing Determinants'!$F$41*$D12,IF($E12="Non-RPP kWh",VLOOKUP(Q$4,'4. Billing Determinants'!$B$19:$R$41,6,0)/'4. Billing Determinants'!$G$41*$D12, VLOOKUP(Q$4,'4. Billing Determinants'!$B$19:$AA$41,20,0)*$D12)))),0) -> 0 | R12: =IFERROR(IF(R$4="",0,IF($E12="kWh",VLOOKUP(R$4,'4. Billing Determinants'!$B$19:$R$41,4,0)/'4. Billing Determinants'!$E$41*$D12,IF($E12="kW",VLOOKUP(R$4,'4. Billing Determinants'!$B$19:$R$41,5,0)/'4. Billing Determinants'!$F$41*$D12,IF($E12="Non-RPP kWh",VLOOKUP(R$4,'4. Billing Determinants'!$B$19:$R$41,6,0)/'4. Billing Determinants'!$G$41*$D12, VLOOKUP(R$4,'4. Billing Determinants'!$B$19:$AA$41,20,0)*$D12)))),0) -> 0 | S12: =IFERROR(IF(S$4="",0,IF($E12="kWh",VLOOKUP(S$4,'4. Billing Determinants'!$B$19:$R$41,4,0)/'4. Billing Determinants'!$E$41*$D12,IF($E12="kW",VLOOKUP(S$4,'4. Billing Determinants'!$B$19:$R$41,5,0)/'4. Billing Determinants'!$F$41*$D12,IF($E12="Non-RPP kWh",VLOOKUP(S$4,'4. Billing Determinants'!$B$19:$R$41,6,0)/'4. Billing Determinants'!$G$41*$D12, VLOOKUP(S$4,'4. Billing Determinants'!$B$19:$AA$41,20,0)*$D12)))),0) -> 0 | T12: =IFERROR(IF(T$4="",0,IF($E12="kWh",VLOOKUP(T$4,'4. Billing Determinants'!$B$19:$R$41,4,0)/'4. Billing Determinants'!$E$41*$D12,IF($E12="kW",VLOOKUP(T$4,'4. Billing Determinants'!$B$19:$R$41,5,0)/'4. Billing Determinants'!$F$41*$D12,IF($E12="Non-RPP kWh",VLOOKUP(T$4,'4. Billing Determinants'!$B$19:$R$41,6,0)/'4. Billing Determinants'!$G$41*$D12, VLOOKUP(T$4,'4. Billing Determinants'!$B$19:$AA$41,20,0)*$D12)))),0) -> 0 | U12: =IFERROR(IF(U$4="",0,IF($E12="kWh",VLOOKUP(U$4,'4. Billing Determinants'!$B$19:$R$41,4,0)/'4. Billing Determinants'!$E$41*$D12,IF($E12="kW",VLOOKUP(U$4,'4. Billing Determinants'!$B$19:$R$41,5,0)/'4. Billing Determinants'!$F$41*$D12,IF($E12="Non-RPP kWh",VLOOKUP(U$4,'4. Billing Determinants'!$B$19:$R$41,6,0)/'4. Billing Determinants'!$G$41*$D12, VLOOKUP(U$4,'4. Billing Determinants'!$B$19:$AA$41,20,0)*$D12)))),0) -> 0 | V12: =IFERROR(IF(V$4="",0,IF($E12="kWh",VLOOKUP(V$4,'4. Billing Determinants'!$B$19:$R$41,4,0)/'4. Billing Determinants'!$E$41*$D12,IF($E12="kW",VLOOKUP(V$4,'4. Billing Determinants'!$B$19:$R$41,5,0)/'4. Billing Determinants'!$F$41*$D12,IF($E12="Non-RPP kWh",VLOOKUP(V$4,'4. Billing Determinants'!$B$19:$R$41,6,0)/'4. Billing Determinants'!$G$41*$D12, VLOOKUP(V$4,'4. Billing Determinants'!$B$19:$AA$41,20,0)*$D12)))),0) -> 0 | W12: =IFERROR(IF(W$4="",0,IF($E12="kWh",VLOOKUP(W$4,'4. Billing Determinants'!$B$19:$R$41,4,0)/'4. Billing Determinants'!$E$41*$D12,IF($E12="kW",VLOOKUP(W$4,'4. Billing Determinants'!$B$19:$R$41,5,0)/'4. Billing Determinants'!$F$41*$D12,IF($E12="Non-RPP kWh",VLOOKUP(W$4,'4. Billing Determinants'!$B$19:$R$41,6,0)/'4. Billing Determinants'!$G$41*$D12, VLOOKUP(W$4,'4. Billing Determinants'!$B$19:$AA$41,20,0)*$D12)))),0) -> 0 | X12: =IFERROR(IF(X$4="",0,IF($E12="kWh",VLOOKUP(X$4,'4. Billing Determinants'!$B$19:$R$41,4,0)/'4. Billing Determinants'!$E$41*$D12,IF($E12="kW",VLOOKUP(X$4,'4. Billing Determinants'!$B$19:$R$41,5,0)/'4. Billing Determinants'!$F$41*$D12,IF($E12="Non-RPP kWh",VLOOKUP(X$4,'4. Billing Determinants'!$B$19:$R$41,6,0)/'4. Billing Determinants'!$G$41*$D12, VLOOKUP(X$4,'4. Billing Determinants'!$B$19:$AA$41,20,0)*$D12)))),0) -> 0 | Y12: =IFERROR(IF(Y$4="",0,IF($E12="kWh",VLOOKUP(Y$4,'4. Billing Determinants'!$B$19:$R$41,4,0)/'4. Billing Determinants'!$E$41*$D12,IF($E12="kW",VLOOKUP(Y$4,'4. Billing Determinants'!$B$19:$R$41,5,0)/'4. Billing Determinants'!$F$41*$D12,IF($E12="Non-RPP kWh",VLOOKUP(Y$4,'4. Billing Determinants'!$B$19:$R$41,6,0)/'4. Billing Determinants'!$G$41*$D12, VLOOKUP(Y$4,'4. Billing Determinants'!$B$19:$AA$41,20,0)*$D12)))),0) -> 0
A13: 10 | B13: Disposition and Recovery/Refund of Regulatory Balances (2010) | C13: 1595 | D13: =+'2. 2016 Continuity Schedule'!BT34 -> 1 | E13: % | F13: =IFERROR(IF(F$4="",0,IF($E13="kWh",VLOOKUP(F$4,'4. Billing Determinants'!$B$19:$R$41,4,0)/'4. Billing Determinants'!$E$41*$D13,IF($E13="kW",VLOOKUP(F$4,'4. Billing Determinants'!$B$19:$R$41,5,0)/'4. Billing Determinants'!$F$41*$D13,IF($E13="Non-RPP kWh",VLOOKUP(F$4,'4. Billing Determinants'!$B$19:$R$41,6,0)/'4. Billing Determinants'!$G$41*$D13,VLOOKUP(F$4,'4. Billing Determinants'!$B$19:$AA$41,21,0)*$D13)))),0) -> 0.2604225369 | G13: =IFERROR(IF(G$4="",0,IF($E13="kWh",VLOOKUP(G$4,'4. Billing Determinants'!$B$19:$R$41,4,0)/'4. Billing Determinants'!$E$41*$D13,IF($E13="kW",VLOOKUP(G$4,'4. Billing Determinants'!$B$19:$R$41,5,0)/'4. Billing Determinants'!$F$41*$D13,IF($E13="Non-RPP kWh",VLOOKUP(G$4,'4. Billing Determinants'!$B$19:$R$41,6,0)/'4. Billing Determinants'!$G$41*$D13,VLOOKUP(G$4,'4. Billing Determinants'!$B$19:$AA$41,21,0)*$D13)))),0) -> 0.1230511482 | H13: =IFERROR(IF(H$4="",0,IF($E13="kWh",VLOOKUP(H$4,'4. Billing Determinants'!$B$19:$R$41,4,0)/'4. Billing Determinants'!$E$41*$D13,IF($E13="kW",VLOOKUP(H$4,'4. Billing Determinants'!$B$19:$R$41,5,0)/'4. Billing Determinants'!$F$41*$D13,IF($E13="Non-RPP kWh",VLOOKUP(H$4,'4. Billing Determinants'!$B$19:$R$41,6,0)/'4. Billing Determinants'!$G$41*$D13,VLOOKUP(H$4,'4. Billing Determinants'!$B$19:$AA$41,21,0)*$D13)))),0) -> 0.2983501722 | I13: =IFERROR(IF(I$4="",0,IF($E13="kWh",VLOOKUP(I$4,'4. Billing Determinants'!$B$19:$R$41,4,0)/'4. Billing Determinants'!$E$41*$D13,IF($E13="kW",VLOOKUP(I$4,'4. Billing Determinants'!$B$19:$R$41,5,0)/'4. Billing Determinants'!$F$41*$D13,IF($E13="Non-RPP kWh",VLOOKUP(I$4,'4. Billing Determinants'!$B$19:$R$41,6,0)/'4. Billing Determinants'!$G$41*$D13,VLOOKUP(I$4,'4. Billing Determinants'!$B$19:$AA$41,21,0)*$D13)))),0) -> 0.3010877029 | J13: =IFERROR(IF(J$4="",0,IF($E13="kWh",VLOOKUP(J$4,'4. Billing Determinants'!$B$19:$R$41,4,0)/'4. Billing Determinants'!$E$41*$D13,IF($E13="kW",VLOOKUP(J$4,'4. Billing Determinants'!$B$19:$R$41,5,0)/'4. Billing Determinants'!$F$41*$D13,IF($E13="Non-RPP kWh",VLOOKUP(J$4,'4. Billing Determinants'!$B$19:$R$41,6,0)/'4. Billing Determinants'!$G$41*$D13,VLOOKUP(J$4,'4. Billing Determinants'!$B$19:$AA$41,21,0)*$D13)))),0) -> 0 | K13: =IFERROR(IF(K$4="",0,IF($E13="kWh",VLOOKUP(K$4,'4. Billing Determinants'!$B$19:$R$41,4,0)/'4. Billing Determinants'!$E$41*$D13,IF($E13="kW",VLOOKUP(K$4,'4. Billing Determinants'!$B$19:$R$41,5,0)/'4. Billing Determinants'!$F$41*$D13,IF($E13="Non-RPP kWh",VLOOKUP(K$4,'4. Billing Determinants'!$B$19:$R$41,6,0)/'4. Billing Determinants'!$G$41*$D13,VLOOKUP(K$4,'4. Billing Determinants'!$B$19:$AA$41,21,0)*$D13)))),0) -> 0.01499447263 | L13: =IFERROR(IF(L$4="",0,IF($E13="kWh",VLOOKUP(L$4,'4. Billing Determinants'!$B$19:$R$41,4,0)/'4. Billing Determinants'!$E$41*$D13,IF($E13="kW",VLOOKUP(L$4,'4. Billing Determinants'!$B$19:$R$41,5,0)/'4. Billing Determinants'!$F$41*$D13,IF($E13="Non-RPP kWh",VLOOKUP(L$4,'4. Billing Determinants'!$B$19:$R$41,6,0)/'4. Billing Determinants'!$G$41*$D13,VLOOKUP(L$4,'4. Billing Determinants'!$B$19:$AA$41,21,0)*$D13)))),0) -> 0.0001550003704 | M13: =IFERROR(IF(M$4="",0,IF($E13="kWh",VLOOKUP(M$4,'4. Billing Determinants'!$B$19:$R$41,4,0)/'4. Billing Determinants'!$E$41*$D13,IF($E13="kW",VLOOKUP(M$4,'4. Billing Determinants'!$B$19:$R$41,5,0)/'4. Billing Determinants'!$F$41*$D13,IF($E13="Non-RPP kWh",VLOOKUP(M$4,'4. Billing Determinants'!$B$19:$R$41,6,0)/'4. Billing Determinants'!$G$41*$D13,VLOOKUP(M$4,'4. Billing Determinants'!$B$19:$AA$41,21,0)*$D13)))),0) -> 0.0001550003704 | N13: =IFERROR(IF(N$4="",0,IF($E13="kWh",VLOOKUP(N$4,'4. Billing Determinants'!$B$19:$R$41,4,0)/'4. Billing Determinants'!$E$41*$D13,IF($E13="kW",VLOOKUP(N$4,'4. Billing Determinants'!$B$19:$R$41,5,0)/'4. Billing Determinants'!$F$41*$D13,IF($E13="Non-RPP kWh",VLOOKUP(N$4,'4. Billing Determinants'!$B$19:$R$41,6,0)/'4. Billing Determinants'!$G$41*$D13,VLOOKUP(N$4,'4. Billing Determinants'!$B$19:$AA$41,21,0)*$D13)))),0) -> 0 | O13: =IFERROR(IF(O$4="",0,IF($E13="kWh",VLOOKUP(O$4,'4. Billing Determinants'!$B$19:$R$41,4,0)/'4. Billing Determinants'!$E$41*$D13,IF($E13="kW",VLOOKUP(O$4,'4. Billing Determinants'!$B$19:$R$41,5,0)/'4. Billing Determinants'!$F$41*$D13,IF($E13="Non-RPP kWh",VLOOKUP(O$4,'4. Billing Determinants'!$B$19:$R$41,6,0)/'4. Billing Determinants'!$G$41*$D13,VLOOKUP(O$4,'4. Billing Determinants'!$B$19:$AA$41,21,0)*$D13)))),0) -> 0 | P13: =IFERROR(IF(P$4="",0,IF($E13="kWh",VLOOKUP(P$4,'4. Billing Determinants'!$B$19:$R$41,4,0)/'4. Billing Determinants'!$E$41*$D13,IF($E13="kW",VLOOKUP(P$4,'4. Billing Determinants'!$B$19:$R$41,5,0)/'4. Billing Determinants'!$F$41*$D13,IF($E13="Non-RPP kWh",VLOOKUP(P$4,'4. Billing Determinants'!$B$19:$R$41,6,0)/'4. Billing Determinants'!$G$41*$D13,VLOOKUP(P$4,'4. Billing Determinants'!$B$19:$AA$41,21,0)*$D13)))),0) -> 0 | Q13: =IFERROR(IF(Q$4="",0,IF($E13="kWh",VLOOKUP(Q$4,'4. Billing Determinants'!$B$19:$R$41,4,0)/'4. Billing Determinants'!$E$41*$D13,IF($E13="kW",VLOOKUP(Q$4,'4. Billing Determinants'!$B$19:$R$41,5,0)/'4. Billing Determinants'!$F$41*$D13,IF($E13="Non-RPP kWh",VLOOKUP(Q$4,'4. Billing Determinants'!$B$19:$R$41,6,0)/'4. Billing Determinants'!$G$41*$D13,VLOOKUP(Q$4,'4. Billing Determinants'!$B$19:$AA$41,21,0)*$D13)))),0) -> 0 | R13: =IFERROR(IF(R$4="",0,IF($E13="kWh",VLOOKUP(R$4,'4. Billing Determinants'!$B$19:$R$41,4,0)/'4. Billing Determinants'!$E$41*$D13,IF($E13="kW",VLOOKUP(R$4,'4. Billing Determinants'!$B$19:$R$41,5,0)/'4. Billing Determinants'!$F$41*$D13,IF($E13="Non-RPP kWh",VLOOKUP(R$4,'4. Billing Determinants'!$B$19:$R$41,6,0)/'4. Billing Determinants'!$G$41*$D13,VLOOKUP(R$4,'4. Billing Determinants'!$B$19:$AA$41,21,0)*$D13)))),0) -> 0 | S13: =IFERROR(IF(S$4="",0,IF($E13="kWh",VLOOKUP(S$4,'4. Billing Determinants'!$B$19:$R$41,4,0)/'4. Billing Determinants'!$E$41*$D13,IF($E13="kW",VLOOKUP(S$4,'4. Billing Determinants'!$B$19:$R$41,5,0)/'4. Billing Determinants'!$F$41*$D13,IF($E13="Non-RPP kWh",VLOOKUP(S$4,'4. Billing Determinants'!$B$19:$R$41,6,0)/'4. Billing Determinants'!$G$41*$D13,VLOOKUP(S$4,'4. Billing Determinants'!$B$19:$AA$41,21,0)*$D13)))),0) -> 0 | T13: =IFERROR(IF(T$4="",0,IF($E13="kWh",VLOOKUP(T$4,'4. Billing Determinants'!$B$19:$R$41,4,0)/'4. Billing Determinants'!$E$41*$D13,IF($E13="kW",VLOOKUP(T$4,'4. Billing Determinants'!$B$19:$R$41,5,0)/'4. Billing Determinants'!$F$41*$D13,IF($E13="Non-RPP kWh",VLOOKUP(T$4,'4. Billing Determinants'!$B$19:$R$41,6,0)/'4. Billing Determinants'!$G$41*$D13,VLOOKUP(T$4,'4. Billing Determinants'!$B$19:$AA$41,21,0)*$D13)))),0) -> 0 | U13: =IFERROR(IF(U$4="",0,IF($E13="kWh",VLOOKUP(U$4,'4. Billing Determinants'!$B$19:$R$41,4,0)/'4. Billing Determinants'!$E$41*$D13,IF($E13="kW",VLOOKUP(U$4,'4. Billing Determinants'!$B$19:$R$41,5,0)/'4. Billing Determinants'!$F$41*$D13,IF($E13="Non-RPP kWh",VLOOKUP(U$4,'4. Billing Determinants'!$B$19:$R$41,6,0)/'4. Billing Determinants'!$G$41*$D13,VLOOKUP(U$4,'4. Billing Determinants'!$B$19:$AA$41,21,0)*$D13)))),0) -> 0 | V13: =IFERROR(IF(V$4="",0,IF($E13="kWh",VLOOKUP(V$4,'4. Billing Determinants'!$B$19:$R$41,4,0)/'4. Billing Determinants'!$E$41*$D13,IF($E13="kW",VLOOKUP(V$4,'4. Billing Determinants'!$B$19:$R$41,5,0)/'4. Billing Determinants'!$F$41*$D13,IF($E13="Non-RPP kWh",VLOOKUP(V$4,'4. Billing Determinants'!$B$19:$R$41,6,0)/'4. Billing Determinants'!$G$41*$D13,VLOOKUP(V$4,'4. Billing Determinants'!$B$19:$AA$41,21,0)*$D13)))),0) -> 0 | W13: =IFERROR(IF(W$4="",0,IF($E13="kWh",VLOOKUP(W$4,'4. Billing Determinants'!$B$19:$R$41,4,0)/'4. Billing Determinants'!$E$41*$D13,IF($E13="kW",VLOOKUP(W$4,'4. Billing Determinants'!$B$19:$R$41,5,0)/'4. Billing Determinants'!$F$41*$D13,IF($E13="Non-RPP kWh",VLOOKUP(W$4,'4. Billing Determinants'!$B$19:$R$41,6,0)/'4. Billing Determinants'!$G$41*$D13,VLOOKUP(W$4,'4. Billing Determinants'!$B$19:$AA$41,21,0)*$D13)))),0) -> 0 | X13: =IFERROR(IF(X$4="",0,IF($E13="kWh",VLOOKUP(X$4,'4. Billing Determinants'!$B$19:$R$41,4,0)/'4. Billing Determinants'!$E$41*$D13,IF($E13="kW",VLOOKUP(X$4,'4. Billing Determinants'!$B$19:$R$41,5,0)/'4. Billing Determinants'!$F$41*$D13,IF($E13="Non-RPP kWh",VLOOKUP(X$4,'4. Billing Determinants'!$B$19:$R$41,6,0)/'4. Billing Determinants'!$G$41*$D13,VLOOKUP(X$4,'4. Billing Determinants'!$B$19:$AA$41,21,0)*$D13)))),0) -> 0 | Y13: =IFERROR(IF(Y$4="",0,IF($E13="kWh",VLOOKUP(Y$4,'4. Billing Determinants'!$B$19:$R$41,4,0)/'4. Billing Determinants'!$E$41*$D13,IF($E13="kW",VLOOKUP(Y$4,'4. Billing Determinants'!$B$19:$R$41,5,0)/'4. Billing Determinants'!$F$41*$D13,IF($E13="Non-RPP kWh",VLOOKUP(Y$4,'4. Billing Determinants'!$B$19:$R$41,6,0)/'4. Billing Determinants'!$G$41*$D13,VLOOKUP(Y$4,'4. Billing Determinants'!$B$19:$AA$41,21,0)*$D13)))),0) -> 0
A14: 11 | B14: Disposition and Recovery/Refund of Regulatory Balances (2011) | C14: 1595 | D14: =+'2. 2016 Continuity Schedule'!BT35 -> 11 | E14: % | F14: =IFERROR(IF(F$4="",0,IF($E14="kWh",VLOOKUP(F$4,'4. Billing Determinants'!$B$19:$R$41,4,0)/'4. Billing Determinants'!$E$41*$D14,IF($E14="kW",VLOOKUP(F$4,'4. Billing Determinants'!$B$19:$R$41,5,0)/'4. Billing Determinants'!$F$41*$D14,IF($E14="Non-RPP kWh",VLOOKUP(F$4,'4. Billing Determinants'!$B$19:$R$41,6,0)/'4. Billing Determinants'!$G$41*$D14, VLOOKUP(F$4,'4. Billing Determinants'!$B$19:$AA$41,22,0)*$D14)))),0) -> 2.063371583 | G14: =IFERROR(IF(G$4="",0,IF($E14="kWh",VLOOKUP(G$4,'4. Billing Determinants'!$B$19:$R$41,4,0)/'4. Billing Determinants'!$E$41*$D14,IF($E14="kW",VLOOKUP(G$4,'4. Billing Determinants'!$B$19:$R$41,5,0)/'4. Billing Determinants'!$F$41*$D14,IF($E14="Non-RPP kWh",VLOOKUP(G$4,'4. Billing Determinants'!$B$19:$R$41,6,0)/'4. Billing Determinants'!$G$41*$D14, VLOOKUP(G$4,'4. Billing Determinants'!$B$19:$AA$41,22,0)*$D14)))),0) -> 0.8752368137 | H14: =IFERROR(IF(H$4="",0,IF($E14="kWh",VLOOKUP(H$4,'4. Billing Determinants'!$B$19:$R$41,4,0)/'4. Billing Determinants'!$E$41*$D14,IF($E14="kW",VLOOKUP(H$4,'4. Billing Determinants'!$B$19:$R$41,5,0)/'4. Billing Determinants'!$F$41*$D14,IF($E14="Non-RPP kWh",VLOOKUP(H$4,'4. Billing Determinants'!$B$19:$R$41,6,0)/'4. Billing Determinants'!$G$41*$D14, VLOOKUP(H$4,'4. Billing Determinants'!$B$19:$AA$41,22,0)*$D14)))),0) -> 4.422308717 | I14: =IFERROR(IF(I$4="",0,IF($E14="kWh",VLOOKUP(I$4,'4. Billing Determinants'!$B$19:$R$41,4,0)/'4. Billing Determinants'!$E$41*$D14,IF($E14="kW",VLOOKUP(I$4,'4. Billing Determinants'!$B$19:$R$41,5,0)/'4. Billing Determinants'!$F$41*$D14,IF($E14="Non-RPP kWh",VLOOKUP(I$4,'4. Billing Determinants'!$B$19:$R$41,6,0)/'4. Billing Determinants'!$G$41*$D14, VLOOKUP(I$4,'4. Billing Determinants'!$B$19:$AA$41,22,0)*$D14)))),0) -> 3.419216534 | J14: =IFERROR(IF(J$4="",0,IF($E14="kWh",VLOOKUP(J$4,'4. Billing Determinants'!$B$19:$R$41,4,0)/'4. Billing Determinants'!$E$41*$D14,IF($E14="kW",VLOOKUP(J$4,'4. Billing Determinants'!$B$19:$R$41,5,0)/'4. Billing Determinants'!$F$41*$D14,IF($E14="Non-RPP kWh",VLOOKUP(J$4,'4. Billing Determinants'!$B$19:$R$41,6,0)/'4. Billing Determinants'!$G$41*$D14, VLOOKUP(J$4,'4. Billing Determinants'!$B$19:$AA$41,22,0)*$D14)))),0) -> 0 | K14: =IFERROR(IF(K$4="",0,IF($E14="kWh",VLOOKUP(K$4,'4. Billing Determinants'!$B$19:$R$41,4,0)/'4. Billing Determinants'!$E$41*$D14,IF($E14="kW",VLOOKUP(K$4,'4. Billing Determinants'!$B$19:$R$41,5,0)/'4. Billing Determinants'!$F$41*$D14,IF($E14="Non-RPP kWh",VLOOKUP(K$4,'4. Billing Determinants'!$B$19:$R$41,6,0)/'4. Billing Determinants'!$G$41*$D14, VLOOKUP(K$4,'4. Billing Determinants'!$B$19:$AA$41,22,0)*$D14)))),0) -> 0.2088427758 | L14: =IFERROR(IF(L$4="",0,IF($E14="kWh",VLOOKUP(L$4,'4. Billing Determinants'!$B$19:$R$41,4,0)/'4. Billing Determinants'!$E$41*$D14,IF($E14="kW",VLOOKUP(L$4,'4. Billing Determinants'!$B$19:$R$41,5,0)/'4. Billing Determinants'!$F$41*$D14,IF($E14="Non-RPP kWh",VLOOKUP(L$4,'4. Billing Determinants'!$B$19:$R$41,6,0)/'4. Billing Determinants'!$G$41*$D14, VLOOKUP(L$4,'4. Billing Determinants'!$B$19:$AA$41,22,0)*$D14)))),0) -> 0.0002623700122 | M14: =IFERROR(IF(M$4="",0,IF($E14="kWh",VLOOKUP(M$4,'4. Billing Determinants'!$B$19:$R$41,4,0)/'4. Billing Determinants'!$E$41*$D14,IF($E14="kW",VLOOKUP(M$4,'4. Billing Determinants'!$B$19:$R$41,5,0)/'4. Billing Determinants'!$F$41*$D14,IF($E14="Non-RPP kWh",VLOOKUP(M$4,'4. Billing Determinants'!$B$19:$R$41,6,0)/'4. Billing Determinants'!$G$41*$D14, VLOOKUP(M$4,'4. Billing Determinants'!$B$19:$AA$41,22,0)*$D14)))),0) -> 0.01076120696 | N14: =IFERROR(IF(N$4="",0,IF($E14="kWh",VLOOKUP(N$4,'4. Billing Determinants'!$B$19:$R$41,4,0)/'4. Billing Determinants'!$E$41*$D14,IF($E14="kW",VLOOKUP(N$4,'4. Billing Determinants'!$B$19:$R$41,5,0)/'4. Billing Determinants'!$F$41*$D14,IF($E14="Non-RPP kWh",VLOOKUP(N$4,'4. Billing Determinants'!$B$19:$R$41,6,0)/'4. Billing Determinants'!$G$41*$D14, VLOOKUP(N$4,'4. Billing Determinants'!$B$19:$AA$41,22,0)*$D14)))),0) -> 0 | O14: =IFERROR(IF(O$4="",0,IF($E14="kWh",VLOOKUP(O$4,'4. Billing Determinants'!$B$19:$R$41,4,0)/'4. Billing Determinants'!$E$41*$D14,IF($E14="kW",VLOOKUP(O$4,'4. Billing Determinants'!$B$19:$R$41,5,0)/'4. Billing Determinants'!$F$41*$D14,IF($E14="Non-RPP kWh",VLOOKUP(O$4,'4. Billing Determinants'!$B$19:$R$41,6,0)/'4. Billing Determinants'!$G$41*$D14, VLOOKUP(O$4,'4. Billing Determinants'!$B$19:$AA$41,22,0)*$D14)))),0) -> 0 | P14: =IFERROR(IF(P$4="",0,IF($E14="kWh",VLOOKUP(P$4,'4. Billing Determinants'!$B$19:$R$41,4,0)/'4. Billing Determinants'!$E$41*$D14,IF($E14="kW",VLOOKUP(P$4,'4. Billing Determinants'!$B$19:$R$41,5,0)/'4. Billing Determinants'!$F$41*$D14,IF($E14="Non-RPP kWh",VLOOKUP(P$4,'4. Billing Determinants'!$B$19:$R$41,6,0)/'4. Billing Determinants'!$G$41*$D14, VLOOKUP(P$4,'4. Billing Determinants'!$B$19:$AA$41,22,0)*$D14)))),0) -> 0 | Q14: =IFERROR(IF(Q$4="",0,IF($E14="kWh",VLOOKUP(Q$4,'4. Billing Determinants'!$B$19:$R$41,4,0)/'4. Billing Determinants'!$E$41*$D14,IF($E14="kW",VLOOKUP(Q$4,'4. Billing Determinants'!$B$19:$R$41,5,0)/'4. Billing Determinants'!$F$41*$D14,IF($E14="Non-RPP kWh",VLOOKUP(Q$4,'4. Billing Determinants'!$B$19:$R$41,6,0)/'4. Billing Determinants'!$G$41*$D14, VLOOKUP(Q$4,'4. Billing Determinants'!$B$19:$AA$41,22,0)*$D14)))),0) -> 0 | R14: =IFERROR(IF(R$4="",0,IF($E14="kWh",VLOOKUP(R$4,'4. Billing Determinants'!$B$19:$R$41,4,0)/'4. Billing Determinants'!$E$41*$D14,IF($E14="kW",VLOOKUP(R$4,'4. Billing Determinants'!$B$19:$R$41,5,0)/'4. Billing Determinants'!$F$41*$D14,IF($E14="Non-RPP kWh",VLOOKUP(R$4,'4. Billing Determinants'!$B$19:$R$41,6,0)/'4. Billing Determinants'!$G$41*$D14, VLOOKUP(R$4,'4. Billing Determinants'!$B$19:$AA$41,22,0)*$D14)))),0) -> 0 | S14: =IFERROR(IF(S$4="",0,IF($E14="kWh",VLOOKUP(S$4,'4. Billing Determinants'!$B$19:$R$41,4,0)/'4. Billing Determinants'!$E$41*$D14,IF($E14="kW",VLOOKUP(S$4,'4. Billing Determinants'!$B$19:$R$41,5,0)/'4. Billing Determinants'!$F$41*$D14,IF($E14="Non-RPP kWh",VLOOKUP(S$4,'4. Billing Determinants'!$B$19:$R$41,6,0)/'4. Billing Determinants'!$G$41*$D14, VLOOKUP(S$4,'4. Billing Determinants'!$B$19:$AA$41,22,0)*$D14)))),0) -> 0 | T14: =IFERROR(IF(T$4="",0,IF($E14="kWh",VLOOKUP(T$4,'4. Billing Determinants'!$B$19:$R$41,4,0)/'4. Billing Determinants'!$E$41*$D14,IF($E14="kW",VLOOKUP(T$4,'4. Billing Determinants'!$B$19:$R$41,5,0)/'4. Billing Determinants'!$F$41*$D14,IF($E14="Non-RPP kWh",VLOOKUP(T$4,'4. Billing Determinants'!$B$19:$R$41,6,0)/'4. Billing Determinants'!$G$41*$D14, VLOOKUP(T$4,'4. Billing Determinants'!$B$19:$AA$41,22,0)*$D14)))),0) -> 0 | U14: =IFERROR(IF(U$4="",0,IF($E14="kWh",VLOOKUP(U$4,'4. Billing Determinants'!$B$19:$R$41,4,0)/'4. Billing Determinants'!$E$41*$D14,IF($E14="kW",VLOOKUP(U$4,'4. Billing Determinants'!$B$19:$R$41,5,0)/'4. Billing Determinants'!$F$41*$D14,IF($E14="Non-RPP kWh",VLOOKUP(U$4,'4. Billing Determinants'!$B$19:$R$41,6,0)/'4. Billing Determinants'!$G$41*$D14, VLOOKUP(U$4,'4. Billing Determinants'!$B$19:$AA$41,22,0)*$D14)))),0) -> 0 | V14: =IFERROR(IF(V$4="",0,IF($E14="kWh",VLOOKUP(V$4,'4. Billing Determinants'!$B$19:$R$41,4,0)/'4. Billing Determinants'!$E$41*$D14,IF($E14="kW",VLOOKUP(V$4,'4. Billing Determinants'!$B$19:$R$41,5,0)/'4. Billing Determinants'!$F$41*$D14,IF($E14="Non-RPP kWh",VLOOKUP(V$4,'4. Billing Determinants'!$B$19:$R$41,6,0)/'4. Billing Determinants'!$G$41*$D14, VLOOKUP(V$4,'4. Billing Determinants'!$B$19:$AA$41,22,0)*$D14)))),0) -> 0 | W14: =IFERROR(IF(W$4="",0,IF($E14="kWh",VLOOKUP(W$4,'4. Billing Determinants'!$B$19:$R$41,4,0)/'4. Billing Determinants'!$E$41*$D14,IF($E14="kW",VLOOKUP(W$4,'4. Billing Determinants'!$B$19:$R$41,5,0)/'4. Billing Determinants'!$F$41*$D14,IF($E14="Non-RPP kWh",VLOOKUP(W$4,'4. Billing Determinants'!$B$19:$R$41,6,0)/'4. Billing Determinants'!$G$41*$D14, VLOOKUP(W$4,'4. Billing Determinants'!$B$19:$AA$41,22,0)*$D14)))),0) -> 0 | X14: =IFERROR(IF(X$4="",0,IF($E14="kWh",VLOOKUP(X$4,'4. Billing Determinants'!$B$19:$R$41,4,0)/'4. Billing Determinants'!$E$41*$D14,IF($E14="kW",VLOOKUP(X$4,'4. Billing Determinants'!$B$19:$R$41,5,0)/'4. Billing Determinants'!$F$41*$D14,IF($E14="Non-RPP kWh",VLOOKUP(X$4,'4. Billing Determinants'!$B$19:$R$41,6,0)/'4. Billing Determinants'!$G$41*$D14, VLOOKUP(X$4,'4. Billing Determinants'!$B$19:$AA$41,22,0)*$D14)))),0) -> 0 | Y14: =IFERROR(IF(Y$4="",0,IF($E14="kWh",VLOOKUP(Y$4,'4. Billing Determinants'!$B$19:$R$41,4,0)/'4. Billing Determinants'!$E$41*$D14,IF($E14="kW",VLOOKUP(Y$4,'4. Billing Determinants'!$B$19:$R$41,5,0)/'4. Billing Determinants'!$F$41*$D14,IF($E14="Non-RPP kWh",VLOOKUP(Y$4,'4. Billing Determinants'!$B$19:$R$41,6,0)/'4. Billing Determinants'!$G$41*$D14, VLOOKUP(Y$4,'4. Billing Determinants'!$B$19:$AA$41,22,0)*$D14)))),0) -> 0
A15: 12 | B15: Disposition and Recovery/Refund of Regulatory Balances (2012) | C15: 1595 | D15: =+'2. 2016 Continuity Schedule'!BT36 -> -729 | E15: % | F15: =IFERROR(IF(F$4="",0,IF($E15="kWh",VLOOKUP(F$4,'4. Billing Determinants'!$B$19:$R$41,4,0)/'4. Billing Determinants'!$E$41*$D15,IF($E15="kW",VLOOKUP(F$4,'4. Billing Determinants'!$B$19:$R$41,5,0)/'4. Billing Determinants'!$F$41*$D15,IF($E15="Non-RPP kWh",VLOOKUP(F$4,'4. Billing Determinants'!$B$19:$R$41,6,0)/'4. Billing Determinants'!$G$41*$D15, VLOOKUP(F$4,'4. Billing Determinants'!$B$19:$AA$41,23,0)*$D15)))),0) -> -245.4097536 | G15: =IFERROR(IF(G$4="",0,IF($E15="kWh",VLOOKUP(G$4,'4. Billing Determinants'!$B$19:$R$41,4,0)/'4. Billing Determinants'!$E$41*$D15,IF($E15="kW",VLOOKUP(G$4,'4. Billing Determinants'!$B$19:$R$41,5,0)/'4. Billing Determinants'!$F$41*$D15,IF($E15="Non-RPP kWh",VLOOKUP(G$4,'4. Billing Determinants'!$B$19:$R$41,6,0)/'4. Billing Determinants'!$G$41*$D15, VLOOKUP(G$4,'4. Billing Determinants'!$B$19:$AA$41,23,0)*$D15)))),0) -> -97.64060736 | H15: =IFERROR(IF(H$4="",0,IF($E15="kWh",VLOOKUP(H$4,'4. Billing Determinants'!$B$19:$R$41,4,0)/'4. Billing Determinants'!$E$41*$D15,IF($E15="kW",VLOOKUP(H$4,'4. Billing Determinants'!$B$19:$R$41,5,0)/'4. Billing Determinants'!$F$41*$D15,IF($E15="Non-RPP kWh",VLOOKUP(H$4,'4. Billing Determinants'!$B$19:$R$41,6,0)/'4. Billing Determinants'!$G$41*$D15, VLOOKUP(H$4,'4. Billing Determinants'!$B$19:$AA$41,23,0)*$D15)))),0) -> -229.8659682 | I15: =IFERROR(IF(I$4="",0,IF($E15="kWh",VLOOKUP(I$4,'4. Billing Determinants'!$B$19:$R$41,4,0)/'4. Billing Determinants'!$E$41*$D15,IF($E15="kW",VLOOKUP(I$4,'4. Billing Determinants'!$B$19:$R$41,5,0)/'4. Billing Determinants'!$F$41*$D15,IF($E15="Non-RPP kWh",VLOOKUP(I$4,'4. Billing Determinants'!$B$19:$R$41,6,0)/'4. Billing Determinants'!$G$41*$D15, VLOOKUP(I$4,'4. Billing Determinants'!$B$19:$AA$41,23,0)*$D15)))),0) -> -145.8 | J15: =IFERROR(IF(J$4="",0,IF($E15="kWh",VLOOKUP(J$4,'4. Billing Determinants'!$B$19:$R$41,4,0)/'4. Billing Determinants'!$E$41*$D15,IF($E15="kW",VLOOKUP(J$4,'4. Billing Determinants'!$B$19:$R$41,5,0)/'4. Billing Determinants'!$F$41*$D15,IF($E15="Non-RPP kWh",VLOOKUP(J$4,'4. Billing Determinants'!$B$19:$R$41,6,0)/'4. Billing Determinants'!$G$41*$D15, VLOOKUP(J$4,'4. Billing Determinants'!$B$19:$AA$41,23,0)*$D15)))),0) -> 0 | K15: =IFERROR(IF(K$4="",0,IF($E15="kWh",VLOOKUP(K$4,'4. Billing Determinants'!$B$19:$R$41,4,0)/'4. Billing Determinants'!$E$41*$D15,IF($E15="kW",VLOOKUP(K$4,'4. Billing Determinants'!$B$19:$R$41,5,0)/'4. Billing Determinants'!$F$41*$D15,IF($E15="Non-RPP kWh",VLOOKUP(K$4,'4. Billing Determinants'!$B$19:$R$41,6,0)/'4. Billing Determinants'!$G$41*$D15, VLOOKUP(K$4,'4. Billing Determinants'!$B$19:$AA$41,23,0)*$D15)))),0) -> -10.03869862 | L15: =IFERROR(IF(L$4="",0,IF($E15="kWh",VLOOKUP(L$4,'4. Billing Determinants'!$B$19:$R$41,4,0)/'4. Billing Determinants'!$E$41*$D15,IF($E15="kW",VLOOKUP(L$4,'4. Billing Determinants'!$B$19:$R$41,5,0)/'4. Billing Determinants'!$F$41*$D15,IF($E15="Non-RPP kWh",VLOOKUP(L$4,'4. Billing Determinants'!$B$19:$R$41,6,0)/'4. Billing Determinants'!$G$41*$D15, VLOOKUP(L$4,'4. Billing Determinants'!$B$19:$AA$41,23,0)*$D15)))),0) -> -0.04612979094 | M15: =IFERROR(IF(M$4="",0,IF($E15="kWh",VLOOKUP(M$4,'4. Billing Determinants'!$B$19:$R$41,4,0)/'4. Billing Determinants'!$E$41*$D15,IF($E15="kW",VLOOKUP(M$4,'4. Billing Determinants'!$B$19:$R$41,5,0)/'4. Billing Determinants'!$F$41*$D15,IF($E15="Non-RPP kWh",VLOOKUP(M$4,'4. Billing Determinants'!$B$19:$R$41,6,0)/'4. Billing Determinants'!$G$41*$D15, VLOOKUP(M$4,'4. Billing Determinants'!$B$19:$AA$41,23,0)*$D15)))),0) -> -1.441760638 | N15: =IFERROR(IF(N$4="",0,IF($E15="kWh",VLOOKUP(N$4,'4. Billing Determinants'!$B$19:$R$41,4,0)/'4. Billing Determinants'!$E$41*$D15,IF($E15="kW",VLOOKUP(N$4,'4. Billing Determinants'!$B$19:$R$41,5,0)/'4. Billing Determinants'!$F$41*$D15,IF($E15="Non-RPP kWh",VLOOKUP(N$4,'4. Billing Determinants'!$B$19:$R$41,6,0)/'4. Billing Determinants'!$G$41*$D15, VLOOKUP(N$4,'4. Billing Determinants'!$B$19:$AA$41,23,0)*$D15)))),0) -> 0 | O15: =IFERROR(IF(O$4="",0,IF($E15="kWh",VLOOKUP(O$4,'4. Billing Determinants'!$B$19:$R$41,4,0)/'4. Billing Determinants'!$E$41*$D15,IF($E15="kW",VLOOKUP(O$4,'4. Billing Determinants'!$B$19:$R$41,5,0)/'4. Billing Determinants'!$F$41*$D15,IF($E15="Non-RPP kWh",VLOOKUP(O$4,'4. Billing Determinants'!$B$19:$R$41,6,0)/'4. Billing Determinants'!$G$41*$D15, VLOOKUP(O$4,'4. Billing Determinants'!$B$19:$AA$41,23,0)*$D15)))),0) -> 0 | P15: =IFERROR(IF(P$4="",0,IF($E15="kWh",VLOOKUP(P$4,'4. Billing Determinants'!$B$19:$R$41,4,0)/'4. Billing Determinants'!$E$41*$D15,IF($E15="kW",VLOOKUP(P$4,'4. Billing Determinants'!$B$19:$R$41,5,0)/'4. Billing Determinants'!$F$41*$D15,IF($E15="Non-RPP kWh",VLOOKUP(P$4,'4. Billing Determinants'!$B$19:$R$41,6,0)/'4. Billing Determinants'!$G$41*$D15, VLOOKUP(P$4,'4. Billing Determinants'!$B$19:$AA$41,23,0)*$D15)))),0) -> 0 | Q15: =IFERROR(IF(Q$4="",0,IF($E15="kWh",VLOOKUP(Q$4,'4. Billing Determinants'!$B$19:$R$41,4,0)/'4. Billing Determinants'!$E$41*$D15,IF($E15="kW",VLOOKUP(Q$4,'4. Billing Determinants'!$B$19:$R$41,5,0)/'4. Billing Determinants'!$F$41*$D15,IF($E15="Non-RPP kWh",VLOOKUP(Q$4,'4. Billing Determinants'!$B$19:$R$41,6,0)/'4. Billing Determinants'!$G$41*$D15, VLOOKUP(Q$4,'4. Billing Determinants'!$B$19:$AA$41,23,0)*$D15)))),0) -> 0 | R15: =IFERROR(IF(R$4="",0,IF($E15="kWh",VLOOKUP(R$4,'4. Billing Determinants'!$B$19:$R$41,4,0)/'4. Billing Determinants'!$E$41*$D15,IF($E15="kW",VLOOKUP(R$4,'4. Billing Determinants'!$B$19:$R$41,5,0)/'4. Billing Determinants'!$F$41*$D15,IF($E15="Non-RPP kWh",VLOOKUP(R$4,'4. Billing Determinants'!$B$19:$R$41,6,0)/'4. Billing Determinants'!$G$41*$D15, VLOOKUP(R$4,'4. Billing Determinants'!$B$19:$AA$41,23,0)*$D15)))),0) -> 0 | S15: =IFERROR(IF(S$4="",0,IF($E15="kWh",VLOOKUP(S$4,'4. Billing Determinants'!$B$19:$R$41,4,0)/'4. Billing Determinants'!$E$41*$D15,IF($E15="kW",VLOOKUP(S$4,'4. Billing Determinants'!$B$19:$R$41,5,0)/'4. Billing Determinants'!$F$41*$D15,IF($E15="Non-RPP kWh",VLOOKUP(S$4,'4. Billing Determinants'!$B$19:$R$41,6,0)/'4. Billing Determinants'!$G$41*$D15, VLOOKUP(S$4,'4. Billing Determinants'!$B$19:$AA$41,23,0)*$D15)))),0) -> 0 | T15: =IFERROR(IF(T$4="",0,IF($E15="kWh",VLOOKUP(T$4,'4. Billing Determinants'!$B$19:$R$41,4,0)/'4. Billing Determinants'!$E$41*$D15,IF($E15="kW",VLOOKUP(T$4,'4. Billing Determinants'!$B$19:$R$41,5,0)/'4. Billing Determinants'!$F$41*$D15,IF($E15="Non-RPP kWh",VLOOKUP(T$4,'4. Billing Determinants'!$B$19:$R$41,6,0)/'4. Billing Determinants'!$G$41*$D15, VLOOKUP(T$4,'4. Billing Determinants'!$B$19:$AA$41,23,0)*$D15)))),0) -> 0 | U15: =IFERROR(IF(U$4="",0,IF($E15="kWh",VLOOKUP(U$4,'4. Billing Determinants'!$B$19:$R$41,4,0)/'4. Billing Determinants'!$E$41*$D15,IF($E15="kW",VLOOKUP(U$4,'4. Billing Determinants'!$B$19:$R$41,5,0)/'4. Billing Determinants'!$F$41*$D15,IF($E15="Non-RPP kWh",VLOOKUP(U$4,'4. Billing Determinants'!$B$19:$R$41,6,0)/'4. Billing Determinants'!$G$41*$D15, VLOOKUP(U$4,'4. Billing Determinants'!$B$19:$AA$41,23,0)*$D15)))),0) -> 0 | V15: =IFERROR(IF(V$4="",0,IF($E15="kWh",VLOOKUP(V$4,'4. Billing Determinants'!$B$19:$R$41,4,0)/'4. Billing Determinants'!$E$41*$D15,IF($E15="kW",VLOOKUP(V$4,'4. Billing Determinants'!$B$19:$R$41,5,0)/'4. Billing Determinants'!$F$41*$D15,IF($E15="Non-RPP kWh",VLOOKUP(V$4,'4. Billing Determinants'!$B$19:$R$41,6,0)/'4. Billing Determinants'!$G$41*$D15, VLOOKUP(V$4,'4. Billing Determinants'!$B$19:$AA$41,23,0)*$D15)))),0) -> 0 | W15: =IFERROR(IF(W$4="",0,IF($E15="kWh",VLOOKUP(W$4,'4. Billing Determinants'!$B$19:$R$41,4,0)/'4. Billing Determinants'!$E$41*$D15,IF($E15="kW",VLOOKUP(W$4,'4. Billing Determinants'!$B$19:$R$41,5,0)/'4. Billing Determinants'!$F$41*$D15,IF($E15="Non-RPP kWh",VLOOKUP(W$4,'4. Billing Determinants'!$B$19:$R$41,6,0)/'4. Billing Determinants'!$G$41*$D15, VLOOKUP(W$4,'4. Billing Determinants'!$B$19:$AA$41,23,0)*$D15)))),0) -> 0 | X15: =IFERROR(IF(X$4="",0,IF($E15="kWh",VLOOKUP(X$4,'4. Billing Determinants'!$B$19:$R$41,4,0)/'4. Billing Determinants'!$E$41*$D15,IF($E15="kW",VLOOKUP(X$4,'4. Billing Determinants'!$B$19:$R$41,5,0)/'4. Billing Determinants'!$F$41*$D15,IF($E15="Non-RPP kWh",VLOOKUP(X$4,'4. Billing Determinants'!$B$19:$R$41,6,0)/'4. Billing Determinants'!$G$41*$D15, VLOOKUP(X$4,'4. Billing Determinants'!$B$19:$AA$41,23,0)*$D15)))),0) -> 0 | Y15: =IFERROR(IF(Y$4="",0,IF($E15="kWh",VLOOKUP(Y$4,'4. Billing Determinants'!$B$19:$R$41,4,0)/'4. Billing Determinants'!$E$41*$D15,IF($E15="kW",VLOOKUP(Y$4,'4. Billing Determinants'!$B$19:$R$41,5,0)/'4. Billing Determinants'!$F$41*$D15,IF($E15="Non-RPP kWh",VLOOKUP(Y$4,'4. Billing Determinants'!$B$19:$R$41,6,0)/'4. Billing Determinants'!$G$41*$D15, VLOOKUP(Y$4,'4. Billing Determinants'!$B$19:$AA$41,23,0)*$D15)))),0) -> 0
A16: 13 | B16: Disposition and Recovery/Refund of Regulatory Balances (2013) | C16: 1595 | D16: =+'2. 2016 Continuity Schedule'!BT37 -> -1403.906667 | E16: % | F16: =IFERROR(IF(F$4="",0,IF($E16="kWh",VLOOKUP(F$4,'4. Billing Determinants'!$B$19:$R$41,4,0)/'4. Billing Determinants'!$E$41*$D16,IF($E16="kW",VLOOKUP(F$4,'4. Billing Determinants'!$B$19:$R$41,5,0)/'4. Billing Determinants'!$F$41*$D16,IF($E16="Non-RPP kWh",VLOOKUP(F$4,'4. Billing Determinants'!$B$19:$R$41,6,0)/'4. Billing Determinants'!$G$41*$D16, VLOOKUP(F$4,'4. Billing Determinants'!$B$19:$AA$41,24,0)*$D16)))),0) -> -567.6230862 | G16: =IFERROR(IF(G$4="",0,IF($E16="kWh",VLOOKUP(G$4,'4. Billing Determinants'!$B$19:$R$41,4,0)/'4. Billing Determinants'!$E$41*$D16,IF($E16="kW",VLOOKUP(G$4,'4. Billing Determinants'!$B$19:$R$41,5,0)/'4. Billing Determinants'!$F$41*$D16,IF($E16="Non-RPP kWh",VLOOKUP(G$4,'4. Billing Determinants'!$B$19:$R$41,6,0)/'4. Billing Determinants'!$G$41*$D16, VLOOKUP(G$4,'4. Billing Determinants'!$B$19:$AA$41,24,0)*$D16)))),0) -> -268.7092493 | H16: =IFERROR(IF(H$4="",0,IF($E16="kWh",VLOOKUP(H$4,'4. Billing Determinants'!$B$19:$R$41,4,0)/'4. Billing Determinants'!$E$41*$D16,IF($E16="kW",VLOOKUP(H$4,'4. Billing Determinants'!$B$19:$R$41,5,0)/'4. Billing Determinants'!$F$41*$D16,IF($E16="Non-RPP kWh",VLOOKUP(H$4,'4. Billing Determinants'!$B$19:$R$41,6,0)/'4. Billing Determinants'!$G$41*$D16, VLOOKUP(H$4,'4. Billing Determinants'!$B$19:$AA$41,24,0)*$D16)))),0) -> -354.0895746 | I16: =IFERROR(IF(I$4="",0,IF($E16="kWh",VLOOKUP(I$4,'4. Billing Determinants'!$B$19:$R$41,4,0)/'4. Billing Determinants'!$E$41*$D16,IF($E16="kW",VLOOKUP(I$4,'4. Billing Determinants'!$B$19:$R$41,5,0)/'4. Billing Determinants'!$F$41*$D16,IF($E16="Non-RPP kWh",VLOOKUP(I$4,'4. Billing Determinants'!$B$19:$R$41,6,0)/'4. Billing Determinants'!$G$41*$D16, VLOOKUP(I$4,'4. Billing Determinants'!$B$19:$AA$41,24,0)*$D16)))),0) -> -196.5469333 | J16: =IFERROR(IF(J$4="",0,IF($E16="kWh",VLOOKUP(J$4,'4. Billing Determinants'!$B$19:$R$41,4,0)/'4. Billing Determinants'!$E$41*$D16,IF($E16="kW",VLOOKUP(J$4,'4. Billing Determinants'!$B$19:$R$41,5,0)/'4. Billing Determinants'!$F$41*$D16,IF($E16="Non-RPP kWh",VLOOKUP(J$4,'4. Billing Determinants'!$B$19:$R$41,6,0)/'4. Billing Determinants'!$G$41*$D16, VLOOKUP(J$4,'4. Billing Determinants'!$B$19:$AA$41,24,0)*$D16)))),0) -> 0 | K16: =IFERROR(IF(K$4="",0,IF($E16="kWh",VLOOKUP(K$4,'4. Billing Determinants'!$B$19:$R$41,4,0)/'4. Billing Determinants'!$E$41*$D16,IF($E16="kW",VLOOKUP(K$4,'4. Billing Determinants'!$B$19:$R$41,5,0)/'4. Billing Determinants'!$F$41*$D16,IF($E16="Non-RPP kWh",VLOOKUP(K$4,'4. Billing Determinants'!$B$19:$R$41,6,0)/'4. Billing Determinants'!$G$41*$D16, VLOOKUP(K$4,'4. Billing Determinants'!$B$19:$AA$41,24,0)*$D16)))),0) -> -11.85854995 | L16: =IFERROR(IF(L$4="",0,IF($E16="kWh",VLOOKUP(L$4,'4. Billing Determinants'!$B$19:$R$41,4,0)/'4. Billing Determinants'!$E$41*$D16,IF($E16="kW",VLOOKUP(L$4,'4. Billing Determinants'!$B$19:$R$41,5,0)/'4. Billing Determinants'!$F$41*$D16,IF($E16="Non-RPP kWh",VLOOKUP(L$4,'4. Billing Determinants'!$B$19:$R$41,6,0)/'4. Billing Determinants'!$G$41*$D16, VLOOKUP(L$4,'4. Billing Determinants'!$B$19:$AA$41,24,0)*$D16)))),0) -> 0.2345172512 | M16: =IFERROR(IF(M$4="",0,IF($E16="kWh",VLOOKUP(M$4,'4. Billing Determinants'!$B$19:$R$41,4,0)/'4. Billing Determinants'!$E$41*$D16,IF($E16="kW",VLOOKUP(M$4,'4. Billing Determinants'!$B$19:$R$41,5,0)/'4. Billing Determinants'!$F$41*$D16,IF($E16="Non-RPP kWh",VLOOKUP(M$4,'4. Billing Determinants'!$B$19:$R$41,6,0)/'4. Billing Determinants'!$G$41*$D16, VLOOKUP(M$4,'4. Billing Determinants'!$B$19:$AA$41,24,0)*$D16)))),0) -> -3.885580562 | N16: =IFERROR(IF(N$4="",0,IF($E16="kWh",VLOOKUP(N$4,'4. Billing Determinants'!$B$19:$R$41,4,0)/'4. Billing Determinants'!$E$41*$D16,IF($E16="kW",VLOOKUP(N$4,'4. Billing Determinants'!$B$19:$R$41,5,0)/'4. Billing Determinants'!$F$41*$D16,IF($E16="Non-RPP kWh",VLOOKUP(N$4,'4. Billing Determinants'!$B$19:$R$41,6,0)/'4. Billing Determinants'!$G$41*$D16, VLOOKUP(N$4,'4. Billing Determinants'!$B$19:$AA$41,24,0)*$D16)))),0) -> 0 | O16: =IFERROR(IF(O$4="",0,IF($E16="kWh",VLOOKUP(O$4,'4. Billing Determinants'!$B$19:$R$41,4,0)/'4. Billing Determinants'!$E$41*$D16,IF($E16="kW",VLOOKUP(O$4,'4. Billing Determinants'!$B$19:$R$41,5,0)/'4. Billing Determinants'!$F$41*$D16,IF($E16="Non-RPP kWh",VLOOKUP(O$4,'4. Billing Determinants'!$B$19:$R$41,6,0)/'4. Billing Determinants'!$G$41*$D16, VLOOKUP(O$4,'4. Billing Determinants'!$B$19:$AA$41,24,0)*$D16)))),0) -> 0 | P16: =IFERROR(IF(P$4="",0,IF($E16="kWh",VLOOKUP(P$4,'4. Billing Determinants'!$B$19:$R$41,4,0)/'4. Billing Determinants'!$E$41*$D16,IF($E16="kW",VLOOKUP(P$4,'4. Billing Determinants'!$B$19:$R$41,5,0)/'4. Billing Determinants'!$F$41*$D16,IF($E16="Non-RPP kWh",VLOOKUP(P$4,'4. Billing Determinants'!$B$19:$R$41,6,0)/'4. Billing Determinants'!$G$41*$D16, VLOOKUP(P$4,'4. Billing Determinants'!$B$19:$AA$41,24,0)*$D16)))),0) -> 0 | Q16: =IFERROR(IF(Q$4="",0,IF($E16="kWh",VLOOKUP(Q$4,'4. Billing Determinants'!$B$19:$R$41,4,0)/'4. Billing Determinants'!$E$41*$D16,IF($E16="kW",VLOOKUP(Q$4,'4. Billing Determinants'!$B$19:$R$41,5,0)/'4. Billing Determinants'!$F$41*$D16,IF($E16="Non-RPP kWh",VLOOKUP(Q$4,'4. Billing Determinants'!$B$19:$R$41,6,0)/'4. Billing Determinants'!$G$41*$D16, VLOOKUP(Q$4,'4. Billing Determinants'!$B$19:$AA$41,24,0)*$D16)))),0) -> 0 | R16: =IFERROR(IF(R$4="",0,IF($E16="kWh",VLOOKUP(R$4,'4. Billing Determinants'!$B$19:$R$41,4,0)/'4. Billing Determinants'!$E$41*$D16,IF($E16="kW",VLOOKUP(R$4,'4. Billing Determinants'!$B$19:$R$41,5,0)/'4. Billing Determinants'!$F$41*$D16,IF($E16="Non-RPP kWh",VLOOKUP(R$4,'4. Billing Determinants'!$B$19:$R$41,6,0)/'4. Billing Determinants'!$G$41*$D16, VLOOKUP(R$4,'4. Billing Determinants'!$B$19:$AA$41,24,0)*$D16)))),0) -> 0 | S16: =IFERROR(IF(S$4="",0,IF($E16="kWh",VLOOKUP(S$4,'4. Billing Determinants'!$B$19:$R$41,4,0)/'4. Billing Determinants'!$E$41*$D16,IF($E16="kW",VLOOKUP(S$4,'4. Billing Determinants'!$B$19:$R$41,5,0)/'4. Billing Determinants'!$F$41*$D16,IF($E16="Non-RPP kWh",VLOOKUP(S$4,'4. Billing Determinants'!$B$19:$R$41,6,0)/'4. Billing Determinants'!$G$41*$D16, VLOOKUP(S$4,'4. Billing Determinants'!$B$19:$AA$41,24,0)*$D16)))),0) -> 0 | T16: =IFERROR(IF(T$4="",0,IF($E16="kWh",VLOOKUP(T$4,'4. Billing Determinants'!$B$19:$R$41,4,0)/'4. Billing Determinants'!$E$41*$D16,IF($E16="kW",VLOOKUP(T$4,'4. Billing Determinants'!$B$19:$R$41,5,0)/'4. Billing Determinants'!$F$41*$D16,IF($E16="Non-RPP kWh",VLOOKUP(T$4,'4. Billing Determinants'!$B$19:$R$41,6,0)/'4. Billing Determinants'!$G$41*$D16, VLOOKUP(T$4,'4. Billing Determinants'!$B$19:$AA$41,24,0)*$D16)))),0) -> 0 | U16: =IFERROR(IF(U$4="",0,IF($E16="kWh",VLOOKUP(U$4,'4. Billing Determinants'!$B$19:$R$41,4,0)/'4. Billing Determinants'!$E$41*$D16,IF($E16="kW",VLOOKUP(U$4,'4. Billing Determinants'!$B$19:$R$41,5,0)/'4. Billing Determinants'!$F$41*$D16,IF($E16="Non-RPP kWh",VLOOKUP(U$4,'4. Billing Determinants'!$B$19:$R$41,6,0)/'4. Billing Determinants'!$G$41*$D16, VLOOKUP(U$4,'4. Billing Determinants'!$B$19:$AA$41,24,0)*$D16)))),0) -> 0 | V16: =IFERROR(IF(V$4="",0,IF($E16="kWh",VLOOKUP(V$4,'4. Billing Determinants'!$B$19:$R$41,4,0)/'4. Billing Determinants'!$E$41*$D16,IF($E16="kW",VLOOKUP(V$4,'4. Billing Determinants'!$B$19:$R$41,5,0)/'4. Billing Determinants'!$F$41*$D16,IF($E16="Non-RPP kWh",VLOOKUP(V$4,'4. Billing Determinants'!$B$19:$R$41,6,0)/'4. Billing Determinants'!$G$41*$D16, VLOOKUP(V$4,'4. Billing Determinants'!$B$19:$AA$41,24,0)*$D16)))),0) -> 0 | W16: =IFERROR(IF(W$4="",0,IF($E16="kWh",VLOOKUP(W$4,'4. Billing Determinants'!$B$19:$R$41,4,0)/'4. Billing Determinants'!$E$41*$D16,IF($E16="kW",VLOOKUP(W$4,'4. Billing Determinants'!$B$19:$R$41,5,0)/'4. Billing Determinants'!$F$41*$D16,IF($E16="Non-RPP kWh",VLOOKUP(W$4,'4. Billing Determinants'!$B$19:$R$41,6,0)/'4. Billing Determinants'!$G$41*$D16, VLOOKUP(W$4,'4. Billing Determinants'!$B$19:$AA$41,24,0)*$D16)))),0) -> 0 | X16: =IFERROR(IF(X$4="",0,IF($E16="kWh",VLOOKUP(X$4,'4. Billing Determinants'!$B$19:$R$41,4,0)/'4. Billing Determinants'!$E$41*$D16,IF($E16="kW",VLOOKUP(X$4,'4. Billing Determinants'!$B$19:$R$41,5,0)/'4. Billing Determinants'!$F$41*$D16,IF($E16="Non-RPP kWh",VLOOKUP(X$4,'4. Billing Determinants'!$B$19:$R$41,6,0)/'4. Billing Determinants'!$G$41*$D16, VLOOKUP(X$4,'4. Billing Determinants'!$B$19:$AA$41,24,0)*$D16)))),0) -> 0 | Y16: =IFERROR(IF(Y$4="",0,IF($E16="kWh",VLOOKUP(Y$4,'4. Billing Determinants'!$B$19:$R$41,4,0)/'4. Billing Determinants'!$E$41*$D16,IF($E16="kW",VLOOKUP(Y$4,'4. Billing Determinants'!$B$19:$R$41,5,0)/'4. Billing Determinants'!$F$41*$D16,IF($E16="Non-RPP kWh",VLOOKUP(Y$4,'4. Billing Determinants'!$B$19:$R$41,6,0)/'4. Billing Determinants'!$G$41*$D16, VLOOKUP(Y$4,'4. Billing Determinants'!$B$19:$AA$41,24,0)*$D16)))),0) -> 0
A17: 14 | B17: Disposition and Recovery/Refund of Regulatory Balances (2014) | C17: 1595 | D17: =+'2. 2016 Continuity Schedule'!BT38 -> 53468.78133 | E17: % | F17: =IFERROR(IF(F$4="",0,IF($E17="kWh",VLOOKUP(F$4,'4. Billing Determinants'!$B$19:$R$41,4,0)/'4. Billing Determinants'!$E$41*$D17,IF($E17="kW",VLOOKUP(F$4,'4. Billing Determinants'!$B$19:$R$41,5,0)/'4. Billing Determinants'!$F$41*$D17,IF($E17="Non-RPP kWh",VLOOKUP(F$4,'4. Billing Determinants'!$B$19:$R$41,6,0)/'4. Billing Determinants'!$G$41*$D17, VLOOKUP(F$4,'4. Billing Determinants'!$B$19:$AA$41,25,0)*$D17)))),0) -> 21306.85907 | G17: =IFERROR(IF(G$4="",0,IF($E17="kWh",VLOOKUP(G$4,'4. Billing Determinants'!$B$19:$R$41,4,0)/'4. Billing Determinants'!$E$41*$D17,IF($E17="kW",VLOOKUP(G$4,'4. Billing Determinants'!$B$19:$R$41,5,0)/'4. Billing Determinants'!$F$41*$D17,IF($E17="Non-RPP kWh",VLOOKUP(G$4,'4. Billing Determinants'!$B$19:$R$41,6,0)/'4. Billing Determinants'!$G$41*$D17, VLOOKUP(G$4,'4. Billing Determinants'!$B$19:$AA$41,25,0)*$D17)))),0) -> 8241.193269 | H17: =IFERROR(IF(H$4="",0,IF($E17="kWh",VLOOKUP(H$4,'4. Billing Determinants'!$B$19:$R$41,4,0)/'4. Billing Determinants'!$E$41*$D17,IF($E17="kW",VLOOKUP(H$4,'4. Billing Determinants'!$B$19:$R$41,5,0)/'4. Billing Determinants'!$F$41*$D17,IF($E17="Non-RPP kWh",VLOOKUP(H$4,'4. Billing Determinants'!$B$19:$R$41,6,0)/'4. Billing Determinants'!$G$41*$D17, VLOOKUP(H$4,'4. Billing Determinants'!$B$19:$AA$41,25,0)*$D17)))),0) -> 14601.85067 | I17: =IFERROR(IF(I$4="",0,IF($E17="kWh",VLOOKUP(I$4,'4. Billing Determinants'!$B$19:$R$41,4,0)/'4. Billing Determinants'!$E$41*$D17,IF($E17="kW",VLOOKUP(I$4,'4. Billing Determinants'!$B$19:$R$41,5,0)/'4. Billing Determinants'!$F$41*$D17,IF($E17="Non-RPP kWh",VLOOKUP(I$4,'4. Billing Determinants'!$B$19:$R$41,6,0)/'4. Billing Determinants'!$G$41*$D17, VLOOKUP(I$4,'4. Billing Determinants'!$B$19:$AA$41,25,0)*$D17)))),0) -> 8555.005013 | J17: =IFERROR(IF(J$4="",0,IF($E17="kWh",VLOOKUP(J$4,'4. Billing Determinants'!$B$19:$R$41,4,0)/'4. Billing Determinants'!$E$41*$D17,IF($E17="kW",VLOOKUP(J$4,'4. Billing Determinants'!$B$19:$R$41,5,0)/'4. Billing Determinants'!$F$41*$D17,IF($E17="Non-RPP kWh",VLOOKUP(J$4,'4. Billing Determinants'!$B$19:$R$41,6,0)/'4. Billing Determinants'!$G$41*$D17, VLOOKUP(J$4,'4. Billing Determinants'!$B$19:$AA$41,25,0)*$D17)))),0) -> 0 | K17: =IFERROR(IF(K$4="",0,IF($E17="kWh",VLOOKUP(K$4,'4. Billing Determinants'!$B$19:$R$41,4,0)/'4. Billing Determinants'!$E$41*$D17,IF($E17="kW",VLOOKUP(K$4,'4. Billing Determinants'!$B$19:$R$41,5,0)/'4. Billing Determinants'!$F$41*$D17,IF($E17="Non-RPP kWh",VLOOKUP(K$4,'4. Billing Determinants'!$B$19:$R$41,6,0)/'4. Billing Determinants'!$G$41*$D17, VLOOKUP(K$4,'4. Billing Determinants'!$B$19:$AA$41,25,0)*$D17)))),0) -> 513.957838 | L17: =IFERROR(IF(L$4="",0,IF($E17="kWh",VLOOKUP(L$4,'4. Billing Determinants'!$B$19:$R$41,4,0)/'4. Billing Determinants'!$E$41*$D17,IF($E17="kW",VLOOKUP(L$4,'4. Billing Determinants'!$B$19:$R$41,5,0)/'4. Billing Determinants'!$F$41*$D17,IF($E17="Non-RPP kWh",VLOOKUP(L$4,'4. Billing Determinants'!$B$19:$R$41,6,0)/'4. Billing Determinants'!$G$41*$D17, VLOOKUP(L$4,'4. Billing Determinants'!$B$19:$AA$41,25,0)*$D17)))),0) -> 8.79609933 | M17: =IFERROR(IF(M$4="",0,IF($E17="kWh",VLOOKUP(M$4,'4. Billing Determinants'!$B$19:$R$41,4,0)/'4. Billing Determinants'!$E$41*$D17,IF($E17="kW",VLOOKUP(M$4,'4. Billing Determinants'!$B$19:$R$41,5,0)/'4. Billing Determinants'!$F$41*$D17,IF($E17="Non-RPP kWh",VLOOKUP(M$4,'4. Billing Determinants'!$B$19:$R$41,6,0)/'4. Billing Determinants'!$G$41*$D17, VLOOKUP(M$4,'4. Billing Determinants'!$B$19:$AA$41,25,0)*$D17)))),0) -> 133.2696759 | N17: =IFERROR(IF(N$4="",0,IF($E17="kWh",VLOOKUP(N$4,'4. Billing Determinants'!$B$19:$R$41,4,0)/'4. Billing Determinants'!$E$41*$D17,IF($E17="kW",VLOOKUP(N$4,'4. Billing Determinants'!$B$19:$R$41,5,0)/'4. Billing Determinants'!$F$41*$D17,IF($E17="Non-RPP kWh",VLOOKUP(N$4,'4. Billing Determinants'!$B$19:$R$41,6,0)/'4. Billing Determinants'!$G$41*$D17, VLOOKUP(N$4,'4. Billing Determinants'!$B$19:$AA$41,25,0)*$D17)))),0) -> 0 | O17: =IFERROR(IF(O$4="",0,IF($E17="kWh",VLOOKUP(O$4,'4. Billing Determinants'!$B$19:$R$41,4,0)/'4. Billing Determinants'!$E$41*$D17,IF($E17="kW",VLOOKUP(O$4,'4. Billing Determinants'!$B$19:$R$41,5,0)/'4. Billing Determinants'!$F$41*$D17,IF($E17="Non-RPP kWh",VLOOKUP(O$4,'4. Billing Determinants'!$B$19:$R$41,6,0)/'4. Billing Determinants'!$G$41*$D17, VLOOKUP(O$4,'4. Billing Determinants'!$B$19:$AA$41,25,0)*$D17)))),0) -> 0 | P17: =IFERROR(IF(P$4="",0,IF($E17="kWh",VLOOKUP(P$4,'4. Billing Determinants'!$B$19:$R$41,4,0)/'4. Billing Determinants'!$E$41*$D17,IF($E17="kW",VLOOKUP(P$4,'4. Billing Determinants'!$B$19:$R$41,5,0)/'4. Billing Determinants'!$F$41*$D17,IF($E17="Non-RPP kWh",VLOOKUP(P$4,'4. Billing Determinants'!$B$19:$R$41,6,0)/'4. Billing Determinants'!$G$41*$D17, VLOOKUP(P$4,'4. Billing Determinants'!$B$19:$AA$41,25,0)*$D17)))),0) -> 0 | Q17: =IFERROR(IF(Q$4="",0,IF($E17="kWh",VLOOKUP(Q$4,'4. Billing Determinants'!$B$19:$R$41,4,0)/'4. Billing Determinants'!$E$41*$D17,IF($E17="kW",VLOOKUP(Q$4,'4. Billing Determinants'!$B$19:$R$41,5,0)/'4. Billing Determinants'!$F$41*$D17,IF($E17="Non-RPP kWh",VLOOKUP(Q$4,'4. Billing Determinants'!$B$19:$R$41,6,0)/'4. Billing Determinants'!$G$41*$D17, VLOOKUP(Q$4,'4. Billing Determinants'!$B$19:$AA$41,25,0)*$D17)))),0) -> 0 | R17: =IFERROR(IF(R$4="",0,IF($E17="kWh",VLOOKUP(R$4,'4. Billing Determinants'!$B$19:$R$41,4,0)/'4. Billing Determinants'!$E$41*$D17,IF($E17="kW",VLOOKUP(R$4,'4. Billing Determinants'!$B$19:$R$41,5,0)/'4. Billing Determinants'!$F$41*$D17,IF($E17="Non-RPP kWh",VLOOKUP(R$4,'4. Billing Determinants'!$B$19:$R$41,6,0)/'4. Billing Determinants'!$G$41*$D17, VLOOKUP(R$4,'4. Billing Determinants'!$B$19:$AA$41,25,0)*$D17)))),0) -> 0 | S17: =IFERROR(IF(S$4="",0,IF($E17="kWh",VLOOKUP(S$4,'4. Billing Determinants'!$B$19:$R$41,4,0)/'4. Billing Determinants'!$E$41*$D17,IF($E17="kW",VLOOKUP(S$4,'4. Billing Determinants'!$B$19:$R$41,5,0)/'4. Billing Determinants'!$F$41*$D17,IF($E17="Non-RPP kWh",VLOOKUP(S$4,'4. Billing Determinants'!$B$19:$R$41,6,0)/'4. Billing Determinants'!$G$41*$D17, VLOOKUP(S$4,'4. Billing Determinants'!$B$19:$AA$41,25,0)*$D17)))),0) -> 0 | T17: =IFERROR(IF(T$4="",0,IF($E17="kWh",VLOOKUP(T$4,'4. Billing Determinants'!$B$19:$R$41,4,0)/'4. Billing Determinants'!$E$41*$D17,IF($E17="kW",VLOOKUP(T$4,'4. Billing Determinants'!$B$19:$R$41,5,0)/'4. Billing Determinants'!$F$41*$D17,IF($E17="Non-RPP kWh",VLOOKUP(T$4,'4. Billing Determinants'!$B$19:$R$41,6,0)/'4. Billing Determinants'!$G$41*$D17, VLOOKUP(T$4,'4. Billing Determinants'!$B$19:$AA$41,25,0)*$D17)))),0) -> 0 | U17: =IFERROR(IF(U$4="",0,IF($E17="kWh",VLOOKUP(U$4,'4. Billing Determinants'!$B$19:$R$41,4,0)/'4. Billing Determinants'!$E$41*$D17,IF($E17="kW",VLOOKUP(U$4,'4. Billing Determinants'!$B$19:$R$41,5,0)/'4. Billing Determinants'!$F$41*$D17,IF($E17="Non-RPP kWh",VLOOKUP(U$4,'4. Billing Determinants'!$B$19:$R$41,6,0)/'4. Billing Determinants'!$G$41*$D17, VLOOKUP(U$4,'4. Billing Determinants'!$B$19:$AA$41,25,0)*$D17)))),0) -> 0 | V17: =IFERROR(IF(V$4="",0,IF($E17="kWh",VLOOKUP(V$4,'4. Billing Determinants'!$B$19:$R$41,4,0)/'4. Billing Determinants'!$E$41*$D17,IF($E17="kW",VLOOKUP(V$4,'4. Billing Determinants'!$B$19:$R$41,5,0)/'4. Billing Determinants'!$F$41*$D17,IF($E17="Non-RPP kWh",VLOOKUP(V$4,'4. Billing Determinants'!$B$19:$R$41,6,0)/'4. Billing Determinants'!$G$41*$D17, VLOOKUP(V$4,'4. Billing Determinants'!$B$19:$AA$41,25,0)*$D17)))),0) -> 0 | W17: =IFERROR(IF(W$4="",0,IF($E17="kWh",VLOOKUP(W$4,'4. Billing Determinants'!$B$19:$R$41,4,0)/'4. Billing Determinants'!$E$41*$D17,IF($E17="kW",VLOOKUP(W$4,'4. Billing Determinants'!$B$19:$R$41,5,0)/'4. Billing Determinants'!$F$41*$D17,IF($E17="Non-RPP kWh",VLOOKUP(W$4,'4. Billing Determinants'!$B$19:$R$41,6,0)/'4. Billing Determinants'!$G$41*$D17, VLOOKUP(W$4,'4. Billing Determinants'!$B$19:$AA$41,25,0)*$D17)))),0) -> 0 | X17: =IFERROR(IF(X$4="",0,IF($E17="kWh",VLOOKUP(X$4,'4. Billing Determinants'!$B$19:$R$41,4,0)/'4. Billing Determinants'!$E$41*$D17,IF($E17="kW",VLOOKUP(X$4,'4. Billing Determinants'!$B$19:$R$41,5,0)/'4. Billing Determinants'!$F$41*$D17,IF($E17="Non-RPP kWh",VLOOKUP(X$4,'4. Billing Determinants'!$B$19:$R$41,6,0)/'4. Billing Determinants'!$G$41*$D17, VLOOKUP(X$4,'4. Billing Determinants'!$B$19:$AA$41,25,0)*$D17)))),0) -> 0 | Y17: =IFERROR(IF(Y$4="",0,IF($E17="kWh",VLOOKUP(Y$4,'4. Billing Determinants'!$B$19:$R$41,4,0)/'4. Billing Determinants'!$E$41*$D17,IF($E17="kW",VLOOKUP(Y$4,'4. Billing Determinants'!$B$19:$R$41,5,0)/'4. Billing Determinants'!$F$41*$D17,IF($E17="Non-RPP kWh",VLOOKUP(Y$4,'4. Billing Determinants'!$B$19:$R$41,6,0)/'4. Billing Determinants'!$G$41*$D17, VLOOKUP(Y$4,'4. Billing Determinants'!$B$19:$AA$41,25,0)*$D17)))),0) -> 0
A18: 15 | B18: Disposition and Recovery/Refund of Regulatory Balances (2015) | C18: 1595 | D18: =+'2. 2016 Continuity Schedule'!BT39 -> 0 | E18: % | F18: =IFERROR(IF(F$4="",0,IF($E18="kWh",VLOOKUP(F$4,'4. Billing Determinants'!$B$19:$R$41,4,0)/'4. Billing Determinants'!$E$41*$D18,IF($E18="kW",VLOOKUP(F$4,'4. Billing Determinants'!$B$19:$R$41,5,0)/'4. Billing Determinants'!$F$41*$D18,IF($E18="Non-RPP kWh",VLOOKUP(F$4,'4. Billing Determinants'!$B$19:$R$41,6,0)/'4. Billing Determinants'!$G$41*$D18, VLOOKUP(F$4,'4. Billing Determinants'!$B$19:$AA$41,26,0)*$D18)))),0) -> 0 | G18: =IFERROR(IF(G$4="",0,IF($E18="kWh",VLOOKUP(G$4,'4. Billing Determinants'!$B$19:$R$41,4,0)/'4. Billing Determinants'!$E$41*$D18,IF($E18="kW",VLOOKUP(G$4,'4. Billing Determinants'!$B$19:$R$41,5,0)/'4. Billing Determinants'!$F$41*$D18,IF($E18="Non-RPP kWh",VLOOKUP(G$4,'4. Billing Determinants'!$B$19:$R$41,6,0)/'4. Billing Determinants'!$G$41*$D18, VLOOKUP(G$4,'4. Billing Determinants'!$B$19:$AA$41,26,0)*$D18)))),0) -> 0 | H18: =IFERROR(IF(H$4="",0,IF($E18="kWh",VLOOKUP(H$4,'4. Billing Determinants'!$B$19:$R$41,4,0)/'4. Billing Determinants'!$E$41*$D18,IF($E18="kW",VLOOKUP(H$4,'4. Billing Determinants'!$B$19:$R$41,5,0)/'4. Billing Determinants'!$F$41*$D18,IF($E18="Non-RPP kWh",VLOOKUP(H$4,'4. Billing Determinants'!$B$19:$R$41,6,0)/'4. Billing Determinants'!$G$41*$D18, VLOOKUP(H$4,'4. Billing Determinants'!$B$19:$AA$41,26,0)*$D18)))),0) -> 0 | I18: =IFERROR(IF(I$4="",0,IF($E18="kWh",VLOOKUP(I$4,'4. Billing Determinants'!$B$19:$R$41,4,0)/'4. Billing Determinants'!$E$41*$D18,IF($E18="kW",VLOOKUP(I$4,'4. Billing Determinants'!$B$19:$R$41,5,0)/'4. Billing Determinants'!$F$41*$D18,IF($E18="Non-RPP kWh",VLOOKUP(I$4,'4. Billing Determinants'!$B$19:$R$41,6,0)/'4. Billing Determinants'!$G$41*$D18, VLOOKUP(I$4,'4. Billing Determinants'!$B$19:$AA$41,26,0)*$D18)))),0) -> 0 | J18: =IFERROR(IF(J$4="",0,IF($E18="kWh",VLOOKUP(J$4,'4. Billing Determinants'!$B$19:$R$41,4,0)/'4. Billing Determinants'!$E$41*$D18,IF($E18="kW",VLOOKUP(J$4,'4. Billing Determinants'!$B$19:$R$41,5,0)/'4. Billing Determinants'!$F$41*$D18,IF($E18="Non-RPP kWh",VLOOKUP(J$4,'4. Billing Determinants'!$B$19:$R$41,6,0)/'4. Billing Determinants'!$G$41*$D18, VLOOKUP(J$4,'4. Billing Determinants'!$B$19:$AA$41,26,0)*$D18)))),0) -> 0 | K18: =IFERROR(IF(K$4="",0,IF($E18="kWh",VLOOKUP(K$4,'4. Billing Determinants'!$B$19:$R$41,4,0)/'4. Billing Determinants'!$E$41*$D18,IF($E18="kW",VLOOKUP(K$4,'4. Billing Determinants'!$B$19:$R$41,5,0)/'4. Billing Determinants'!$F$41*$D18,IF($E18="Non-RPP kWh",VLOOKUP(K$4,'4. Billing Determinants'!$B$19:$R$41,6,0)/'4. Billing Determinants'!$G$41*$D18, VLOOKUP(K$4,'4. Billing Determinants'!$B$19:$AA$41,26,0)*$D18)))),0) -> 0 | L18: =IFERROR(IF(L$4="",0,IF($E18="kWh",VLOOKUP(L$4,'4. Billing Determinants'!$B$19:$R$41,4,0)/'4. Billing Determinants'!$E$41*$D18,IF($E18="kW",VLOOKUP(L$4,'4. Billing Determinants'!$B$19:$R$41,5,0)/'4. Billing Determinants'!$F$41*$D18,IF($E18="Non-RPP kWh",VLOOKUP(L$4,'4. Billing Determinants'!$B$19:$R$41,6,0)/'4. Billing Determinants'!$G$41*$D18, VLOOKUP(L$4,'4. Billing Determinants'!$B$19:$AA$41,26,0)*$D18)))),0) -> 0 | M18: =IFERROR(IF(M$4="",0,IF($E18="kWh",VLOOKUP(M$4,'4. Billing Determinants'!$B$19:$R$41,4,0)/'4. Billing Determinants'!$E$41*$D18,IF($E18="kW",VLOOKUP(M$4,'4. Billing Determinants'!$B$19:$R$41,5,0)/'4. Billing Determinants'!$F$41*$D18,IF($E18="Non-RPP kWh",VLOOKUP(M$4,'4. Billing Determinants'!$B$19:$R$41,6,0)/'4. Billing Determinants'!$G$41*$D18, VLOOKUP(M$4,'4. Billing Determinants'!$B$19:$AA$41,26,0)*$D18)))),0) -> 0 | N18: =IFERROR(IF(N$4="",0,IF($E18="kWh",VLOOKUP(N$4,'4. Billing Determinants'!$B$19:$R$41,4,0)/'4. Billing Determinants'!$E$41*$D18,IF($E18="kW",VLOOKUP(N$4,'4. Billing Determinants'!$B$19:$R$41,5,0)/'4. Billing Determinants'!$F$41*$D18,IF($E18="Non-RPP kWh",VLOOKUP(N$4,'4. Billing Determinants'!$B$19:$R$41,6,0)/'4. Billing Determinants'!$G$41*$D18, VLOOKUP(N$4,'4. Billing Determinants'!$B$19:$AA$41,26,0)*$D18)))),0) -> 0 | O18: =IFERROR(IF(O$4="",0,IF($E18="kWh",VLOOKUP(O$4,'4. Billing Determinants'!$B$19:$R$41,4,0)/'4. Billing Determinants'!$E$41*$D18,IF($E18="kW",VLOOKUP(O$4,'4. Billing Determinants'!$B$19:$R$41,5,0)/'4. Billing Determinants'!$F$41*$D18,IF($E18="Non-RPP kWh",VLOOKUP(O$4,'4. Billing Determinants'!$B$19:$R$41,6,0)/'4. Billing Determinants'!$G$41*$D18, VLOOKUP(O$4,'4. Billing Determinants'!$B$19:$AA$41,26,0)*$D18)))),0) -> 0 | P18: =IFERROR(IF(P$4="",0,IF($E18="kWh",VLOOKUP(P$4,'4. Billing Determinants'!$B$19:$R$41,4,0)/'4. Billing Determinants'!$E$41*$D18,IF($E18="kW",VLOOKUP(P$4,'4. Billing Determinants'!$B$19:$R$41,5,0)/'4. Billing Determinants'!$F$41*$D18,IF($E18="Non-RPP kWh",VLOOKUP(P$4,'4. Billing Determinants'!$B$19:$R$41,6,0)/'4. Billing Determinants'!$G$41*$D18, VLOOKUP(P$4,'4. Billing Determinants'!$B$19:$AA$41,26,0)*$D18)))),0) -> 0 | Q18: =IFERROR(IF(Q$4="",0,IF($E18="kWh",VLOOKUP(Q$4,'4. Billing Determinants'!$B$19:$R$41,4,0)/'4. Billing Determinants'!$E$41*$D18,IF($E18="kW",VLOOKUP(Q$4,'4. Billing Determinants'!$B$19:$R$41,5,0)/'4. Billing Determinants'!$F$41*$D18,IF($E18="Non-RPP kWh",VLOOKUP(Q$4,'4. Billing Determinants'!$B$19:$R$41,6,0)/'4. Billing Determinants'!$G$41*$D18, VLOOKUP(Q$4,'4. Billing Determinants'!$B$19:$AA$41,26,0)*$D18)))),0) -> 0 | R18: =IFERROR(IF(R$4="",0,IF($E18="kWh",VLOOKUP(R$4,'4. Billing Determinants'!$B$19:$R$41,4,0)/'4. Billing Determinants'!$E$41*$D18,IF($E18="kW",VLOOKUP(R$4,'4. Billing Determinants'!$B$19:$R$41,5,0)/'4. Billing Determinants'!$F$41*$D18,IF($E18="Non-RPP kWh",VLOOKUP(R$4,'4. Billing Determinants'!$B$19:$R$41,6,0)/'4. Billing Determinants'!$G$41*$D18, VLOOKUP(R$4,'4. Billing Determinants'!$B$19:$AA$41,26,0)*$D18)))),0) -> 0 | S18: =IFERROR(IF(S$4="",0,IF($E18="kWh",VLOOKUP(S$4,'4. Billing Determinants'!$B$19:$R$41,4,0)/'4. Billing Determinants'!$E$41*$D18,IF($E18="kW",VLOOKUP(S$4,'4. Billing Determinants'!$B$19:$R$41,5,0)/'4. Billing Determinants'!$F$41*$D18,IF($E18="Non-RPP kWh",VLOOKUP(S$4,'4. Billing Determinants'!$B$19:$R$41,6,0)/'4. Billing Determinants'!$G$41*$D18, VLOOKUP(S$4,'4. Billing Determinants'!$B$19:$AA$41,26,0)*$D18)))),0) -> 0 | T18: =IFERROR(IF(T$4="",0,IF($E18="kWh",VLOOKUP(T$4,'4. Billing Determinants'!$B$19:$R$41,4,0)/'4. Billing Determinants'!$E$41*$D18,IF($E18="kW",VLOOKUP(T$4,'4. Billing Determinants'!$B$19:$R$41,5,0)/'4. Billing Determinants'!$F$41*$D18,IF($E18="Non-RPP kWh",VLOOKUP(T$4,'4. Billing Determinants'!$B$19:$R$41,6,0)/'4. Billing Determinants'!$G$41*$D18, VLOOKUP(T$4,'4. Billing Determinants'!$B$19:$AA$41,26,0)*$D18)))),0) -> 0 | U18: =IFERROR(IF(U$4="",0,IF($E18="kWh",VLOOKUP(U$4,'4. Billing Determinants'!$B$19:$R$41,4,0)/'4. Billing Determinants'!$E$41*$D18,IF($E18="kW",VLOOKUP(U$4,'4. Billing Determinants'!$B$19:$R$41,5,0)/'4. Billing Determinants'!$F$41*$D18,IF($E18="Non-RPP kWh",VLOOKUP(U$4,'4. Billing Determinants'!$B$19:$R$41,6,0)/'4. Billing Determinants'!$G$41*$D18, VLOOKUP(U$4,'4. Billing Determinants'!$B$19:$AA$41,26,0)*$D18)))),0) -> 0 | V18: =IFERROR(IF(V$4="",0,IF($E18="kWh",VLOOKUP(V$4,'4. Billing Determinants'!$B$19:$R$41,4,0)/'4. Billing Determinants'!$E$41*$D18,IF($E18="kW",VLOOKUP(V$4,'4. Billing Determinants'!$B$19:$R$41,5,0)/'4. Billing Determinants'!$F$41*$D18,IF($E18="Non-RPP kWh",VLOOKUP(V$4,'4. Billing Determinants'!$B$19:$R$41,6,0)/'4. Billing Determinants'!$G$41*$D18, VLOOKUP(V$4,'4. Billing Determinants'!$B$19:$AA$41,26,0)*$D18)))),0) -> 0 | W18: =IFERROR(IF(W$4="",0,IF($E18="kWh",VLOOKUP(W$4,'4. Billing Determinants'!$B$19:$R$41,4,0)/'4. Billing Determinants'!$E$41*$D18,IF($E18="kW",VLOOKUP(W$4,'4. Billing Determinants'!$B$19:$R$41,5,0)/'4. Billing Determinants'!$F$41*$D18,IF($E18="Non-RPP kWh",VLOOKUP(W$4,'4. Billing Determinants'!$B$19:$R$41,6,0)/'4. Billing Determinants'!$G$41*$D18, VLOOKUP(W$4,'4. Billing Determinants'!$B$19:$AA$41,26,0)*$D18)))),0) -> 0 | X18: =IFERROR(IF(X$4="",0,IF($E18="kWh",VLOOKUP(X$4,'4. Billing Determinants'!$B$19:$R$41,4,0)/'4. Billing Determinants'!$E$41*$D18,IF($E18="kW",VLOOKUP(X$4,'4. Billing Determinants'!$B$19:$R$41,5,0)/'4. Billing Determinants'!$F$41*$D18,IF($E18="Non-RPP kWh",VLOOKUP(X$4,'4. Billing Determinants'!$B$19:$R$41,6,0)/'4. Billing Determinants'!$G$41*$D18, VLOOKUP(X$4,'4. Billing Determinants'!$B$19:$AA$41,26,0)*$D18)))),0) -> 0 | Y18: =IFERROR(IF(Y$4="",0,IF($E18="kWh",VLOOKUP(Y$4,'4. Billing Determinants'!$B$19:$R$41,4,0)/'4. Billing Determinants'!$E$41*$D18,IF($E18="kW",VLOOKUP(Y$4,'4. Billing Determinants'!$B$19:$R$41,5,0)/'4. Billing Determinants'!$F$41*$D18,IF($E18="Non-RPP kWh",VLOOKUP(Y$4,'4. Billing Determinants'!$B$19:$R$41,6,0)/'4. Billing Determinants'!$G$41*$D18, VLOOKUP(Y$4,'4. Billing Determinants'!$B$19:$AA$41,26,0)*$D18)))),0) -> 0
A19: 16 | B19: Total of Group 1 Accounts (excluding 1589) | D19: =SUM(D5:D18)-D11 -> -2408079.144 | F19: =SUM(F5:F18)-F11 -> -879345.8407 | G19: =SUM(G5:G18)-G11 -> -372617.8848 | H19: -686049.7108 | I19: -442716.8583 | J19: 0 | K19: -21585.54986 | L19: -278.7187929 | M19: -5592.512388 | N19: 0 | O19: 0 | P19: 0 | Q19: 0 | R19: 0 | S19: 0 | T19: 0 | U19: 0 | V19: 0 | W19: 0 | X19: 0 | Y19: 0
A20: 17
A21: 18 | B21: Other Regulatory Assets - Sub-Account - Deferred IFRS Transition Costs | C21: 1508 | D21: =+'2. 2016 Continuity Schedule'!BT47 -> 128843.0427 | E21: kWh | F21: =IFERROR(IF(F$4="",0,IF($E21="kWh",VLOOKUP(F$4,'4. Billing Determinants'!$B$19:$R$41,4,0)/'4. Billing Determinants'!$E$41*$D21,IF($E21="kW",VLOOKUP(F$4,'4. Billing Determinants'!$B$19:$R$41,5,0)/'4. Billing Determinants'!$F$41*$D21,IF($E21="Non-RPP kWh",VLOOKUP(F$4,'4. Billing Determinants'!$B$19:$R$41,6,0)/'4. Billing Determinants'!$G$41*$D21,IF($E21="Distribution Rev.",VLOOKUP(F$4,'4. Billing Determinants'!$B$19:$R$41,8,0)/'4. Billing Determinants'!$I$41*$D21, VLOOKUP(F$4,'4. Billing Determinants'!$B$19:$R$41,3,0)/'4. Billing Determinants'!$D$41*$D21))))),0) -> 46991.13795 | G21: =IFERROR(IF(G$4="",0,IF($E21="kWh",VLOOKUP(G$4,'4. Billing Determinants'!$B$19:$R$41,4,0)/'4. Billing Determinants'!$E$41*$D21,IF($E21="kW",VLOOKUP(G$4,'4. Billing Determinants'!$B$19:$R$41,5,0)/'4. Billing Determinants'!$F$41*$D21,IF($E21="Non-RPP kWh",VLOOKUP(G$4,'4. Billing Determinants'!$B$19:$R$41,6,0)/'4. Billing Determinants'!$G$41*$D21,IF($E21="Distribution Rev.",VLOOKUP(G$4,'4. Billing Determinants'!$B$19:$R$41,8,0)/'4. Billing Determinants'!$I$41*$D21, VLOOKUP(G$4,'4. Billing Determinants'!$B$19:$R$41,3,0)/'4. Billing Determinants'!$D$41*$D21))))),0) -> 19950.04809 | H21: =IFERROR(IF(H$4="",0,IF($E21="kWh",VLOOKUP(H$4,'4. Billing Determinants'!$B$19:$R$41,4,0)/'4. Billing Determinants'!$E$41*$D21,IF($E21="kW",VLOOKUP(H$4,'4. Billing Determinants'!$B$19:$R$41,5,0)/'4. Billing Determinants'!$F$41*$D21,IF($E21="Non-RPP kWh",VLOOKUP(H$4,'4. Billing Determinants'!$B$19:$R$41,6,0)/'4. Billing Determinants'!$G$41*$D21,IF($E21="Distribution Rev.",VLOOKUP(H$4,'4. Billing Determinants'!$B$19:$R$41,8,0)/'4. Billing Determinants'!$I$41*$D21, VLOOKUP(H$4,'4. Billing Determinants'!$B$19:$R$41,3,0)/'4. Billing Determinants'!$D$41*$D21))))),0) -> 36753.52838 | I21: =IFERROR(IF(I$4="",0,IF($E21="kWh",VLOOKUP(I$4,'4. Billing Determinants'!$B$19:$R$41,4,0)/'4. Billing Determinants'!$E$41*$D21,IF($E21="kW",VLOOKUP(I$4,'4. Billing Determinants'!$B$19:$R$41,5,0)/'4. Billing Determinants'!$F$41*$D21,IF($E21="Non-RPP kWh",VLOOKUP(I$4,'4. Billing Determinants'!$B$19:$R$41,6,0)/'4. Billing Determinants'!$G$41*$D21,IF($E21="Distribution Rev.",VLOOKUP(I$4,'4. Billing Determinants'!$B$19:$R$41,8,0)/'4. Billing Determinants'!$I$41*$D21, VLOOKUP(I$4,'4. Billing Determinants'!$B$19:$R$41,3,0)/'4. Billing Determinants'!$D$41*$D21))))),0) -> 23673.82391 | J21: =IFERROR(IF(J$4="",0,IF($E21="kWh",VLOOKUP(J$4,'4. Billing Determinants'!$B$19:$R$41,4,0)/'4. Billing Determinants'!$E$41*$D21,IF($E21="kW",VLOOKUP(J$4,'4. Billing Determinants'!$B$19:$R$41,5,0)/'4. Billing Determinants'!$F$41*$D21,IF($E21="Non-RPP kWh",VLOOKUP(J$4,'4. Billing Determinants'!$B$19:$R$41,6,0)/'4. Billing Determinants'!$G$41*$D21,IF($E21="Distribution Rev.",VLOOKUP(J$4,'4. Billing Determinants'!$B$19:$R$41,8,0)/'4. Billing Determinants'!$I$41*$D21, VLOOKUP(J$4,'4. Billing Determinants'!$B$19:$R$41,3,0)/'4. Billing Determinants'!$D$41*$D21))))),0) -> 0 | K21: =IFERROR(IF(K$4="",0,IF($E21="kWh",VLOOKUP(K$4,'4. Billing Determinants'!$B$19:$R$41,4,0)/'4. Billing Determinants'!$E$41*$D21,IF($E21="kW",VLOOKUP(K$4,'4. Billing Determinants'!$B$19:$R$41,5,0)/'4. Billing Determinants'!$F$41*$D21,IF($E21="Non-RPP kWh",VLOOKUP(K$4,'4. Billing Determinants'!$B$19:$R$41,6,0)/'4. Billing Determinants'!$G$41*$D21,IF($E21="Distribution Rev.",VLOOKUP(K$4,'4. Billing Determinants'!$B$19:$R$41,8,0)/'4. Billing Determinants'!$I$41*$D21, VLOOKUP(K$4,'4. Billing Determinants'!$B$19:$R$41,3,0)/'4. Billing Determinants'!$D$41*$D21))))),0) -> 1159.077888 | L21: =IFERROR(IF(L$4="",0,IF($E21="kWh",VLOOKUP(L$4,'4. Billing Determinants'!$B$19:$R$41,4,0)/'4. Billing Determinants'!$E$41*$D21,IF($E21="kW",VLOOKUP(L$4,'4. Billing Determinants'!$B$19:$R$41,5,0)/'4. Billing Determinants'!$F$41*$D21,IF($E21="Non-RPP kWh",VLOOKUP(L$4,'4. Billing Determinants'!$B$19:$R$41,6,0)/'4. Billing Determinants'!$G$41*$D21,IF($E21="Distribution Rev.",VLOOKUP(L$4,'4. Billing Determinants'!$B$19:$R$41,8,0)/'4. Billing Determinants'!$I$41*$D21, VLOOKUP(L$4,'4. Billing Determinants'!$B$19:$R$41,3,0)/'4. Billing Determinants'!$D$41*$D21))))),0) -> 15.10432742 | M21: =IFERROR(IF(M$4="",0,IF($E21="kWh",VLOOKUP(M$4,'4. Billing Determinants'!$B$19:$R$41,4,0)/'4. Billing Determinants'!$E$41*$D21,IF($E21="kW",VLOOKUP(M$4,'4. Billing Determinants'!$B$19:$R$41,5,0)/'4. Billing Determinants'!$F$41*$D21,IF($E21="Non-RPP kWh",VLOOKUP(M$4,'4. Billing Determinants'!$B$19:$R$41,6,0)/'4. Billing Determinants'!$G$41*$D21,IF($E21="Distribution Rev.",VLOOKUP(M$4,'4. Billing Determinants'!$B$19:$R$41,8,0)/'4. Billing Determinants'!$I$41*$D21, VLOOKUP(M$4,'4. Billing Determinants'!$B$19:$R$41,3,0)/'4. Billing Determinants'!$D$41*$D21))))),0) -> 300.3221261 | N21: =IFERROR(IF(N$4="",0,IF($E21="kWh",VLOOKUP(N$4,'4. Billing Determinants'!$B$19:$R$41,4,0)/'4. Billing Determinants'!$E$41*$D21,IF($E21="kW",VLOOKUP(N$4,'4. Billing Determinants'!$B$19:$R$41,5,0)/'4. Billing Determinants'!$F$41*$D21,IF($E21="Non-RPP kWh",VLOOKUP(N$4,'4. Billing Determinants'!$B$19:$R$41,6,0)/'4. Billing Determinants'!$G$41*$D21,IF($E21="Distribution Rev.",VLOOKUP(N$4,'4. Billing Determinants'!$B$19:$R$41,8,0)/'4. Billing Determinants'!$I$41*$D21, VLOOKUP(N$4,'4. Billing Determinants'!$B$19:$R$41,3,0)/'4. Billing Determinants'!$D$41*$D21))))),0) -> 0 | O21: =IFERROR(IF(O$4="",0,IF($E21="kWh",VLOOKUP(O$4,'4. Billing Determinants'!$B$19:$R$41,4,0)/'4. Billing Determinants'!$E$41*$D21,IF($E21="kW",VLOOKUP(O$4,'4. Billing Determinants'!$B$19:$R$41,5,0)/'4. Billing Determinants'!$F$41*$D21,IF($E21="Non-RPP kWh",VLOOKUP(O$4,'4. Billing Determinants'!$B$19:$R$41,6,0)/'4. Billing Determinants'!$G$41*$D21,IF($E21="Distribution Rev.",VLOOKUP(O$4,'4. Billing Determinants'!$B$19:$R$41,8,0)/'4. Billing Determinants'!$I$41*$D21, VLOOKUP(O$4,'4. Billing Determinants'!$B$19:$R$41,3,0)/'4. Billing Determinants'!$D$41*$D21))))),0) -> 0 | P21: =IFERROR(IF(P$4="",0,IF($E21="kWh",VLOOKUP(P$4,'4. Billing Determinants'!$B$19:$R$41,4,0)/'4. Billing Determinants'!$E$41*$D21,IF($E21="kW",VLOOKUP(P$4,'4. Billing Determinants'!$B$19:$R$41,5,0)/'4. Billing Determinants'!$F$41*$D21,IF($E21="Non-RPP kWh",VLOOKUP(P$4,'4. Billing Determinants'!$B$19:$R$41,6,0)/'4. Billing Determinants'!$G$41*$D21,IF($E21="Distribution Rev.",VLOOKUP(P$4,'4. Billing Determinants'!$B$19:$R$41,8,0)/'4. Billing Determinants'!$I$41*$D21, VLOOKUP(P$4,'4. Billing Determinants'!$B$19:$R$41,3,0)/'4. Billing Determinants'!$D$41*$D21))))),0) -> 0 | Q21: =IFERROR(IF(Q$4="",0,IF($E21="kWh",VLOOKUP(Q$4,'4. Billing Determinants'!$B$19:$R$41,4,0)/'4. Billing Determinants'!$E$41*$D21,IF($E21="kW",VLOOKUP(Q$4,'4. Billing Determinants'!$B$19:$R$41,5,0)/'4. Billing Determinants'!$F$41*$D21,IF($E21="Non-RPP kWh",VLOOKUP(Q$4,'4. Billing Determinants'!$B$19:$R$41,6,0)/'4. Billing Determinants'!$G$41*$D21,IF($E21="Distribution Rev.",VLOOKUP(Q$4,'4. Billing Determinants'!$B$19:$R$41,8,0)/'4. Billing Determinants'!$I$41*$D21, VLOOKUP(Q$4,'4. Billing Determinants'!$B$19:$R$41,3,0)/'4. Billing Determinants'!$D$41*$D21))))),0) -> 0 | R21: =IFERROR(IF(R$4="",0,IF($E21="kWh",VLOOKUP(R$4,'4. Billing Determinants'!$B$19:$R$41,4,0)/'4. Billing Determinants'!$E$41*$D21,IF($E21="kW",VLOOKUP(R$4,'4. Billing Determinants'!$B$19:$R$41,5,0)/'4. Billing Determinants'!$F$41*$D21,IF($E21="Non-RPP kWh",VLOOKUP(R$4,'4. Billing Determinants'!$B$19:$R$41,6,0)/'4. Billing Determinants'!$G$41*$D21,IF($E21="Distribution Rev.",VLOOKUP(R$4,'4. Billing Determinants'!$B$19:$R$41,8,0)/'4. Billing Determinants'!$I$41*$D21, VLOOKUP(R$4,'4. Billing Determinants'!$B$19:$R$41,3,0)/'4. Billing Determinants'!$D$41*$D21))))),0) -> 0 | S21: =IFERROR(IF(S$4="",0,IF($E21="kWh",VLOOKUP(S$4,'4. Billing Determinants'!$B$19:$R$41,4,0)/'4. Billing Determinants'!$E$41*$D21,IF($E21="kW",VLOOKUP(S$4,'4. Billing Determinants'!$B$19:$R$41,5,0)/'4. Billing Determinants'!$F$41*$D21,IF($E21="Non-RPP kWh",VLOOKUP(S$4,'4. Billing Determinants'!$B$19:$R$41,6,0)/'4. Billing Determinants'!$G$41*$D21,IF($E21="Distribution Rev.",VLOOKUP(S$4,'4. Billing Determinants'!$B$19:$R$41,8,0)/'4. Billing Determinants'!$I$41*$D21, VLOOKUP(S$4,'4. Billing Determinants'!$B$19:$R$41,3,0)/'4. Billing Determinants'!$D$41*$D21))))),0) -> 0 | T21: =IFERROR(IF(T$4="",0,IF($E21="kWh",VLOOKUP(T$4,'4. Billing Determinants'!$B$19:$R$41,4,0)/'4. Billing Determinants'!$E$41*$D21,IF($E21="kW",VLOOKUP(T$4,'4. Billing Determinants'!$B$19:$R$41,5,0)/'4. Billing Determinants'!$F$41*$D21,IF($E21="Non-RPP kWh",VLOOKUP(T$4,'4. Billing Determinants'!$B$19:$R$41,6,0)/'4. Billing Determinants'!$G$41*$D21,IF($E21="Distribution Rev.",VLOOKUP(T$4,'4. Billing Determinants'!$B$19:$R$41,8,0)/'4. Billing Determinants'!$I$41*$D21, VLOOKUP(T$4,'4. Billing Determinants'!$B$19:$R$41,3,0)/'4. Billing Determinants'!$D$41*$D21))))),0) -> 0 | U21: =IFERROR(IF(U$4="",0,IF($E21="kWh",VLOOKUP(U$4,'4. Billing Determinants'!$B$19:$R$41,4,0)/'4. Billing Determinants'!$E$41*$D21,IF($E21="kW",VLOOKUP(U$4,'4. Billing Determinants'!$B$19:$R$41,5,0)/'4. Billing Determinants'!$F$41*$D21,IF($E21="Non-RPP kWh",VLOOKUP(U$4,'4. Billing Determinants'!$B$19:$R$41,6,0)/'4. Billing Determinants'!$G$41*$D21,IF($E21="Distribution Rev.",VLOOKUP(U$4,'4. Billing Determinants'!$B$19:$R$41,8,0)/'4. Billing Determinants'!$I$41*$D21, VLOOKUP(U$4,'4. Billing Determinants'!$B$19:$R$41,3,0)/'4. Billing Determinants'!$D$41*$D21))))),0) -> 0 | V21: =IFERROR(IF(V$4="",0,IF($E21="kWh",VLOOKUP(V$4,'4. Billing Determinants'!$B$19:$R$41,4,0)/'4. Billing Determinants'!$E$41*$D21,IF($E21="kW",VLOOKUP(V$4,'4. Billing Determinants'!$B$19:$R$41,5,0)/'4. Billing Determinants'!$F$41*$D21,IF($E21="Non-RPP kWh",VLOOKUP(V$4,'4. Billing Determinants'!$B$19:$R$41,6,0)/'4. Billing Determinants'!$G$41*$D21,IF($E21="Distribution Rev.",VLOOKUP(V$4,'4. Billing Determinants'!$B$19:$R$41,8,0)/'4. Billing Determinants'!$I$41*$D21, VLOOKUP(V$4,'4. Billing Determinants'!$B$19:$R$41,3,0)/'4. Billing Determinants'!$D$41*$D21))))),0) -> 0 | W21: =IFERROR(IF(W$4="",0,IF($E21="kWh",VLOOKUP(W$4,'4. Billing Determinants'!$B$19:$R$41,4,0)/'4. Billing Determinants'!$E$41*$D21,IF($E21="kW",VLOOKUP(W$4,'4. Billing Determinants'!$B$19:$R$41,5,0)/'4. Billing Determinants'!$F$41*$D21,IF($E21="Non-RPP kWh",VLOOKUP(W$4,'4. Billing Determinants'!$B$19:$R$41,6,0)/'4. Billing Determinants'!$G$41*$D21,IF($E21="Distribution Rev.",VLOOKUP(W$4,'4. Billing Determinants'!$B$19:$R$41,8,0)/'4. Billing Determinants'!$I$41*$D21, VLOOKUP(W$4,'4. Billing Determinants'!$B$19:$R$41,3,0)/'4. Billing Determinants'!$D$41*$D21))))),0) -> 0 | X21: =IFERROR(IF(X$4="",0,IF($E21="kWh",VLOOKUP(X$4,'4. Billing Determinants'!$B$19:$R$41,4,0)/'4. Billing Determinants'!$E$41*$D21,IF($E21="kW",VLOOKUP(X$4,'4. Billing Determinants'!$B$19:$R$41,5,0)/'4. Billing Determinants'!$F$41*$D21,IF($E21="Non-RPP kWh",VLOOKUP(X$4,'4. Billing Determinants'!$B$19:$R$41,6,0)/'4. Billing Determinants'!$G$41*$D21,IF($E21="Distribution Rev.",VLOOKUP(X$4,'4. Billing Determinants'!$B$19:$R$41,8,0)/'4. Billing Determinants'!$I$41*$D21, VLOOKUP(X$4,'4. Billing Determinants'!$B$19:$R$41,3,0)/'4. Billing Determinants'!$D$41*$D21))))),0) -> 0 | Y21: =IFERROR(IF(Y$4="",0,IF($E21="kWh",VLOOKUP(Y$4,'4. Billing Determinants'!$B$19:$R$41,4,0)/'4. Billing Determinants'!$E$41*$D21,IF($E21="kW",VLOOKUP(Y$4,'4. Billing Determinants'!$B$19:$R$41,5,0)/'4. Billing Determinants'!$F$41*$D21,IF($E21="Non-RPP kWh",VLOOKUP(Y$4,'4. Billing Determinants'!$B$19:$R$41,6,0)/'4. Billing Determinants'!$G$41*$D21,IF($E21="Distribution Rev.",VLOOKUP(Y$4,'4. Billing Determinants'!$B$19:$R$41,8,0)/'4. Billing Determinants'!$I$41*$D21, VLOOKUP(Y$4,'4. Billing Determinants'!$B$19:$R$41,3,0)/'4. Billing Determinants'!$D$41*$D21))))),0) -> 0
A22: 19 | B22: Other Regulatory Assets - Sub-Account - Incremental Capital Charges | C22: 1508 | D22: ='2. 2016 Continuity Schedule'!BT48 -> 0 | E22: kWh | F22: =IFERROR(IF(F$4="",0,IF($E22="kWh",VLOOKUP(F$4,'4. Billing Determinants'!$B$19:$R$41,4,0)/'4. Billing Determinants'!$E$41*$D22,IF($E22="kW",VLOOKUP(F$4,'4. Billing Determinants'!$B$19:$R$41,5,0)/'4. Billing Determinants'!$F$41*$D22,IF($E22="Non-RPP kWh",VLOOKUP(F$4,'4. Billing Determinants'!$B$19:$R$41,6,0)/'4. Billing Determinants'!$G$41*$D22,IF($E22="Distribution Rev.",VLOOKUP(F$4,'4. Billing Determinants'!$B$19:$R$41,8,0)/'4. Billing Determinants'!$I$41*$D22, VLOOKUP(F$4,'4. Billing Determinants'!$B$19:$R$41,3,0)/'4. Billing Determinants'!$D$41*$D22))))),0) -> 0 | G22: =IFERROR(IF(G$4="",0,IF($E22="kWh",VLOOKUP(G$4,'4. Billing Determinants'!$B$19:$R$41,4,0)/'4. Billing Determinants'!$E$41*$D22,IF($E22="kW",VLOOKUP(G$4,'4. Billing Determinants'!$B$19:$R$41,5,0)/'4. Billing Determinants'!$F$41*$D22,IF($E22="Non-RPP kWh",VLOOKUP(G$4,'4. Billing Determinants'!$B$19:$R$41,6,0)/'4. Billing Determinants'!$G$41*$D22,IF($E22="Distribution Rev.",VLOOKUP(G$4,'4. Billing Determinants'!$B$19:$R$41,8,0)/'4. Billing Determinants'!$I$41*$D22, VLOOKUP(G$4,'4. Billing Determinants'!$B$19:$R$41,3,0)/'4. Billing Determinants'!$D$41*$D22))))),0) -> 0 | H22: =IFERROR(IF(H$4="",0,IF($E22="kWh",VLOOKUP(H$4,'4. Billing Determinants'!$B$19:$R$41,4,0)/'4. Billing Determinants'!$E$41*$D22,IF($E22="kW",VLOOKUP(H$4,'4. Billing Determinants'!$B$19:$R$41,5,0)/'4. Billing Determinants'!$F$41*$D22,IF($E22="Non-RPP kWh",VLOOKUP(H$4,'4. Billing Determinants'!$B$19:$R$41,6,0)/'4. Billing Determinants'!$G$41*$D22,IF($E22="Distribution Rev.",VLOOKUP(H$4,'4. Billing Determinants'!$B$19:$R$41,8,0)/'4. Billing Determinants'!$I$41*$D22, VLOOKUP(H$4,'4. Billing Determinants'!$B$19:$R$41,3,0)/'4. Billing Determinants'!$D$41*$D22))))),0) -> 0 | I22: =IFERROR(IF(I$4="",0,IF($E22="kWh",VLOOKUP(I$4,'4. Billing Determinants'!$B$19:$R$41,4,0)/'4. Billing Determinants'!$E$41*$D22,IF($E22="kW",VLOOKUP(I$4,'4. Billing Determinants'!$B$19:$R$41,5,0)/'4. Billing Determinants'!$F$41*$D22,IF($E22="Non-RPP kWh",VLOOKUP(I$4,'4. Billing Determinants'!$B$19:$R$41,6,0)/'4. Billing Determinants'!$G$41*$D22,IF($E22="Distribution Rev.",VLOOKUP(I$4,'4. Billing Determinants'!$B$19:$R$41,8,0)/'4. Billing Determinants'!$I$41*$D22, VLOOKUP(I$4,'4. Billing Determinants'!$B$19:$R$41,3,0)/'4. Billing Determinants'!$D$41*$D22))))),0) -> 0 | J22: =IFERROR(IF(J$4="",0,IF($E22="kWh",VLOOKUP(J$4,'4. Billing Determinants'!$B$19:$R$41,4,0)/'4. Billing Determinants'!$E$41*$D22,IF($E22="kW",VLOOKUP(J$4,'4. Billing Determinants'!$B$19:$R$41,5,0)/'4. Billing Determinants'!$F$41*$D22,IF($E22="Non-RPP kWh",VLOOKUP(J$4,'4. Billing Determinants'!$B$19:$R$41,6,0)/'4. Billing Determinants'!$G$41*$D22,IF($E22="Distribution Rev.",VLOOKUP(J$4,'4. Billing Determinants'!$B$19:$R$41,8,0)/'4. Billing Determinants'!$I$41*$D22, VLOOKUP(J$4,'4. Billing Determinants'!$B$19:$R$41,3,0)/'4. Billing Determinants'!$D$41*$D22))))),0) -> 0 | K22: =IFERROR(IF(K$4="",0,IF($E22="kWh",VLOOKUP(K$4,'4. Billing Determinants'!$B$19:$R$41,4,0)/'4. Billing Determinants'!$E$41*$D22,IF($E22="kW",VLOOKUP(K$4,'4. Billing Determinants'!$B$19:$R$41,5,0)/'4. Billing Determinants'!$F$41*$D22,IF($E22="Non-RPP kWh",VLOOKUP(K$4,'4. Billing Determinants'!$B$19:$R$41,6,0)/'4. Billing Determinants'!$G$41*$D22,IF($E22="Distribution Rev.",VLOOKUP(K$4,'4. Billing Determinants'!$B$19:$R$41,8,0)/'4. Billing Determinants'!$I$41*$D22, VLOOKUP(K$4,'4. Billing Determinants'!$B$19:$R$41,3,0)/'4. Billing Determinants'!$D$41*$D22))))),0) -> 0 | L22: =IFERROR(IF(L$4="",0,IF($E22="kWh",VLOOKUP(L$4,'4. Billing Determinants'!$B$19:$R$41,4,0)/'4. Billing Determinants'!$E$41*$D22,IF($E22="kW",VLOOKUP(L$4,'4. Billing Determinants'!$B$19:$R$41,5,0)/'4. Billing Determinants'!$F$41*$D22,IF($E22="Non-RPP kWh",VLOOKUP(L$4,'4. Billing Determinants'!$B$19:$R$41,6,0)/'4. Billing Determinants'!$G$41*$D22,IF($E22="Distribution Rev.",VLOOKUP(L$4,'4. Billing Determinants'!$B$19:$R$41,8,0)/'4. Billing Determinants'!$I$41*$D22, VLOOKUP(L$4,'4. Billing Determinants'!$B$19:$R$41,3,0)/'4. Billing Determinants'!$D$41*$D22))))),0) -> 0 | M22: =IFERROR(IF(M$4="",0,IF($E22="kWh",VLOOKUP(M$4,'4. Billing Determinants'!$B$19:$R$41,4,0)/'4. Billing Determinants'!$E$41*$D22,IF($E22="kW",VLOOKUP(M$4,'4. Billing Determinants'!$B$19:$R$41,5,0)/'4. Billing Determinants'!$F$41*$D22,IF($E22="Non-RPP kWh",VLOOKUP(M$4,'4. Billing Determinants'!$B$19:$R$41,6,0)/'4. Billing Determinants'!$G$41*$D22,IF($E22="Distribution Rev.",VLOOKUP(M$4,'4. Billing Determinants'!$B$19:$R$41,8,0)/'4. Billing Determinants'!$I$41*$D22, VLOOKUP(M$4,'4. Billing Determinants'!$B$19:$R$41,3,0)/'4. Billing Determinants'!$D$41*$D22))))),0) -> 0 | N22: =IFERROR(IF(N$4="",0,IF($E22="kWh",VLOOKUP(N$4,'4. Billing Determinants'!$B$19:$R$41,4,0)/'4. Billing Determinants'!$E$41*$D22,IF($E22="kW",VLOOKUP(N$4,'4. Billing Determinants'!$B$19:$R$41,5,0)/'4. Billing Determinants'!$F$41*$D22,IF($E22="Non-RPP kWh",VLOOKUP(N$4,'4. Billing Determinants'!$B$19:$R$41,6,0)/'4. Billing Determinants'!$G$41*$D22,IF($E22="Distribution Rev.",VLOOKUP(N$4,'4. Billing Determinants'!$B$19:$R$41,8,0)/'4. Billing Determinants'!$I$41*$D22, VLOOKUP(N$4,'4. Billing Determinants'!$B$19:$R$41,3,0)/'4. Billing Determinants'!$D$41*$D22))))),0) -> 0 | O22: =IFERROR(IF(O$4="",0,IF($E22="kWh",VLOOKUP(O$4,'4. Billing Determinants'!$B$19:$R$41,4,0)/'4. Billing Determinants'!$E$41*$D22,IF($E22="kW",VLOOKUP(O$4,'4. Billing Determinants'!$B$19:$R$41,5,0)/'4. Billing Determinants'!$F$41*$D22,IF($E22="Non-RPP kWh",VLOOKUP(O$4,'4. Billing Determinants'!$B$19:$R$41,6,0)/'4. Billing Determinants'!$G$41*$D22,IF($E22="Distribution Rev.",VLOOKUP(O$4,'4. Billing Determinants'!$B$19:$R$41,8,0)/'4. Billing Determinants'!$I$41*$D22, VLOOKUP(O$4,'4. Billing Determinants'!$B$19:$R$41,3,0)/'4. Billing Determinants'!$D$41*$D22))))),0) -> 0 | P22: =IFERROR(IF(P$4="",0,IF($E22="kWh",VLOOKUP(P$4,'4. Billing Determinants'!$B$19:$R$41,4,0)/'4. Billing Determinants'!$E$41*$D22,IF($E22="kW",VLOOKUP(P$4,'4. Billing Determinants'!$B$19:$R$41,5,0)/'4. Billing Determinants'!$F$41*$D22,IF($E22="Non-RPP kWh",VLOOKUP(P$4,'4. Billing Determinants'!$B$19:$R$41,6,0)/'4. Billing Determinants'!$G$41*$D22,IF($E22="Distribution Rev.",VLOOKUP(P$4,'4. Billing Determinants'!$B$19:$R$41,8,0)/'4. Billing Determinants'!$I$41*$D22, VLOOKUP(P$4,'4. Billing Determinants'!$B$19:$R$41,3,0)/'4. Billing Determinants'!$D$41*$D22))))),0) -> 0 | Q22: =IFERROR(IF(Q$4="",0,IF($E22="kWh",VLOOKUP(Q$4,'4. Billing Determinants'!$B$19:$R$41,4,0)/'4. Billing Determinants'!$E$41*$D22,IF($E22="kW",VLOOKUP(Q$4,'4. Billing Determinants'!$B$19:$R$41,5,0)/'4. Billing Determinants'!$F$41*$D22,IF($E22="Non-RPP kWh",VLOOKUP(Q$4,'4. Billing Determinants'!$B$19:$R$41,6,0)/'4. Billing Determinants'!$G$41*$D22,IF($E22="Distribution Rev.",VLOOKUP(Q$4,'4. Billing Determinants'!$B$19:$R$41,8,0)/'4. Billing Determinants'!$I$41*$D22, VLOOKUP(Q$4,'4. Billing Determinants'!$B$19:$R$41,3,0)/'4. Billing Determinants'!$D$41*$D22))))),0) -> 0 | R22: =IFERROR(IF(R$4="",0,IF($E22="kWh",VLOOKUP(R$4,'4. Billing Determinants'!$B$19:$R$41,4,0)/'4. Billing Determinants'!$E$41*$D22,IF($E22="kW",VLOOKUP(R$4,'4. Billing Determinants'!$B$19:$R$41,5,0)/'4. Billing Determinants'!$F$41*$D22,IF($E22="Non-RPP kWh",VLOOKUP(R$4,'4. Billing Determinants'!$B$19:$R$41,6,0)/'4. Billing Determinants'!$G$41*$D22,IF($E22="Distribution Rev.",VLOOKUP(R$4,'4. Billing Determinants'!$B$19:$R$41,8,0)/'4. Billing Determinants'!$I$41*$D22, VLOOKUP(R$4,'4. Billing Determinants'!$B$19:$R$41,3,0)/'4. Billing Determinants'!$D$41*$D22))))),0) -> 0 | S22: =IFERROR(IF(S$4="",0,IF($E22="kWh",VLOOKUP(S$4,'4. Billing Determinants'!$B$19:$R$41,4,0)/'4. Billing Determinants'!$E$41*$D22,IF($E22="kW",VLOOKUP(S$4,'4. Billing Determinants'!$B$19:$R$41,5,0)/'4. Billing Determinants'!$F$41*$D22,IF($E22="Non-RPP kWh",VLOOKUP(S$4,'4. Billing Determinants'!$B$19:$R$41,6,0)/'4. Billing Determinants'!$G$41*$D22,IF($E22="Distribution Rev.",VLOOKUP(S$4,'4. Billing Determinants'!$B$19:$R$41,8,0)/'4. Billing Determinants'!$I$41*$D22, VLOOKUP(S$4,'4. Billing Determinants'!$B$19:$R$41,3,0)/'4. Billing Determinants'!$D$41*$D22))))),0) -> 0 | T22: =IFERROR(IF(T$4="",0,IF($E22="kWh",VLOOKUP(T$4,'4. Billing Determinants'!$B$19:$R$41,4,0)/'4. Billing Determinants'!$E$41*$D22,IF($E22="kW",VLOOKUP(T$4,'4. Billing Determinants'!$B$19:$R$41,5,0)/'4. Billing Determinants'!$F$41*$D22,IF($E22="Non-RPP kWh",VLOOKUP(T$4,'4. Billing Determinants'!$B$19:$R$41,6,0)/'4. Billing Determinants'!$G$41*$D22,IF($E22="Distribution Rev.",VLOOKUP(T$4,'4. Billing Determinants'!$B$19:$R$41,8,0)/'4. Billing Determinants'!$I$41*$D22, VLOOKUP(T$4,'4. Billing Determinants'!$B$19:$R$41,3,0)/'4. Billing Determinants'!$D$41*$D22))))),0) -> 0 | U22: =IFERROR(IF(U$4="",0,IF($E22="kWh",VLOOKUP(U$4,'4. Billing Determinants'!$B$19:$R$41,4,0)/'4. Billing Determinants'!$E$41*$D22,IF($E22="kW",VLOOKUP(U$4,'4. Billing Determinants'!$B$19:$R$41,5,0)/'4. Billing Determinants'!$F$41*$D22,IF($E22="Non-RPP kWh",VLOOKUP(U$4,'4. Billing Determinants'!$B$19:$R$41,6,0)/'4. Billing Determinants'!$G$41*$D22,IF($E22="Distribution Rev.",VLOOKUP(U$4,'4. Billing Determinants'!$B$19:$R$41,8,0)/'4. Billing Determinants'!$I$41*$D22, VLOOKUP(U$4,'4. Billing Determinants'!$B$19:$R$41,3,0)/'4. Billing Determinants'!$D$41*$D22))))),0) -> 0 | V22: =IFERROR(IF(V$4="",0,IF($E22="kWh",VLOOKUP(V$4,'4. Billing Determinants'!$B$19:$R$41,4,0)/'4. Billing Determinants'!$E$41*$D22,IF($E22="kW",VLOOKUP(V$4,'4. Billing Determinants'!$B$19:$R$41,5,0)/'4. Billing Determinants'!$F$41*$D22,IF($E22="Non-RPP kWh",VLOOKUP(V$4,'4. Billing Determinants'!$B$19:$R$41,6,0)/'4. Billing Determinants'!$G$41*$D22,IF($E22="Distribution Rev.",VLOOKUP(V$4,'4. Billing Determinants'!$B$19:$R$41,8,0)/'4. Billing Determinants'!$I$41*$D22, VLOOKUP(V$4,'4. Billing Determinants'!$B$19:$R$41,3,0)/'4. Billing Determinants'!$D$41*$D22))))),0) -> 0 | W22: =IFERROR(IF(W$4="",0,IF($E22="kWh",VLOOKUP(W$4,'4. Billing Determinants'!$B$19:$R$41,4,0)/'4. Billing Determinants'!$E$41*$D22,IF($E22="kW",VLOOKUP(W$4,'4. Billing Determinants'!$B$19:$R$41,5,0)/'4. Billing Determinants'!$F$41*$D22,IF($E22="Non-RPP kWh",VLOOKUP(W$4,'4. Billing Determinants'!$B$19:$R$41,6,0)/'4. Billing Determinants'!$G$41*$D22,IF($E22="Distribution Rev.",VLOOKUP(W$4,'4. Billing Determinants'!$B$19:$R$41,8,0)/'4. Billing Determinants'!$I$41*$D22, VLOOKUP(W$4,'4. Billing Determinants'!$B$19:$R$41,3,0)/'4. Billing Determinants'!$D$41*$D22))))),0) -> 0 | X22: =IFERROR(IF(X$4="",0,IF($E22="kWh",VLOOKUP(X$4,'4. Billing Determinants'!$B$19:$R$41,4,0)/'4. Billing Determinants'!$E$41*$D22,IF($E22="kW",VLOOKUP(X$4,'4. Billing Determinants'!$B$19:$R$41,5,0)/'4. Billing Determinants'!$F$41*$D22,IF($E22="Non-RPP kWh",VLOOKUP(X$4,'4. Billing Determinants'!$B$19:$R$41,6,0)/'4. Billing Determinants'!$G$41*$D22,IF($E22="Distribution Rev.",VLOOKUP(X$4,'4. Billing Determinants'!$B$19:$R$41,8,0)/'4. Billing Determinants'!$I$41*$D22, VLOOKUP(X$4,'4. Billing Determinants'!$B$19:$R$41,3,0)/'4. Billing Determinants'!$D$41*$D22))))),0) -> 0 | Y22: =IFERROR(IF(Y$4="",0,IF($E22="kWh",VLOOKUP(Y$4,'4. Billing Determinants'!$B$19:$R$41,4,0)/'4. Billing Determinants'!$E$41*$D22,IF($E22="kW",VLOOKUP(Y$4,'4. Billing Determinants'!$B$19:$R$41,5,0)/'4. Billing Determinants'!$F$41*$D22,IF($E22="Non-RPP kWh",VLOOKUP(Y$4,'4. Billing Determinants'!$B$19:$R$41,6,0)/'4. Billing Determinants'!$G$41*$D22,IF($E22="Distribution Rev.",VLOOKUP(Y$4,'4. Billing Determinants'!$B$19:$R$41,8,0)/'4. Billing Determinants'!$I$41*$D22, VLOOKUP(Y$4,'4. Billing Determinants'!$B$19:$R$41,3,0)/'4. Billing Determinants'!$D$41*$D22))))),0) -> 0
A23: 20 | B23: Other Regulatory Assets - Sub-Account - Financial Assistance Payment and Recovery Variance - Ontario Clean Energy Benefit Act | C23: 1508 | D23: ='2. 2016 Continuity Schedule'!BT49 -> 0 | E23: kWh | F23: =IFERROR(IF(F$4="",0,IF($E23="kWh",VLOOKUP(F$4,'4. Billing Determinants'!$B$19:$R$41,4,0)/'4. Billing Determinants'!$E$41*$D23,IF($E23="kW",VLOOKUP(F$4,'4. Billing Determinants'!$B$19:$R$41,5,0)/'4. Billing Determinants'!$F$41*$D23,IF($E23="Non-RPP kWh",VLOOKUP(F$4,'4. Billing Determinants'!$B$19:$R$41,6,0)/'4. Billing Determinants'!$G$41*$D23,IF($E23="Distribution Rev.",VLOOKUP(F$4,'4. Billing Determinants'!$B$19:$R$41,8,0)/'4. Billing Determinants'!$I$41*$D23, VLOOKUP(F$4,'4. Billing Determinants'!$B$19:$R$41,3,0)/'4. Billing Determinants'!$D$41*$D23))))),0) -> 0 | G23: =IFERROR(IF(G$4="",0,IF($E23="kWh",VLOOKUP(G$4,'4. Billing Determinants'!$B$19:$R$41,4,0)/'4. Billing Determinants'!$E$41*$D23,IF($E23="kW",VLOOKUP(G$4,'4. Billing Determinants'!$B$19:$R$41,5,0)/'4. Billing Determinants'!$F$41*$D23,IF($E23="Non-RPP kWh",VLOOKUP(G$4,'4. Billing Determinants'!$B$19:$R$41,6,0)/'4. Billing Determinants'!$G$41*$D23,IF($E23="Distribution Rev.",VLOOKUP(G$4,'4. Billing Determinants'!$B$19:$R$41,8,0)/'4. Billing Determinants'!$I$41*$D23, VLOOKUP(G$4,'4. Billing Determinants'!$B$19:$R$41,3,0)/'4. Billing Determinants'!$D$41*$D23))))),0) -> 0 | H23: =IFERROR(IF(H$4="",0,IF($E23="kWh",VLOOKUP(H$4,'4. Billing Determinants'!$B$19:$R$41,4,0)/'4. Billing Determinants'!$E$41*$D23,IF($E23="kW",VLOOKUP(H$4,'4. Billing Determinants'!$B$19:$R$41,5,0)/'4. Billing Determinants'!$F$41*$D23,IF($E23="Non-RPP kWh",VLOOKUP(H$4,'4. Billing Determinants'!$B$19:$R$41,6,0)/'4. Billing Determinants'!$G$41*$D23,IF($E23="Distribution Rev.",VLOOKUP(H$4,'4. Billing Determinants'!$B$19:$R$41,8,0)/'4. Billing Determinants'!$I$41*$D23, VLOOKUP(H$4,'4. Billing Determinants'!$B$19:$R$41,3,0)/'4. Billing Determinants'!$D$41*$D23))))),0) -> 0 | I23: =IFERROR(IF(I$4="",0,IF($E23="kWh",VLOOKUP(I$4,'4. Billing Determinants'!$B$19:$R$41,4,0)/'4. Billing Determinants'!$E$41*$D23,IF($E23="kW",VLOOKUP(I$4,'4. Billing Determinants'!$B$19:$R$41,5,0)/'4. Billing Determinants'!$F$41*$D23,IF($E23="Non-RPP kWh",VLOOKUP(I$4,'4. Billing Determinants'!$B$19:$R$41,6,0)/'4. Billing Determinants'!$G$41*$D23,IF($E23="Distribution Rev.",VLOOKUP(I$4,'4. Billing Determinants'!$B$19:$R$41,8,0)/'4. Billing Determinants'!$I$41*$D23, VLOOKUP(I$4,'4. Billing Determinants'!$B$19:$R$41,3,0)/'4. Billing Determinants'!$D$41*$D23))))),0) -> 0 | J23: =IFERROR(IF(J$4="",0,IF($E23="kWh",VLOOKUP(J$4,'4. Billing Determinants'!$B$19:$R$41,4,0)/'4. Billing Determinants'!$E$41*$D23,IF($E23="kW",VLOOKUP(J$4,'4. Billing Determinants'!$B$19:$R$41,5,0)/'4. Billing Determinants'!$F$41*$D23,IF($E23="Non-RPP kWh",VLOOKUP(J$4,'4. Billing Determinants'!$B$19:$R$41,6,0)/'4. Billing Determinants'!$G$41*$D23,IF($E23="Distribution Rev.",VLOOKUP(J$4,'4. Billing Determinants'!$B$19:$R$41,8,0)/'4. Billing Determinants'!$I$41*$D23, VLOOKUP(J$4,'4. Billing Determinants'!$B$19:$R$41,3,0)/'4. Billing Determinants'!$D$41*$D23))))),0) -> 0 | K23: =IFERROR(IF(K$4="",0,IF($E23="kWh",VLOOKUP(K$4,'4. Billing Determinants'!$B$19:$R$41,4,0)/'4. Billing Determinants'!$E$41*$D23,IF($E23="kW",VLOOKUP(K$4,'4. Billing Determinants'!$B$19:$R$41,5,0)/'4. Billing Determinants'!$F$41*$D23,IF($E23="Non-RPP kWh",VLOOKUP(K$4,'4. Billing Determinants'!$B$19:$R$41,6,0)/'4. Billing Determinants'!$G$41*$D23,IF($E23="Distribution Rev.",VLOOKUP(K$4,'4. Billing Determinants'!$B$19:$R$41,8,0)/'4. Billing Determinants'!$I$41*$D23, VLOOKUP(K$4,'4. Billing Determinants'!$B$19:$R$41,3,0)/'4. Billing Determinants'!$D$41*$D23))))),0) -> 0 | L23: =IFERROR(IF(L$4="",0,IF($E23="kWh",VLOOKUP(L$4,'4. Billing Determinants'!$B$19:$R$41,4,0)/'4. Billing Determinants'!$E$41*$D23,IF($E23="kW",VLOOKUP(L$4,'4. Billing Determinants'!$B$19:$R$41,5,0)/'4. Billing Determinants'!$F$41*$D23,IF($E23="Non-RPP kWh",VLOOKUP(L$4,'4. Billing Determinants'!$B$19:$R$41,6,0)/'4. Billing Determinants'!$G$41*$D23,IF($E23="Distribution Rev.",VLOOKUP(L$4,'4. Billing Determinants'!$B$19:$R$41,8,0)/'4. Billing Determinants'!$I$41*$D23, VLOOKUP(L$4,'4. Billing Determinants'!$B$19:$R$41,3,0)/'4. Billing Determinants'!$D$41*$D23))))),0) -> 0 | M23: =IFERROR(IF(M$4="",0,IF($E23="kWh",VLOOKUP(M$4,'4. Billing Determinants'!$B$19:$R$41,4,0)/'4. Billing Determinants'!$E$41*$D23,IF($E23="kW",VLOOKUP(M$4,'4. Billing Determinants'!$B$19:$R$41,5,0)/'4. Billing Determinants'!$F$41*$D23,IF($E23="Non-RPP kWh",VLOOKUP(M$4,'4. Billing Determinants'!$B$19:$R$41,6,0)/'4. Billing Determinants'!$G$41*$D23,IF($E23="Distribution Rev.",VLOOKUP(M$4,'4. Billing Determinants'!$B$19:$R$41,8,0)/'4. Billing Determinants'!$I$41*$D23, VLOOKUP(M$4,'4. Billing Determinants'!$B$19:$R$41,3,0)/'4. Billing Determinants'!$D$41*$D23))))),0) -> 0 | N23: =IFERROR(IF(N$4="",0,IF($E23="kWh",VLOOKUP(N$4,'4. Billing Determinants'!$B$19:$R$41,4,0)/'4. Billing Determinants'!$E$41*$D23,IF($E23="kW",VLOOKUP(N$4,'4. Billing Determinants'!$B$19:$R$41,5,0)/'4. Billing Determinants'!$F$41*$D23,IF($E23="Non-RPP kWh",VLOOKUP(N$4,'4. Billing Determinants'!$B$19:$R$41,6,0)/'4. Billing Determinants'!$G$41*$D23,IF($E23="Distribution Rev.",VLOOKUP(N$4,'4. Billing Determinants'!$B$19:$R$41,8,0)/'4. Billing Determinants'!$I$41*$D23, VLOOKUP(N$4,'4. Billing Determinants'!$B$19:$R$41,3,0)/'4. Billing Determinants'!$D$41*$D23))))),0) -> 0 | O23: =IFERROR(IF(O$4="",0,IF($E23="kWh",VLOOKUP(O$4,'4. Billing Determinants'!$B$19:$R$41,4,0)/'4. Billing Determinants'!$E$41*$D23,IF($E23="kW",VLOOKUP(O$4,'4. Billing Determinants'!$B$19:$R$41,5,0)/'4. Billing Determinants'!$F$41*$D23,IF($E23="Non-RPP kWh",VLOOKUP(O$4,'4. Billing Determinants'!$B$19:$R$41,6,0)/'4. Billing Determinants'!$G$41*$D23,IF($E23="Distribution Rev.",VLOOKUP(O$4,'4. Billing Determinants'!$B$19:$R$41,8,0)/'4. Billing Determinants'!$I$41*$D23, VLOOKUP(O$4,'4. Billing Determinants'!$B$19:$R$41,3,0)/'4. Billing Determinants'!$D$41*$D23))))),0) -> 0 | P23: =IFERROR(IF(P$4="",0,IF($E23="kWh",VLOOKUP(P$4,'4. Billing Determinants'!$B$19:$R$41,4,0)/'4. Billing Determinants'!$E$41*$D23,IF($E23="kW",VLOOKUP(P$4,'4. Billing Determinants'!$B$19:$R$41,5,0)/'4. Billing Determinants'!$F$41*$D23,IF($E23="Non-RPP kWh",VLOOKUP(P$4,'4. Billing Determinants'!$B$19:$R$41,6,0)/'4. Billing Determinants'!$G$41*$D23,IF($E23="Distribution Rev.",VLOOKUP(P$4,'4. Billing Determinants'!$B$19:$R$41,8,0)/'4. Billing Determinants'!$I$41*$D23, VLOOKUP(P$4,'4. Billing Determinants'!$B$19:$R$41,3,0)/'4. Billing Determinants'!$D$41*$D23))))),0) -> 0 | Q23: =IFERROR(IF(Q$4="",0,IF($E23="kWh",VLOOKUP(Q$4,'4. Billing Determinants'!$B$19:$R$41,4,0)/'4. Billing Determinants'!$E$41*$D23,IF($E23="kW",VLOOKUP(Q$4,'4. Billing Determinants'!$B$19:$R$41,5,0)/'4. Billing Determinants'!$F$41*$D23,IF($E23="Non-RPP kWh",VLOOKUP(Q$4,'4. Billing Determinants'!$B$19:$R$41,6,0)/'4. Billing Determinants'!$G$41*$D23,IF($E23="Distribution Rev.",VLOOKUP(Q$4,'4. Billing Determinants'!$B$19:$R$41,8,0)/'4. Billing Determinants'!$I$41*$D23, VLOOKUP(Q$4,'4. Billing Determinants'!$B$19:$R$41,3,0)/'4. Billing Determinants'!$D$41*$D23))))),0) -> 0 | R23: =IFERROR(IF(R$4="",0,IF($E23="kWh",VLOOKUP(R$4,'4. Billing Determinants'!$B$19:$R$41,4,0)/'4. Billing Determinants'!$E$41*$D23,IF($E23="kW",VLOOKUP(R$4,'4. Billing Determinants'!$B$19:$R$41,5,0)/'4. Billing Determinants'!$F$41*$D23,IF($E23="Non-RPP kWh",VLOOKUP(R$4,'4. Billing Determinants'!$B$19:$R$41,6,0)/'4. Billing Determinants'!$G$41*$D23,IF($E23="Distribution Rev.",VLOOKUP(R$4,'4. Billing Determinants'!$B$19:$R$41,8,0)/'4. Billing Determinants'!$I$41*$D23, VLOOKUP(R$4,'4. Billing Determinants'!$B$19:$R$41,3,0)/'4. Billing Determinants'!$D$41*$D23))))),0) -> 0 | S23: =IFERROR(IF(S$4="",0,IF($E23="kWh",VLOOKUP(S$4,'4. Billing Determinants'!$B$19:$R$41,4,0)/'4. Billing Determinants'!$E$41*$D23,IF($E23="kW",VLOOKUP(S$4,'4. Billing Determinants'!$B$19:$R$41,5,0)/'4. Billing Determinants'!$F$41*$D23,IF($E23="Non-RPP kWh",VLOOKUP(S$4,'4. Billing Determinants'!$B$19:$R$41,6,0)/'4. Billing Determinants'!$G$41*$D23,IF($E23="Distribution Rev.",VLOOKUP(S$4,'4. Billing Determinants'!$B$19:$R$41,8,0)/'4. Billing Determinants'!$I$41*$D23, VLOOKUP(S$4,'4. Billing Determinants'!$B$19:$R$41,3,0)/'4. Billing Determinants'!$D$41*$D23))))),0) -> 0 | T23: =IFERROR(IF(T$4="",0,IF($E23="kWh",VLOOKUP(T$4,'4. Billing Determinants'!$B$19:$R$41,4,0)/'4. Billing Determinants'!$E$41*$D23,IF($E23="kW",VLOOKUP(T$4,'4. Billing Determinants'!$B$19:$R$41,5,0)/'4. Billing Determinants'!$F$41*$D23,IF($E23="Non-RPP kWh",VLOOKUP(T$4,'4. Billing Determinants'!$B$19:$R$41,6,0)/'4. Billing Determinants'!$G$41*$D23,IF($E23="Distribution Rev.",VLOOKUP(T$4,'4. Billing Determinants'!$B$19:$R$41,8,0)/'4. Billing Determinants'!$I$41*$D23, VLOOKUP(T$4,'4. Billing Determinants'!$B$19:$R$41,3,0)/'4. Billing Determinants'!$D$41*$D23))))),0) -> 0 | U23: =IFERROR(IF(U$4="",0,IF($E23="kWh",VLOOKUP(U$4,'4. Billing Determinants'!$B$19:$R$41,4,0)/'4. Billing Determinants'!$E$41*$D23,IF($E23="kW",VLOOKUP(U$4,'4. Billing Determinants'!$B$19:$R$41,5,0)/'4. Billing Determinants'!$F$41*$D23,IF($E23="Non-RPP kWh",VLOOKUP(U$4,'4. Billing Determinants'!$B$19:$R$41,6,0)/'4. Billing Determinants'!$G$41*$D23,IF($E23="Distribution Rev.",VLOOKUP(U$4,'4. Billing Determinants'!$B$19:$R$41,8,0)/'4. Billing Determinants'!$I$41*$D23, VLOOKUP(U$4,'4. Billing Determinants'!$B$19:$R$41,3,0)/'4. Billing Determinants'!$D$41*$D23))))),0) -> 0 | V23: =IFERROR(IF(V$4="",0,IF($E23="kWh",VLOOKUP(V$4,'4. Billing Determinants'!$B$19:$R$41,4,0)/'4. Billing Determinants'!$E$41*$D23,IF($E23="kW",VLOOKUP(V$4,'4. Billing Determinants'!$B$19:$R$41,5,0)/'4. Billing Determinants'!$F$41*$D23,IF($E23="Non-RPP kWh",VLOOKUP(V$4,'4. Billing Determinants'!$B$19:$R$41,6,0)/'4. Billing Determinants'!$G$41*$D23,IF($E23="Distribution Rev.",VLOOKUP(V$4,'4. Billing Determinants'!$B$19:$R$41,8,0)/'4. Billing Determinants'!$I$41*$D23, VLOOKUP(V$4,'4. Billing Determinants'!$B$19:$R$41,3,0)/'4. Billing Determinants'!$D$41*$D23))))),0) -> 0 | W23: =IFERROR(IF(W$4="",0,IF($E23="kWh",VLOOKUP(W$4,'4. Billing Determinants'!$B$19:$R$41,4,0)/'4. Billing Determinants'!$E$41*$D23,IF($E23="kW",VLOOKUP(W$4,'4. Billing Determinants'!$B$19:$R$41,5,0)/'4. Billing Determinants'!$F$41*$D23,IF($E23="Non-RPP kWh",VLOOKUP(W$4,'4. Billing Determinants'!$B$19:$R$41,6,0)/'4. Billing Determinants'!$G$41*$D23,IF($E23="Distribution Rev.",VLOOKUP(W$4,'4. Billing Determinants'!$B$19:$R$41,8,0)/'4. Billing Determinants'!$I$41*$D23, VLOOKUP(W$4,'4. Billing Determinants'!$B$19:$R$41,3,0)/'4. Billing Determinants'!$D$41*$D23))))),0) -> 0 | X23: =IFERROR(IF(X$4="",0,IF($E23="kWh",VLOOKUP(X$4,'4. Billing Determinants'!$B$19:$R$41,4,0)/'4. Billing Determinants'!$E$41*$D23,IF($E23="kW",VLOOKUP(X$4,'4. Billing Determinants'!$B$19:$R$41,5,0)/'4. Billing Determinants'!$F$41*$D23,IF($E23="Non-RPP kWh",VLOOKUP(X$4,'4. Billing Determinants'!$B$19:$R$41,6,0)/'4. Billing Determinants'!$G$41*$D23,IF($E23="Distribution Rev.",VLOOKUP(X$4,'4. Billing Determinants'!$B$19:$R$41,8,0)/'4. Billing Determinants'!$I$41*$D23, VLOOKUP(X$4,'4. Billing Determinants'!$B$19:$R$41,3,0)/'4. Billing Determinants'!$D$41*$D23))))),0) -> 0 | Y23: =IFERROR(IF(Y$4="",0,IF($E23="kWh",VLOOKUP(Y$4,'4. Billing Determinants'!$B$19:$R$41,4,0)/'4. Billing Determinants'!$E$41*$D23,IF($E23="kW",VLOOKUP(Y$4,'4. Billing Determinants'!$B$19:$R$41,5,0)/'4. Billing Determinants'!$F$41*$D23,IF($E23="Non-RPP kWh",VLOOKUP(Y$4,'4. Billing Determinants'!$B$19:$R$41,6,0)/'4. Billing Determinants'!$G$41*$D23,IF($E23="Distribution Rev.",VLOOKUP(Y$4,'4. Billing Determinants'!$B$19:$R$41,8,0)/'4. Billing Determinants'!$I$41*$D23, VLOOKUP(Y$4,'4. Billing Determinants'!$B$19:$R$41,3,0)/'4. Billing Determinants'!$D$41*$D23))))),0) -> 0
A24: 21 | B24: Other Regulatory Assets - Sub-Account - Other | C24: 1508 | D24: ='2. 2016 Continuity Schedule'!BT50 -> 0 | E24: kWh | F24: =IFERROR(IF(F$4="",0,IF($E24="kWh",VLOOKUP(F$4,'4. Billing Determinants'!$B$19:$R$41,4,0)/'4. Billing Determinants'!$E$41*$D24,IF($E24="kW",VLOOKUP(F$4,'4. Billing Determinants'!$B$19:$R$41,5,0)/'4. Billing Determinants'!$F$41*$D24,IF($E24="Non-RPP kWh",VLOOKUP(F$4,'4. Billing Determinants'!$B$19:$R$41,6,0)/'4. Billing Determinants'!$G$41*$D24,IF($E24="Distribution Rev.",VLOOKUP(F$4,'4. Billing Determinants'!$B$19:$R$41,8,0)/'4. Billing Determinants'!$I$41*$D24, VLOOKUP(F$4,'4. Billing Determinants'!$B$19:$R$41,3,0)/'4. Billing Determinants'!$D$41*$D24))))),0) -> 0 | G24: =IFERROR(IF(G$4="",0,IF($E24="kWh",VLOOKUP(G$4,'4. Billing Determinants'!$B$19:$R$41,4,0)/'4. Billing Determinants'!$E$41*$D24,IF($E24="kW",VLOOKUP(G$4,'4. Billing Determinants'!$B$19:$R$41,5,0)/'4. Billing Determinants'!$F$41*$D24,IF($E24="Non-RPP kWh",VLOOKUP(G$4,'4. Billing Determinants'!$B$19:$R$41,6,0)/'4. Billing Determinants'!$G$41*$D24,IF($E24="Distribution Rev.",VLOOKUP(G$4,'4. Billing Determinants'!$B$19:$R$41,8,0)/'4. Billing Determinants'!$I$41*$D24, VLOOKUP(G$4,'4. Billing Determinants'!$B$19:$R$41,3,0)/'4. Billing Determinants'!$D$41*$D24))))),0) -> 0 | H24: =IFERROR(IF(H$4="",0,IF($E24="kWh",VLOOKUP(H$4,'4. Billing Determinants'!$B$19:$R$41,4,0)/'4. Billing Determinants'!$E$41*$D24,IF($E24="kW",VLOOKUP(H$4,'4. Billing Determinants'!$B$19:$R$41,5,0)/'4. Billing Determinants'!$F$41*$D24,IF($E24="Non-RPP kWh",VLOOKUP(H$4,'4. Billing Determinants'!$B$19:$R$41,6,0)/'4. Billing Determinants'!$G$41*$D24,IF($E24="Distribution Rev.",VLOOKUP(H$4,'4. Billing Determinants'!$B$19:$R$41,8,0)/'4. Billing Determinants'!$I$41*$D24, VLOOKUP(H$4,'4. Billing Determinants'!$B$19:$R$41,3,0)/'4. Billing Determinants'!$D$41*$D24))))),0) -> 0 | I24: =IFERROR(IF(I$4="",0,IF($E24="kWh",VLOOKUP(I$4,'4. Billing Determinants'!$B$19:$R$41,4,0)/'4. Billing Determinants'!$E$41*$D24,IF($E24="kW",VLOOKUP(I$4,'4. Billing Determinants'!$B$19:$R$41,5,0)/'4. Billing Determinants'!$F$41*$D24,IF($E24="Non-RPP kWh",VLOOKUP(I$4,'4. Billing Determinants'!$B$19:$R$41,6,0)/'4. Billing Determinants'!$G$41*$D24,IF($E24="Distribution Rev.",VLOOKUP(I$4,'4. Billing Determinants'!$B$19:$R$41,8,0)/'4. Billing Determinants'!$I$41*$D24, VLOOKUP(I$4,'4. Billing Determinants'!$B$19:$R$41,3,0)/'4. Billing Determinants'!$D$41*$D24))))),0) -> 0 | J24: =IFERROR(IF(J$4="",0,IF($E24="kWh",VLOOKUP(J$4,'4. Billing Determinants'!$B$19:$R$41,4,0)/'4. Billing Determinants'!$E$41*$D24,IF($E24="kW",VLOOKUP(J$4,'4. Billing Determinants'!$B$19:$R$41,5,0)/'4. Billing Determinants'!$F$41*$D24,IF($E24="Non-RPP kWh",VLOOKUP(J$4,'4. Billing Determinants'!$B$19:$R$41,6,0)/'4. Billing Determinants'!$G$41*$D24,IF($E24="Distribution Rev.",VLOOKUP(J$4,'4. Billing Determinants'!$B$19:$R$41,8,0)/'4. Billing Determinants'!$I$41*$D24, VLOOKUP(J$4,'4. Billing Determinants'!$B$19:$R$41,3,0)/'4. Billing Determinants'!$D$41*$D24))))),0) -> 0 | K24: =IFERROR(IF(K$4="",0,IF($E24="kWh",VLOOKUP(K$4,'4. Billing Determinants'!$B$19:$R$41,4,0)/'4. Billing Determinants'!$E$41*$D24,IF($E24="kW",VLOOKUP(K$4,'4. Billing Determinants'!$B$19:$R$41,5,0)/'4. Billing Determinants'!$F$41*$D24,IF($E24="Non-RPP kWh",VLOOKUP(K$4,'4. Billing Determinants'!$B$19:$R$41,6,0)/'4. Billing Determinants'!$G$41*$D24,IF($E24="Distribution Rev.",VLOOKUP(K$4,'4. Billing Determinants'!$B$19:$R$41,8,0)/'4. Billing Determinants'!$I$41*$D24, VLOOKUP(K$4,'4. Billing Determinants'!$B$19:$R$41,3,0)/'4. Billing Determinants'!$D$41*$D24))))),0) -> 0 | L24: =IFERROR(IF(L$4="",0,IF($E24="kWh",VLOOKUP(L$4,'4. Billing Determinants'!$B$19:$R$41,4,0)/'4. Billing Determinants'!$E$41*$D24,IF($E24="kW",VLOOKUP(L$4,'4. Billing Determinants'!$B$19:$R$41,5,0)/'4. Billing Determinants'!$F$41*$D24,IF($E24="Non-RPP kWh",VLOOKUP(L$4,'4. Billing Determinants'!$B$19:$R$41,6,0)/'4. Billing Determinants'!$G$41*$D24,IF($E24="Distribution Rev.",VLOOKUP(L$4,'4. Billing Determinants'!$B$19:$R$41,8,0)/'4. Billing Determinants'!$I$41*$D24, VLOOKUP(L$4,'4. Billing Determinants'!$B$19:$R$41,3,0)/'4. Billing Determinants'!$D$41*$D24))))),0) -> 0 | M24: =IFERROR(IF(M$4="",0,IF($E24="kWh",VLOOKUP(M$4,'4. Billing Determinants'!$B$19:$R$41,4,0)/'4. Billing Determinants'!$E$41*$D24,IF($E24="kW",VLOOKUP(M$4,'4. Billing Determinants'!$B$19:$R$41,5,0)/'4. Billing Determinants'!$F$41*$D24,IF($E24="Non-RPP kWh",VLOOKUP(M$4,'4. Billing Determinants'!$B$19:$R$41,6,0)/'4. Billing Determinants'!$G$41*$D24,IF($E24="Distribution Rev.",VLOOKUP(M$4,'4. Billing Determinants'!$B$19:$R$41,8,0)/'4. Billing Determinants'!$I$41*$D24, VLOOKUP(M$4,'4. Billing Determinants'!$B$19:$R$41,3,0)/'4. Billing Determinants'!$D$41*$D24))))),0) -> 0 | N24: =IFERROR(IF(N$4="",0,IF($E24="kWh",VLOOKUP(N$4,'4. Billing Determinants'!$B$19:$R$41,4,0)/'4. Billing Determinants'!$E$41*$D24,IF($E24="kW",VLOOKUP(N$4,'4. Billing Determinants'!$B$19:$R$41,5,0)/'4. Billing Determinants'!$F$41*$D24,IF($E24="Non-RPP kWh",VLOOKUP(N$4,'4. Billing Determinants'!$B$19:$R$41,6,0)/'4. Billing Determinants'!$G$41*$D24,IF($E24="Distribution Rev.",VLOOKUP(N$4,'4. Billing Determinants'!$B$19:$R$41,8,0)/'4. Billing Determinants'!$I$41*$D24, VLOOKUP(N$4,'4. Billing Determinants'!$B$19:$R$41,3,0)/'4. Billing Determinants'!$D$41*$D24))))),0) -> 0 | O24: =IFERROR(IF(O$4="",0,IF($E24="kWh",VLOOKUP(O$4,'4. Billing Determinants'!$B$19:$R$41,4,0)/'4. Billing Determinants'!$E$41*$D24,IF($E24="kW",VLOOKUP(O$4,'4. Billing Determinants'!$B$19:$R$41,5,0)/'4. Billing Determinants'!$F$41*$D24,IF($E24="Non-RPP kWh",VLOOKUP(O$4,'4. Billing Determinants'!$B$19:$R$41,6,0)/'4. Billing Determinants'!$G$41*$D24,IF($E24="Distribution Rev.",VLOOKUP(O$4,'4. Billing Determinants'!$B$19:$R$41,8,0)/'4. Billing Determinants'!$I$41*$D24, VLOOKUP(O$4,'4. Billing Determinants'!$B$19:$R$41,3,0)/'4. Billing Determinants'!$D$41*$D24))))),0) -> 0 | P24: =IFERROR(IF(P$4="",0,IF($E24="kWh",VLOOKUP(P$4,'4. Billing Determinants'!$B$19:$R$41,4,0)/'4. Billing Determinants'!$E$41*$D24,IF($E24="kW",VLOOKUP(P$4,'4. Billing Determinants'!$B$19:$R$41,5,0)/'4. Billing Determinants'!$F$41*$D24,IF($E24="Non-RPP kWh",VLOOKUP(P$4,'4. Billing Determinants'!$B$19:$R$41,6,0)/'4. Billing Determinants'!$G$41*$D24,IF($E24="Distribution Rev.",VLOOKUP(P$4,'4. Billing Determinants'!$B$19:$R$41,8,0)/'4. Billing Determinants'!$I$41*$D24, VLOOKUP(P$4,'4. Billing Determinants'!$B$19:$R$41,3,0)/'4. Billing Determinants'!$D$41*$D24))))),0) -> 0 | Q24: =IFERROR(IF(Q$4="",0,IF($E24="kWh",VLOOKUP(Q$4,'4. Billing Determinants'!$B$19:$R$41,4,0)/'4. Billing Determinants'!$E$41*$D24,IF($E24="kW",VLOOKUP(Q$4,'4. Billing Determinants'!$B$19:$R$41,5,0)/'4. Billing Determinants'!$F$41*$D24,IF($E24="Non-RPP kWh",VLOOKUP(Q$4,'4. Billing Determinants'!$B$19:$R$41,6,0)/'4. Billing Determinants'!$G$41*$D24,IF($E24="Distribution Rev.",VLOOKUP(Q$4,'4. Billing Determinants'!$B$19:$R$41,8,0)/'4. Billing Determinants'!$I$41*$D24, VLOOKUP(Q$4,'4. Billing Determinants'!$B$19:$R$41,3,0)/'4. Billing Determinants'!$D$41*$D24))))),0) -> 0 | R24: =IFERROR(IF(R$4="",0,IF($E24="kWh",VLOOKUP(R$4,'4. Billing Determinants'!$B$19:$R$41,4,0)/'4. Billing Determinants'!$E$41*$D24,IF($E24="kW",VLOOKUP(R$4,'4. Billing Determinants'!$B$19:$R$41,5,0)/'4. Billing Determinants'!$F$41*$D24,IF($E24="Non-RPP kWh",VLOOKUP(R$4,'4. Billing Determinants'!$B$19:$R$41,6,0)/'4. Billing Determinants'!$G$41*$D24,IF($E24="Distribution Rev.",VLOOKUP(R$4,'4. Billing Determinants'!$B$19:$R$41,8,0)/'4. Billing Determinants'!$I$41*$D24, VLOOKUP(R$4,'4. Billing Determinants'!$B$19:$R$41,3,0)/'4. Billing Determinants'!$D$41*$D24))))),0) -> 0 | S24: =IFERROR(IF(S$4="",0,IF($E24="kWh",VLOOKUP(S$4,'4. Billing Determinants'!$B$19:$R$41,4,0)/'4. Billing Determinants'!$E$41*$D24,IF($E24="kW",VLOOKUP(S$4,'4. Billing Determinants'!$B$19:$R$41,5,0)/'4. Billing Determinants'!$F$41*$D24,IF($E24="Non-RPP kWh",VLOOKUP(S$4,'4. Billing Determinants'!$B$19:$R$41,6,0)/'4. Billing Determinants'!$G$41*$D24,IF($E24="Distribution Rev.",VLOOKUP(S$4,'4. Billing Determinants'!$B$19:$R$41,8,0)/'4. Billing Determinants'!$I$41*$D24, VLOOKUP(S$4,'4. Billing Determinants'!$B$19:$R$41,3,0)/'4. Billing Determinants'!$D$41*$D24))))),0) -> 0 | T24: =IFERROR(IF(T$4="",0,IF($E24="kWh",VLOOKUP(T$4,'4. Billing Determinants'!$B$19:$R$41,4,0)/'4. Billing Determinants'!$E$41*$D24,IF($E24="kW",VLOOKUP(T$4,'4. Billing Determinants'!$B$19:$R$41,5,0)/'4. Billing Determinants'!$F$41*$D24,IF($E24="Non-RPP kWh",VLOOKUP(T$4,'4. Billing Determinants'!$B$19:$R$41,6,0)/'4. Billing Determinants'!$G$41*$D24,IF($E24="Distribution Rev.",VLOOKUP(T$4,'4. Billing Determinants'!$B$19:$R$41,8,0)/'4. Billing Determinants'!$I$41*$D24, VLOOKUP(T$4,'4. Billing Determinants'!$B$19:$R$41,3,0)/'4. Billing Determinants'!$D$41*$D24))))),0) -> 0 | U24: =IFERROR(IF(U$4="",0,IF($E24="kWh",VLOOKUP(U$4,'4. Billing Determinants'!$B$19:$R$41,4,0)/'4. Billing Determinants'!$E$41*$D24,IF($E24="kW",VLOOKUP(U$4,'4. Billing Determinants'!$B$19:$R$41,5,0)/'4. Billing Determinants'!$F$41*$D24,IF($E24="Non-RPP kWh",VLOOKUP(U$4,'4. Billing Determinants'!$B$19:$R$41,6,0)/'4. Billing Determinants'!$G$41*$D24,IF($E24="Distribution Rev.",VLOOKUP(U$4,'4. Billing Determinants'!$B$19:$R$41,8,0)/'4. Billing Determinants'!$I$41*$D24, VLOOKUP(U$4,'4. Billing Determinants'!$B$19:$R$41,3,0)/'4. Billing Determinants'!$D$41*$D24))))),0) -> 0 | V24: =IFERROR(IF(V$4="",0,IF($E24="kWh",VLOOKUP(V$4,'4. Billing Determinants'!$B$19:$R$41,4,0)/'4. Billing Determinants'!$E$41*$D24,IF($E24="kW",VLOOKUP(V$4,'4. Billing Determinants'!$B$19:$R$41,5,0)/'4. Billing Determinants'!$F$41*$D24,IF($E24="Non-RPP kWh",VLOOKUP(V$4,'4. Billing Determinants'!$B$19:$R$41,6,0)/'4. Billing Determinants'!$G$41*$D24,IF($E24="Distribution Rev.",VLOOKUP(V$4,'4. Billing Determinants'!$B$19:$R$41,8,0)/'4. Billing Determinants'!$I$41*$D24, VLOOKUP(V$4,'4. Billing Determinants'!$B$19:$R$41,3,0)/'4. Billing Determinants'!$D$41*$D24))))),0) -> 0 | W24: =IFERROR(IF(W$4="",0,IF($E24="kWh",VLOOKUP(W$4,'4. Billing Determinants'!$B$19:$R$41,4,0)/'4. Billing Determinants'!$E$41*$D24,IF($E24="kW",VLOOKUP(W$4,'4. Billing Determinants'!$B$19:$R$41,5,0)/'4. Billing Determinants'!$F$41*$D24,IF($E24="Non-RPP kWh",VLOOKUP(W$4,'4. Billing Determinants'!$B$19:$R$41,6,0)/'4. Billing Determinants'!$G$41*$D24,IF($E24="Distribution Rev.",VLOOKUP(W$4,'4. Billing Determinants'!$B$19:$R$41,8,0)/'4. Billing Determinants'!$I$41*$D24, VLOOKUP(W$4,'4. Billing Determinants'!$B$19:$R$41,3,0)/'4. Billing Determinants'!$D$41*$D24))))),0) -> 0 | X24: =IFERROR(IF(X$4="",0,IF($E24="kWh",VLOOKUP(X$4,'4. Billing Determinants'!$B$19:$R$41,4,0)/'4. Billing Determinants'!$E$41*$D24,IF($E24="kW",VLOOKUP(X$4,'4. Billing Determinants'!$B$19:$R$41,5,0)/'4. Billing Determinants'!$F$41*$D24,IF($E24="Non-RPP kWh",VLOOKUP(X$4,'4. Billing Determinants'!$B$19:$R$41,6,0)/'4. Billing Determinants'!$G$41*$D24,IF($E24="Distribution Rev.",VLOOKUP(X$4,'4. Billing Determinants'!$B$19:$R$41,8,0)/'4. Billing Determinants'!$I$41*$D24, VLOOKUP(X$4,'4. Billing Determinants'!$B$19:$R$41,3,0)/'4. Billing Determinants'!$D$41*$D24))))),0) -> 0 | Y24: =IFERROR(IF(Y$4="",0,IF($E24="kWh",VLOOKUP(Y$4,'4. Billing Determinants'!$B$19:$R$41,4,0)/'4. Billing Determinants'!$E$41*$D24,IF($E24="kW",VLOOKUP(Y$4,'4. Billing Determinants'!$B$19:$R$41,5,0)/'4. Billing Determinants'!$F$41*$D24,IF($E24="Non-RPP kWh",VLOOKUP(Y$4,'4. Billing Determinants'!$B$19:$R$41,6,0)/'4. Billing Determinants'!$G$41*$D24,IF($E24="Distribution Rev.",VLOOKUP(Y$4,'4. Billing Determinants'!$B$19:$R$41,8,0)/'4. Billing Determinants'!$I$41*$D24, VLOOKUP(Y$4,'4. Billing Determinants'!$B$19:$R$41,3,0)/'4. Billing Determinants'!$D$41*$D24))))),0) -> 0
A25: 22 | B25: Retail Cost Variance Account - Retail | C25: 1518 | D25: =+'2. 2016 Continuity Schedule'!BT51 -> 238820.184 | E25: kWh | F25: =IFERROR(IF(F$4="",0,IF($E25="kWh",VLOOKUP(F$4,'4. Billing Determinants'!$B$19:$R$41,4,0)/'4. Billing Determinants'!$E$41*$D25,IF($E25="kW",VLOOKUP(F$4,'4. Billing Determinants'!$B$19:$R$41,5,0)/'4. Billing Determinants'!$F$41*$D25,IF($E25="Non-RPP kWh",VLOOKUP(F$4,'4. Billing Determinants'!$B$19:$R$41,6,0)/'4. Billing Determinants'!$G$41*$D25,IF($E25="Distribution Rev.",VLOOKUP(F$4,'4. Billing Determinants'!$B$19:$R$41,8,0)/'4. Billing Determinants'!$I$41*$D25, VLOOKUP(F$4,'4. Billing Determinants'!$B$19:$R$41,3,0)/'4. Billing Determinants'!$D$41*$D25))))),0) -> 87101.57707 | G25: =IFERROR(IF(G$4="",0,IF($E25="kWh",VLOOKUP(G$4,'4. Billing Determinants'!$B$19:$R$41,4,0)/'4. Billing Determinants'!$E$41*$D25,IF($E25="kW",VLOOKUP(G$4,'4. Billing Determinants'!$B$19:$R$41,5,0)/'4. Billing Determinants'!$F$41*$D25,IF($E25="Non-RPP kWh",VLOOKUP(G$4,'4. Billing Determinants'!$B$19:$R$41,6,0)/'4. Billing Determinants'!$G$41*$D25,IF($E25="Distribution Rev.",VLOOKUP(G$4,'4. Billing Determinants'!$B$19:$R$41,8,0)/'4. Billing Determinants'!$I$41*$D25, VLOOKUP(G$4,'4. Billing Determinants'!$B$19:$R$41,3,0)/'4. Billing Determinants'!$D$41*$D25))))),0) -> 36978.90128 | H25: =IFERROR(IF(H$4="",0,IF($E25="kWh",VLOOKUP(H$4,'4. Billing Determinants'!$B$19:$R$41,4,0)/'4. Billing Determinants'!$E$41*$D25,IF($E25="kW",VLOOKUP(H$4,'4. Billing Determinants'!$B$19:$R$41,5,0)/'4. Billing Determinants'!$F$41*$D25,IF($E25="Non-RPP kWh",VLOOKUP(H$4,'4. Billing Determinants'!$B$19:$R$41,6,0)/'4. Billing Determinants'!$G$41*$D25,IF($E25="Distribution Rev.",VLOOKUP(H$4,'4. Billing Determinants'!$B$19:$R$41,8,0)/'4. Billing Determinants'!$I$41*$D25, VLOOKUP(H$4,'4. Billing Determinants'!$B$19:$R$41,3,0)/'4. Billing Determinants'!$D$41*$D25))))),0) -> 68125.4046 | I25: =IFERROR(IF(I$4="",0,IF($E25="kWh",VLOOKUP(I$4,'4. Billing Determinants'!$B$19:$R$41,4,0)/'4. Billing Determinants'!$E$41*$D25,IF($E25="kW",VLOOKUP(I$4,'4. Billing Determinants'!$B$19:$R$41,5,0)/'4. Billing Determinants'!$F$41*$D25,IF($E25="Non-RPP kWh",VLOOKUP(I$4,'4. Billing Determinants'!$B$19:$R$41,6,0)/'4. Billing Determinants'!$G$41*$D25,IF($E25="Distribution Rev.",VLOOKUP(I$4,'4. Billing Determinants'!$B$19:$R$41,8,0)/'4. Billing Determinants'!$I$41*$D25, VLOOKUP(I$4,'4. Billing Determinants'!$B$19:$R$41,3,0)/'4. Billing Determinants'!$D$41*$D25))))),0) -> 43881.19734 | J25: =IFERROR(IF(J$4="",0,IF($E25="kWh",VLOOKUP(J$4,'4. Billing Determinants'!$B$19:$R$41,4,0)/'4. Billing Determinants'!$E$41*$D25,IF($E25="kW",VLOOKUP(J$4,'4. Billing Determinants'!$B$19:$R$41,5,0)/'4. Billing Determinants'!$F$41*$D25,IF($E25="Non-RPP kWh",VLOOKUP(J$4,'4. Billing Determinants'!$B$19:$R$41,6,0)/'4. Billing Determinants'!$G$41*$D25,IF($E25="Distribution Rev.",VLOOKUP(J$4,'4. Billing Determinants'!$B$19:$R$41,8,0)/'4. Billing Determinants'!$I$41*$D25, VLOOKUP(J$4,'4. Billing Determinants'!$B$19:$R$41,3,0)/'4. Billing Determinants'!$D$41*$D25))))),0) -> 0 | K25: =IFERROR(IF(K$4="",0,IF($E25="kWh",VLOOKUP(K$4,'4. Billing Determinants'!$B$19:$R$41,4,0)/'4. Billing Determinants'!$E$41*$D25,IF($E25="kW",VLOOKUP(K$4,'4. Billing Determinants'!$B$19:$R$41,5,0)/'4. Billing Determinants'!$F$41*$D25,IF($E25="Non-RPP kWh",VLOOKUP(K$4,'4. Billing Determinants'!$B$19:$R$41,6,0)/'4. Billing Determinants'!$G$41*$D25,IF($E25="Distribution Rev.",VLOOKUP(K$4,'4. Billing Determinants'!$B$19:$R$41,8,0)/'4. Billing Determinants'!$I$41*$D25, VLOOKUP(K$4,'4. Billing Determinants'!$B$19:$R$41,3,0)/'4. Billing Determinants'!$D$41*$D25))))),0) -> 2148.437267 | L25: =IFERROR(IF(L$4="",0,IF($E25="kWh",VLOOKUP(L$4,'4. Billing Determinants'!$B$19:$R$41,4,0)/'4. Billing Determinants'!$E$41*$D25,IF($E25="kW",VLOOKUP(L$4,'4. Billing Determinants'!$B$19:$R$41,5,0)/'4. Billing Determinants'!$F$41*$D25,IF($E25="Non-RPP kWh",VLOOKUP(L$4,'4. Billing Determinants'!$B$19:$R$41,6,0)/'4. Billing Determinants'!$G$41*$D25,IF($E25="Distribution Rev.",VLOOKUP(L$4,'4. Billing Determinants'!$B$19:$R$41,8,0)/'4. Billing Determinants'!$I$41*$D25, VLOOKUP(L$4,'4. Billing Determinants'!$B$19:$R$41,3,0)/'4. Billing Determinants'!$D$41*$D25))))),0) -> 27.9969968 | M25: =IFERROR(IF(M$4="",0,IF($E25="kWh",VLOOKUP(M$4,'4. Billing Determinants'!$B$19:$R$41,4,0)/'4. Billing Determinants'!$E$41*$D25,IF($E25="kW",VLOOKUP(M$4,'4. Billing Determinants'!$B$19:$R$41,5,0)/'4. Billing Determinants'!$F$41*$D25,IF($E25="Non-RPP kWh",VLOOKUP(M$4,'4. Billing Determinants'!$B$19:$R$41,6,0)/'4. Billing Determinants'!$G$41*$D25,IF($E25="Distribution Rev.",VLOOKUP(M$4,'4. Billing Determinants'!$B$19:$R$41,8,0)/'4. Billing Determinants'!$I$41*$D25, VLOOKUP(M$4,'4. Billing Determinants'!$B$19:$R$41,3,0)/'4. Billing Determinants'!$D$41*$D25))))),0) -> 556.6694477 | N25: =IFERROR(IF(N$4="",0,IF($E25="kWh",VLOOKUP(N$4,'4. Billing Determinants'!$B$19:$R$41,4,0)/'4. Billing Determinants'!$E$41*$D25,IF($E25="kW",VLOOKUP(N$4,'4. Billing Determinants'!$B$19:$R$41,5,0)/'4. Billing Determinants'!$F$41*$D25,IF($E25="Non-RPP kWh",VLOOKUP(N$4,'4. Billing Determinants'!$B$19:$R$41,6,0)/'4. Billing Determinants'!$G$41*$D25,IF($E25="Distribution Rev.",VLOOKUP(N$4,'4. Billing Determinants'!$B$19:$R$41,8,0)/'4. Billing Determinants'!$I$41*$D25, VLOOKUP(N$4,'4. Billing Determinants'!$B$19:$R$41,3,0)/'4. Billing Determinants'!$D$41*$D25))))),0) -> 0 | O25: =IFERROR(IF(O$4="",0,IF($E25="kWh",VLOOKUP(O$4,'4. Billing Determinants'!$B$19:$R$41,4,0)/'4. Billing Determinants'!$E$41*$D25,IF($E25="kW",VLOOKUP(O$4,'4. Billing Determinants'!$B$19:$R$41,5,0)/'4. Billing Determinants'!$F$41*$D25,IF($E25="Non-RPP kWh",VLOOKUP(O$4,'4. Billing Determinants'!$B$19:$R$41,6,0)/'4. Billing Determinants'!$G$41*$D25,IF($E25="Distribution Rev.",VLOOKUP(O$4,'4. Billing Determinants'!$B$19:$R$41,8,0)/'4. Billing Determinants'!$I$41*$D25, VLOOKUP(O$4,'4. Billing Determinants'!$B$19:$R$41,3,0)/'4. Billing Determinants'!$D$41*$D25))))),0) -> 0 | P25: =IFERROR(IF(P$4="",0,IF($E25="kWh",VLOOKUP(P$4,'4. Billing Determinants'!$B$19:$R$41,4,0)/'4. Billing Determinants'!$E$41*$D25,IF($E25="kW",VLOOKUP(P$4,'4. Billing Determinants'!$B$19:$R$41,5,0)/'4. Billing Determinants'!$F$41*$D25,IF($E25="Non-RPP kWh",VLOOKUP(P$4,'4. Billing Determinants'!$B$19:$R$41,6,0)/'4. Billing Determinants'!$G$41*$D25,IF($E25="Distribution Rev.",VLOOKUP(P$4,'4. Billing Determinants'!$B$19:$R$41,8,0)/'4. Billing Determinants'!$I$41*$D25, VLOOKUP(P$4,'4. Billing Determinants'!$B$19:$R$41,3,0)/'4. Billing Determinants'!$D$41*$D25))))),0) -> 0 | Q25: =IFERROR(IF(Q$4="",0,IF($E25="kWh",VLOOKUP(Q$4,'4. Billing Determinants'!$B$19:$R$41,4,0)/'4. Billing Determinants'!$E$41*$D25,IF($E25="kW",VLOOKUP(Q$4,'4. Billing Determinants'!$B$19:$R$41,5,0)/'4. Billing Determinants'!$F$41*$D25,IF($E25="Non-RPP kWh",VLOOKUP(Q$4,'4. Billing Determinants'!$B$19:$R$41,6,0)/'4. Billing Determinants'!$G$41*$D25,IF($E25="Distribution Rev.",VLOOKUP(Q$4,'4. Billing Determinants'!$B$19:$R$41,8,0)/'4. Billing Determinants'!$I$41*$D25, VLOOKUP(Q$4,'4. Billing Determinants'!$B$19:$R$41,3,0)/'4. Billing Determinants'!$D$41*$D25))))),0) -> 0 | R25: =IFERROR(IF(R$4="",0,IF($E25="kWh",VLOOKUP(R$4,'4. Billing Determinants'!$B$19:$R$41,4,0)/'4. Billing Determinants'!$E$41*$D25,IF($E25="kW",VLOOKUP(R$4,'4. Billing Determinants'!$B$19:$R$41,5,0)/'4. Billing Determinants'!$F$41*$D25,IF($E25="Non-RPP kWh",VLOOKUP(R$4,'4. Billing Determinants'!$B$19:$R$41,6,0)/'4. Billing Determinants'!$G$41*$D25,IF($E25="Distribution Rev.",VLOOKUP(R$4,'4. Billing Determinants'!$B$19:$R$41,8,0)/'4. Billing Determinants'!$I$41*$D25, VLOOKUP(R$4,'4. Billing Determinants'!$B$19:$R$41,3,0)/'4. Billing Determinants'!$D$41*$D25))))),0) -> 0 | S25: =IFERROR(IF(S$4="",0,IF($E25="kWh",VLOOKUP(S$4,'4. Billing Determinants'!$B$19:$R$41,4,0)/'4. Billing Determinants'!$E$41*$D25,IF($E25="kW",VLOOKUP(S$4,'4. Billing Determinants'!$B$19:$R$41,5,0)/'4. Billing Determinants'!$F$41*$D25,IF($E25="Non-RPP kWh",VLOOKUP(S$4,'4. Billing Determinants'!$B$19:$R$41,6,0)/'4. Billing Determinants'!$G$41*$D25,IF($E25="Distribution Rev.",VLOOKUP(S$4,'4. Billing Determinants'!$B$19:$R$41,8,0)/'4. Billing Determinants'!$I$41*$D25, VLOOKUP(S$4,'4. Billing Determinants'!$B$19:$R$41,3,0)/'4. Billing Determinants'!$D$41*$D25))))),0) -> 0 | T25: =IFERROR(IF(T$4="",0,IF($E25="kWh",VLOOKUP(T$4,'4. Billing Determinants'!$B$19:$R$41,4,0)/'4. Billing Determinants'!$E$41*$D25,IF($E25="kW",VLOOKUP(T$4,'4. Billing Determinants'!$B$19:$R$41,5,0)/'4. Billing Determinants'!$F$41*$D25,IF($E25="Non-RPP kWh",VLOOKUP(T$4,'4. Billing Determinants'!$B$19:$R$41,6,0)/'4. Billing Determinants'!$G$41*$D25,IF($E25="Distribution Rev.",VLOOKUP(T$4,'4. Billing Determinants'!$B$19:$R$41,8,0)/'4. Billing Determinants'!$I$41*$D25, VLOOKUP(T$4,'4. Billing Determinants'!$B$19:$R$41,3,0)/'4. Billing Determinants'!$D$41*$D25))))),0) -> 0 | U25: =IFERROR(IF(U$4="",0,IF($E25="kWh",VLOOKUP(U$4,'4. Billing Determinants'!$B$19:$R$41,4,0)/'4. Billing Determinants'!$E$41*$D25,IF($E25="kW",VLOOKUP(U$4,'4. Billing Determinants'!$B$19:$R$41,5,0)/'4. Billing Determinants'!$F$41*$D25,IF($E25="Non-RPP kWh",VLOOKUP(U$4,'4. Billing Determinants'!$B$19:$R$41,6,0)/'4. Billing Determinants'!$G$41*$D25,IF($E25="Distribution Rev.",VLOOKUP(U$4,'4. Billing Determinants'!$B$19:$R$41,8,0)/'4. Billing Determinants'!$I$41*$D25, VLOOKUP(U$4,'4. Billing Determinants'!$B$19:$R$41,3,0)/'4. Billing Determinants'!$D$41*$D25))))),0) -> 0 | V25: =IFERROR(IF(V$4="",0,IF($E25="kWh",VLOOKUP(V$4,'4. Billing Determinants'!$B$19:$R$41,4,0)/'4. Billing Determinants'!$E$41*$D25,IF($E25="kW",VLOOKUP(V$4,'4. Billing Determinants'!$B$19:$R$41,5,0)/'4. Billing Determinants'!$F$41*$D25,IF($E25="Non-RPP kWh",VLOOKUP(V$4,'4. Billing Determinants'!$B$19:$R$41,6,0)/'4. Billing Determinants'!$G$41*$D25,IF($E25="Distribution Rev.",VLOOKUP(V$4,'4. Billing Determinants'!$B$19:$R$41,8,0)/'4. Billing Determinants'!$I$41*$D25, VLOOKUP(V$4,'4. Billing Determinants'!$B$19:$R$41,3,0)/'4. Billing Determinants'!$D$41*$D25))))),0) -> 0 | W25: =IFERROR(IF(W$4="",0,IF($E25="kWh",VLOOKUP(W$4,'4. Billing Determinants'!$B$19:$R$41,4,0)/'4. Billing Determinants'!$E$41*$D25,IF($E25="kW",VLOOKUP(W$4,'4. Billing Determinants'!$B$19:$R$41,5,0)/'4. Billing Determinants'!$F$41*$D25,IF($E25="Non-RPP kWh",VLOOKUP(W$4,'4. Billing Determinants'!$B$19:$R$41,6,0)/'4. Billing Determinants'!$G$41*$D25,IF($E25="Distribution Rev.",VLOOKUP(W$4,'4. Billing Determinants'!$B$19:$R$41,8,0)/'4. Billing Determinants'!$I$41*$D25, VLOOKUP(W$4,'4. Billing Determinants'!$B$19:$R$41,3,0)/'4. Billing Determinants'!$D$41*$D25))))),0) -> 0 | X25: =IFERROR(IF(X$4="",0,IF($E25="kWh",VLOOKUP(X$4,'4. Billing Determinants'!$B$19:$R$41,4,0)/'4. Billing Determinants'!$E$41*$D25,IF($E25="kW",VLOOKUP(X$4,'4. Billing Determinants'!$B$19:$R$41,5,0)/'4. Billing Determinants'!$F$41*$D25,IF($E25="Non-RPP kWh",VLOOKUP(X$4,'4. Billing Determinants'!$B$19:$R$41,6,0)/'4. Billing Determinants'!$G$41*$D25,IF($E25="Distribution Rev.",VLOOKUP(X$4,'4. Billing Determinants'!$B$19:$R$41,8,0)/'4. Billing Determinants'!$I$41*$D25, VLOOKUP(X$4,'4. Billing Determinants'!$B$19:$R$41,3,0)/'4. Billing Determinants'!$D$41*$D25))))),0) -> 0 | Y25: =IFERROR(IF(Y$4="",0,IF($E25="kWh",VLOOKUP(Y$4,'4. Billing Determinants'!$B$19:$R$41,4,0)/'4. Billing Determinants'!$E$41*$D25,IF($E25="kW",VLOOKUP(Y$4,'4. Billing Determinants'!$B$19:$R$41,5,0)/'4. Billing Determinants'!$F$41*$D25,IF($E25="Non-RPP kWh",VLOOKUP(Y$4,'4. Billing Determinants'!$B$19:$R$41,6,0)/'4. Billing Determinants'!$G$41*$D25,IF($E25="Distribution Rev.",VLOOKUP(Y$4,'4. Billing Determinants'!$B$19:$R$41,8,0)/'4. Billing Determinants'!$I$41*$D25, VLOOKUP(Y$4,'4. Billing Determinants'!$B$19:$R$41,3,0)/'4. Billing Determinants'!$D$41*$D25))))),0) -> 0
A26: 23 | B26: =+'2. 2016 Continuity Schedule'!C81 -> Smart Meter Capital and Recovery Offset Variance - Sub-Account - Stranded Meter Costs5 | C26: =+'2. 2016 Continuity Schedule'!D81 -> 1555 | D26: =+'2. 2016 Continuity Schedule'!BT81 -> -50611.14667 | E26: kWh | F26: =IFERROR(IF(F$4="",0,IF($E26="kWh",VLOOKUP(F$4,'4. Billing Determinants'!$B$19:$R$41,4,0)/'4. Billing Determinants'!$E$41*$D26,IF($E26="kW",VLOOKUP(F$4,'4. Billing Determinants'!$B$19:$R$41,5,0)/'4. Billing Determinants'!$F$41*$D26,IF($E26="Non-RPP kWh",VLOOKUP(F$4,'4. Billing Determinants'!$B$19:$R$41,6,0)/'4. Billing Determinants'!$G$41*$D26,IF($E26="Distribution Rev.",VLOOKUP(F$4,'4. Billing Determinants'!$B$19:$R$41,8,0)/'4. Billing Determinants'!$I$41*$D26, VLOOKUP(F$4,'4. Billing Determinants'!$B$19:$R$41,3,0)/'4. Billing Determinants'!$D$41*$D26))))),0) -> -18458.70235 | G26: =IFERROR(IF(G$4="",0,IF($E26="kWh",VLOOKUP(G$4,'4. Billing Determinants'!$B$19:$R$41,4,0)/'4. Billing Determinants'!$E$41*$D26,IF($E26="kW",VLOOKUP(G$4,'4. Billing Determinants'!$B$19:$R$41,5,0)/'4. Billing Determinants'!$F$41*$D26,IF($E26="Non-RPP kWh",VLOOKUP(G$4,'4. Billing Determinants'!$B$19:$R$41,6,0)/'4. Billing Determinants'!$G$41*$D26,IF($E26="Distribution Rev.",VLOOKUP(G$4,'4. Billing Determinants'!$B$19:$R$41,8,0)/'4. Billing Determinants'!$I$41*$D26, VLOOKUP(G$4,'4. Billing Determinants'!$B$19:$R$41,3,0)/'4. Billing Determinants'!$D$41*$D26))))),0) -> -7836.626557 | H26: =IFERROR(IF(H$4="",0,IF($E26="kWh",VLOOKUP(H$4,'4. Billing Determinants'!$B$19:$R$41,4,0)/'4. Billing Determinants'!$E$41*$D26,IF($E26="kW",VLOOKUP(H$4,'4. Billing Determinants'!$B$19:$R$41,5,0)/'4. Billing Determinants'!$F$41*$D26,IF($E26="Non-RPP kWh",VLOOKUP(H$4,'4. Billing Determinants'!$B$19:$R$41,6,0)/'4. Billing Determinants'!$G$41*$D26,IF($E26="Distribution Rev.",VLOOKUP(H$4,'4. Billing Determinants'!$B$19:$R$41,8,0)/'4. Billing Determinants'!$I$41*$D26, VLOOKUP(H$4,'4. Billing Determinants'!$B$19:$R$41,3,0)/'4. Billing Determinants'!$D$41*$D26))))),0) -> -14437.24222 | I26: =IFERROR(IF(I$4="",0,IF($E26="kWh",VLOOKUP(I$4,'4. Billing Determinants'!$B$19:$R$41,4,0)/'4. Billing Determinants'!$E$41*$D26,IF($E26="kW",VLOOKUP(I$4,'4. Billing Determinants'!$B$19:$R$41,5,0)/'4. Billing Determinants'!$F$41*$D26,IF($E26="Non-RPP kWh",VLOOKUP(I$4,'4. Billing Determinants'!$B$19:$R$41,6,0)/'4. Billing Determinants'!$G$41*$D26,IF($E26="Distribution Rev.",VLOOKUP(I$4,'4. Billing Determinants'!$B$19:$R$41,8,0)/'4. Billing Determinants'!$I$41*$D26, VLOOKUP(I$4,'4. Billing Determinants'!$B$19:$R$41,3,0)/'4. Billing Determinants'!$D$41*$D26))))),0) -> -9299.371927 | J26: =IFERROR(IF(J$4="",0,IF($E26="kWh",VLOOKUP(J$4,'4. Billing Determinants'!$B$19:$R$41,4,0)/'4. Billing Determinants'!$E$41*$D26,IF($E26="kW",VLOOKUP(J$4,'4. Billing Determinants'!$B$19:$R$41,5,0)/'4. Billing Determinants'!$F$41*$D26,IF($E26="Non-RPP kWh",VLOOKUP(J$4,'4. Billing Determinants'!$B$19:$R$41,6,0)/'4. Billing Determinants'!$G$41*$D26,IF($E26="Distribution Rev.",VLOOKUP(J$4,'4. Billing Determinants'!$B$19:$R$41,8,0)/'4. Billing Determinants'!$I$41*$D26, VLOOKUP(J$4,'4. Billing Determinants'!$B$19:$R$41,3,0)/'4. Billing Determinants'!$D$41*$D26))))),0) -> 0 | K26: =IFERROR(IF(K$4="",0,IF($E26="kWh",VLOOKUP(K$4,'4. Billing Determinants'!$B$19:$R$41,4,0)/'4. Billing Determinants'!$E$41*$D26,IF($E26="kW",VLOOKUP(K$4,'4. Billing Determinants'!$B$19:$R$41,5,0)/'4. Billing Determinants'!$F$41*$D26,IF($E26="Non-RPP kWh",VLOOKUP(K$4,'4. Billing Determinants'!$B$19:$R$41,6,0)/'4. Billing Determinants'!$G$41*$D26,IF($E26="Distribution Rev.",VLOOKUP(K$4,'4. Billing Determinants'!$B$19:$R$41,8,0)/'4. Billing Determinants'!$I$41*$D26, VLOOKUP(K$4,'4. Billing Determinants'!$B$19:$R$41,3,0)/'4. Billing Determinants'!$D$41*$D26))))),0) -> -455.3001837 | L26: =IFERROR(IF(L$4="",0,IF($E26="kWh",VLOOKUP(L$4,'4. Billing Determinants'!$B$19:$R$41,4,0)/'4. Billing Determinants'!$E$41*$D26,IF($E26="kW",VLOOKUP(L$4,'4. Billing Determinants'!$B$19:$R$41,5,0)/'4. Billing Determinants'!$F$41*$D26,IF($E26="Non-RPP kWh",VLOOKUP(L$4,'4. Billing Determinants'!$B$19:$R$41,6,0)/'4. Billing Determinants'!$G$41*$D26,IF($E26="Distribution Rev.",VLOOKUP(L$4,'4. Billing Determinants'!$B$19:$R$41,8,0)/'4. Billing Determinants'!$I$41*$D26, VLOOKUP(L$4,'4. Billing Determinants'!$B$19:$R$41,3,0)/'4. Billing Determinants'!$D$41*$D26))))),0) -> -5.933167321 | M26: =IFERROR(IF(M$4="",0,IF($E26="kWh",VLOOKUP(M$4,'4. Billing Determinants'!$B$19:$R$41,4,0)/'4. Billing Determinants'!$E$41*$D26,IF($E26="kW",VLOOKUP(M$4,'4. Billing Determinants'!$B$19:$R$41,5,0)/'4. Billing Determinants'!$F$41*$D26,IF($E26="Non-RPP kWh",VLOOKUP(M$4,'4. Billing Determinants'!$B$19:$R$41,6,0)/'4. Billing Determinants'!$G$41*$D26,IF($E26="Distribution Rev.",VLOOKUP(M$4,'4. Billing Determinants'!$B$19:$R$41,8,0)/'4. Billing Determinants'!$I$41*$D26, VLOOKUP(M$4,'4. Billing Determinants'!$B$19:$R$41,3,0)/'4. Billing Determinants'!$D$41*$D26))))),0) -> -117.9702594 | N26: =IFERROR(IF(N$4="",0,IF($E26="kWh",VLOOKUP(N$4,'4. Billing Determinants'!$B$19:$R$41,4,0)/'4. Billing Determinants'!$E$41*$D26,IF($E26="kW",VLOOKUP(N$4,'4. Billing Determinants'!$B$19:$R$41,5,0)/'4. Billing Determinants'!$F$41*$D26,IF($E26="Non-RPP kWh",VLOOKUP(N$4,'4. Billing Determinants'!$B$19:$R$41,6,0)/'4. Billing Determinants'!$G$41*$D26,IF($E26="Distribution Rev.",VLOOKUP(N$4,'4. Billing Determinants'!$B$19:$R$41,8,0)/'4. Billing Determinants'!$I$41*$D26, VLOOKUP(N$4,'4. Billing Determinants'!$B$19:$R$41,3,0)/'4. Billing Determinants'!$D$41*$D26))))),0) -> 0 | O26: =IFERROR(IF(O$4="",0,IF($E26="kWh",VLOOKUP(O$4,'4. Billing Determinants'!$B$19:$R$41,4,0)/'4. Billing Determinants'!$E$41*$D26,IF($E26="kW",VLOOKUP(O$4,'4. Billing Determinants'!$B$19:$R$41,5,0)/'4. Billing Determinants'!$F$41*$D26,IF($E26="Non-RPP kWh",VLOOKUP(O$4,'4. Billing Determinants'!$B$19:$R$41,6,0)/'4. Billing Determinants'!$G$41*$D26,IF($E26="Distribution Rev.",VLOOKUP(O$4,'4. Billing Determinants'!$B$19:$R$41,8,0)/'4. Billing Determinants'!$I$41*$D26, VLOOKUP(O$4,'4. Billing Determinants'!$B$19:$R$41,3,0)/'4. Billing Determinants'!$D$41*$D26))))),0) -> 0 | P26: =IFERROR(IF(P$4="",0,IF($E26="kWh",VLOOKUP(P$4,'4. Billing Determinants'!$B$19:$R$41,4,0)/'4. Billing Determinants'!$E$41*$D26,IF($E26="kW",VLOOKUP(P$4,'4. Billing Determinants'!$B$19:$R$41,5,0)/'4. Billing Determinants'!$F$41*$D26,IF($E26="Non-RPP kWh",VLOOKUP(P$4,'4. Billing Determinants'!$B$19:$R$41,6,0)/'4. Billing Determinants'!$G$41*$D26,IF($E26="Distribution Rev.",VLOOKUP(P$4,'4. Billing Determinants'!$B$19:$R$41,8,0)/'4. Billing Determinants'!$I$41*$D26, VLOOKUP(P$4,'4. Billing Determinants'!$B$19:$R$41,3,0)/'4. Billing Determinants'!$D$41*$D26))))),0) -> 0 | Q26: =IFERROR(IF(Q$4="",0,IF($E26="kWh",VLOOKUP(Q$4,'4. Billing Determinants'!$B$19:$R$41,4,0)/'4. Billing Determinants'!$E$41*$D26,IF($E26="kW",VLOOKUP(Q$4,'4. Billing Determinants'!$B$19:$R$41,5,0)/'4. Billing Determinants'!$F$41*$D26,IF($E26="Non-RPP kWh",VLOOKUP(Q$4,'4. Billing Determinants'!$B$19:$R$41,6,0)/'4. Billing Determinants'!$G$41*$D26,IF($E26="Distribution Rev.",VLOOKUP(Q$4,'4. Billing Determinants'!$B$19:$R$41,8,0)/'4. Billing Determinants'!$I$41*$D26, VLOOKUP(Q$4,'4. Billing Determinants'!$B$19:$R$41,3,0)/'4. Billing Determinants'!$D$41*$D26))))),0) -> 0 | R26: =IFERROR(IF(R$4="",0,IF($E26="kWh",VLOOKUP(R$4,'4. Billing Determinants'!$B$19:$R$41,4,0)/'4. Billing Determinants'!$E$41*$D26,IF($E26="kW",VLOOKUP(R$4,'4. Billing Determinants'!$B$19:$R$41,5,0)/'4. Billing Determinants'!$F$41*$D26,IF($E26="Non-RPP kWh",VLOOKUP(R$4,'4. Billing Determinants'!$B$19:$R$41,6,0)/'4. Billing Determinants'!$G$41*$D26,IF($E26="Distribution Rev.",VLOOKUP(R$4,'4. Billing Determinants'!$B$19:$R$41,8,0)/'4. Billing Determinants'!$I$41*$D26, VLOOKUP(R$4,'4. Billing Determinants'!$B$19:$R$41,3,0)/'4. Billing Determinants'!$D$41*$D26))))),0) -> 0 | S26: =IFERROR(IF(S$4="",0,IF($E26="kWh",VLOOKUP(S$4,'4. Billing Determinants'!$B$19:$R$41,4,0)/'4. Billing Determinants'!$E$41*$D26,IF($E26="kW",VLOOKUP(S$4,'4. Billing Determinants'!$B$19:$R$41,5,0)/'4. Billing Determinants'!$F$41*$D26,IF($E26="Non-RPP kWh",VLOOKUP(S$4,'4. Billing Determinants'!$B$19:$R$41,6,0)/'4. Billing Determinants'!$G$41*$D26,IF($E26="Distribution Rev.",VLOOKUP(S$4,'4. Billing Determinants'!$B$19:$R$41,8,0)/'4. Billing Determinants'!$I$41*$D26, VLOOKUP(S$4,'4. Billing Determinants'!$B$19:$R$41,3,0)/'4. Billing Determinants'!$D$41*$D26))))),0) -> 0 | T26: =IFERROR(IF(T$4="",0,IF($E26="kWh",VLOOKUP(T$4,'4. Billing Determinants'!$B$19:$R$41,4,0)/'4. Billing Determinants'!$E$41*$D26,IF($E26="kW",VLOOKUP(T$4,'4. Billing Determinants'!$B$19:$R$41,5,0)/'4. Billing Determinants'!$F$41*$D26,IF($E26="Non-RPP kWh",VLOOKUP(T$4,'4. Billing Determinants'!$B$19:$R$41,6,0)/'4. Billing Determinants'!$G$41*$D26,IF($E26="Distribution Rev.",VLOOKUP(T$4,'4. Billing Determinants'!$B$19:$R$41,8,0)/'4. Billing Determinants'!$I$41*$D26, VLOOKUP(T$4,'4. Billing Determinants'!$B$19:$R$41,3,0)/'4. Billing Determinants'!$D$41*$D26))))),0) -> 0 | U26: =IFERROR(IF(U$4="",0,IF($E26="kWh",VLOOKUP(U$4,'4. Billing Determinants'!$B$19:$R$41,4,0)/'4. Billing Determinants'!$E$41*$D26,IF($E26="kW",VLOOKUP(U$4,'4. Billing Determinants'!$B$19:$R$41,5,0)/'4. Billing Determinants'!$F$41*$D26,IF($E26="Non-RPP kWh",VLOOKUP(U$4,'4. Billing Determinants'!$B$19:$R$41,6,0)/'4. Billing Determinants'!$G$41*$D26,IF($E26="Distribution Rev.",VLOOKUP(U$4,'4. Billing Determinants'!$B$19:$R$41,8,0)/'4. Billing Determinants'!$I$41*$D26, VLOOKUP(U$4,'4. Billing Determinants'!$B$19:$R$41,3,0)/'4. Billing Determinants'!$D$41*$D26))))),0) -> 0 | V26: =IFERROR(IF(V$4="",0,IF($E26="kWh",VLOOKUP(V$4,'4. Billing Determinants'!$B$19:$R$41,4,0)/'4. Billing Determinants'!$E$41*$D26,IF($E26="kW",VLOOKUP(V$4,'4. Billing Determinants'!$B$19:$R$41,5,0)/'4. Billing Determinants'!$F$41*$D26,IF($E26="Non-RPP kWh",VLOOKUP(V$4,'4. Billing Determinants'!$B$19:$R$41,6,0)/'4. Billing Determinants'!$G$41*$D26,IF($E26="Distribution Rev.",VLOOKUP(V$4,'4. Billing Determinants'!$B$19:$R$41,8,0)/'4. Billing Determinants'!$I$41*$D26, VLOOKUP(V$4,'4. Billing Determinants'!$B$19:$R$41,3,0)/'4. Billing Determinants'!$D$41*$D26))))),0) -> 0 | W26: =IFERROR(IF(W$4="",0,IF($E26="kWh",VLOOKUP(W$4,'4. Billing Determinants'!$B$19:$R$41,4,0)/'4. Billing Determinants'!$E$41*$D26,IF($E26="kW",VLOOKUP(W$4,'4. Billing Determinants'!$B$19:$R$41,5,0)/'4. Billing Determinants'!$F$41*$D26,IF($E26="Non-RPP kWh",VLOOKUP(W$4,'4. Billing Determinants'!$B$19:$R$41,6,0)/'4. Billing Determinants'!$G$41*$D26,IF($E26="Distribution Rev.",VLOOKUP(W$4,'4. Billing Determinants'!$B$19:$R$41,8,0)/'4. Billing Determinants'!$I$41*$D26, VLOOKUP(W$4,'4. Billing Determinants'!$B$19:$R$41,3,0)/'4. Billing Determinants'!$D$41*$D26))))),0) -> 0 | X26: =IFERROR(IF(X$4="",0,IF($E26="kWh",VLOOKUP(X$4,'4. Billing Determinants'!$B$19:$R$41,4,0)/'4. Billing Determinants'!$E$41*$D26,IF($E26="kW",VLOOKUP(X$4,'4. Billing Determinants'!$B$19:$R$41,5,0)/'4. Billing Determinants'!$F$41*$D26,IF($E26="Non-RPP kWh",VLOOKUP(X$4,'4. Billing Determinants'!$B$19:$R$41,6,0)/'4. Billing Determinants'!$G$41*$D26,IF($E26="Distribution Rev.",VLOOKUP(X$4,'4. Billing Determinants'!$B$19:$R$41,8,0)/'4. Billing Determinants'!$I$41*$D26, VLOOKUP(X$4,'4. Billing Determinants'!$B$19:$R$41,3,0)/'4. Billing Determinants'!$D$41*$D26))))),0) -> 0 | Y26: =IFERROR(IF(Y$4="",0,IF($E26="kWh",VLOOKUP(Y$4,'4. Billing Determinants'!$B$19:$R$41,4,0)/'4. Billing Determinants'!$E$41*$D26,IF($E26="kW",VLOOKUP(Y$4,'4. Billing Determinants'!$B$19:$R$41,5,0)/'4. Billing Determinants'!$F$41*$D26,IF($E26="Non-RPP kWh",VLOOKUP(Y$4,'4. Billing Determinants'!$B$19:$R$41,6,0)/'4. Billing Determinants'!$G$41*$D26,IF($E26="Distribution Rev.",VLOOKUP(Y$4,'4. Billing Determinants'!$B$19:$R$41,8,0)/'4. Billing Determinants'!$I$41*$D26, VLOOKUP(Y$4,'4. Billing Determinants'!$B$19:$R$41,3,0)/'4. Billing Determinants'!$D$41*$D26))))),0) -> 0
A27: 24 | B27: Retail Cost Variance Account - STR | C27: 1548 | D27: =+'2. 2016 Continuity Schedule'!BT53 -> 83865.20067 | E27: kWh | F27: =IFERROR(IF(F$4="",0,IF($E27="kWh",VLOOKUP(F$4,'4. Billing Determinants'!$B$19:$R$41,4,0)/'4. Billing Determinants'!$E$41*$D27,IF($E27="kW",VLOOKUP(F$4,'4. Billing Determinants'!$B$19:$R$41,5,0)/'4. Billing Determinants'!$F$41*$D27,IF($E27="Non-RPP kWh",VLOOKUP(F$4,'4. Billing Determinants'!$B$19:$R$41,6,0)/'4. Billing Determinants'!$G$41*$D27,IF($E27="Distribution Rev.",VLOOKUP(F$4,'4. Billing Determinants'!$B$19:$R$41,8,0)/'4. Billing Determinants'!$I$41*$D27, VLOOKUP(F$4,'4. Billing Determinants'!$B$19:$R$41,3,0)/'4. Billing Determinants'!$D$41*$D27))))),0) -> 30586.99276 | G27: =IFERROR(IF(G$4="",0,IF($E27="kWh",VLOOKUP(G$4,'4. Billing Determinants'!$B$19:$R$41,4,0)/'4. Billing Determinants'!$E$41*$D27,IF($E27="kW",VLOOKUP(G$4,'4. Billing Determinants'!$B$19:$R$41,5,0)/'4. Billing Determinants'!$F$41*$D27,IF($E27="Non-RPP kWh",VLOOKUP(G$4,'4. Billing Determinants'!$B$19:$R$41,6,0)/'4. Billing Determinants'!$G$41*$D27,IF($E27="Distribution Rev.",VLOOKUP(G$4,'4. Billing Determinants'!$B$19:$R$41,8,0)/'4. Billing Determinants'!$I$41*$D27, VLOOKUP(G$4,'4. Billing Determinants'!$B$19:$R$41,3,0)/'4. Billing Determinants'!$D$41*$D27))))),0) -> 12985.68205 | H27: =IFERROR(IF(H$4="",0,IF($E27="kWh",VLOOKUP(H$4,'4. Billing Determinants'!$B$19:$R$41,4,0)/'4. Billing Determinants'!$E$41*$D27,IF($E27="kW",VLOOKUP(H$4,'4. Billing Determinants'!$B$19:$R$41,5,0)/'4. Billing Determinants'!$F$41*$D27,IF($E27="Non-RPP kWh",VLOOKUP(H$4,'4. Billing Determinants'!$B$19:$R$41,6,0)/'4. Billing Determinants'!$G$41*$D27,IF($E27="Distribution Rev.",VLOOKUP(H$4,'4. Billing Determinants'!$B$19:$R$41,8,0)/'4. Billing Determinants'!$I$41*$D27, VLOOKUP(H$4,'4. Billing Determinants'!$B$19:$R$41,3,0)/'4. Billing Determinants'!$D$41*$D27))))),0) -> 23923.23225 | I27: =IFERROR(IF(I$4="",0,IF($E27="kWh",VLOOKUP(I$4,'4. Billing Determinants'!$B$19:$R$41,4,0)/'4. Billing Determinants'!$E$41*$D27,IF($E27="kW",VLOOKUP(I$4,'4. Billing Determinants'!$B$19:$R$41,5,0)/'4. Billing Determinants'!$F$41*$D27,IF($E27="Non-RPP kWh",VLOOKUP(I$4,'4. Billing Determinants'!$B$19:$R$41,6,0)/'4. Billing Determinants'!$G$41*$D27,IF($E27="Distribution Rev.",VLOOKUP(I$4,'4. Billing Determinants'!$B$19:$R$41,8,0)/'4. Billing Determinants'!$I$41*$D27, VLOOKUP(I$4,'4. Billing Determinants'!$B$19:$R$41,3,0)/'4. Billing Determinants'!$D$41*$D27))))),0) -> 15409.52427 | J27: =IFERROR(IF(J$4="",0,IF($E27="kWh",VLOOKUP(J$4,'4. Billing Determinants'!$B$19:$R$41,4,0)/'4. Billing Determinants'!$E$41*$D27,IF($E27="kW",VLOOKUP(J$4,'4. Billing Determinants'!$B$19:$R$41,5,0)/'4. Billing Determinants'!$F$41*$D27,IF($E27="Non-RPP kWh",VLOOKUP(J$4,'4. Billing Determinants'!$B$19:$R$41,6,0)/'4. Billing Determinants'!$G$41*$D27,IF($E27="Distribution Rev.",VLOOKUP(J$4,'4. Billing Determinants'!$B$19:$R$41,8,0)/'4. Billing Determinants'!$I$41*$D27, VLOOKUP(J$4,'4. Billing Determinants'!$B$19:$R$41,3,0)/'4. Billing Determinants'!$D$41*$D27))))),0) -> 0 | K27: =IFERROR(IF(K$4="",0,IF($E27="kWh",VLOOKUP(K$4,'4. Billing Determinants'!$B$19:$R$41,4,0)/'4. Billing Determinants'!$E$41*$D27,IF($E27="kW",VLOOKUP(K$4,'4. Billing Determinants'!$B$19:$R$41,5,0)/'4. Billing Determinants'!$F$41*$D27,IF($E27="Non-RPP kWh",VLOOKUP(K$4,'4. Billing Determinants'!$B$19:$R$41,6,0)/'4. Billing Determinants'!$G$41*$D27,IF($E27="Distribution Rev.",VLOOKUP(K$4,'4. Billing Determinants'!$B$19:$R$41,8,0)/'4. Billing Determinants'!$I$41*$D27, VLOOKUP(K$4,'4. Billing Determinants'!$B$19:$R$41,3,0)/'4. Billing Determinants'!$D$41*$D27))))),0) -> 754.4551701 | L27: =IFERROR(IF(L$4="",0,IF($E27="kWh",VLOOKUP(L$4,'4. Billing Determinants'!$B$19:$R$41,4,0)/'4. Billing Determinants'!$E$41*$D27,IF($E27="kW",VLOOKUP(L$4,'4. Billing Determinants'!$B$19:$R$41,5,0)/'4. Billing Determinants'!$F$41*$D27,IF($E27="Non-RPP kWh",VLOOKUP(L$4,'4. Billing Determinants'!$B$19:$R$41,6,0)/'4. Billing Determinants'!$G$41*$D27,IF($E27="Distribution Rev.",VLOOKUP(L$4,'4. Billing Determinants'!$B$19:$R$41,8,0)/'4. Billing Determinants'!$I$41*$D27, VLOOKUP(L$4,'4. Billing Determinants'!$B$19:$R$41,3,0)/'4. Billing Determinants'!$D$41*$D27))))),0) -> 9.831554919 | M27: =IFERROR(IF(M$4="",0,IF($E27="kWh",VLOOKUP(M$4,'4. Billing Determinants'!$B$19:$R$41,4,0)/'4. Billing Determinants'!$E$41*$D27,IF($E27="kW",VLOOKUP(M$4,'4. Billing Determinants'!$B$19:$R$41,5,0)/'4. Billing Determinants'!$F$41*$D27,IF($E27="Non-RPP kWh",VLOOKUP(M$4,'4. Billing Determinants'!$B$19:$R$41,6,0)/'4. Billing Determinants'!$G$41*$D27,IF($E27="Distribution Rev.",VLOOKUP(M$4,'4. Billing Determinants'!$B$19:$R$41,8,0)/'4. Billing Determinants'!$I$41*$D27, VLOOKUP(M$4,'4. Billing Determinants'!$B$19:$R$41,3,0)/'4. Billing Determinants'!$D$41*$D27))))),0) -> 195.4826186 | N27: =IFERROR(IF(N$4="",0,IF($E27="kWh",VLOOKUP(N$4,'4. Billing Determinants'!$B$19:$R$41,4,0)/'4. Billing Determinants'!$E$41*$D27,IF($E27="kW",VLOOKUP(N$4,'4. Billing Determinants'!$B$19:$R$41,5,0)/'4. Billing Determinants'!$F$41*$D27,IF($E27="Non-RPP kWh",VLOOKUP(N$4,'4. Billing Determinants'!$B$19:$R$41,6,0)/'4. Billing Determinants'!$G$41*$D27,IF($E27="Distribution Rev.",VLOOKUP(N$4,'4. Billing Determinants'!$B$19:$R$41,8,0)/'4. Billing Determinants'!$I$41*$D27, VLOOKUP(N$4,'4. Billing Determinants'!$B$19:$R$41,3,0)/'4. Billing Determinants'!$D$41*$D27))))),0) -> 0 | O27: =IFERROR(IF(O$4="",0,IF($E27="kWh",VLOOKUP(O$4,'4. Billing Determinants'!$B$19:$R$41,4,0)/'4. Billing Determinants'!$E$41*$D27,IF($E27="kW",VLOOKUP(O$4,'4. Billing Determinants'!$B$19:$R$41,5,0)/'4. Billing Determinants'!$F$41*$D27,IF($E27="Non-RPP kWh",VLOOKUP(O$4,'4. Billing Determinants'!$B$19:$R$41,6,0)/'4. Billing Determinants'!$G$41*$D27,IF($E27="Distribution Rev.",VLOOKUP(O$4,'4. Billing Determinants'!$B$19:$R$41,8,0)/'4. Billing Determinants'!$I$41*$D27, VLOOKUP(O$4,'4. Billing Determinants'!$B$19:$R$41,3,0)/'4. Billing Determinants'!$D$41*$D27))))),0) -> 0 | P27: =IFERROR(IF(P$4="",0,IF($E27="kWh",VLOOKUP(P$4,'4. Billing Determinants'!$B$19:$R$41,4,0)/'4. Billing Determinants'!$E$41*$D27,IF($E27="kW",VLOOKUP(P$4,'4. Billing Determinants'!$B$19:$R$41,5,0)/'4. Billing Determinants'!$F$41*$D27,IF($E27="Non-RPP kWh",VLOOKUP(P$4,'4. Billing Determinants'!$B$19:$R$41,6,0)/'4. Billing Determinants'!$G$41*$D27,IF($E27="Distribution Rev.",VLOOKUP(P$4,'4. Billing Determinants'!$B$19:$R$41,8,0)/'4. Billing Determinants'!$I$41*$D27, VLOOKUP(P$4,'4. Billing Determinants'!$B$19:$R$41,3,0)/'4. Billing Determinants'!$D$41*$D27))))),0) -> 0 | Q27: =IFERROR(IF(Q$4="",0,IF($E27="kWh",VLOOKUP(Q$4,'4. Billing Determinants'!$B$19:$R$41,4,0)/'4. Billing Determinants'!$E$41*$D27,IF($E27="kW",VLOOKUP(Q$4,'4. Billing Determinants'!$B$19:$R$41,5,0)/'4. Billing Determinants'!$F$41*$D27,IF($E27="Non-RPP kWh",VLOOKUP(Q$4,'4. Billing Determinants'!$B$19:$R$41,6,0)/'4. Billing Determinants'!$G$41*$D27,IF($E27="Distribution Rev.",VLOOKUP(Q$4,'4. Billing Determinants'!$B$19:$R$41,8,0)/'4. Billing Determinants'!$I$41*$D27, VLOOKUP(Q$4,'4. Billing Determinants'!$B$19:$R$41,3,0)/'4. Billing Determinants'!$D$41*$D27))))),0) -> 0 | R27: =IFERROR(IF(R$4="",0,IF($E27="kWh",VLOOKUP(R$4,'4. Billing Determinants'!$B$19:$R$41,4,0)/'4. Billing Determinants'!$E$41*$D27,IF($E27="kW",VLOOKUP(R$4,'4. Billing Determinants'!$B$19:$R$41,5,0)/'4. Billing Determinants'!$F$41*$D27,IF($E27="Non-RPP kWh",VLOOKUP(R$4,'4. Billing Determinants'!$B$19:$R$41,6,0)/'4. Billing Determinants'!$G$41*$D27,IF($E27="Distribution Rev.",VLOOKUP(R$4,'4. Billing Determinants'!$B$19:$R$41,8,0)/'4. Billing Determinants'!$I$41*$D27, VLOOKUP(R$4,'4. Billing Determinants'!$B$19:$R$41,3,0)/'4. Billing Determinants'!$D$41*$D27))))),0) -> 0 | S27: =IFERROR(IF(S$4="",0,IF($E27="kWh",VLOOKUP(S$4,'4. Billing Determinants'!$B$19:$R$41,4,0)/'4. Billing Determinants'!$E$41*$D27,IF($E27="kW",VLOOKUP(S$4,'4. Billing Determinants'!$B$19:$R$41,5,0)/'4. Billing Determinants'!$F$41*$D27,IF($E27="Non-RPP kWh",VLOOKUP(S$4,'4. Billing Determinants'!$B$19:$R$41,6,0)/'4. Billing Determinants'!$G$41*$D27,IF($E27="Distribution Rev.",VLOOKUP(S$4,'4. Billing Determinants'!$B$19:$R$41,8,0)/'4. Billing Determinants'!$I$41*$D27, VLOOKUP(S$4,'4. Billing Determinants'!$B$19:$R$41,3,0)/'4. Billing Determinants'!$D$41*$D27))))),0) -> 0 | T27: =IFERROR(IF(T$4="",0,IF($E27="kWh",VLOOKUP(T$4,'4. Billing Determinants'!$B$19:$R$41,4,0)/'4. Billing Determinants'!$E$41*$D27,IF($E27="kW",VLOOKUP(T$4,'4. Billing Determinants'!$B$19:$R$41,5,0)/'4. Billing Determinants'!$F$41*$D27,IF($E27="Non-RPP kWh",VLOOKUP(T$4,'4. Billing Determinants'!$B$19:$R$41,6,0)/'4. Billing Determinants'!$G$41*$D27,IF($E27="Distribution Rev.",VLOOKUP(T$4,'4. Billing Determinants'!$B$19:$R$41,8,0)/'4. Billing Determinants'!$I$41*$D27, VLOOKUP(T$4,'4. Billing Determinants'!$B$19:$R$41,3,0)/'4. Billing Determinants'!$D$41*$D27))))),0) -> 0 | U27: =IFERROR(IF(U$4="",0,IF($E27="kWh",VLOOKUP(U$4,'4. Billing Determinants'!$B$19:$R$41,4,0)/'4. Billing Determinants'!$E$41*$D27,IF($E27="kW",VLOOKUP(U$4,'4. Billing Determinants'!$B$19:$R$41,5,0)/'4. Billing Determinants'!$F$41*$D27,IF($E27="Non-RPP kWh",VLOOKUP(U$4,'4. Billing Determinants'!$B$19:$R$41,6,0)/'4. Billing Determinants'!$G$41*$D27,IF($E27="Distribution Rev.",VLOOKUP(U$4,'4. Billing Determinants'!$B$19:$R$41,8,0)/'4. Billing Determinants'!$I$41*$D27, VLOOKUP(U$4,'4. Billing Determinants'!$B$19:$R$41,3,0)/'4. Billing Determinants'!$D$41*$D27))))),0) -> 0 | V27: =IFERROR(IF(V$4="",0,IF($E27="kWh",VLOOKUP(V$4,'4. Billing Determinants'!$B$19:$R$41,4,0)/'4. Billing Determinants'!$E$41*$D27,IF($E27="kW",VLOOKUP(V$4,'4. Billing Determinants'!$B$19:$R$41,5,0)/'4. Billing Determinants'!$F$41*$D27,IF($E27="Non-RPP kWh",VLOOKUP(V$4,'4. Billing Determinants'!$B$19:$R$41,6,0)/'4. Billing Determinants'!$G$41*$D27,IF($E27="Distribution Rev.",VLOOKUP(V$4,'4. Billing Determinants'!$B$19:$R$41,8,0)/'4. Billing Determinants'!$I$41*$D27, VLOOKUP(V$4,'4. Billing Determinants'!$B$19:$R$41,3,0)/'4. Billing Determinants'!$D$41*$D27))))),0) -> 0 | W27: =IFERROR(IF(W$4="",0,IF($E27="kWh",VLOOKUP(W$4,'4. Billing Determinants'!$B$19:$R$41,4,0)/'4. Billing Determinants'!$E$41*$D27,IF($E27="kW",VLOOKUP(W$4,'4. Billing Determinants'!$B$19:$R$41,5,0)/'4. Billing Determinants'!$F$41*$D27,IF($E27="Non-RPP kWh",VLOOKUP(W$4,'4. Billing Determinants'!$B$19:$R$41,6,0)/'4. Billing Determinants'!$G$41*$D27,IF($E27="Distribution Rev.",VLOOKUP(W$4,'4. Billing Determinants'!$B$19:$R$41,8,0)/'4. Billing Determinants'!$I$41*$D27, VLOOKUP(W$4,'4. Billing Determinants'!$B$19:$R$41,3,0)/'4. Billing Determinants'!$D$41*$D27))))),0) -> 0 | X27: =IFERROR(IF(X$4="",0,IF($E27="kWh",VLOOKUP(X$4,'4. Billing Determinants'!$B$19:$R$41,4,0)/'4. Billing Determinants'!$E$41*$D27,IF($E27="kW",VLOOKUP(X$4,'4. Billing Determinants'!$B$19:$R$41,5,0)/'4. Billing Determinants'!$F$41*$D27,IF($E27="Non-RPP kWh",VLOOKUP(X$4,'4. Billing Determinants'!$B$19:$R$41,6,0)/'4. Billing Determinants'!$G$41*$D27,IF($E27="Distribution Rev.",VLOOKUP(X$4,'4. Billing Determinants'!$B$19:$R$41,8,0)/'4. Billing Determinants'!$I$41*$D27, VLOOKUP(X$4,'4. Billing Determinants'!$B$19:$R$41,3,0)/'4. Billing Determinants'!$D$41*$D27))))),0) -> 0 | Y27: =IFERROR(IF(Y$4="",0,IF($E27="kWh",VLOOKUP(Y$4,'4. Billing Determinants'!$B$19:$R$41,4,0)/'4. Billing Determinants'!$E$41*$D27,IF($E27="kW",VLOOKUP(Y$4,'4. Billing Determinants'!$B$19:$R$41,5,0)/'4. Billing Determinants'!$F$41*$D27,IF($E27="Non-RPP kWh",VLOOKUP(Y$4,'4. Billing Determinants'!$B$19:$R$41,6,0)/'4. Billing Determinants'!$G$41*$D27,IF($E27="Distribution Rev.",VLOOKUP(Y$4,'4. Billing Determinants'!$B$19:$R$41,8,0)/'4. Billing Determinants'!$I$41*$D27, VLOOKUP(Y$4,'4. Billing Determinants'!$B$19:$R$41,3,0)/'4. Billing Determinants'!$D$41*$D27))))),0) -> 0
